{"text_format":"1","workbook":"xlsx","n_sheets":12,"sheets":["Prompt","C100","C101","C200","C300","C338","C400","C500","C700","C800","C900","Enviar"],"not_rendered":{"charts":0,"images":6,"macros":1,"external_links":0,"defined_names":2,"comments":1,"pivot_tables":0},"unopened":[],"bounds":{"document_bytes":16777216,"sheet_cells":100000,"rows_first":2000,"rows_last":500,"rows_between":2000,"halvings":0,"cell_chars":16384,"cell_head_chars":4096},"cells_cut":0,"cells_raw":0,"read":"whole","date_system":"1900"}

{"sheet":"Prompt","index":0,"n_rows":79,"n_cols":4,"rows_kept":79,"cut":false,"hidden":true,"merged":[[1,3,2,6],[4,1,6,8],[43,1,44,8],[78,1,79,8],[9,1,10,8]]}
[]
[null,null,null,"¡ATENCIÓN!"]
[]
[]
[null,"Para hacer uso de las funcionalidades de esta Cédula Electrónica debe habilitar macros"]
[]
[]
[]
[]
[null,"Si utiliza Excel 2013 siga el siguiente procedimiento:"]
[]
[]
[]
[]
[]
[]
[]
[]
[]
[]
[]
[]
[]
[]
[]
[]
[]
[]
[]
[]
[]
[]
[]
[]
[]
[]
[]
[]
[]
[]
[]
[]
[]
[null,"Si utiliza Excel 2007 siga el siguiente procedimiento:"]
[]
[]
[]
[]
[]
[]
[]
[]
[]
[]
[]
[]
[]
[]
[]
[]
[]
[]
[]
[]
[]
[]
[]
[]
[]
[]
[]
[]
[]
[]
[]
[]
[]
[]
[null,"Si utiliza Excel 2000, 2002, 2003 siga el siguiente procedimiento:"]

{"sheet":"C100","index":1,"n_rows":671,"n_cols":135,"rows_kept":671,"cut":false,"hidden":false,"merged":[[527,6,527,10],[341,3,341,6],[630,17,630,21],[666,5,666,7],[372,20,372,21],[374,20,374,21],[395,17,395,21],[417,19,420,19],[417,18,420,18],[417,20,420,20],[417,21,420,21],[546,17,547,19],[546,20,547,22],[545,15,547,16],[545,17,545,22],[608,18,608,19],[609,18,609,19],[579,6,579,10],[637,4,639,6],[637,8,638,9],[637,10,638,11],[650,5,650,7],[616,8,616,11],[562,8,562,10],[563,8,563,10],[154,10,154,11],[39,19,39,20],[40,19,40,20],[41,19,41,20],[190,10,193,11],[164,10,164,11],[193,19,193,20],[631,8,631,11],[610,18,610,19],[517,7,517,11],[456,11,457,11],[372,8,372,9],[373,8,373,9],[463,11,464,11],[461,11,462,11],[371,8,371,9],[389,4,389,10],[454,11,455,11],[557,11,559,11],[422,14,422,17],[320,6,320,10],[452,17,452,21],[155,10,155,11],[280,23,283,23],[297,16,297,20],[244,4,244,9],[280,6,280,10],[294,6,294,10],[280,13,282,16],[280,17,282,17],[280,18,282,19],[283,18,283,19],[284,18,284,19],[285,18,285,19],[280,22,283,22],[1,6,1,19],[2,6,2,19],[3,6,3,19],[12,9,12,10],[44,7,44,8],[44,9,44,10],[40,10,40,11],[167,10,167,11],[165,10,165,11],[166,10,166,11],[65,17,65,21],[163,10,163,11],[43,7,43,10],[12,21,12,22],[14,9,14,22],[37,10,37,11],[52,2,52,12],[76,15,76,21],[82,15,82,21],[163,3,163,6],[151,17,151,22],[2,20,4,22],[38,19,38,20],[16,19,16,22],[417,22,420,22],[374,8,374,9],[195,8,195,9],[195,10,195,11],[168,10,168,11],[173,19,173,21],[175,8,175,9],[176,8,176,9],[190,8,192,9],[193,8,193,9],[280,21,283,21],[194,19,194,20],[367,16,367,19],[340,10,342,11],[340,7,342,9],[209,6,209,10],[190,3,192,6],[196,5,196,6],[368,10,370,10],[355,5,355,8],[368,8,370,9],[177,8,177,11],[16,9,16,16],[36,21,37,21],[46,17,46,19],[43,4,45,5],[152,10,152,11],[153,10,153,11],[36,15,37,17],[37,19,37,20],[79,15,79,21],[61,6,61,9],[101,3,101,5],[71,15,71,20],[71,6,71,9],[86,6,86,10],[151,3,151,6],[151,10,151,11],[130,7,130,11],[83,17,83,21],[156,10,156,11],[157,5,157,7],[157,10,157,11],[194,8,194,9],[196,8,196,9],[194,10,194,11],[196,10,196,11],[190,7,192,7],[439,17,439,20],[267,5,267,9],[197,19,197,20],[196,19,196,20],[368,6,370,7],[157,14,157,17],[167,5,167,7],[242,4,242,9],[243,4,243,9],[280,20,283,20],[241,11,243,11],[440,17,440,20],[195,19,195,20],[656,8,657,9],[656,10,657,11],[656,4,658,6],[91,3,91,5],[173,3,174,5],[173,8,173,9],[173,10,173,11],[174,8,174,9],[463,17,463,21],[529,17,529,21],[442,4,442,10],[443,11,444,11],[445,11,446,11],[447,11,448,11],[449,11,450,11],[452,11,453,11],[127,17,127,22],[215,17,215,20],[212,20,213,22],[231,17,231,21],[241,4,241,9],[241,10,243,10]]}
[]
[null,null,null,null,null,null,"CENSO EDUCATIVO 2024",null,null,null,null,null,null,null,null,null,null,null,null,null,"CÉDULA"]
[null,null,null,null,null,null,"EDUCACIÓN BÁSICA REGULAR",null,null,null,null,null,null,null,null,null,null,null,null,null,"3AS"]
[null,null,null,null,null,null,"SECUNDARIA"]
[null,null,"Versión :","GA-1.3"]
[null,null,"INSTRUCCIONES DEL FORMATO ELECTRÓNICO "]
[]
[]
[]
[null,null,"IDENTIFICACIÓN DEL SERVICIO EDUCATIVO"]
[]
[]
[null,null,"1. CÓDIGO MODULAR  :",null,null,null,null,null,null,null,null,null,"2. ANEXO  :",null,0,null,null,null,null,null,"3. LOCAL EDUCATIVO :  "]
[]
[null,null,"4. NOMBRE DEL SERVICIO/NIVEL EDUCATIVO:",null,null,null,null,null,null,""]
[]
[null,null,"5. DISTRITO :",null,null,null,null,null,null,"",null,null,null,null,null,null,null,null,"LOCALIDAD :  "]
[]
[null,null,"6. FORMA Y MODELO DEL SERVICIO :"]
[null,null,null,null,"Presencial",null,null,null,null,"","Semi-Presencial",null,null,null,""," A Distancia"]
[]
[null,null,null,null,"","JER - Jornada Escolar Regular",null,null,null,"","Secundaria en Alternancia",null,null,null,null,"","CPED - Centro Piloto de Educación a Distancia"]
[null,null,null,null,"","JEC - Jornada Escolar Completa",null,null,null,"","Secundaria Tutorial",null,null,null,null,"","Otro"]
[null,null,null,null,"","COAR - Colegio de Alto Rendimiento"]
[null,null,null,null,null,"Secundaria con Residencia Estundiantil"]
[]
[]
["GESTIÓN"]
[{"$f":"CONCATENATE(TRIM(UPPER(J29)),TRIM(UPPER(O29)),TRIM(UPPER(T29)))","v":""},null,null,"Esta Institución Educativa es de Gestión : ",null,null,null,null,null,null," 1 - Pública de gestión directa",null,null,null,""," 2 - Pública de gestión privada",null,null,null,""," 3 - Privada"]
[]
[]
[null,null,"100. CARACTERÍSTICAS DEL SERVICIO EDUCATIVO"]
[]
[null,null,"A. CARACTERÍSTICA DE LA ENSEÑANZA"]
[null,null,"101.A  CON RESPECTO A LAS CLASES:",null,null,null,null,null,null,null,null,null,null,"103.A. ¿CUÁNTO ES LA DURACIÓN EN MINUTOS?"]
[]
[null,null,null,"A. ¿CUÁNDO INICIARON LAS CLASES?",null,null,null,null,"Día",null,"Mes",null,null,null,null,"Espacio educativo para interacción social",null,null,"¿Tiene?","¿ Dentro Horario?",null,"Tiempo en Minutos","SI"]
[null,null,null," (Primer día en que asistieron los estudiantes)",null,null,null,null,null,"-",null,null,null,null,null,null,null,null,"Sí - No","Sí - No",null,null,"NO"]
[null,null,null,null,null,null,null,null,null,null,null,null,null,null,1,"De los recreos",null,""]
[null,null,null,"B. ¿CUÁNDO TERMINARÁN LAS CLASES?",null,null,null,null,"Día",null,"Mes",null,null,null,2,"Del desayuno escolar",null,""]
[null,null,null,"(Último día en que asistirán los estudiantes)",null,null,null,null,null,"-",null,null,null,null,3,"Del almuerzo escolar",null,""]
[null,null,null,null,null,null,null,null,null,null,null,null,null,null,4,"De la lonchera"]
[null,null,"102.A  HORARIO DE CLASES DE LOS ESTUDIANTES:",null,null,null,null,null,null,null,null,null,null,null,null,null,null,"",{"$f":"COUNTIF(S39:S42,\"SI\")+COUNTIF(S39:S42,\"NO\")","v":0}]
[null,null,null,null,"TURNO",null,null,"Horario de clases",null,null,null,null,null,"104.A. ¿ESTE SERVICIO/NIVEL EDUCATIVO BRINDA EL SERVICIO DE ALIMENTACIÓN"]
[null,null,null,null,null,null,null,"Inicio",null,"Término",null,null,null,null,"QUIOSCO Y/O COMEDOR?"]
[null,null,null,null,null,null,{"$f":"SUM(G47:G50)","v":0},"Hora","Minutos","Hora","Minutos",null,null,null,null,null,null,"Precise si cuenta con los:"]
[null,null,null,null,1,"Mañana",{"$f":"COUNT(H47:K47)","v":0},null,null,null,null,{"$f":"IF(OR(H47=\"\",I47=\"\",J47=\"\",K47=\"\"),1,0)","v":1},null,null,"Sí",null,null,"Servicios",null,null,null,"Sí - No"]
[null,null,null,null,2,"Tarde",{"$f":"COUNT(H48:K48)","v":0},null,null,null,null,{"$f":"IF(OR(H48=\"\",I48=\"\",J48=\"\",K48=\"\"),1,0)","v":1},null,null,null,null,null,1,"Agua",null,""]
[null,null,null,null,3,"Discontinuo",{"$f":"COUNT(H49:K49)","v":0},null,null,null,null,{"$f":"IF(OR(H49=\"\",I49=\"\",J49=\"\",K49=\"\"),1,0)","v":1},null,null,null,null,null,2,"Desague",null,""]
[null,null,null,null,4,"Continuo",{"$f":"COUNT(H50:K50)","v":0},null,null,null,null,{"$f":"IF(OR(H50=\"\",I50=\"\",J50=\"\",K50=\"\"),1,0)","v":1},null,null,"No  ",null,null,3,"Electricidad",null,""]
[null,null,null,null,null,null,null,null,null,null,null,null,null,null,null,null,null,null,null,null,null,{"$f":"COUNTIF(V48:V50,\"SI\")+COUNTIF(V48:V50,\"NO\")","v":0}]
[]
[null,null,"105.A. DESDE QUE SE INICIARON LAS CLASES SIN CONTAR SÁBADOS NI DOMINGOS",null,null,null,null,null,null,null,null,null,null,"111.A  EN EL PROCESO  DE  MATRÍCULA  DEL PERIODO 2024,  LOS PADRES  DE  FAMILIA, "]
[null,null,null,"SEGÚN LAS RAZONES PROGRAMADAS, ¿CUÁNTOS DÍAS NO HUBO CLASES?,POR:",null,null,null,null,null,null,null,null,null,null,"CUIDADORES(AS) O APODERADOS(AS) QUE SOLICITARON UNA O MÁS VACANTES EN ESTE "]
[null,null,null,null,null,null,null,null,null,null,null,null,null,null,"SERVICIO/NIVEL EDUCATIVO, ¿LOGRARON OBTENER EL TOTAL DE VACANTES SOLICITADAS?"]
[null,null,null,null,"Razones Programadas",null,null,null,null,{"$f":"SUM(K57:K62)","v":0},"N° de días"]
[null,null,null,null,1,"Vacaciones del año escolar",null,null,null,null,null,null,null,null,"","Sí",null,"Pase a la pregunta 113.A"]
[null,null,null,null,2,"Feriados nacionales oficiales (Fiestas patrias y otros)"]
[null,null,null,null,3,"Feriados regionales o locales",null,null,null,null,null,null,null,{"$f":"IF(OR(L102>L92,L102+L92=0),\"X\",\"\")","v":"X"},null,"No",null,"¿Por qué no lograron una ó más vacante(s) ?"]
[null,null,null,null,4,"Celebraciones de la institución educativa",null,null,null,null,null,null,null,null,null,null,null,"Marque con un aspa “X” una opcion"]
[null,null,null,null,5,"Jornada de reflexión"]
[null,null,null,null,6,"Otras razones"]
[null,null,null,null,null,null,null,null,null,null,null,null,null,null,null,"","No hay capacidad para recibirlos"]
[null,null,"106.A. DESDE QUE SE INICIARON LAS CLASES SIN CONTAR SÁBADOS NI DOMINGOS",null,null,null,null,null,null,null,null,null,null,null,null,"","Hay capacidad, pero existen aulas con mucho riesgo"]
[null,null,null,"SEGÚN LAS RAZONES NO PROGRAMADAS, ¿CUÁNTOS DÍAS NO HUBO CLASES?, POR:",null,null,null,null,null,null,null,null,null,null,null,"","Prefiero tener una carga docente baja, para un mejor aprendizaje"]
[null,null,null,null,null,null,null,null,null,null,null,null,null,null,null,"","Otro"]
[null,null,null,null,"Razones Programadas",null,null,null,null,{"$f":"SUM(K68:K72)","v":0},"N° de días"]
[null,null,null,null,1,"Problemas climáticos",null,null,null,null,null,null,null,"112.A  ¿QUÉ CRITERIOS DE PRIORIZACIÓN TUVIERON EN CUENTA PARA LA MATRÍCULA DE LOS"]
[null,null,null,null,2,"Problemas de salud masivos (Epidemias)",null,null,null,null,null,null,null,null,"ESTUDIANTES QUE SOLICITARON UNA VACANTE EN ESTE SERVICIO/NIVEL EDUCATIVO?"]
[null,null,null,null,3,"Ausencia del docente",null,null,null,null,null,null,null,null,"Seleccione de la lista “Si” o “No” según corresponda para cada criterio"]
[null,null,null,null,4,"Huelgas/Paros"]
[null,null,null,null,6,"Otras razones",null,null,null,null,null,null,null,null,"NRO.","CRITERIOS",null,null,null,null,null,null," SI-NO"]
[null,null,null,null,null,null,null,null,null,null,null,null,null,{"$f":"COUNTIF(W73:W84,\"NO\")","v":0},1,"Cercanía del lugar de residencia del estudiante a la I.E.",null,null,null,null,null,null,""]
[null,null,"107.A. HASTA LA FECHA DE APLICACIÓN DEL CENSO EDUCATIVO 2024, ¿CUÁNTOS",null,null,null,null,null,null,null,null,null,null,null,2,"Cercanía del trabajo de los padres o apoderados del estudiante.",null,null,null,null,null,null,""]
[null,null,null,"DÍAS DE CLASES PERDIDOS POR RAZONES NO PROGRAMADAS SE HAN RECUPERADO?",null,null,null,null,null,null,null,null,null,null,3,"Hermanos (as) estudiando en la misma I.E.",null,null,null,null,null,null,""]
["DIAS",null,null,null,null,null,null,null,null,null,null,null,null,null,4,"Hijos (as) de ex alumnos (as)",null,null,null,null,null,null,""]
[1,null,null,null,"Días recuperados:",null,null,null,null,null,null,null,null,null,5,"Niños (as) con NEE asociadas a discapacidad",null,null,null,null,null,null,""]
[2,null,null,null,null,null,null,null,null,null,null,null,null,null,6,"Estado civil de los padres",null,null,null,null,null,null,""]
[3,null,"108.A. ¿QUÉ ESTRATEGIA(S) SE UTILIZÓ(ARON) PARA RECUPERAR LOS DÍAS DE CLASES",null,null,null,null,null,null,null,null,null,null,null,7,"Record de rendimiento académico del estudiante",null,null,null,null,null,null,""]
[4,null,null,"PERDIDOS POR RAZONES NO PROGRAMADAS?",null,null,null,null,null,null,null,null,null,null,8,"Documentos que sustenten solvencia económica de los padres",null,null,null,null,null,null,""]
[5,null,null,null,null,null,null,null,null,null,null,null,null,null,9,"Orden de llegada de los documentos de inscripción del estudiante",null,null,null,null,null,null,""]
[6,null,null,"Marque con una “X”, una o más opciones",null,null,null,null,null,null,null,null,null,null,10,"Que los estudiantes cuenten con documento de identidad",null,null,null,null,null,null,""]
[7,null,null,null,"Se implementaron horas adicionales de clases",null,null,null,null,null,null,null,null,null,11,"Que el estudiante haya rendido una evaluación de ingreso previa a la matrícula",null,null,null,null,null,null,""]
[8,null,null,null,"Se realizaron clases los días feriados",null,null,null,null,null,null,null,null,null,12,"Otros",null,null,null,null,null,null,""]
[9,null,null,null,"Se desarrollaron clases durante las vacaciones escolares",null,null,null,null,null,null,null,null,null,null,null,null,null,null,null,null,null,{"$f":"COUNTIF(W73:W84,\"SI\")+COUNTIF(W73:W84,\"NO\")","v":0}]
[10,null,null,null,"Se dictaron clases los días sábados/domingos",null,null,null,null,null,null,null,null,"113.A. ¿REALIZÓ LA RESERVA COMO MÍNIMO DE (02) VACANTES POR CADA AULA PARA ESTUDIANTES"]
[11,null,null,null,"Otro","Especificar",null,null,null,null,null,null,null,null,"CON NECESIDADES EDUCATIVAS ESPECIALES ASOCIADA A DISCAPACIDAD LEVE O MODERADA?"]
[12]
[13,null,"109.A  EN ESTE SERVICIO/NIVEL EDUCATIVO, ¿CUANTAS VACANTES POR GRADO Y ",null,null,null,null,null,null,null,null,null,null,null,"Sí",null,"No  "]
[14,null,null,"TURNO OFRECIÓ PARA EL PRESENTE PERIODO LECTIVO?"]
[15,null,null,null,null,null,null,null,null,null,null,null,null,"114.A  ¿HA RECIBIDO MATERIALES FORMATIVOS O INFORMATIVOS , FÍSICOS O DIGITALES"]
[16,null,null,"GRADO",null,null,"1º","2º","3º","4º","5º",{"$f":"L93+L95+L97","v":0},null,null,"SOBRE LOS INSTRUMENTOS DE GESTIÓN?"]
[17,null,null,"Turno mañana",null,null,null,null,null,null,null,{"$f":"SUM(G93:K93)","v":0}]
[18,null,null,null,null,null,null,null,null,null,null,null,null,null,"Marque con una “X”, una o más opciones"]
[19,null,null,"Turno tarde",null,null,null,null,null,null,null,{"$f":"SUM(G95:K95)","v":0},null,null,null,"He recibido materiales y/o formación a través de la UGEL."]
[20,null,null,null,null,null,null,null,null,null,null,null,null,null,null,"He recibido materiales y/o formación a través de la DRE."]
[21,null,null,"Turno continuo",null,null,null,null,null,null,null,{"$f":"SUM(G97:K97)","v":0},null,null,null,"He recibido materiales y/o formación a través de los programas formativos …"]
[22,null,null,null,null,null,null,null,null,null,null,null,null,null,null,"He recibido materiales y/o formación a través de páginas web oficiales del Minedu…"]
[23,null,"110.A  EN ESTE SERVICIO/NIVEL EDUCATIVO, ¿CUANTOS POSTULANTES POR GRADO",null,null,null,null,null,null,null,null,null,null,null,null,"He recibido materiales y/o formación a través de mis colegas o redes profesionales"]
[24,null,null,"Y TURNO SE PRESENTARON PARA EL PRESENTE PERIODO LECTIVO?",null,null,null,null,null,null,null,null,null,null,null,"No he recibido materiales y/o información sobre los Instrumentos de Gestión"]
[25]
[26,null,null,"GRADO",null,null,"1º","2º","3º","4º","5º",{"$f":"L103+L105+L107","v":0},null,"115.A. ¿SE HA ELABORADO EL PLAN ANUAL DE TRABAJO (PAT) 2024?"]
[27,null,null,"Turno mañana",null,null,null,null,null,null,null,{"$f":"SUM(G103:K103)","v":0}]
[28,null,null,null,null,null,null,null,null,null,null,null,null,null,"Sí",null,"No  "]
[29,null,null,"Turno tarde",null,null,null,null,null,null,null,{"$f":"SUM(G105:K105)","v":0}]
[30,null,null,null,null,null,null,null,null,null,null,null,null,null,null,null,"¿Han sido incorporadas las actividades relacionadas con la"]
[null,null,null,"Turno continuo",null,null,null,null,null,null,null,{"$f":"SUM(G107:K107)","v":0},null,null,null,null,"Tutoría, orientación educativa y convivencia escolar?"]
[]
["MESES",null,null,null,null,null,null,null,null,null,null,null,null,null,null,null,"Sí  ",null,null,"No  "]
["01: Enero"]
["02: Febrero"]
["03: Marzo",null,"116.A. ESTE SERVICIO/NIVEL EDUCATIVO, ¿CUENTA CON UN PLAN APROBADO",null,null,null,null,null,null,null,null,null,null,"123.A. ESTE SERVICIO/NIVEL EDUCATIVO, ¿SE ENCUENTRA EN EL ÁMBITO DE ALGÚN"]
["04: Abril",null,null,"DE GESTIÓN DE RIESGO DE DESASTRES?",null,null,null,null,null,null,null,null,null,null,"ESTABLECIMIENTO DE SALUD?"]
["05: Mayo"]
["06: Junio",null,null,"Sí",null,"No  ",null,null,null,null,null,null,null,null,"Sí",null,"No  ",null,null,null,"Pase a la pregunta 126.A"]
["07: Julio"]
["08: Agosto",null,null,null,null,"¿Qué fase contempla?",null,null,null,null,null,null,null,"124.A. ESTE SERVICIO/NIVEL EDUCATIVO, ¿REALIZA COORDINACIONES Y/O ACCIONES"]
["09: Septiembre",null,null,null,null,null,null,null,null,null,null,null,null,null,"DE ARTICULACIÓN CON EL ESTABLECIMIENTO DE SALUD?"]
["10: Octubre",null,null,null,"Marque con una “X”, una o más opciones"]
["11: Noviembre",null,null,null,null,"Fase de soporte socioemocional",null,null,null,null,null,null,null,null,"Sí",null,"No  "]
["12: Diciembre",null,null,null,null,"Fase de actividades lúdicas"]
["01: Enero",null,null,null,null,"Fase de aplicación del currículo",null,null,null,null,null,null,null,null,null,null,"¿Qué tipo de coordinaciones y/o acciones realiza?"]
["02: Febrero",null,null,null,null,null,null,null,null,null,null,null,null,null,null,"Marque con una “X”, una o más opciones"]
["03: Marzo",null,"117.A  EN LOS ÚLTIMOS TRES MESES, ¿SE COORDINÓ U OFRECIÓ ALGÚN PROGRAMA O SERVICIO, COMO?:",null,null,null,null,null,null,null,null,null,null,null,null,null,"Salud física de estudiantes"]
[null,null,null,null,null,null,null,null,null,null,null,null,null,null,null,null,"Salud física de docentes"]
[null,null,null,null,null,"Programa Qali Warma",null,null,null,null,null,null,null,null,null,null,"Salud mental del estudiante"]
[null,null,null,null,null,"Campaña de vacunación",null,null,null,null,null,null,null,null,null,null,"Salud mental del docente"]
[null,null,null,null,null,"Control de crecimiento y desarrollo",null,null,null,null,null,null,null,null,null,null,"Otros      "]
[null,null,null,null,null,"SAANEE"]
[null,null,null,null,null,"Servicio de Apoyo Educativo Virtual (SAEV)",null,null,null,null,null,null,null,"125.A. ¿SE BRINDÓ EL PAQUETE BÁSICO DEL CUIDADO INTEGRAL DEL ADOLESCENTE"]
[null,null,null,null,null,"Otro  -  especifique",null,null,null,null,null,null,null,null,"EN COORDINACIÓN CON EL ESTABLECIMIENTO DE SALUD?"]
[null,null,null,null,null,"Ninguno"]
[null,null,null,null,null,null,null,null,null,null,null,null,null,null,"Sí",null,"No  "]
[null,null,"118.A. ESTE SERVICIO/NIVEL EDUCATIVO, ¿CUENTA CON UN PLAN APROBADO DE"]
[null,null,null,"LUCHA CONTRA LA ANEMIA?",null,null,null,null,null,null,null,null,null,"126.A. ESTE SERVICIO/NIVEL EDUCATIVO, ¿CUENTA CON UN BOTIQUÍN IMPLEMENTADO"]
[null,null,null,null,null,null,null,null,null,null,null,null,null,null,"SEGÚN LO ESTABLECIDO POR DEFENSA CIVIL?"]
[null,null,null,"Sí",null," No  "]
[null,null,null,null,null,null,null,null,null,null,null,null,null,null,"Sí",null,"No  "]
[null,null,null,null,null,"¿Está incorporado en los documentos de gestión?"]
[null,null,null,null,null,"Sí  ",null,null,"No",null,null,null,null,"127.A. EN ESTE SERVICIO/NIVEL EDUCATIVO, DURANTE EL AÑO 2023 Y HASTA LA FECHA DE LA"]
[null,null,null,null,null,null,null,null,null,null,null,null,null,null,"APLICACIÓN DEL CENSO EDUCATIVO 2024, ¿SE HAN REALIZADO ACCIONES PARA"]
[null,null,"119.A. DURANTE EL AÑO 2023, ¿HA COORDINADO CON ALGUNA INSTITUCIÓN PARA",null,null,null,null,null,null,null,null,null,null,null,"ATENDER SITUACIONES DE INTERRUPCIÓN DE ESTUDIOS DE LOS ESTUDIANTES?"]
[null,null,null,"REALIZAR ACTIVIDADES RELACIONADAS A LA LUCHA CONTRA LA ANEMIA?"]
[null,null,null,null,null,null,null,null,null,null,null,null,null,null,"Sí",null,"No  "]
[null,null,null,"Sí","","No  ","",null,"No sabe  "]
[null,null,null,null,null,null,null,null,null,null,null,null,null,null,null,null,"¿Qué acciones se realizaron?"]
[null,null,null,null,null,null,"  Pase a la pregunta 121.A",null,null,null,null,null,null,null,null,"Marque con una “X”, una o más opciones"]
[null,null,null,null,null,null,null,null,null,null,null,null,null,null,null,null,"Seguimiento y visitas a estudiantes en riesgo de abandono"]
[null,null,"120.A  INDIQUE USTED, ¿CUÁLES DE LAS SIGUIENTES INSTITUCIONES ORGANIZARON ",null,null,null,null,null,null,null,null,null,null,null,null,null,"Orientaciones a las familias sobre la continuidad en la IE"]
[null,null,null,"ALGUNA ACTIVIDAD RELACIONADA A LA LUCHA CONTRA LA ANEMIA?",null,null,null,null,null,null,null,null,null,null,null,null,"Flexibilización de la atención educativa brindada en la IE"]
[null,null,null,null,null,null,null,null,null,null,null,null,null,null,null,null,"Orientación a los docentes para atender a los estudiantes en riesgo"]
[null,null,null,"Entidad que Organizó",null,null,null,{"$f":"COUNTIF(I153:J158,\"X\")","v":0},"SI","NO","Fecha (dd-mm-aaaa)",null,null,null,null,null,"Otros      "]
[null,null,null,1,"Servicio / Nivel Educativo",null,null,null,"","",""]
[null,null,null,2,"UGEL/DRE",null,null,null,"","","",null,null,"128.A. ESTE SERVICIO/NIVEL EDUCATIVO, ¿HA DESARROLLADO UNA O ALGUNAS DE"]
[null,null,null,3,"Establecimiento de salud",null,null,null,"","","",null,null,null,"LAS ACTIVIDADES PROPUESTAS PARA LA IMPLEMENTACIÓN DE LA EIT?"]
[null,null,null,4,"Municipalidad",null,null,null,"","","",null,null,null,"(Educación Intercultural para Todos y Todas)"]
[null,null,null,5,"Organización No Gubernamental (ONG)",null,null,null,"","",""]
[null,null,null,6,"Otro",null,null,null,"","","",null,null,null,"Entidad que Organizó",null,null,null,null,null,{"$f":"COUNTIF(V159:V161,\"SI\")+COUNTIF(V159:V161,\"NO\")","v":0}," SI-NO"]
[null,null,null,null,null,null,null,null,null,null,null,null,null,null,1,"Descubriendo nuevos orígenes"]
[null,null,"121.A. ¿QUÉ ACTIVIDADES DIRIGIDAS A FAMILIAS VIENE IMPLEMENTANDO ESTE",null,null,null,null,null,null,null,null,null,null,null,2,"Encuentro con nuestra diversidad"]
[null,null,null,"SERVICIO/NIVEL EDUCATIVO?",null,null,null,null,null,null,null,null,null,null,3,"Feria de la diversidad"]
[]
[null,null,null,null,null,null,null,null,null,null,null,null,null,"129.A. ¿CUÁNTAS INTERVENCIONES O CAMBIOS SIGNIFICATIVOS, EN LOS QUE HAYA"]
[null,null,null,"Actividades",null,null,null,{"$f":"COUNTIF(I165:J169,\"X\")","v":0}," SI"," NO","Cantidad de …",null,null,null,"INTERVENIDO LA COOPERACIÓN INTERNACIONAL, HA EXPERIMENTADO SU SERVICIO/NIVEL"]
[null,null,null,1,"Encuentros y jornadas",null,null,null,null,null,null,null,null,null,"EDUCATIVO EN EL ÚLTIMO AÑO, CON EL OBJETIVO DE MEJORAR LA CALIDAD EDUCATIVA"]
[null,null,null,2,"Talleres",null,null,null,null,null,null,null,null,null,"Y/O EN EL FUNCIONAMIENTO INSTITUCIONAL?"]
[null,null,null,3,"Reuniones"]
[null,null,null,4,"Otros",null,null,null,null,"",null,null,null,null,"Cantidad de intervenciones o cambios significativos:"]
[null,null,null,5,"Ninguna",null,null,null,""]
[null,null,null,null,null,null,null,null,null,null,null,null,null,"130.A. ¿CUENTA CON ESTUDIANTES BENEFICIADOS CON BECAS DE ESTUDIOS, AL AMPARO"]
[null,null,"122.A. ESTE SERVICIO/NIVEL EDUCATIVO, ¿TIENE PRACTICANTES DE",null,null,null,null,null,null,null,null,null,null,null,"DE LA LEY Nº 23585, “ESTUDIANTES DE PLANTELES Y UNIVERSIDADES PARTICULARES"]
[null,null,null,"UNIVERSIDADES O INSTITUTOS?",null,null,null,null,null,null,null,null,null,null,"QUE PIERDAN A SUS PADRES O TUTORES TIENEN DERECHO A BECA”?"]
[]
[null,null,null,"Entidad de Procedencia",null,null,null,"Marcar","Nro. de",null,"Asistencia en nro. de:",null,null,null,"Sí",null,null,null,"Año","Cantidad de beneficiarios"]
[null,null,null,null,null,null,{"$f":"COUNTIF(H176:H178,\"X\")","v":0},"\"X\"","Practicantes",null,"Dias","Meses",null,null,null,null,null,null,2020,null,null,null,{"$f":"SUM(V175:V178)","v":0}]
[null,null,null,1,"de Universidad",null,null,null,null,null,null,null,null,null,null,null,null,null,2021]
[null,null,null,2,"de Instituto",null,null,null,null,null,null,null,null,null,null,null,null,null,2022]
[null,null,null,3,"Ninguno",null,null,null,null,null,null,null,null,null,"No  ",null,null,null,2023]
[null,null,null,null,null,null,null,{"$f":"COUNTIF(H176:H177,\"X\")","v":0}]
[]
[null,null,"B. TUTORÍA , ORIENTACIÓN EDUCATIVA Y CONVIVENCIA ESCOLAR"]
[null,null,"101.B  EN ESTE SERVICIO/NIVEL EDUCATIVO ¿SE DESARROLLAN PROGRAMAS QUE PROMUEVAN LA ÉTICA",null,null,null,null,null,null,null,null,null,null,"108.B. ESTE SERVICIO/NIVEL EDUCATIVO, ¿EN QUE FECHAS REALIZÓ LAS TRES ACTIVIDADES?"]
[null,null,null,"INTEGRIDAD Y VALORES?"]
[]
[null,null,null,"Sí",null," No  ",null,null,null,null,null,null,null,null,null,null,null,null,{"$f":"SUM(P186:P188)","v":3},"Día","Mes","Año"]
[null,null,null,null,null,null,null,null,null,null,null,null,null,null,null,{"$f":"IF(OR(T186=\"\",U186=\"\",V186=\"\"),1,0)","v":1},"Actividad N° 01",null,{"$f":"SUM(T186:V186)","v":0},null,null,null,{"$f":"IF(S186>0,CONCATENATE(T186,\"-\",U186,\"-\",V186),\"\")","v":""}]
[null,null,"102.B   INDIQUE,  ¿CON CUALES DE LOS SIGUIENTES COMITÉS CUENTA ESTE SERVICIO NIVEL EDUCATIVO Y ",null,null,null,null,null,null,null,null,null,null,null,null,{"$f":"IF(OR(T187=\"\",U187=\"\",V187=\"\"),1,0)","v":1},"Actividad N° 02",null,{"$f":"SUM(T187:V187)","v":0},null,null,null,{"$f":"IF(S187>0,CONCATENATE(T187,\"-\",U187,\"-\",V187),\"\")","v":""}]
[null,null,null,"CON QUE FRECUENCIA SE REUNEN?",null,null,null,null,null,null,null,null,null,null,null,{"$f":"IF(OR(T188=\"\",U188=\"\",V188=\"\"),1,0)","v":1},"Actividad N° 03",null,{"$f":"SUM(T188:V188)","v":0},null,null,null,{"$f":"IF(S188>0,CONCATENATE(T188,\"-\",U188,\"-\",V188),\"\")","v":""}]
[]
[null,null,null,"(Selecciones SI o No en la o las alternativas que correspondan)",null,null,null,null,null,null,null,null,null,"109.B. EN ESTE SERVICIO/NIVEL EDUCATIVO, ¿QUIÉNES FUERON LOS PARTICIPANTES"]
[null,null,null,"Detalle de los comités en el  Servicio/Nivel Educativo",null,null,null,"Cuenta con este comité","¿Está conformado mediante \n (RD)?",null,"Frecuencia de las reuniones",null,null,null,"Y LA CANTIDAD DEL PÚBLICO OBJETIVO EN LAS ACTIVIDADES QUE REALIZÓ?"]
[]
[null,null,null,null,null,null,null,null,null,null,null,null,null,null,null,null,null,null,null,"Cantidad de participantes"]
[null,null,null,null,null,null,{"$f":"COUNTIF(H195:H197,\"SI\")+COUNTIF(H195:H197,\"NO\")","v":0},"SI - NO","SI - NO",null,null,null,null,null,null,null,null,null,{"$f":"SUM(T195:W198)","v":0},"Actividad\nN° 01",null,"Actividad\nN° 02","Actividad\nN° 03"]
["1: Semanal",null,null,1,"Comité de Tutoría",null,null,null,null,null,null,null,"",null,"01","Docentes",null,null,{"$f":"SUM(T195:W195)","v":0}]
["2: Quincenal",null,null,2,"Comité de Gestión del Bienestar",null,null,null,"",null,"",null,null,null,"02","Estudiantes",null,null,{"$f":"SUM(T196:W196)","v":0}]
["3: Mensual",null,null,3,"Otros",null,null,null,null,null,null,null,"",null,"03","Familia",null,null,{"$f":"SUM(T197:W197)","v":0}]
["4: Bimensual",null,null,null,null,null,null,null,null,null,null,null,null,null,"04","Personal Administrativo",null,null,{"$f":"SUM(T198:W198)","v":0}]
["5: Trimestral",null,"103.B. SOLO SI MARCO QUE CUENTA CON “COMITE DE GESTIÓN DEL BIENESTAR”,"]
["6: Semestral",null,null,"DE LOS SIGUIENTES ACTORES, ¿QUIÉNES LO CONFORMAN?",null,null,null,null,null,{"$f":"IF(H196=\"SI\",\"X\",\"\")","v":""},null,null,null,"110.B. ACTUALMENTE LOS DOCENTES, ¿INCORPORAN EN LA PLANIFICACIÓN ANUAL DE AULA"]
["7: No se reunen",null,null,"Marque con una “X”, una o más opciones",null,null,null,null,null,null,null,null,null,null,"LAS ACTIVIDADES RELACIONADAS CON LA TUTORÍA Y ORIENTACIÓN EDUCATIVA?"]
[null,null,null,null,null,null,null,null,null,null,null,null,null,null,"Marque con una “X”, una opción"]
[null,null,null,"","Director/a de la IIEE"]
[null,null,null,null,"El/la coordinador/a de tutoría",null,null,null,null,null,null,null,null,null,null,"Sí, todos los docentes"]
[null,null,null,"","El/la responsable de convivencia",null,null,null,null,null,null,null,null,null,null,"Sí, algunos docentes"]
[null,null,null,null,"El/la responsable de inclusión",null,null,null,null,null,null,null,null,null,null,"Ninguno"]
[null,null,null,"","Un/a (1) representante de los padres y madres de familia, tutores legales o apoderados/as."]
[null,null,null,null,"Un/a (1) representante de las y los estudiantes",null,null,null,null,null,null,null,null,"111.B. ESTE SERVICIO/NIVEL EDUCATIVO, ¿RECIBE ASISTENCIA TÉCNICA SOBRE"]
[null,null,null,"","Un/a (1) psicólogo, cuando exista el cargo en la IIEE",null,null,null,null,null,null,null,null,null,"CONVIVENCIA ESCOLAR, LA PREVENCIÓN Y ATENCIÓN DE LA VIOLENCIA ESCOLAR?"]
[null,null,null,"","Otros",null,""]
[null,null,null,null,null,null,null,null,null,null,null,null,null,null,"Sí",null," No  ","",null,null,"Pase a la pregunta 113.B"]
[null,null,"104.B  EL SERVICIO/NIVEL EDUCATIVO, ¿CUENTA CON PLAN DE TUTORÍA, ORIENTACIÓN EDUCATIVA Y "]
[null,null,null,"CONVIVENCIA ESCOLAR?",null,null,null,null,null,null,null,null,null,null,null,null,null,null,null,null,"¿Cantidad de\nveces en el año?"]
[]
[null,null,null,"Sí",null," No  ",null,null,null,"Pase a la pregunta 106.B",null,null,null,null,null,null,"Especialista de convivencia de la UGEL"]
[null,null,null,null,null,null,null,null,null,null,null,null,null,null,null,null,"Otro actor"]
[null,null,"105.B  ¿SE HA ACTUALIZADO EL PLAN DE TUTORÍA, CON RELACIÓN A LO ELABORADO  EN EL AÑO 2023?"]
[null,null,null,""]
[null,null,null,"Sí",null," No  ",null,null,null,null,null,null,null,"112.B. EN ESTE SERVICIO/NIVEL EDUCATIVO, ¿QUÉ TEMAS HAN SIDO ABORDADOS"]
[{"$f":"CONCATENATE(E225,E234)","v":""},null,null,null,null,null,null,null,null,null,null,null,null,null,"EN LA ASISTENCIA TÉCNICA?"]
[{"$f":"CONCATENATE(G225,G234)","v":""},null,"106.B. ESTE SERVICIO/NIVEL EDUCATIVO, ¿INCLUYE ACTIVIDADES DEL PLAN DE TUTORÍA,",null,null,null,null,null,null,null,null,null,null,null,"Marque con una “X”, una o más opciones"]
[null,null,null,"ORIENTACIÓN EDUCATIVA Y CONVIVENCIA ESCOLAR RELACIONADAS A LA PROMOCIÓN DE LA"]
[null,null,null,"CONVIVENCIA ESCOLAR, LA PREVENCIÓN Y LA ATENCIÓN DE LA VIOLENCIA ESCOLAR?",null,null,null,null,null,null,null,null,null,null,null,"Disciplina con enfoque de derechos (sin maltrato ni humillación) y medidas correctivas en el aula"]
[null,null,null,null,null,null,null,null,null,null,null,null,null,null,null,"Normas de convivencia concertadas en la escuela"]
["SI",null,null,"Sí",null," No  ",null,null,null,"Pase a la pregunta 110.B",null,null,null,null,null,"Habilidades socioemocionales en las/los docentes y escolares"]
["NO",null,null,null,null,null,null,null,null,null,null,null,null,null,null,"Participación estudiantil para la prevención de la violencia"]
[null,null,null,null,null,"¿Qué cantidad realizó?",null,null,null,null,null,null,null,null,null,"Educación Sexual Integral para la prevención de la violencia"]
[null,null,null,null,null,null,null,null,null,null,null,null,null,null,null,"Tipos de violencia, señales de alerta y cultura de reporte"]
[null,null,"107.B. ESTE SERVICIO/NIVEL EDUCATIVO, ¿IMPLEMENTA AL MENOS TRES ACTIVIDADES",null,null,null,null,null,null,null,null,null,null,null,null,"Protocolos de atención a la violencia hacia niñas, niños y adolescentes"]
[null,null,null,"DEL PLAN DE TUTORÍA, ORIENTACIÓN EDUCATIVA Y CONVIVENCIA ESCOLAR RELACIONADAS",null,null,null,null,null,null,null,null,null,null,null,"Orientaciones para prevención de la violencia"]
[null,null,null,"A LA PROMOCIÓN DE LA CONVIVENCIA ESCOLAR, LA PREVENCIÓN Y LA ATENCIÓN DE LA",null,null,null,null,null,null,null,null,null,null,null,"Promoción de la convivencia"]
[null,null,null,"VIOLENCIA ESCOLAR?NCIÓN DE LA VIOLENCIA ESCOLAR?",null,null,null,null,null,null,null,null,null,null,null,"Otros"]
[]
[null,null,null,"Sí",null," No  ",null,null,null,"Pase a la pregunta 110.B"]
[]
[]
[null,null,"113.B. DE LAS SIGUIENTES ACCIONES, ¿CUÁLES SE HAN IMPLEMENTADO EN ESTE SERVICIO/NIVEL",null,null,null,null,null,null,null,null,null,null,"116.B. EL SERVICIO/NIVEL EDUCATIVO, ¿CUENTA CON NORMAS DE CONVIVENCIA"]
[null,null,null,"EDUCATIVO, DURANTE EL AÑO 2024, SEGÚN LAS NECESIDADES DE LOS ESTUDIANTES?",null,null,null,null,null,null,null,null,null,null,"ESCOLAR ACTUALIZADAS PARA EL PRESENTE AÑO?"]
[]
[null,null,null,"Seleccione “Si” o “No” según corresponda para cada tema",null,null,null,null,null,null,null,null,null,null,"Sí",null," No  ",null,null,null,"Pase a la pregunta 118.B"]
[]
[null,null,null,null,null,null,null,null,null,null,"¿Ha sido impemen- tado?","¿Ha recibido asistencia técnica?",null,null,null,null,"¿Están incorporadas al reglamento interno?"]
[null,null,null,"NRO.","Acciones"]
[null,null,null,null,null,null,null,null,null,null,null,null,null,null,null,null,"Sí  ",null,null,"No"]
[null,null,null,null,null,null,null,null,null,null,"SI/NO","SI/NO"]
[null,null,{"$f":"COUNTIF(K246:K268,\"NO\")","v":0},"01","Prevención de la violencia escolar",null,null,null,null,null,null,null,null,"117.B. ¿LAS NORMAS DE CONVIVENCIA ESCOLAR HAN SIDO CONSTRUIDAS CON LA PARTICIPACIÓN"]
[null,null,null,"02","Prevención del embarazo a temprana edad",null,null,null,null,null,null,null,null,null,"DE REPRESENTANTES DE LAS/LOS ESTUDIANTES?"]
[null,null,null,"03","Promoción de la salud mental"]
[null,null,null,"04","Prevención de trata de personas",null,null,null,null,null,null,null,null,null,"Sí",null," No  "]
[null,null,null,"05","Prevención del consumo de drogas"]
[null,null,null,"06","Prevención de trabajo infantil forzoso",null,null,null,null,null,null,null,null,"118.B. ESTE SERVICIO/NIVEL EDUCATIVO, ¿CUENTA CON AL MENOS UNA/UN"]
[null,null,null,"07","Prevención de la violencia familiar",null,null,null,null,null,null,null,null,null,"RESPONSABLE DE CONVIVENCIA ESCOLAR ASIGNADO PARA EL PRESENTE AÑO?"]
[null,null,null,"08","Prevención de la violencia sexual"]
[null,null,null,"09","Prevención de trastornos alimenticios",null,null,null,null,null,null,null,null,null,"Sí",null," No  "]
[null,null,null,"10","Prevención ante fenómenos naturales"]
[null,null,null,"11","Prevención de VIH, TBC, Hepatitis B, Papiloma Humano y …",null,null,null,null,null,null,null,null,null,null,null,"¿Se encuentra registrado en el portal SíseVe?"]
[null,null,null,"12","Uso responsable de video juegos"]
[null,null,null,"13","Uso responsable de redes sociales digitales",null,null,null,null,null,null,null,null,null,null,null,"Sí  ",null,null,"No"]
[null,null,null,"14","Educación Vial"]
[null,null,null,"15","Habilidades socioemocionales",null,null,null,null,null,null,null,null,"119.B  EL SERVICIO/NIVEL EDUCATIVO, ¿CUENTA CON LIBRO DE REGISTRO DE INCIDENCIAS "]
[null,null,null,"16","Igualdad de género",null,null,null,null,null,null,null,null,null,"SOBRE VIOLENCIA Y ACOSO ESCOLAR EN EL MARCO DE LA LEY 29719?"]
[null,null,null,"17","Educación Sexual Integral según RVM 169-2021-MINEDU"]
[null,null,null,"18","Promoción de la convivencia escolar",null,null,null,null,null,null,null,null,null,"Sí",null," No  ",null,null,null,"Pase a la pregunta 121.B"]
[null,null,null,"19","Acciones de proyecto de vida y orientación vocacional"]
[null,null,null,"20","Liderazgo",null,null,null,null,null,null,null,null,null,null,null,"¿El libro de registro se encuentra en un lugar visible?"]
[null,null,null,"21","Acompañamiento en duelo"]
[null,null,null,"22","Prevención del suicidio",null,null,null,null,null,null,null,null,null,null,null,"Sí  ",null,null,"No"]
[null,null,null,"23","Otro"]
[null,null,null,null,null,null,null,null,null,null,{"$f":"COUNTIF(K246:K268,\"SI\")+COUNTIF(K246:K268,\"NO\")","v":0},{"$f":"COUNTIF(L246:L268,\"SI\")+COUNTIF(L246:L268,\"NO\")","v":0},null,"120.B. EN ESTE SERVICIO/NIVEL EDUCATIVO, EN EL AÑO 2023, ¿SE HIZO USO DEL"]
[null,null,null,null,null,null,null,null,null,null,null,null,null,null,"LIBRO DE REGISTRO DE INCIDENCIAS?"]
[]
[null,null,"114.B. EN ESTE SERVICIO/NIVEL EDUCATIVO, ¿QUÉ ESTRATEGIAS DE TUTORÍA Y",null,null,null,null,null,null,null,null,null,null,null,"Sí",null," No  "]
[null,null,null,"ORIENTACIÓN EDUCATIVA SE VIENE IMPLEMENTANDO DE MANERA PERMANENTE?"]
[null,null,null,"Marque con una “X”, una o más opciones",null,null,null,null,null,null,null,null,null,null,null,null,"¿Cuántas incidencias se registraron en el año 2023?"]
[]
[null,null,null,null,"Tutoría Individual",null,null,null,null,null,null,null,null,null,null,null,"Anote la fecha en la que el Servicio/Nivel",null,null,null,"DÍA","MES","AÑO"]
[null,null,null,null,"Tutoría grupal",null,null,null,null,null,null,null,null,null,null,null,"registró la última incidencia de violencia."]
[null,null,null,null,"Participación estudiantil",null,null,null,null,null,null,null,null,null,null,null,null,null,null,null,null,{"$f":"IF(P272<>\"\",CONCATENATE(U277,\"-\",V277,\"-\",W277),\"\")","v":""}]
[null,null,null,null,"Trabajo con las familias y la comunidad",null,null,null,null,null,null,null,null,"121.B. ESTE SERVICIO/NIVEL EDUCATIVO, REALIZA ACTIVIDADES PARA:"]
[null,null,null,null,"Orientación Educativa permanente"]
[null,null,null,null,"Otro",null,null,null,null,null,null,null,null,"Detalle de los comités en el  Servicio/Nivel Educativo",null,null,null,"SI - NO","¿Cuenta con\nmedios de\nverificación?",null,"Informe de actividades","Fotografias","Videos","Otros"]
[null,null,null,null,"Ninguno"]
[]
[null,null,null,null,null,null,null,null,null,null,null,null,null,null,null,null,null,null,"SI - NO"]
[null,null,null,null,null,null,null,null,null,null,null,null,null,"Convivencia escolar democrática"]
[null,null,"115.B. DE ACUERDO CON LA RVM 212-2020-MINEDU, ¿DE QUÉ MANERA VIENE REALIZANDO",null,null,null,null,null,null,null,null,null,null,"Prevención de la violencia contra niñas o niños"]
[null,null,null,"EL ACOMPAÑAMIENTO Y MONITOREO DE LA IMPLEMENTACIÓN DE LAS ACCIONES",null,null,null,null,null,null,null,null,null,null,null,null,null,{"$f":"COUNTIF(R285:R286,\"SI\")+COUNTIF(R285:R286,\"NO\")","v":0}]
[null,null,null,"DE LA TUTORÍA Y ORIENTACIÓN EDUCATIVA?",null,null,null,null,null,null,null,null,null,"122.B. SOLO SI MARCO QUE REALIZA “LA PREVENCIÓN DE LA VIOLENCIA CONTRA NIÑAS(OS) Y"]
[null,null,null,"Marque con una “X”, una o más opciones",null,null,null,null,null,null,null,null,null,null,"ADOLESCENTES”, ¿CUÁLES SON LAS ACTIVIDADES QUE REALIZA ESTE SERVICIO/NIVEL EDUCATIVO?"]
[null,null,null,null,null,null,null,null,null,null,null,null,null,null,"Marque con una “X”, una o más opciones"]
[null,null,null,null,"Visita inopinada a las aulas durante la hora de tutoría."]
[null,null,null,null,"Revisión de reportes realizados por los docentes.",null,null,null,null,null,null,null,null,null,null,"Gestión de talleres o reuniones con estudiantes."]
[null,null,null,null,"Encuestas a estudiantes y familias.",null,null,null,null,null,null,null,null,null,null,"Capacitación a docentes para prevenir y/o atender casos de riesgo."]
[null,null,null,null,"Monitoreo a la implementación del Plan TOECE.",null,null,null,null,null,null,null,null,null,null,"Envío de orientaciones a apoderados/as."]
[null,null,null,null,"Otros",null,null,null,null,null,null,null,null,null,null,"Gestión de talleres o reuniones con apoderados/as."]
[null,null,null,null,null,null,null,null,null,null,null,null,null,null,null,"Gestión de estrategias en conjunto con otras organizaciones."]
[null,null,null,null,null,null,null,null,null,null,null,null,null,null,null,"Monitoreo de situación emocional y familiar de estudiantes."]
[null,null,null,null,null,null,null,null,null,null,null,null,null,null,null,"Otro"]
[]
[]
[null,null,"123.B  USTED, SEÑOR(A) DIRECTOR(A), ¿CONOCE EL PORTAL SÍSEVE?",null,null,null,null,null,null,null,null,null,null,"127.B  ¿EL SERVICIO/NIVEL EDUCATIVO HA REALIZADO ALGUNA ACTIVIDAD COORDINADA"]
[null,null,null,null,null,null,null,null,null,null,null,null,null,null,"CON ALGUNO DE LOS ALIADOS ESTRATÉGICOS?"]
[null,null,null," Sí",null," No  ",null,null,null,"Pase a la pregunta 126.B"]
[null,null,null,null,null,null,null,null,null,null,null,null,null,null," Sí",null," No  "]
[null,null,null,null,null,"¿Ha sido capacitado por algún integrante de la UGEL/DRE"]
[null,null,null,null,null,"en el uso del Portal SíseVe? ",null,null,null,null,null,null,null,"128.B  SEÑOR(A) DIRECTOR(A,) ¿EMPLEA USTED HERRAMIENTAS DE CONSULTA PARA"]
[null,null,null,null,null," Sí   ",null,null," No  ",null,null,null,null,null,"VERIFICAR LA SITUACIÓN DEL PERSONAL DE ESTE SERVICIO/NIVEL EDUCATIVO, TAL COMO"]
[null,null,null,null,null,null,null,null,null,null,null,null,null,null,"EL REGISTRO NACIONAL DE SANCIONES CONTRA SERVIDORES CIVILES – RNSSC?"]
[null,null,null,null,""]
[null,null,"124.B. ESTE SERVICIO/NIVEL EDUCATIVO, ¿SE ENCUENTRA AFILIADO AL SÍSEVE?",null,null,null,null,null,null,null,null,null,null,null," Sí",null," No  "]
[]
[null,null,null,"Sí",null,"¿Cuántos casos han sido reportados?",null,null,null,null,null,null,null,"129.B  SEÑOR(A) DIRECTOR(A) ¿CONOCE USTED QUE PUEDE PRESENTAR DENUNCIAS SOBRE"]
[null,null,null,null,null,null,null,null,null,null,null,null,null,null,"POSIBLE ACTOS DE SOBORNO DE MANERA ANÓNIMA, CON LA FINALIDAD DE PROTEGER"]
[null,null,null,null,null,null,null,null,null,null,null,null,null,null,"SU IDENTIDAD?"]
[null,null,null,"No",null,"¿Porque razón el servicio y/o nivel educativo no está afiliado al SÍSEVE?"]
[null,null,null,null,null,null,null,null,null,null,null,null,null,null," Sí",null," No  "]
[null,null,null,null,null,"Marque con una “X”, una opción"]
[null,null,null,null,null,"Por falta de internet",null,null,null,null,null,null,null,"130.B  SEÑOR(A) DIRECTOR(A) ¿TIENE CONOCIMIENTO QUE LOS HECHOS DE VIOLENCIA,"]
[null,null,null,null,null,"Lo conoce y no le parece importante afiliarse",null,null,null,null,null,null,null,null,"ADEMÁS DE SER REPORTADOS EN EL PORTAL DEL SÍSEVE, DEBEN SER REPORTADOS"]
[null,null,null,null,null,"Le parece importante, pero no lo ve necesario para su I.E.",null,null,null,null,null,null,null,null,"A LA UGEL?"]
[null,null,null,null,null,"Otro"]
[null,null,null,null,"",null,null,null,null,null,null,null,null,null," Sí",null," No  "]
[null,null,null,null,""]
[null,null,"125.B. EN ESTE SERVICIO/NIVEL EDUCATIVO, EN EL AÑO 2023, ¿USTED HA REPORTADO",null,null,null,null,null,null,null,null,null,null,"131.B  SEÑOR(A) DIRECTOR(A) ¿CONOCE USTED EN QUE CASOS TIENE COMPETENCIA PARA"]
[null,null,null,"ALGÚN HECHO DE VIOLENCIA EN EL PORTAL SÍSEVE?",null,null,null,null,null,null,null,null,null,null,"INVESTIGAR UNA DENUNCIA QUE HAYA SIDO PRESENTADA EN CONTRA DE PROFESORES,"]
[null,null,null,"Sistema Especializado en Reporte de casos sobre Violencia Escolar",null,null,null,null,null,null,null,null,null,null,"PERSONAL JERÁRQUICO Y SUBDIRECTOR DE ESTE SERVICIO/NIVEL EDUCATIVO QUE DIRIGE?\n"]
[null,null,null,null,""]
[null,null,null,null,null,"  Para el año 2023",null,null,null,null,null,null,null,null," Sí",null," No  "]
[null,null,null," Sí",null,"¿Cuántos casos fueron reportados?"]
[null,null,null,null,null,null,null,null,null,null,null,null,null,"132.B  SEÑOR(A) DIRECTOR(A), DURANTE EL PRESENTE AÑO, ¿HA RECIBIDO DENUNCIAS"]
[null,null,null,"No",null,null,null,null,null,null,null,null,null,null,"CONTRA EL PERSONAL DOCENTE DE ESTE SERVICIO/NIVEL EDUCATIVO?"]
[]
[null,null,null,null,"",null,null,null,null,null,null,null,null,null," Sí",null," No  ",null,null,null,"Pase a la pregunta 134.B"]
[null,null,"126.B. ESTE SERVICIO/NIVEL EDUCATIVO, ¿CUENTA CON UN MAPA O DIRECTORIO"]
[null,null,null,"DE ALIADOS ESTRATÉGICOS?",null,null,null,null,null,null,null,null,null,null,null,null,null,"¿Cuántas?"]
[]
[null,null,null," Sí",null," No  ",null,null,"Pase a la pregunta 128.B",null,null,null,null,"133.B  SOBRE LA ATENCIÓN A LAS DENUNCIAS RECIBIDAS CONTRA EL PERSONAL DOCENTE"]
[null,null,null,null,null,null,null,null,null,null,null,null,null,null,"EN EL PRESENTE AÑO, INDIQUE USTED:"]
[]
[null,null,null,"En caso de que cuente con un mapa o directorio de aliados estratégicos",null,null,null,null,null,null,null,null,null,null,null,"A.   ¿ CUÁNTAS DERIVÓ A LA CPPADD ?"]
[null,null,null,null,null,null,null,"Prevención y\natención de casos\nde violencia escolar",null,null,"Promover el bienestar socioemocinal de los estudiantes",null,null,null,null,"B.   ¿CUÁNTAS ASUMIÓ LA INVESTIGACIÓN"]
[null,null,null,"Aliados estratégicos",null,null,null,null,null,null,null,null,null,null,null,"        POR SER DE SU COMPETENCIA?"]
[]
["01",null,null,"DEMUNA",null,null,null,null,null,null,null,{"$f":"CONCATENATE(J344,K344)","v":""},null,"134.B  SEÑOR(A) DIRECTOR(A), DURANTE EL PRESENTE AÑO, ¿USTED HA SIDO OBJETO DE DENUNCIAS"]
["02",null,null,"Defensoría del pueblo",null,null,null,null,null,null,null,{"$f":"CONCATENATE(J345,K345)","v":""},null,null,"POR ADOPTAR MEDIDAS EN PROTECCIÓN DEL ESTUDIANTE O DENUNCIAS DE CORRUPCIÓN?"]
["03",null,null,"Centro de emergencia Mujer (CEM)",null,null,null,null,null,null,null,{"$f":"CONCATENATE(J346,K346)","v":""}]
["04",null,null,"Centro o posta de salud",null,null,null,null,null,null,null,"",null,null," Sí",null," No  "]
["05",null,null,"Iglesia",null,null,null,null,null,null,null,""]
["06",null,null,"Comisaría",null,null,null,null,null,null,null,"",null,null,null,null,null,"¿Cuántas?"]
["07",null,null,"Centro de Salud Mental Comunitario (CSMC)",null,null,null,null,null,null,null,""]
["08",null,null,"Centro o posta de salud",null,null,null,null,null,null,null,"",null,"135.B  SEÑOR(A) DIRECTOR(A), EN ESTE SERVICIO/NIVEL EDUCATIVO, ¿SE TIENEN IMPLEMENTADAS"]
["09",null,null,"Municipalidad",null,null,null,null,null,null,null,"",null,null,"MEDIDAS DE SEGURIDAD PARA EL TRATAMIENTO DE LOS DATOS PERSONALES QUE"]
["10",null,null,"Gobierno regional",null,null,null,null,null,null,null,"",null,null,"ADMINISTRAN?"]
["11",null,null,"Universidad",null,null,null,null,null,null,null,"",null,null,"(Ya sea de alumnos, profesores, personal administrativo o terceros. En cumplimiento de la"]
["12",null,null,"ONG",null,null,null,null,null,null,null,"",null,null," ley N° 29733 y su reglamento)"]
["13",null,null,"Otro",null,null,null,null,null,null,null,{"$f":"CONCATENATE(J356,K356)","v":""}]
[null,null,null,null,null,null,null,null,null,null,{"$f":"COUNTIF(J344:K356,\"SI\")+COUNTIF(J344:K356,\"NO\")","v":0},null,null,null," Sí",null," No  "]
[]
[]
[null,null,"136.B. USTED SEÑOR(A) DIRECTOR(A), ¿TIENE AULA A CARGO U HORAS LECTIVAS",null,null,null,null,null,null,null,null,null,null,"144.B. ACTUALMENTE, ¿DE QUÉ MANERA SE PROMUEVE LA PARTICIPACIÓN ESTUDIANTIL?"]
[null,null,null,"PARA EL PRESENTE AÑO?",null,null,null,null,null,null,null,null,null,null,"Marque con una “X”, una o más opciones"]
[]
[null,null,null," Sí",null," No  ",null,null,null,"Pase a la pregunta 140.B",null,null,null,null,null,"Comités de aula",null,null,null,null,"Pase a la pregunta 148.B.",null,null,{"$f":"CONCATENATE(O363,O364,O367,O368)","v":""}]
[null,null,null,null,null,null,null,null,null,null,null,null,null,null,null,"Asambleas de aula",null,null,null,null,"Pase a la pregunta 148.B."]
[null,null,"137.B. SEÑOR DIRECTOR, ¿EN QUÉ NIVEL EDUCATIVO TIENE ASIGNADA EL AULA U",null,null,null,null,null,null,null,null,null,null,null,null,"Municipios escolares",null,null,null,null,"Pase a la pregunta 145.B."]
[null,null,null,"HORAS Y LA ESPECIALIDAD QUE HA ESTUDIADO?",null,null,null,null,null,null,null,null,null,null,null,"Estrategia Somos Pares",null,null,null,null,"Pase a la pregunta 147.B."]
[null,null,null,null,null,null,null,null,null,null,null,null,null,null,null,"Fiscales ambientales",null,null,null,null,"Pase a la pregunta 148.B."]
[null,null,null,null,"Selecciones SI o No en la o las alternativas que correspondan",null,null,null,null,null,null,null,null,null,null,"Otro","",null,null,null,"Pase a la pregunta 148.B."]
[null,null,null,null,null,null,null,null,"Asignada el\naula u horas",null,"Especialidad que ha estudiado"]
[null,null,null,null,null,"NIVEL",null,null,null,null,null,null,null,"145.B. ¿A TRAVÉS DE QUÉ DOCUMENTO SE RECONOCE AL MUNICIPIO ESCOLAR VIGENTE?"]
[null,null,null,null,null,null,null,null,null,null,null,null,null,null,null,"Marque con una “X”, una o más opciones"]
[null,null,null,null,null,null,null,{"$f":"COUNTIF(I373:K375,\"SI\")+COUNTIF(I373:K375,\"NO\")","v":0},"SI - NO",null,"SI - NO"]
[null,null,null,null,1,"Inicial",null,null,null,null,null,null,null,null,null,null,"Resolución Directoral",null,null,null,""]
[null,null,null,null,2,"Primaria"]
[null,null,null,null,3,"Secundaria",null,null,null,null,null,null,null,null,null,null,"Oficio",null,null,null,""]
[]
[null,null,"138.B. ¿CUÁL DE LAS SIGUIENTES AFIRMACIONES CONSIDERA QUE EXPRESA MEJOR",null,null,null,null,null,null,null,null,null,null,"146.B. EL MUNICIPIO ESCOLAR VIGENTE, ¿VIENE IMPLEMENTANDO SU PLAN DE TRABAJO?"]
[null,null,null,"SU OPINIÓN RESPECTO A QUE EL DIRECTOR(A) DE ESTE SERVICIO/NIVEL EDUCATIVO"]
[null,null,null,"TENGA ASIGNADA AULA A CARGO U HORAS LECTIVAS?",null,null,null,null,null,null,null,null,null,null,"Sí",null,null,"¿El Plan de Trabajo del Municipio Escolar se incorporó\n"]
[null,null,null,"Marque con una “X”, solo una opción",null,null,null,null,null,null,null,null,null,null,null,null,null,"en el PAT 2023 de este Servicio/Nivel Educativo?"]
[]
[null,null,null,null,"Es beneficiosa para el cumplimiento de mis funciones como director de IE.",null,null,null,null,null,null,null,null,null,null,null,"Sí  ",null,null,"No  "]
[null,null,null,null,"Es indiferente para el cumplimiento de mis funciones como director de IE."]
[null,null,null,null,"Es perjudicial para el cumplimiento de mis funciones como director de IE"]
[null,null,null,null,null,null,null,null,null,null,null,null,null,null,"No  ",null,null,"¿Por qué no desarrollaron e implementaron su"]
[null,null,"139.B. EN ESTE SERVICIO/NIVEL EDUCATIVO, ¿SE HA EXPERIMENTADO ALGUNA DE",null,null,null,null,null,null,null,null,null,null,null,null,null,null,"Plan de Trabajo?\n"]
[null,null,null,"LAS SIGUIENTES DIFICULTADES RELACIONADAS A QUE EL DIRECTOR(A) TENGA AULA A CARGO?"]
[null,null,null,"Seleccione “Si” o “No” según corresponda en cada acción"]
[null,null,null,null,null,null,null,null,null,null,null,null,null,null,null,null,null,null,null,null,null,null,null," "]
[null,null,null,"NRO.","ACCIONES",null,null,null,null,null,null," SI - NO"]
[null,null,null,1,"Se dificulta realizar el monitoreo a la práctica pedagógica.",null,null,null,null,null,null,null,null,null,null,"Marque con una “X”, una o más opciones"]
[null,null,null,2,"Se dificulta realizar gestiones con aliados para la mejora de la IE."]
[null,null,null,3,"Se dificulta la gestión de la convivencia escolar.",null,null,null,null,null,null,null,null,null,null,null,"Falta de tiempo de las/os estudiantes"]
[null,null,null,4,"Se interrumpe las clases para atender funciones de dirección.",null,null,null,null,null,null,null,null,null,null,null,"Falta de interés y/o compromiso de las/os estudiantes"]
[null,null,null,5,"Se debe dejar solos a los niños en el aula para atender tareas de la …",null,null,null,null,null,null,null,null,null,null,null,"Falta de acompañamiento a las actividades del Municipio Esc."]
[null,null,null,6,"Se experimenta sobrecarga laboral, se debe laborar fuera del horario.",null,null,null,null,null,null,null,null,null,null,null,"Otro motivo"]
[null,null,null,7,"Se experimenta problemas de salud"]
[null,null,null,8,"Se experimenta malestar psicosocial, estrés o agotamiento laboral.",null,null,null,null,null,null,null,null,"147.B. ESTE SERVICIO/NIVEL EDUCATIVO, ¿TOMÓ CONOCIMIENTO DE LA ESTRATEGIA"]
[null,null,null,9,"Se experimenta problemas personales, pasar menos tiempo con la ...",null,null,null,null,null,null,null,null,null,"NACIONAL DE PARTICIPACIÓN ESTUDIANTIL “SOMOS PARES”"]
[]
[null,null,"140.B. EN SU OPINIÓN, SI A UN DIRECTOR(A) SE LE QUIERE ASIGNAR AULA A CARGO ¿CUÁNTAS SECCIONES",null,null,null,null,null,null,null,null,null,null,null,"Sí",null," No  "]
[null,null,null,"COMO MÁXIMO DEBERÍA TENER PARA QUE SU DESEMPEÑO NO SE VEA AFECTADO?"]
[null,null,null,"Marque con una “X”, solo una opción",null,null,null,null,null,null,null,null,null,null,null,null,null,"Marque con una “X”, una o más opciones"]
[null,null,null,null,null,null,null,null,null,null,null,null,null,null,null,null,null,null,"Oficio Múltiple remitido por MINEDU."]
[null,null,null,null,"1 sección",null,null,null,"5 sección",null,null,null,null,null,null,null,null,null,"Oficio Múltiple remitido por DRE/UGEL."]
[null,null,null,null,"2 sección",null,null,null,"6 sección",null,null,null,null,null,null,null,null,null,"Comunicación del Director."]
[null,null,null,null,"3 sección",null,null,null,"7 sección",null,null,null,null,null,null,null,null,null,"Comunicación de un/a colega."]
[null,null,null,null,"4 sección",null,null,null,"Ninguna"]
[null,null,null,null,null,null,null,null,null,null,null,null,null,null,null,null,null,"¿Cuál de las siguientes acciones ha implementado?"]
[null,null,"141.B. SEÑOR(A) DIRECTOR(A), ¿LOS DOCENTES DEL ÁREA DE EDUCACIÓN PARA EL TRABAJO",null,null,null,null,null,null,null,null,null,null,null,null,null,null,"Marque con una “X”, una o más opciones"]
[null,null,null,"Y LOS ESTUDIANTES DE ESTE SERVICIO/NIVEL EDUCATIVO HAN PARTICIPADO EN EL",null,null,null,null,null,null,null,null,null,null,null,null,null,null,"Sí La Haces"]
[null,null,null,"CONCURSO NACIONAL CREA Y EMPRENDE?",null,null,null,null,null,null,null,null,null,null,null,null,null,null,"Concurso Ideas en Acción"]
[null,null,null,null,null,null,null,null,null,null,null,null,null,null,null,null,null,null,"Organización y Representación Estudiantil"]
[null,null,null," Sí",null," No  "]
[null,null,null,null,null,null,null,null,null,null,null,null,null,"148.B. EN EL PRESENTE AÑO LECTIVO, ¿CON QUÉ FRECUENCIA MONITOREAS QUE TUS"]
[null,null,"142.B. DE LAS ACTIVIDADES QUE REALIZA CON FAMILIAS Y COMUNIDAD, ¿POR LO",null,null,null,null,null,null,null,null,null,null,null,"DOCENTES UTILICEN:?"]
[null,null,null,"MENOS UNA DE ELLAS TIENE COMO EJE PRINCIPAL LA EDUCACIÓN SEXUAL INTEGRAL (ESI)?",null,null,null,null,null,null,null,null,null,null,null,null,null,null,null,"Marque con una “X”, una opcion"]
[null,null,null,null,null,null,null,null,null,null,null,null,null,null,null,null,null,null,"Siempre","Casi Siempre","A veces","Casi nunca","Nunca"]
[null,null,null,"Sí",null," No  "]
[null,null,null,null,null,null,null,null,null,null,null,null,null,null,null,"Acciones de monitoreo"]
[null,null,"143.B. ACTUALMENTE, ¿LAS DOS HORAS PEDAGÓGICAS DE LA TUTORÍA GRUPAL SE"]
[null,null,null,"DESARROLLAN DE MANERA SECUENCIAL?",null,null,null,null,null,null,null,null,null,null,"Las fichas de matemáticas en sus clases"]
[null,null,null,null,null,null,null,null,null,null,null,null,null,null,"Las herramientas curriculares del área de matemática …"]
[null,null,null,"Sí",null," No  "]
[]
[]
[null,null,"C. ACOMPAÑAMIENTO Y SOPORTE PEDAGÓGICO"]
[null,null,"101.C  DESDE EL INICIO DEL AÑO ESCOLAR 2021 HASTA LA FECHA DE REPORTE DEL CENSO",null,null,null,null,null,null,null,null,null,null,"103.C  DURANTE EL AÑO 2022 Y HASTA EL REPORTE DEL CENSO EDUCATIVO 2023, EL"]
[null,null,null,"EDUCATIVO EL SERVICIO/NIVEL EDUCATIVO, ¿HA RECIBIDO COMUNICACIÓN O PARTICIPACIÓN",null,null,null,null,null,null,null,null,null,null,"EL SERVICIO/NIVEL EDUCATIVO, ¿HA RECIBIDO ALGÚN TIPO DE ACOMPAÑAMIENTO"]
[null,null,null,"PRESENCIAL O VIRTUAL/REMOTA DEL ESPECIALISTA PEDAGÓGICO DE LA UGEL,",null,null,null,null,null,null,null,null,null,null,"DIRIGIDO AL DIRECTIVO?"]
[null,null,null,"CON LA FINALIDAD DE BRINDAR ASISTENCIA TÉCNICA?"]
[null,null,null,null,null,null,null,null,null,null,null,null,null,null,"Sí",null," No  ","",null,null,"Pase a la pregunta 105.C"]
[null,null,null,"Sí",null,null,"¿Cuántas veces?"]
[null,null,null,null,null,null,null,"Presencial:",null,null,null,null,null,null,null,null,"¿Que Institución le brindó el acompañamiento?"]
[null,null,null,null,null,null,null,"Virtual/Remota:",null,null,null,null,null,null,null,null,"Marque con una “X” una o más opciones"]
[]
[null,null,null," No  ",null,null,"Pase a la pregunta 103.C",null,null,null,null,null,null,null,"Nro.","Institución",null,null,null,null,{"$f":"COUNTIF(V438:V441,\"X\")","v":0},"GESTIÓN"]
[null,null,null,null,null,null,null,null,null,null,null,null,null,null,1,"DRE"]
[null,null,"102.C  ¿CUÁLES DE LAS SIGUIENTES ACCIONES HA REALIZADO EL ESPECIALISTA PEDAGÓGICO AL",null,null,null,null,null,null,null,null,null,null,null,2,"UGEL"]
[null,null,null,"MOMENTO DE BRINDAR LA ASISTENCIA TÉCNICA AL SERVICIO/NIVEL EDUCATIVO?",null,null,null,null,null,null,null,null,null,null,3,"MINEDU"]
[null,null,null,"Seleccione “Si” o “No” según corresponda en cada acción",null,null,null,null,null,null,null,null,null,null,4,"Otros"]
[null,null,null,null,null,null,null,null,null,null,null,null,null,null,null,null,null,null,null,null,null,{"$f":"CONCATENATE(V438,V439)","v":""}]
[null,null,null,"NRO.","ACCIONES",null,null,null,null,null,null," SI - NO",null,null,null,"“Sólo si marco DRE o UGEL”"]
[null,null,{"$f":"COUNTIF(L444:L465,\"NO\")","v":0},1,"Pregunto sobre las necesidades y demandas pedagógicas del",null,null,null,null,null,null,null,null,null,null,"¿Sobre qué temas recibió acompañamiento como director por parte de la DRE/UGEL?"]
[null,null,null,null,"servicio/nivel educativo",null,null,null,null,null,null,null,null,null,null,"Marque con una “X”, una o más opciones"]
[null,null,null,2,"Observó alguna sesión o actividades de aprendizaje, ya sea de"]
[null,null,null,null,"manera presencial o virtual/remota (por lo menos una vez)",null,null,null,null,null,null,null,null,null,"","Liderazgo directivo"]
[null,null,null,3,"Sostuvó un clima de confianza y proximidad durante sus acciones",null,null,null,null,null,null,null,null,null,"","Temas administrativos"]
[null,null,null,null,"de asistencia técnica con este servicio/ nivel educativo",null,null,null,null,null,null,null,null,null,"","Temas estratégicos"]
[null,null,null,4,"Generó algún espacio para que el director(a) del servicio/nivel",null,null,null,null,null,null,null,null,null,"","Temas pedagógicos"]
[null,null,null,null,"educativo autoevalúe su práctica",null,null,null,null,null,null,null,null,null,"","Temas comunitarios"]
[null,null,null,5,"Escuchó y respondió las dudas y consultas realizadas por usted",null,null,null,null,null,null,null,null,null,"","Círculo de Interaprendizaje de Directivos (CID)"]
[null,null,null,6,"Las orientaciones brindadas atendieron las necesidades y",null,null,null,null,null,null,null,null,null,"","Otros",null,""]
[null,null,null,null,"demandas señaladas"]
[null,null,null,7,"Brindó orientaciones para la mejora de las prácticas pedagógicas",null,null,null,null,null,null,null,null,"104.C. EN EL CASO DE QUE SU RESPUESTA DE LA PREGUNTA ANTERIOR, SEA DRE/UGEL,"]
[null,null,null,null,"y de gestión acorde al enfoque por competencias.",null,null,null,null,null,null,null,null,null,"INDIQUE : ¿QUÉ TIPO DE ACOMPAÑAMIENTO HA RECIBIDO DE LA DRE/UGEL?"]
[null,null,null,8,"Sugirió estrategias pedagógicas contextualizadas para mejorar las"]
[null,null,null,null,"prácticas docentes",null,null,null,null,null,null,null,null,null,"Marque con una “X”, una o más opciones"]
[null,null,null,9,"Dio a conocer las fortalezas del servicio / nivel educativo"]
[null,null,null,10,"Durante las orientaciones utiliza alguna herramienta curricular o fascículos",null,null,null,null,null,null,null,null,null,"","Mentoría a directivos/Coaching"]
[null,null,null,11,"Se asumieron compromisos y/o acuerdos para la mejora",null,null,null,null,null,null,null,null,null,"","Asistencia técnica para implementar (CID)"]
[null,null,null,12,"Brindó orientaciones y/o acompañamientos periódicos para la",null,null,null,null,null,null,null,null,null,"","Webinar"]
[null,null,null,null,"Implementación de la metodología CAP en la IE.",null,null,null,null,null,null,null,null,null,"","Talleres"]
[null,null,null,13,"Brindó orientaciones y/o acompañamientos periódicos para la Implement.",null,null,null,null,null,null,null,null,null,"","Otros - Especificar",null,""]
[null,null,null,null,"de la metod.Círculo de Interaprendizaje de Directivo (CID)"]
[null,null,null,null,null,null,null,null,null,null,null,{"$f":"COUNTIF(L444:L465,\"SI\")+COUNTIF(L444:L465,\"NO\")","v":0}]
[]
[null,null,"105.C. DURANTE EL AÑO 2023, EL EQUIPO DIRECTIVO DE ESTE SERVICIO/NIVEL EDUCATIVO",null,null,null,null,null,null,null,null,null,null,"111.C  EL SERVICIO/NIVEL EDUCATIVO, ¿HA PLANTEADO PLANES DE MEJORA DE ACUERDO AL"]
[null,null,null,"¿HA REALIZADO EL MONITOREO A LA PRÁCTICA PEDAGÓGICA DE LOS DOCENTES?",null,null,null,null,null,null,null,null,null,null,"DIAGNÓSTICO DE LOGROS DE APRENDIZAJE DE LOS ESTUDIANTES EN EL ÁREA DE COMUNICACIÓN?"]
[]
[null,null,null," Sí",null,null," No  ","",null,null,"Pase a la pregunta 107.C",null,null,null,"Sí",null," No  "]
[]
[null,null,null,null,null,null,null,null,null,null,null,null,null,null,null,null,"¿Cuenta con resultados?"]
[null,null,null,null,"¿Con qué frecuencia monitorea a cada docente durante el año escolar?"]
[null,null,null,null,"Marque con una “X” una opción",null,null,null,null,null,null,null,null,null,null,null,"Sí  ",null,null,"No"]
[null,null,null,null,null,"Al menos 1 vez al año"]
[null,null,null,null,"","2 veces al año",null,null,null,null,null,null,null,"112.C  EL SERVICIO/NIVEL EDUCATIVO, ¿REALIZA ACTIVIDADES PEDAGÓGICAS PARA"]
[null,null,null,null,"","3 vces al año",null,null,null,null,null,null,null,null,"INCENTIVAR EL HÁBITO LECTOR EN LOS ESTUDIANTES"]
[null,null,null,null,"","4 veces 2 veces al año"]
[null,null,null,null,null,null,null,null,null,null,null,null,null,null,"Sí",null," No  "]
[]
[null,null,null,{"$f":"CONCATENATE(E478,E479)","v":""},"En caso haya señalado \"3 veces al año\" o “4 veces al año o más”, indique el motivo",null,null,null,null,null,null,null,null,"113.C. EL SERVICIO/NIVEL EDUCATIVO, ¿INFORMÓ A LAS FAMILIAS SOBRE EL PROGRESO"]
[null,null,null,null,"","El monitoreo es una actividad obligatoria.",null,null,null,null,null,null,null,null,"DE LOS ESTUDIANTES?"]
[null,null,null,null,"","En clases me enseñaron que es necesario el monitoreo."]
[null,null,null,null,"","El monitoreo permite dialogar sobre la práctica docente",null,null,null,null,null,null,null,null,"Sí",null," No  "]
[null,null,null,null,null,"y fortalece el logro de aprendizajes"]
[null,null,null,null,null,null,null,null,null,null,null,null,null,null,null,null,"¿Con qué frecuencia?"]
[null,null,"106.C. DURANTE EL AÑO 2023, EN PROMEDIO, ¿CUÁNTAS REUNIONES POR SEMANA DE TRABAJO"]
[null,null,null,"COLEGIADO O FORMACIÓN REALIZÓ CON EL PERSONAL DE ESTE SERVICIO/NIVEL EDUCATIVO?",null,null,null,null,null,null,null,null,null,null,null,null,null,null,"Mensual"]
[null,null,null,null,null,null,null,null,null,null,null,null,null,null,null,null,null,null,"Cada 2 meses"]
[null,null,null,null,"Promedio de reuniones por semana",null,null,null,null,null,null,null,null,null,null,null,null,null,"Cada 3 meses"]
[null,null,null,null,null,null,null,null,null,null,null,null,null,null,null,null,null,null,"Cada 6 meses"]
[null,null,"107.C. DURANTE EL ÚLTIMO MES, EN PROMEDIO, ¿CUÁNTAS HORAS SEMANALES, ADICIONALES A",null,null,null,null,null,null,null,null,null,null,null,null,null,null,null,"Al finalizar el año"]
[null,null,null,"SU JORNADA LABORAL, USTED CONSIDERA QUE HA DESTINADO PARA REALIZAR ACTIVIDADES"]
[null,null,null,"RELACIONADAS A SU TRABAJO COMO DIRECTOR?",null,null,null,null,null,null,null,null,null,"114.C. USTED SEÑOR(A) DIRECTOR(A), ¿HA VISITADO EL PORTAL WEB PARA DIRECTIVOS EN"]
[null,null,null,null,null,null,null,null,null,null,null,null,null,null,"LOS ÚLTIMOS TRES MESES?",null,null,"(https://directivos.minedu.gob.pe/)"]
[null,null,null,null,"Horas Semanales adicionales"]
[null,null,null,null,null,null,null,null,null,null,null,null,null,null,"Sí",null," No  "]
[null,null,"108.C  EN EL PRESENTE AÑO, EL PERSONAL DIRECTIVO DE ESTE SERVICIO/NIVEL EDUCATIVO"]
[null,null,null,"¿BRINDA SOPORTE Y APOYO A LOS DOCENTES EN TORNO A SU DESEMPEÑO EN EL MARCO",null,null,null,null,null,null,null,null,null,null,null,null,"¿La información encontrada en el portal web para directivos"]
[null,null,null,"DEL ACOMPAÑAMIENTO PEDAGÓGICO Y ESPACIOS DE TRABAJO COLEGIADO?",null,null,null,null,null,null,null,null,null,null,null,null,"le resultó de utilidad?"]
[]
[null,null,null,"Sí",null,null," No  ",null,null,null,"Pase a la pregunta 110.C",null,null,null,null,null,"Sí  ",null,null,"No"]
[]
[null,null,"109.C  ¿QUÉ TEMAS HAN SIDO ABORDADOS MAYORITARIAMENTE POR EL EQUIPO DIRECTIVO DURANTE",null,null,null,null,null,null,null,null,null,null,"115.C. EL PERSONAL DE ESTE SERVICIO/NIVEL EDUCATIVO, ¿HA RECIBIDO ALGÚN TIPO DE SOPORTE"]
[null,null,null,"LAS SESIONES DE SOPORTE Y APOYO A LOS DOCENTES EN EL MARCO DEL ACOMPAÑAMIENTO",null,null,null,null,null,null,null,null,null,null,"O ACOMPAÑAMIENTO SOCIOAFECTIVO DE PARTE DE EQUIPOS DE UGEL/DRE/GRE/MINEDU?"]
[null,null,null,"PEDAGÓGICO Y ESPACIOS DE TRABAJO COLEGIADO?"]
[null,null,null,null,null,null,null,null,null,null,null,null,null,null,"Sí",null," No  "]
[null,null,null,null,"Marque con una  “X” una o más opciones"]
[null,null,null,null,null,"Planificación curricular",null,null,null,null,null,null,null,"116.C ¿EL SERVICIO/NIVEL EDUCATIVO HA INCORPORADO/IMPLEMENTADO PROCESOS"]
[null,null,null,null,null,"Conducción de los aprendizajes",null,null,null,null,null,null,null,null,"DE ENSEÑANZA Y APRENDIZAJE HÍBRIDO?"]
[null,null,null,null,null,"Como brindar acompañamiento socioafectivo y cognitivo"]
[null,null,null,null,null,"Uso de los recursos y materiales educativos para atender la diversidad",null,null,null,null,null,null,null,null,"Sí",null," No  "]
[null,null,null,null,null,"Evaluación formativa y retroalimentación"]
[null,null,null,null,null,"Fortalecimiento del uso de TIC",null,null,null,null,null,null,null,"117.C SEÑOR(A) DIRECTOR(A), ¿TIENE USTED CONOCIMIENTO SI AL MENOS EL 50% DEL PERSONAL"]
[null,null,null,null,null,"Competencia de las áreas curriculares",null,null,null,null,null,null,null,null,"DOCENTE DE SU IE REALIZA ACTIVIDADES PEDAGÓGICAS PARA FORTALECER"]
[null,null,null,null,null,"Conclusiones descriptivas",null,null,null,null,null,null,null,null,"LA AUTONOMÍA EN LAS Y LOS ESTUDIANTES EN EL CONTEXTO DE APRENDIZAJE HÍBRIDO?"]
[null,null,null,null,null,"Otros temas"]
[null,null,null,null,null,null,null,null,null,null,null,null,null,null," Sí",null," No  ",null,null,null,"Pase a la pregunta 119.C"]
[null,null,"110.C  EL SERVICIO/NIVEL EDUCATIVO, ¿ DESARROLLA LAS SIGUIENTES ESTRATEGIAS"]
[null,null,null,"DE ACOMPAÑAMIENTO ?",null,null,null,null,null,null,null,null,null,"118.C ¿QUÉ ASPECTOS ABORDAN LOS DOCENTES PARA PROMOVER LA AUTONOMÍA"]
[null,null,null,null,null,null,null,null,null,"¿Cuántos?",null,null,null,null,"DE LAS Y LOS ESTUDIANTES EN EL CONTEXTO DE APRENDIZAJE HÍBRIDO?"]
[null,null,null,"Marque con una “X”, una o más opciones",null,null,null,null,null,"Marque con una  “X” una opción",null,null,null,null,"Marque con una  “X” una o más opciones"]
[null,null,null,null,null,null,null,null,null,null,"de 1 a 4 por área"]
[null,null,null,null,"Visita en aula",null,null,null,null,null,"de 4 a 8 por área",null,null,null,null,null,"Desarrollo de la automotivación"]
[null,null,null,null,"Grupos de Interaprendizaje (GIA)",null,null,null,null,null,"Más de 8 por área",null,null,null,null,null,"Desarrollo del autoconcepto"]
[null,null,null,null,"Talleres",null,null,null,null,null,null,null,null,null,null,null,"Desarrollo de la regulación emocional"]
[null,null,null,null,"Otros","Especificar",null,null,null,null,null,null,null,null,null,null,"Monitoreo de la acción o las tareas"]
[null,null,null,null,null,null,null,null,null,null,null,null,null,null,null,null,"Promoción de la toma de decisiones responsables"]
[null,null,null,null,null,null,null,null,null,null,null,null,null,null,null,null,"Otro     "]
[]
[]
[null,null,"119.C. ESTE SERVICIO/NIVEL EDUCATIVO, ¿REALIZA EL ACOMPAÑAMIENTO A LAS ACTIVIDADES",null,null,null,null,null,null,null,null,null,null,"126.C. CONSIDERA IMPORTANTE USTED SEÑOR(A) DIRECTOR(A), ¿QUÉ SE DEBA CONTAR CON UNA"]
[null,null,null,"PEDAGÓGICAS RELACIONADAS A PROCESOS DE ENSEÑANZA Y A PRENDIZAJE HÍBRIDO?",null,null,null,null,null,null,null,null,null,null,"FICHA DE ACOMPAÑAMIENTO DIFERENCIADO O ESPECIALIZADO PARA EL ÁREA DE INGLÉS?"]
[null,null,null,null,null,null,null,null,null,null,null,null,null,null,"Marque con una “X”, solo una opción"]
[null,null,null," Sí",null," No  "]
[null,null,null,null,null,null,null,null,null,null,null,null,null,null,null,null,"Si es importante",null,null,null,"No es importante"]
[]
[null,null,"120.C. EN ESTE SERVICIO/NIVEL EDUCATIVO, ¿SE DESARROLLA EL REFUERZO ESCOLAR",null,null,null,null,null,null,null,null,null,null,"127.C. ¿CUENTA CON EL EQUIPAMIENTO PARA EL AULA FUNCIONAL DE INGLÉS?"]
[null,null,null,"EN LAS ÁREAS DE COMUNICACIÓN Y MATEMÁTICA?"]
[null,null,null,null,null,null,null,null,null,null,null,null,null,null,"Sí",null," No  "]
[null,null,null," Sí",null," No  "]
[null,null,null,null,null,null,null,null,null,null,null,null,null,null,null,null,"¿Con cuántos equipos en funcionamiento dispone este servicio/nivel educativo"]
[null,null,null,null,null,null,null,null,null,null,null,null,null,null,null,null,"para el área funcional de Inglés?"]
[null,null,"121.C. EN ESTE SERVICIO/NIVEL EDUCATIVO, ¿SE HA IMPLEMENTADO LA ESTRATEGIA"]
[null,null,null,"SOMOS PROMO CONCLUSIÓN OPORTUNA EN LAS ÁREAS DE COMUNICACIÓN Y MATEMÁTICA?",null,null,null,null,null,null,null,null,null,null,null,"Equipamiento",null,"Número de equipos en funcionamiento área de ingles"]
[null,null,null,null,null,null,null,null,null,null,null,null,null,null,null,null,null,"Número ya\ndestinados al área",null,null,"Número de los que podrían\nser destinados al área"]
[null,null,null," Sí",null," No  "]
[null,null,null,null,null,null,null,null,null,null,null,null,null,null,null,"Pc"]
[null,null,null,null,null,null,null,null,null,null,null,null,null,null,null,"Laptop"]
[null,null,"122.C. SEÑOR(A) DIRECTOR(A), DURANTE EL AÑO 2023 Y HASTA LA APLICACIÓN DEL",null,null,null,null,null,null,null,null,null,null,null,null,"Tablet"]
[null,null,null,"CENSO EDUCATIVO 2024, ¿USTED HA RECIBIDO ALGÚN TIPO DE ASISTENCIA PEDAGÓGICA?",null,null,null,null,null,null,null,null,null,null,null,null,null,null,{"$f":"SUM(R549:T551)","v":0},null,null,{"$f":"SUM(U549:W551)","v":0}]
[null,null,null,null,null,null,null,null,null,null,null,null,null,"128.C. ESTE SERVICIO/NIVEL EDUCATIVO, ¿CUENTA CON UN ESPECIALISTA DE INGLÉS"]
[null,null,null," Sí",null," No  ",null,null,null,"Pase a la pregunta 124.C",null,null,null,null,"QUE BRINDE ASISTENCIA TÉCNICA A LOS DOCENTES?"]
[]
[null,null,null,null,null,null,"Marque con una “X”, una o más opciones",null,null,null,null,null,null,null,"Sí",null," No  "]
[]
[null,null,null,null,null,null,null,null,null,null,null,"Tipo de acompaña- miento",null,null,null,null,"¿El especialista de inglés que brinda la asistencia técnica a los docentes, "]
[null,null,null,null,null,null,"Nro.",null,"Institución",null,{"$f":"COUNTIF(L561:L564,\"X\")","v":0},null,null,null,null,null,"cuenta con formación en el área?"]
[]
[null,null,null,null,null,null,1,"DRE",null,null,null,null,null,null,null,null,"Sí    ",null,null," No  "]
[null,null,null,null,null,null,2,"UGEL"]
[null,null,null,null,null,null,3,"MINEDU",null,null,null,null,null,null,null,null,"¿Con qué frecuencia visita su escuela?"]
[null,null,null,null,null,null,4,"Otros"]
[null,null,null,null,null,null,null,null,null,null,null,null,null,null,null,null,null,null,"Mensualmente "]
[null,null,null,null,null,null,null,null,null,null,null,null,null,null,null,null,null,null,"Bimestralmente"]
[null,null,"123.C. ¿QUÉ TEMÁTICAS SE HAN ABORDADO EN LAS ASISTENCIAS PEDAGÓGICAS",null,null,null,null,null,null,null,null,null,null,null,null,null,null,null,"Semestralmente"]
[null,null,null,"QUE HA RECIBIDO POR PARTE DE LOS ESPECIALISTAS DE DRE/UGEL?",null,null,null,null,null,null,null,null,null,null,null,null,null,null,"Anualmente"]
[null,null,null,null,null,null,null,null,null,null,null,null,null,null,null,null,null,null,"Aún no ha realizado ninguna visita"]
[null,null,null,"Marque con una  “X” una o más opciones"]
[null,null,null,null,null,null,null,null,null,null,null,null,null,"129.C. ESTE SERVICIO/NIVEL EDUCATIVO, ¿CUENTA CON DOCENTES DE INGLÉS QUE"]
[null,null,null,null,null,"Planificación curricular",null,null,null,null,null,null,null,null,"TENGAN UNA CERTIFICACIÓN INTERNACIONAL, SEGÚN EL MARCO COMÚN"]
[null,null,null,null,null,"Metodología y estrategias didácticas",null,null,null,null,null,null,null,null,"EUROPEO DE REFERENCIA-MCER?"]
[null,null,null,null,null,"Retroalimentación, criterios e instrumentos de evaluación"]
[null,null,null,null,null,"Soporte emocional",null,null,null,null,null,null,null,null,"Sí",null," No  ",null,null,"Detalle el número de docentes de ingles por"]
[null,null,null,null,null,"Experiencias pedagógicas innovadoras",null,null,null,null,null,null,null,null,null,null,null,null,null,"certificación internacional MCER"]
[null,null,null,null,null,"Acompañamiento pedagógico",null,null,null,null,null,null,null,null,null,null,null,null,null,"Certiﬁcación Internacional",null,null,"Cantidad"]
[null,null,null,null,null,"Implementación de Refuerzo Escolar",null,null,null,null,null,null,null,null,null,null,"¿Cuántos?   ",null,null,"a. Certificado PRE A1"]
[null,null,null,null,null,"Atención Diferenciada",null,null,null,null,null,null,null,null,null,null,null,null,null,"b. Certificado A1"]
[null,null,null,null,null,"Otros","",null,null,null,null,null,null,null,null,null,null,null,null,"c. Certificado A2"]
[null,null,null,null,null,"Ninguna",null,null,null,null,null,null,null,null,null,null,null,null,null,"d. Certificado B1"]
[null,null,null,null,null,null,null,null,null,null,null,null,null,null,null,null,null,null,null,"e. Certificado B2"]
[null,null,null,null,null,null,null,null,null,null,null,null,null,null,null,null,null,null,null,"f.  Certificado C1"]
[null,null,"124.C. ¿ESTE SERVICIO/NIVEL EDUCATIVO ESTÁ PARTICIPANDO EN LA COMUNIDAD",null,null,null,null,null,null,null,null,null,null,null,null,null,null,null,null,"g  Certificado C2"]
[null,null,null,"DE PRÁCTICA PARA DOCENTES DE INGLÉS DE SU REGIÓN?",null,null,null,null,null,null,null,null,null,null,null,null,null,null,null,null,null,null,{"$f":"SUM(V578:W584)","v":0}]
[null,null,null,null,"Marque con una “X”, solo una opción",null,null,null,null,null,null,null,null,"130.C. SEÑOR(A) DIRECTOR(A), ¿USTED CONOCE EL SISTEMA INTEGRADO DE"]
[null,null,null,null,null,null,null,null,null,null,null,null,null,null,"FORMACIÓN DOCENTE EN SERVICIO (SIFODS)?"]
[null,null,null,null,null,"Sí",null,null,null,null,null,"","","","","","","","","","","","","","","","","","","","","","","","","","","","","","","","","","","","","","","","","","","","","","","","","","","","","","","","","","","","","","","","","","","","","","","","","","","","","","","","","","","","","","","","","","","","","","","","","","","","","","","","","","","","","","","","","","","","","","","","","","","",""]
[null,null,null,null,null,"No  ",null,null,null,null,null,"","","",null,null,"Sí",null," No  ","","","","","","","","","","","","","","","","","","","","","","","","","","","","","","","","","","","","","","","","","","","","","","","","","","","","","","","","","","","","","","","","","","","","","","","","","","","","","","","","","","","","","","","","","","","","","","","","","","","","","","","","","","","","","","","","","","","",""]
[null,null,null,null,null,"Desconosco que haya una",null,null,null,null,null,"","","","","","","","","","","","","","","","","","","","","","","","","","","","","","","","","","","","","","","","","","","","","","","","","","","","","","","","","","","","","","","","","","","","","","","","","","","","","","","","","","","","","","","","","","","","","","","","","","","","","","","","","","","","","","","","","","","","","","","","","","","",""]
[null,null,null,null,null,null,null,null,null,null,null,null,null,null,null,null,null,"¿Qué módulo(s) ha utilizado del SIFODS?"]
[null,null,null,null,null,null,null,null,null,null,null,null,null,null,null,null,null,"(Marque con una “X”, una o más opciones)"]
[null,null,"125.C. ¿CONSIDERA USTED SEÑOR(A) DIRECTOR(A), QUE PERTENECER A UNA COMUNIDAD DE PRÁCTICA"]
[null,null,null,"DE DOCENTES DE INGLÉS FAVORECERÁ EL DESEMPEÑO DE SUS DOCENTES EN EL AULA?",null,null,null,null,null,null,null,null,null,null,null,null,null,null,"File Docente"]
[null,null,null,null,"Marque con una “X”, solo una opción",null,null,null,null,null,null,null,null,null,null,null,null,null,"Docente al Día"]
[null,null,null,null,null,null,null,null,null,null,null,null,null,null,null,null,null,null,"Portafolio de la Oferta Formativa"]
[null,null,null,null,null,"Sí, muy favorablemente",null,null,null,null,null,null,null,null,null,null,null,null,"Centro de Recursos"]
[null,null,null,null,null,"Sí, medianamente favorable",null,null,null,null,null,null,null,null,null,null,null,null,"Guías docentes AeC"]
[null,null,null,null,null,"Casi nada favorable",null,null,null,null,null,null,null,null,null,null,null,null,"Asistencia Virtual Docente"]
[null,null,null,null,null,null,null,null,null,null,null,null,null,null,null,null,null,null,"Comunidades"]
[null,null,null,null,null,null,null,null,null,null,null,null,null,null,null,null,null,null,"Entorno Personal"]
[]
[]
[null,null,"131.C. SEÑOR(A) DIRECTOR(A), ¿CÓMO HA IDENTIFICADO LAS NECESIDADES FORMATIVAS",null,null,null,null,null,null,null,null,null,null,"135.C. EN LOS ÚLTIMOS CINCO (05) AÑOS, ¿ALGUNA VEZ EN ESTE SERVICIO/NIVEL"]
[null,null,null,"PARA EL PERSONAL DOCENTE DE ESTE SERVICIO/NIVEL EDUCATIVO?",null,null,null,null,null,null,null,null,null,null,"EDUCATIVO SE IMPLEMENTÓ UN PROYECTO DE INNOVACIÓN EDUCATIVA O BUENA"]
[null,null,null,null,null,null,null,null,null,null,null,null,null,null,"PRÁCTICA PEDAGÓGICA?"]
[null,null,null,"Sí",null," No  ",null,null,null,"Pase a la pregunta 133.C"]
[]
[null,null,null,null,null,null,null,null,null,null,null,null,null,null,"(Referencia: ENDO 2021)",null,null,null,"Sí - No"]
[null,null,null,null,null,null,"¿Cómo identificó las necesidades formativas?",null,null,null,null,null,null,null,1,"Innovación educativa"]
[null,null,null,null,null,null,null,null,null,null,null,null,null,null,2,"Buena práctica pedagógica"]
[null,null,null,null,null,null,"Marque con una “X”, una o más opciones"]
[]
[null,null,null,null,null,null,null,"Observación en aula"]
[null,null,null,null,null,null,null,"Cuestionario de autodiagnóstico",null,null,null,null,null,"136.C. EN ESTE SERVICIO/NIVEL EDUCATIVO, ¿SE GENERAN ESPACIOS PARA LA COLABORACIÓN"]
[null,null,null,null,null,null,null,"Monitoreo pedagógico",null,null,null,null,null,null,"ENTRE DOCENTES Y/O DIRECTIVOS PARA LA IMPLEMENTACIÓN DE MEJORAS EN LA"]
[null,null,null,null,null,null,null,"Otros","",null,null,null,null,null,"PRÁCTICA PEDAGÓGICA (BUENAS PRÁCTICAS O INNOVACIÓN EDUCATIVA)?"]
[]
[null,null,"132.C. SEÑOR(A) DIRECTOR (A), ¿EN ESTE SERVICIO/NIVEL EDUCATIVO HA GESTIONADO",null,null,null,null,null,null,null,null,null,null,null,"Sí",null," No  ",null,null,null,"Pase a la pregunta 138.C"]
[null,null,null,"ALGÚN TIPO DE ACCIÓN FORMATIVA PARA ATENDER DICHAS NECESIDADES"]
[null,null,null,"DEL PERSONAL DOCENTE DE ESTE SERVICIO/NIVEL EDUCATIVO?"]
[]
[null,null,null,"Sí",null," No  ",null,null,null,null,null,null,null,"137.C. EN RELACIÓN CON EL DESARROLLO DEL PROYECTO DE INNOVACIÓN O BUENA PRÁCTICA"]
[null,null,null,null,null,null,null,null,null,null,null,null,null,null,"PEDAGÓGICA, ¿QUÉ ASPECTOS LIMITAN LA IMPLEMENTACIÓN DE MEJORAS?"]
[{"$f":"CONCATENATE(P541,R541)","v":""},null,null,null,null,null,null,null,null,null,null,null,null,null,"Marque con una “X”, una o más opciones"]
[null,null,null,null,null,"¿Qué tipo de acciones formativas gestionó para atender dichas"]
[null,null,null,null,null,"necesidades del personal docente de este Servicio/Nivel Educativo?",null,null,null,null,null,null,null,null,null,"Institucionalización de la práctica"]
[null,null,null,null,null,null,null,null,null,null,null,null,null,null,null,"Reflexionar sobre los resultados de la práctica"]
[null,null,null,null,null,null,"Marque con una “X”, una o más opciones",null,null,null,null,null,null,null,null,"Tener recursos limitados para mejorar su desarrollo"]
[null,null,null,null,null,null,null,"Cursos virtuales",null,null,null,null,null,null,null,"Contar con poco respaldo del equipo directivo y de los docentes."]
[null,null,null,null,null,null,null,"Programas formativos",null,null,null,null,null,null,null,"Otro"]
[null,null,null,null,null,null,null,"Otros",""]
[]
[null,null,"133.C. EN LOS ÚLTIMOS DOCE (12) MESES, ¿ESTE SERVICIO/NIVEL EDUCATIVO CONTÓ"]
[null,null,null,"CON ALGÚN PROYECTO DE INNOVACIÓN EDUCATIVA O BUENA PRÁCTICA",null,null,null,null,null,null,null,null,null,"138.C. ¿QUÉ FACTORES LE AYUDARÍAN A MEJORAR SU INNOVACIÓN O PRÁCTICA PEDAGÓGICA?"]
[null,null,null,"PEDAGÓGICA ENMARCADOS EN ALGUNA DE LAS SIGUIENTES TEMÁTICAS/EJES?",null,null,null,null,null,null,null,null,null,null,"Marque con una “X”, una o más opciones"]
[]
[null,null,null,null,"Temática / Eje",null,null,null,"Innovación educativa",null,"Buena práctica pedagógica",null,null,null,null,"Acceso a tecnología/internet"]
[null,null,null,null,null,null,null,null,null,null,null,null,null,null,null,"Acceso a material pedagógico"]
[null,null,null,null,null,null,null,null,"SI","NO","SI","NO",null,null,null,"Tiempo para reflexionar y sistematizar la práctica"]
[null,null,{"$f":"CONCATENATE(I641,J641,K641,L641)","v":""},"01","Gestión escolar",null,null,null,null,null,null,null,{"$f":"CONCATENATE(I641,J641,K641,L641)","v":""},null,null,"Asistencia técnica o asesoría personalizada"]
[null,null,{"$f":"CONCATENATE(I642,J642,K642,L642)","v":""},"02","Mejoramiento del Servicio Educativo",null,null,null,null,null,null,null,{"$f":"CONCATENATE(I642,J642,K642,L642)","v":""},null,null,"Talleres de intercambio de experiencia"]
[null,null,"","03","Humanidades",null,null,null,null,null,null,null,"",null,null,"Becas de estudio"]
[null,null,"","04","Ciencias",null,null,null,null,null,null,null,"",null,null,"Pasantias"]
[null,null,"","05","Medio ambiente",null,null,null,null,null,null,null,""]
[null,null,"","06","Violencia escolar (Bullying, acoso)",null,null,null,null,null,null,null,""]
[null,null,"","07","Emprendimientos, productivos",null,null,null,null,null,null,null,""]
[null,null,"","08","Inclusión",null,null,null,null,null,null,null,"","139.C. POSTERIOR AL MONITOREO, ¿QUÉ TIPO DE RETROALIMENTACIÓN BRINDA A CADA DOCENTE?"]
[null,null,"","09","Nuevas tecnologías",null,null,null,null,null,null,null,"",null,"Marque con una “X”, una opción"]
[null,null,"","10","Vida activa y saludable",null,null,null,null,null,null,null,""]
[null,null,"","11","Otro",null,null,null,null,null,null,null,"",null,null,"Descriptiva"]
[null,null,null,null,null,null,null,null,null,{"$f":"COUNTIF(I641:J651,\"X\")","v":0},null,{"$f":"COUNTIF(K641:L651,\"X\")","v":0},null,null,null,"Elemental"]
[null,null,"134.C. EN LOS ÚLTIMOS DOCE (12) MESES, ¿HA CONTADO CON ALIADOS ESTRATÉGICOS",null,null,null,null,null,null,null,null,null,null,null,null,"Reflexiva o por descubrimiento"]
[null,null,null,"QUE LE HAN BENEFICIADO CON ALGÚN INCENTIVO ECONÓMICO PARA LA IMPLEMENTACIÓN",null,null,null,null,null,null,null,null,null,null,null,"No brinda retroalimentación por falta de tiempo"]
[null,null,null,"Y/O SOSTENIBILIDAD DE SU INNOVACIÓN O BUENA PRÁCTICA PEDAGÓGICA?"]
[]
[null,null,null,null,"Aliados Estratégicos",null,null,null,"Innovación Educativa",null,"Buena práctica pedagógica"]
[]
[null,null,null,null,null,null,null,null,"SI","NO","SI","NO"]
[null,null,{"$f":"CONCATENATE(I660,J660,K660,L660)","v":""},"01","Gobierno regional",null,null,null,null,null,null,null,{"$f":"CONCATENATE(I660,J660,K660,L660)","v":""}]
[null,null,"","02","DRE/UGEL",null,null,null,null,null,null,null,{"$f":"CONCATENATE(I661,J661,K661,L661)","v":""}]
[null,null,"","03","Gobierno local",null,null,null,null,null,null,null,{"$f":"CONCATENATE(I662,J662,K662,L662)","v":""}]
[null,null,"","04","Aliados privados",null,null,null,null,null,null,null,""]
[null,null,"","05","MINEDU-FONDEP",null,null,null,null,null,null,null,""]
[null,null,"","06","Padres y madres de familia",null,null,null,null,null,null,null,""]
[null,null,"","07","Recursos propios de la IE",null,null,null,null,null,null,null,""]
[null,null,"","08","Otro",null,null,null,null,null,null,null,""]
[null,null,null,null,null,null,null,null,null,{"$f":"COUNTIF(I660:J667,\"X\")","v":0},null,{"$f":"COUNTIF(K660:L667,\"X\")","v":0}]
[null,null,null,null,null,null,null,null,null,null,null,null,null,null,null,null,null,null,""]
[null,null,null,null,null,null,null,null,null,null,null,null,null,null,null,null,null,null,""]
[null,null,null,null,null,null,null,null,null,null,null,null,null,null,null,null,null,null,""]

{"sheet":"C101","index":2,"n_rows":250,"n_cols":24,"rows_kept":250,"cut":false,"hidden":false,"merged":[[54,6,54,10],[109,9,109,11],[122,8,122,11],[220,6,220,10],[235,2,235,9],[234,2,234,9],[196,10,196,11],[187,6,187,10],[231,2,233,8],[231,10,232,11],[129,8,129,11],[172,6,172,10],[241,3,243,9],[241,12,242,12],[241,13,241,22],[242,13,243,15],[242,16,243,17],[242,18,243,20],[242,21,243,22],[245,13,245,15],[245,16,245,17],[245,18,245,20],[245,21,245,22],[244,13,244,15],[244,18,244,20],[235,17,235,18],[235,19,235,20],[244,16,244,17],[196,17,196,20],[232,16,232,18],[232,19,232,21],[231,12,231,23],[232,14,232,15],[244,21,244,22],[232,22,232,23],[233,17,233,18],[233,19,233,20],[234,17,234,18],[234,19,234,20],[190,17,190,22],[198,8,198,11],[199,8,199,11],[224,17,224,21],[201,8,201,10],[195,17,195,22],[202,8,202,11],[194,17,194,22],[181,21,181,22],[180,21,180,22],[80,17,80,21],[104,17,104,21],[161,8,161,11],[135,17,135,21],[160,17,160,21],[18,18,20,22],[20,6,20,10],[37,20,37,22],[48,18,50,19],[49,20,49,22],[34,3,34,11],[26,14,26,22],[2,6,2,20],[1,6,1,20],[9,14,11,21],[11,4,11,9],[17,19,17,20]]}
[{"$f":"IF(OR(UPPER('C100'!J29)<>\"\",UPPER('C100'!O29)<>\"\"),\"X\",\"\")","v":""}]
[{"$f":"IF(UPPER('C100'!T29)<>\"\",\"X\",\"\")","v":""},null,null,null,null,null,"CENSO EDUCATIVO 2024"]
[null,null,null,null,null,null,"MATRÍCULA, DOCENTES Y MATERIALES EDUCATIVOS"]
[]
[]
[]
[null,null,"D. SOBRE LA BASE DEL CENSO DE POBLACIÓN Y VIVIENDA 2017 DEL INEI"]
["0100: Castellano",null,"101.D  SEGÚN LAS COSTUMBRES Y EL ORIGEN FAMILIAR, ¿USTED CONSIDERA QUE SU SERVICIO/NIVEL"]
["0200: Achuar",null,null,"EDUCATIVO CUENTA CON ESTUDIANTES PERTENECIENTES A LOS SIGUIENTES"]
["0300: Aimara",null,null,"GRUPOS ÉTNICOS?",null,null,null,null,null,null,null,null,null,null,"SOLO SI MARCÓ DOS O MÁS ALTERNATIVAS EN LA PREGUNTA ANTERIOR, RESPONDA:"]
["0400: Amahuaca"]
["0500: Arabela",null,null,"COD.","GRUPO ÉTNICO",null,null,null,null,null,{"$f":"COUNTIF(L13:L21,\"SI\")","v":2}," SI - NO"]
["0600: Asháninka",null,null,1,"Quechua",null,null,null,null,null,null,"NO",{"$f":"IF(L13=\"SI\",1,0)","v":0}]
["0610: Asheninka",null,null,2,"Aimara",null,null,null,null,null,null,"NO",{"$f":"IF(L14=\"SI\",1,0)","v":0}]
["0700: Awajún",null,null,3,"Nativo o indígena de la Amazonía",null,null,null,null,null,null,"NO",0]
["0800: Bora",null,null,4,"Perteneciente o parte de otro pueblo indígena u originario",null,null,null,null,null,null,"SI",1,"102.D  ¿EXISTE UN GRUPO QUE TENGA MAYOR CANTIDAD DE ESTUDIANTES?"]
["0900: Kapanawa",null,null,5,"Negro moreno, zambo, mulato/Pueblo afroperuano o afrodescendiente",null,null,null,null,null,null,"NO",0]
["1000: Cashinahua",null,null,6,"Blanco",null,null,null,null,null,null,"NO",0,null,"Sí","",null,null,"Código"]
["1100: Kawki",null,null,7,"Mestizo",null,null,null,null,null,null,"SI",1,null,null,null,null,null,"Indique el grupo étnico en el que identifica mayor cantidad de estudiantes utilizando el COD. seleccionado en la pregunta 101.D"]
["1200: Chamikuro",null,null,8,"Asiático peruano",null,null,null,null,null,null,"NO",0,null,"No","X"]
["1300: Ese eja",null,null,9,"Otro  especifique",null,null,null,null,null,null,"NO",0]
["1400: Harakbut",null,null,null,null,null,null,null,null,null,{"$f":"IF(K12>1,\"X\",\"\")","v":"X"},{"$f":"COUNTIF(L13:L21,\"SI\")+COUNTIF(L13:L21,\"NO\")","v":9}]
["1500: Iñapari"]
["1600: Ikuitu"]
["1700: Iskonawa",null,"E. CARACTERÍSTICAS DE LA ENSEÑANZA EN CONTEXTOS BILINGÜES - SOLO GESTIÓN PÚBLICA",null,null,null,null,null,null,null,null,null,null,null,null,null,null,null,""]
["1800: Jaqaru",null,null,null,null,null,null,null,null,null,null,null,null,null,null,null,null,null,""]
["1900: Kakataibo",null,"101.E  ESTE SERVICIO/NIVEL EDUCATIVO, ¿ESTÁ RECONOCIDO COMO EIB?",null,null,null,null,null,null,null,null,null,null,null,"SOLO SI ES EIB DE REVITALIZACIÓN O EIB EN ÁMBITOS URBANOS, RESPONDA:"]
["2000: Kakinte (caquinte)",null,null,null,null,null,null,null,null,null,null,null,null,"104.E. ESTE SERVICIO/NIVEL EDUCATIVO, ¿OFRECE ENSEÑANZA DE LA LENGUA ORIGINARIA COMO "]
["2110: Kandozi (Chapra)",null,null,null,null,"EIB de Fortalecimiento",null,null,"",null,null,null,null,null,"SEGUNDA LENGUA?"]
["2120: Kandozi (Kandozi)",null,null,"Sí",null,"EIB de Revitalización",null,null,""]
["2200: Kukama-kukamiria",null,null,null,null,"EIB en Ámbitos Urbano",null,null,"",null,null,null,null,null,"Sí","",null,null,null," No",""]
["2300: Madija (culina)",null,null,null,null,null,null,null,{"$f":"CONCATENATE(I30,I31)","v":""},null,null,null,null,null,null,null,null,null,""]
["2400: Maijiki",null,null,"No",null,null,"Pase a la pregunta 105.E",null,null,null,null,null,null,null,null,null,null,null,""]
["2500: Matsés",null,null,null,null,null,null,null,null,null,null,null,null,"105.E. USTED, SEÑOR(A) DIRECTOR(A), ¿CONOCE SI EN LA COMUNIDAD DONDE SE"]
["2600: Matsigenka",null,null,"SOLO SI ES EIB DE FORTALECIMIENTO, RESPONDA:",null,null,null,null,null,null,null,null,null,null,"ENCUENTRA EL SERVICIO/NIVEL EDUCATIVO, LOS PADRES DE FAMILIA, OTROS"]
["2700: Munichi",null,"102.E. ESTE SERVICIO/NIVEL EDUCATIVO, ¿OFRECE ENSEÑANZA DEL CASTELLANO COMO",null,null,null,null,null,null,null,null,null,null,null,"ADULTOS Y/O ANCIANOS Y ANCIANAS HABLAN UNA LENGUA ORIGINARIA?"]
["2800: Murui-muinani",null,null,"SEGUNDA LENGUA?"]
["2900: Matsigenka-montetokunirira",null,null,null,null,null,null,null,null,null,null,null,null,null,null,null,null,null,null,"¿Qué lengua originaria?  "]
["3000: Nomatsigenga",null,null,"Sí","",null,null,null," No","",null,null,null,null,"Sí",null,null,null,null,null,null,"Anote el código según la"]
["3100: Ocaina",null,null,null,null,null,null,null,null,null,null,null,null,null,null,null,null,null,null,null,null,"tabla de Lenguas Originarias"]
["3200: Omagua",null,"103.E. LOS DOCENTES DE ESTE SERVICIO/NIVEL EDUCATIVO, ¿HAN COMPLETADO LAS FICHAS DE",null,null,null,null,null,null,null,null,null,null,null,"No","",null,null,null,null,null,"de la página 18."]
["3310: Quechua amazónico (Kichwa)",null,null,"DIAGNÓSTICO SOCIOLINGÜÍSTICO Y PSICOLINGÜÍSTICO QUE CARACTERIZA EL NIVEL DE DOMINIO",null,null,null,null,null,null,null,null,null,null,null,null,null,null,""]
["3321: Quechua central (Ancash)",null,null,"DE LAS LENGUAS (LENGUA ORIGINARIA Y CASTELLANO) DE LOS ESTUDIANTES Y LA COMUNIDAD?",null,null,null,null,null,null,null,null,null,null,null,null,null,null,""]
["3322: Quechua central (Huánuco)",null,null,null,null,null,null,null,null,null,null,null,null,null,null,null,null,null,""]
["3323: Quechua central (Wanka)",null,null,"Sí","",null,null,null,"No","",null,null,null,"106. E.  LOS ESTUDIANTES DE ESTE SERVICIO/NIVEL EDUCATIVO,  ¿HABLAN UNA LENGUA"]
["3324: Quechua central (Pasco)",null,null,null,null,null,null,null,null,null,null,null,null,null,"ORIGINARIA?"]
["3331: Quechua norteño (Cajamarca)",null,null,null,null,"Mencione, ¿cómo fueron completadas las fichas?",null,null,null,null,null,null,null,null,null,null,null,null,""]
["3332: Quechua norteño (Inkawasi Kañaris)",null,null,null,null,"Marque con una “X”, una opción",null,null,null,null,null,null,null,null,"Sí"]
["3341: Quechua sureño (Chanka)",null,null,null,null,null,null,null,null,null,null,null,null,null,null,null,"Todos",null,"¿Qué\nlengua  originaria?"]
["3342: Quechua sureño (Collao)",null,null,null,null,"Con ayuda del especialista EIB de la UGEL.",null,null,null,null,null,null,null,null,null,null,"La mayoría"]
["3400: Resígaro",null,null,null,null,"Con el asesoramiento del coordinador de mi Red educativa.",null,null,null,null,null,null,null,null,null,null,"Pocos"]
["3500: Secoya",null,null,null,null,"Con el asesoramiento de otro docente que trabaja en mi IIEE.",null,null,null,null,null,null,null,null,null,null,null,{"$f":"CONCATENATE(R51,R50,R49)","v":""},null,null,null,"Anote el código según la"]
["3600: Sharanahua",null,null,null,null,"Con el apoyo de un docente de mayor experiencia de mi IIEE.",null,null,null,null,null,null,null,null,"No","",null,null,null,null,null,"tabla de Lenguas Originarias"]
["3700: Shawi",null,null,null,null,"De manera autónoma.",null,null,null,null,null,null,null,null,null,null,null,null,null,null,null,"de la página 23."]
["3800: Shipibo-Konibo",null,null,null,"","Otros"]
["3900: Shiwilu"]
["4000: Taushiro",null,null,null,null,null,null,null,null,null,null,null,null,null,null,null,null,null,""]
["4100: Ticuna",null,"F. ATENCIÓN A LA DIVERSIDAD Y SOBRE EL SERVICIO DE APOYO Y ASESORAMIENTO A LAS NECESIDADES EDUCATIVAS ESPECIALES - SAANEE"]
["4200: Urarina",null,"101.F. ESTE SERVICIO/NIVEL EDUCATIVO ¿TIENE TECNOLOGÍA PARA RESPONDER A LAS NECESIDADES",null,null,null,null,null,null,null,null,null,null,"107.F. ESTE SERVICIO/NIVEL EDUCATIVO, ¿HA RECIBIDO ASISTENCIA Y ORIENTACION PARA LA"]
["4300: Wampis",null,null,"EDUCATIVAS ESPECIALES (NEE) DE LOS ESTUDIANTES?",null,null,null,null,null,null,null,null,null,null,"ATENCION EDUCATIVA DE ESTUDIANTES CON DISCAPACIDAD, DE PARTE DEL SERVICIO DE"]
["4400: Yagua",null,null,null,null,null,null,null,null,null,null,null,null,null,"APOYO EDUCATIVO VIRTUAL (SAEV)?"]
["4500: Yaminahua",null,null,"Sí",null,null,null,null,"No"]
["4600: Yanesha",null,null,null,null,null,null,null,null,null,null,null,null,null,"Sí",null,null,null,"No"]
["4700: Yine",null,"102.F. ESTE SERVICIO/NIVEL EDUCATIVO ¿CUENTA CON MATERIALES EDUCATIVOS PARA ATENDER A"]
["4800: Nahua",null,null," ESTUDIANTES CON NECESIDADES EDUCATIVAS ESPECIALES (NEE)?",null,null,null,null,null,null,null,null,null,null,null,null,null,"¿Cuántos estudiantes con discapacidad están a cargo de los"]
["5000: Otra lengua originaria",null,null,null,null,null,null,null,null,null,null,null,null,null,null,null,null,"docentes que han recibido asistencia y orientación por el"]
["LENGUA EXTRANJERA: ",null,null,"Sí",null,null,null,null,"No",null,null,null,null,null,null,null,null,"Servicio de Apoyo Educativo Virtual (SAEV)?"]
["5100: Alemán"]
["5200: Inglés",null,"103.F.  EL LOCAL DONDE OPERA ESTE SERVICIO/NIVEL EDUCATIVO, ¿CUENTA CON INFRAESTRUCTURA",null,null,null,null,null,null,null,null,null,null,null,null,null,null,"Cantidad"]
["5300: Italiano",null,null,"PARA RESPONDER A LA DIVERSIDAD O LAS NEE, (RAMPA, SEÑALÉTICA, ENTRE OTROS)?"]
["5400: Japonés",null,null,null,null,null,null,null,null,null,null,null,null,"108.F. ¿QUÉ ESTRATEGIAS FORMATIVAS VIRTUALES PRIORIZARÍA SOBRE TEMAS"]
["5500: Portugués",null,null,"Sí",null,null,null,null,"No",null,null,null,null,null,"DE EDUCACIÓN INCLUSIVA O ATENCIÓN A LA DIVERSIDAD?"]
["5600: Ruso",null,null,null,null,null,null,null,null,null,null,null,null,null,"Marque con una “X”, una o más opciones"]
["5700: Francés",null,null,null,null,"¿Es suficiente? "]
["5800: Otra lengua extranjera",null,null,null,null,null,null,null,null,null,null,null,null,null,null,null,"Curso virtual tutorado"]
[null,null,null,null,null,"Sí  ",null,null,"No",null,null,null,null,null,null,null,"Curso virtual autoformativo"]
[null,null,null,null,null,null,null,null,null,null,null,null,null,null,null,null,"Grupo o círculo de interaprendizaje"]
[null,null,"104.F. ESTE SERVICIO/NIVEL EDUCATIVO, ¿CUENTA CON UN ESPECIALISTA DEL EQUI PO DE SERVICIO",null,null,null,null,null,null,null,null,null,null,null,null,null,"Comunidades profesionales de apendizaje"]
[null,null,null,"DE APOYO Y ASESORAMIENTO DE LAS NECESIDADES EDUCATIVAS ESPECIALES (SAANEE) QUE ",null,null,null,null,null,null,null,null,null,null,null,null,"Asesoría personalizada"]
[null,null,null,"LE HAYA SIDO ASIGNADO?",null,null,null,null,null,null,null,null,null,null,null,null,"Pasantia"]
[null,null,null,null,null,null,null,null,null,null,null,null,null,null,null,null,"Otros "]
[null,null,null,"Sí",null,null,null,null,"No"]
[null,null,null,null,null,null,null,null,null,null,null,null,null,"109.F. ESTE SERVICIO/NIVEL EDUCATIVO, ¿CUENTA CON RESPONSABLE DE INCLUSIÓN?"]
[null,null,"105.F. DURANTE EL PRESENTE AÑO, ESTE SERVICIO/NIVEL EDUCATIVO ¿HA RECIBIDO ASISTENCIA Y"]
[null,null,null,"ORIENTACIÓN PARA LA ATENCIÓN EDUCATIVA DE ESTUDIANTES CON DISCAPACIDAD, DE PARTE",null,null,null,null,null,null,null,null,null,null,"Sí",null,null,null,null,"No"]
[null,null,null,"DEL EQUIPO DE SERVICIO DE APOYO Y ASESORAMIENTO DE LAS NECESIDADES EDUCATIVAS"]
[null,null,null,"ESPECIALES (SAANEE)?",null,null,null,null,null,null,null,null,null,null,null,null,"¿Este personal labora a tiempo completo?"]
[]
[null,null,null,"Sí",null,null,null,null,"No  ",null,null,null,null,null,null,null,"Sí  ",null,null,"No"]
[]
[null,null,null,null,null,null,null,null,null,null,null,null,null,"110.F. EN ESTE SERVICIO/NIVEL EDUCATIVO, DESDE EL AÑO 2021 HASTA LA FECHA DE APLICACIÓN"]
["SI",null,null,null,null,"¿Cuántas asesorías (presenciales o virtuales)",null,null,null,null,null,null,null,null,"DEL CENSO EDUCATIVO 2024, ¿HA IMPLEMENTADO MEDIDAS Y ACCIONES EN FAVOR DE LA"]
["NO",null,null,null,null,null,null,null,null,null,null,null,null,null,"INCLUSIÓN Y ATENCIÓN A LA DIVERSIDAD DE LAS/OS ESTUDIANTES Y/O DOCENTES?"]
[null,null,null,null,null,"¿Cuántas docentes de este Servicio",null,null,null,null,null,null,null,null,"(EN CUMPLIMIENTO DEL D.S. N° 007-2021-MINEDU)"]
[]
[null,null,"106.F. ¿ALGUNO DE LOS DOCENTES DE ESTE SERVICIO/NIVEL EDUCATIVO HAN RECIBIDO",null,null,null,null,null,null,null,null,null,null,null,"Sí",null,null,"No"]
[null,null,null,"O RECIBEN CAPACITACIÓN O SOPORTE EN TEMAS RELACIONADOS A INCLUSIÓN Y ATENCIÓN"]
[null,null,null,"A LA DIVERSIDAD EN LOS ÚLTIMOS DOS (02) AÑOS, POR PARTE DEL SAE EXTERNO DE LA"]
[null,null,null,"UGEL/DRE/GRE, O ALGUNA OTRA INSTITUCIÓN EN EL MARCO DE UNA EDUCACIÓN INCLUSIVA?",null,null,null,null,null,null,null,null,null,null,null,null,null,null,"¿Por qué?"]
[null,null,null,null,null,null,null,null,null,null,null,null,null,null,null,"Marque con una “X”, una o más opciones"]
[null,null,null,null,null,null,null,"¿De quién recibieron o reciben?"]
[null,null,null,"Sí",null,null,null,"Marque con una “X”, una o más opciones",null,null,null,null,null,null,null,null,"Aún no cuentan con responsable de inclusión."]
[null,null,null,null,null,null,null,null,"Minedu",null,null,null,null,null,null,null,"Aún desconocen sobre el D.S. 007-2021-MINEDU respecto a la educación inclusiva."]
[null,null,null,null,null,null,null,null,"DRE/GRE",null,null,null,null,null,null,null,"Aún no cuentan con orientaciones para implementar la educación inclusiva."]
[null,null,null,null,null,null,null,null,"UGEL",null,null,null,null,null,null,null,"Otro motivo"]
[null,null,null,null,null,null,null,null,"Organizaciones sin fines de lucro /ONG"]
[null,null,null,null,null,null,null,null,"Entidad privada, como auspicio",null,null,null,null,"111.F. DE LAS ACTIVIDADES QUE REALIZA CON FAMILIAS Y COMUNIDAD, ¿POR LO MENOS"]
[null,null,null,"No",null,null,null,null,"Entidad privada, como convenio",null,null,null,null,null,"UNA DE ELLAS TIENE COMO EJE PRINCIPAL LA EDUCACIÓN INCLUSIVA?"]
[null,null,null,null,null,null,null,null,"Inversión propia"]
[null,null,null,null,null,null,null,null,"Otros",null,null,null,null,null,"Sí",null,null,"No"]
[]
[]
[null,null,"112.F. ¿EL SERVICIO/NIVEL EDUCATIVO, CUENTA CON EL SERVICIO DE APOYO EDUCATIVO",null,null,null,null,null,null,null,null,null,null,"117.F. USTED SEÑOR(A) DIRECTOR(A), ¿HA RECIBIDO ASESORÍA DEL SAEI (SERVICIO"]
[null,null,null,"INTERNO (SAEI)?",null,null,null,null,null,null,null,null,null,null,"DE APOYO EDUCATIVO INTERNO) EN EL MARCO DE UNA EDUCACIÓN INCLUSIVA?"]
[]
[null,null,null,"Sí",null,"¿Cuántas personas lo integran?",null,null,null,null,null,null,null,null,"Sí",null,null,"No"]
[]
[]
[null,null,null,null,null,null,"¿Quiénes lo conforman?"]
[null,null,null,null,null,null,null,null,null,null,null,null,null,"118.F. USTED SEÑOR(A) DIRECTOR(A), ¿CUENTA CON CONOCIMIENTOS ACERCA DE LA EDUCACIÓN"]
[null,null,null,null,null,null,null,"Coordinador SAEI",null,null,null,null,null,null,"INCLUSIVA SEGÚN LAS NORMAS VIGENTES EN ESTE SERVICIO/NIVEL EDUCATIVO?"]
[null,null,null,null,null,null,null,"Docente de Apoyo SAEI"]
[null,null,null,null,null,null,null,"Otro",null,null,null,null,null,null,"Sí"]
[]
[null,null,null,"No",null,"¿Por qué?"]
[null,null,null,null,null,"Marque con una “X”, una o más opciones",null,null,null,null,null,null,null,null,null,"¿Quién brindó la capacitación?"]
[null,null,null,null,null,null,null,null,null,null,null,null,null,null,null,"Marque con una “X”, una o más opciones"]
[null,null,null,null,null,null,null,"Aún no cuentan con lineamientos para implementarlo."]
[null,null,null,null,null,null,null,"Aún desconocen las funciones del SAEI.",null,null,null,null,null,null,null,null,"Minedu"]
[null,null,null,null,null,null,null,"Otro",null,null,null,null,null,null,null,null,"SAE Externo DRE/UGEL"]
[null,null,null,null,null,null,null,null,null,null,null,null,null,null,null,null,"DRE / UGEL"]
[null,null,"113.F. EL SERVICIO/NIVEL EDUCATIVO, DE ACUERDO AL DIAGNÓSTICO DE LOGROS DE APRENDIZAJE",null,null,null,null,null,null,null,null,null,null,null,null,null,"UGEL"]
[null,null,null,"DE LAS/OS ESTUDIANTES QUE REQUIEREN MAYORES APOYOS EDUCATIVOS ¿HA ELABORADO",null,null,null,null,null,null,null,null,null,null,null,null,"Entidad privada, como auspicio"]
[null,null,null,"PLANES EDUCATIVOS PERSONALIZADOS (PEP)?",null,null,null,null,null,null,null,null,null,null,null,null,"Inversión propia"]
[null,null,null,null,null,null,null,null,null,null,null,null,null,null,null,null,"Organizaciones sin fines de lucro/ONG"]
[null,null,null,"Sí",null,null,null,null,"No",null,null,null,null,null,null,null,"Otros"]
[]
[null,null,null,null,null,"¿Todos los/as estudiantes con alguna necesidad"]
[null,null,null,null,null,"educativa cuentan con un PEP?"]
[null,null,null,null,null,null,null,null,null,null,null,null,null,"119.F. ¿CUÁNTOS DOCENTES CUENTAN CON CONOCIMIENTOS ACERCA DE LA EDUCACIÓN INCLUSIVA"]
[null,null,null,null,null,"Sí  ",null,null,"No",null,null,null,null,null,"EN ESTE SERVICIO/NIVEL EDUCATIVO?"]
[]
[null,null,"114.F. ¿EN LOS PLANES TUTORIALES SE HA PRIORIZADO ALGÚN TEMA SOBRE EL EJE",null,null,null,null,null,null,null,null,null,null,null,null,"Cantidad de docentes :"]
[null,null,null,"DE INCLUSIÓN Y ATENCIÓN A LA DIVERSIDAD?"]
[]
[null,null,null,"Sí",null,null,null,null,"No"]
[null,null,null,null,null,null,null,null,null,null,null,null,null,"120.F. EN ESTE SERVICIO/NIVEL EDUCATIVO, LOS DOCENTES, ¿HAN RECIBIDO ACOMPAÑAMIENTO"]
[null,null,"115.F. EN EL AÑO 2023 Y HASTA LA FECHA DE APLICACIÓN DEL CENSO EDUCATIVO 2024,",null,null,null,null,null,null,null,null,null,null,null,"Y ASESORÍA EN EL MARCO DE UNA EDUCACIÓN INCLUSIVA?"]
[null,null,null,"ESTE SERVICIO/NIVEL EDUCATIVO, ¿HA INCORPORADO ACCIONES Y CAMBIOS"]
[null,null,null,"EN LA GESTIÓN PARA ATENDER A LA DIVERSIDAD Y BRINDAR UNA EDUCACIÓN",null,null,null,null,null,null,null,null,null,null,"Sí",null,null,"No"]
[null,null,null,"INCLUSIVA SEGÚN LAS NORMATIVAS VIGENTES?"]
[]
[null,null,null,"Sí",null,null,null,null,"No",null,null,null,null,null,null,"¿Sobre qué temáticas recibieron?"]
[null,null,null,null,null,null,null,null,null,null,null,null,null,null,null,"Marque con una “X”, una o más opciones"]
[null,null,null,null,null,"¿Precise los documentos de gestión?"]
[null,null,null,null,null,"Marque con una “X”, una o más opciones",null,null,null,null,null,null,null,null,null,null,"Enfoque inclusivo y de atención a la diversidad según el CNEB"]
[null,null,null,null,null,null,null,null,null,null,null,null,null,null,null,null,"Identificación de barreras educativas"]
[null,null,null,null,null,null,null,"Proyecto Educativo Institucional (PEI)",null,null,null,null,null,null,null,null,"Implementación de Apoyos Educativos"]
[null,null,null,null,null,null,null,"Plan Anual de Trabajo (PAT)",null,null,null,null,null,null,null,null,"Diseño Universal para el Aprendizaje"]
[null,null,null,null,null,null,null,"Proyecto Curricular Institucional (PCI)",null,null,null,null,null,null,null,null,"Plan Educativo Personalizado"]
[null,null,null,null,null,null,null,"Reglamento Interno (RI)",null,null,null,null,null,null,null,null,"Otros"]
[null,null,null,null,null,null,null,"Otros"]
[]
[null,null,"116.F. ESTE SERVICIO/NIVEL EDUCATIVO, DURANTE EL AÑO 2023 Y HASTA LA FECHA"]
[null,null,null,"DE APLICACIÓN DEL CENSO EDUCATIVO 2024, RESPECTO A LA IMPLEMENTACIÓN DEL SAEI,"]
[null,null,null,"¿HA REALIZADO ALGUNAS DE LAS SIGUIENTES ACCIONES?"]
[null,null,null,"Marque con una “X”, una o más opciones"]
[]
[null,null,null,null,null,"Sensibilización y concientización sobre educación inclusiva para la comunidad …"]
[null,null,null,null,null,"Capacitación en educación inclusiva para los docentes, directivos y otros agentes"]
[null,null,null,null,null,"Asesoramiento y acompañamiento a los docentes y otros agentes educativos ..."]
[null,null,null,null,null,"Organiza y coordina a nivel aula y/o Institución Educativa la implementación …"]
[null,null,null,null,null,"Otro"]
[]
[]
[null,null,"G. SUPERVISIÓN DE LA PRESTACIÓN DEL SERVICIO EDUCATIVO - SOLO GESTIÓN PRIVADA"]
[null,null,"101.G. EN EL AÑO 2023, ¿ESTE SERVICIO/NIVEL EDUCATIVO FUE SUPERVISADO",null,null,null,null,null,null,null,null,null,null,"103.G.  FORMA DE CONSTITUCIÓN (Sólo para personas jurídicas)"]
[null,null,null,"  POR LA UGEL A LA QUE PERTENECE?",null,null,null,null,null,null,null,null,null,null,"Marque con un aspa ‘’x’’ y registra la información solicitada según corresponda"]
[]
[null,null,null," Sí",null,null,null," No  ",null,null,null,null,null,null,null,"  Sociedad"]
[null,null,null,null,null,null,null,null,null,null,null,null,null,null,null,null,null,"N° de Partida Regristral  "]
[null,null,null,null,null,null,null,null,null,null,null,null,null,null,null,null,null,"N° de Asiento Registral  "]
[null,null,null,null,"¿Qué aspectos fueron supervisados?",null,null,null,null,null,null,null,null,null,null,"  Asociación"]
[null,null,null,null,"Marque con una “X”, una o más opciones"]
[null,null,null,null,null,null,null,null,null,null,null,null,null,"104.G. ¿ESTE SERVICIO/NIVEL EDUCATIVO PERTENECE A ALGUNA ASOCIACIÓN"]
[null,null,null,null,null,"Entrega de información a los usuarios(as) respecto del servicio educativo",null,null,null,null,null,null,null,null,"QUE AGRUPE A II.EE. PRIVADAS?"]
[null,null,null,null,null,"Infraestructura educativa"]
[null,null,null,null,null,"Otros",null,null,null,null,null,null,null,null," Sí",null,null,null," No  "]
[]
[]
[null,null,"102.G. COMPLETE LOS SIGUIENTES DATOS SOBRE LA PROMOTORÍA DE ESTE NIVEL",null,null,null,null,null,null,null,null,null,null,null,"Nombre de la asociación :"]
[null,null,null,"SERVICIO EDUCATIVO DE GESTIÓN PRIVADA"]
[null,null,null,"Marque con un aspa ‘’X’’ y registra la información solicitada según corresponda",null,null,null,null,null,null,null,null,null,null,"Datos de contacto de la asociación:"]
[null,null,null,"Tipo de persona:"]
[null,null,null,null,null,null,null,null,null,null,null,null,null,null,null,null,"Web "]
[null,null,null,null,null,null,null,null,null,null,null,null,null,null,null,null,"Correo electrónico "]
[null,null,null,null,null,"  Natural",null,"DNI/CE",null,":",null,null,null,null,null,null,"Teléfono/celular "]
[]
[null,null,null,null,null,null,null,"Nombres  ",null,null,null,null,null,"105.G. ¿CUÁNTO ES EL COSTO DE LA PENSIÓN DE ENSEÑANZA (EN MONEDA NACIONAL)?"]
[null,null,null,null,null,null,null,"Apellidos  "]
[null,null,null,null,null,null,null,null,null,null,null,null,null,null,null,"Única",null,"Pensión"]
[null,null,null,null,null,"  Jurídica",null,"RUC  "]
[null,null,null,null,null,null,null,"Razón social  "]
[null,null,null,null,null,null,null,null,null,null,null,null,null,null,null,null,null,"Escala mínima"]
[null,null,null,null,null,null,null,null,null,null,null,null,null,null,null,"Varias"]
[null,null,null,null,null,null,null,null,null,null,null,null,null,null,null,null,null,"Escala máxima"]
[]
[]
[null,null,"H. IDENTIFICACIÓN DE RESIDENCIAS ESTUDIANTILES (No incluye COAR) Y SECUNDARIA TUTORIAL, EN ÁMBITOS RURALES"]
[null,null,"101.H.  TODOS LOS PADRES DE FAMILIA O APODERADOS QUE SOLICITARON UNA VACANTE AL SERVICIO",null,null,null,null,null,null,null,null,null,null,"103.H. LUGAR DÓNDE SE UBICAN, RESIDEN O ALOJAN LOS ESTUDIANTES"]
[null,null,null,"EDUCATIVO DE SECUNDARIA CON RESIDENCIA ESTUDIANTIL, ¿LOGRARON OBTENERLA?",null,null,null,null,null,null,null,null,null,null,null,null,null,null,""]
["Residencias",null,null,null,null,null,null,null,null,null,null,null,null,null,"Marque con un aspa “X” Sí o No según corresponda en cada alternativa"]
[{"$f":"IF(UPPER('C100'!E25)<>\"\",\"X\",\"\")","v":""},null,null," Sí","",null,"No","",null,null,null,null,null,null,"del lugar donde se alojan los residentes"]
["Tutorial"]
[{"$f":"IF(UPPER('C100'!J23)<>\"\",\"X\",\"\")","v":""}]
[]
[null,null,null,null,"¿Porque no lograron una vacante?",null,null,null,null,null,null,null,null,null,null,"LUGAR",null,null,null,null,null,{"$f":"COUNTIF(W218:W225,\"SI\")+COUNTIF(W218:W225,\"NO\")","v":0}," SI - NO"]
[null,null,null,null,"","No hay capacidad de atención en la residencia estudiantil.",null,null,null,null,null,null,null,null,"a."," ¿Residencia o algún ambiente de la IE?"]
[null,null,null,null,"","No hay presupuesto para garantizar la alimentación de los estudiantes.",null,null,null,null,null,null,null,null,"b."," ¿Algún ambiente de institución religiosa?"]
[null,null,null,null,"","No existe personal suficiente para resguardar la seguridad de los estudiantes.",null,null,null,null,null,null,null,null,"c."," ¿Algún ambiente del local o salón comunal"]
[null,null,null,null,"","Otro","",null,null,null,null,null,null,null,"d."," ¿Algún ambiente de otras instituciones? (Municipio, otra I.E. ...)"]
[null,null,null,null,null,null,null,null,null,null,null,null,null,null,"e."," ¿Algún albergue, casa hogar, puericultorio?"]
[null,null,"102.H. EN ESTE AÑO 2024, ¿EXISTEN CASOS DE ESTUDIANTES MATRICULADOS QUE VIVEN O PERNOCTAN",null,null,null,null,null,null,null,null,null,null,null,"f."," ¿Viviendas particulares?"]
[null,null,null,"EN UN AMBIENTE DE LA LOCALIDAD Y ACCEDEN AL SERVICIO",null,null,null,null,null,null,null,null,null,null,"g."," ¿Pensión o similar (servicio de alojamiento pagado)?"]
[null,null,null,null,null,null,null,null,null,null,null,null,null,null,"h."," ¿Otro?"]
[null,null,null,"Sí","",null," No","",null,null,"Pase a la pregunta 104.H"]
[]
[]
[null,null,"104.H.  NÚMERO DE ESTUDIANTES MATRICULADOS SEGÚN MODELO DE SERVICIO DE SECUNDARIA CON RESIDENCIA ESTUDIANTIL O"]
[null,null,null,"SECUNDARIA TUTORIAL VINCULADO A ESTE SERVICIO/NIVEL EDUCATIVO."]
[]
[null,null,"MODELO DE SERVICIO EDUCATIVO",null,null,null,null,null,null,null,"TOTAL",null,"GRADO DE ESTUDIO Y SEXO"]
[null,null,null,null,null,null,null,null,null,null,null,null,"1º",null,"2º",null,"3º",null,null,"4º",null,null,"5º"]
[null,null,null,null,null,null,null,null,null,{"$f":"SUM(K235:L236)","v":0},"H","M","H","M","H","M","H","M",null,"H",null,"M","H","M"]
["01",null,"Nº de estudiantes que viven en una residencia estudiantil",null,null,null,null,null,null,null,{"$f":"M235+O235+Q235+T235+W235","v":0},{"$f":"N235+P235+R235+V235+X235","v":0}]
["02",null,"Nº de estudiantes atendidos bajo el modelo de Serv. S.Tutorial",null,null,null,null,null,null,null,{"$f":"M236+O236+Q236+T236+W236","v":0},{"$f":"N236+P236+R236+V236+X236","v":0}]
[null,null,null,null,null,null,null,null,null,null,null,null,null,null,null,null,null,null,""]
[]
[null,null,"105.H.  NÚMERO TOTAL DE PERSONAL SEGÚN MODELO DE SERVICIO EDUCATIVO DE SECUNDARIA CON RESIDENCIA ESTUDIANTIL O"]
[null,null,null,"SECUNDARIA TUTORIAL VINCULADO A ESTE SERVICIO/NIVEL EDUCATIVO."]
[]
[null,null,null,"MODELO DE SERVICIO EDUCATIVO",null,null,null,null,null,null,null,null,"TOTAL","TIPO DE PERSONAL"]
[null,null,null,null,null,null,null,null,null,null,null,null,null,"Coordinador(a)",null,null,"Gestores (as) Educativos",null,"Promotores(as) de Bienestar o Comunitarios",null,null,"Personal de Servicio"]
[null,null,null,null,null,null,null,null,null,null,null,null,{"$f":"M245+M246","v":0}]
["01",null,null,"Número de actores socioeducativos de la secundaria con residencia estudiantil.",null,null,null,null,null,null,null,null,{"$f":"N245+Q245+S245+V245","v":0}]
["02",null,null,"Número de actores socioeducativos de la secundaria Tutorial",null,null,null,null,null,null,null,null,{"$f":"N246+Q246+S246+V246","v":0}]
[null,null,null,null,null,null,null,null,null,null,null,null,null,null,null,null,null,null,""]
[null,null,null,null,null,null,null,null,null,null,null,null,null,null,null,null,null,null,""]
[null,null,null,null,null,null,null,null,null,null,null,null,null,null,null,null,null,null,""]
[null,null,null,null,null,null,null,null,null,null,null,null,null,null,null,null,null,null,""]

{"sheet":"C200","index":3,"n_rows":143,"n_cols":21,"rows_kept":143,"cut":false,"hidden":false,"merged":[[6,2,6,18],[1,4,1,16],[2,4,2,16],[44,15,44,16],[42,5,44,6],[44,7,44,8],[34,3,34,16],[44,9,44,10],[44,11,44,12],[44,13,44,14],[11,15,11,16],[11,13,11,14],[10,5,11,6],[11,7,11,8],[11,11,11,12],[11,9,11,10],[117,19,117,20],[116,19,116,20],[112,3,112,18],[102,15,102,16],[105,2,105,4],[106,2,106,4],[107,2,107,4],[108,2,108,4],[101,2,103,4],[101,5,102,6],[102,7,102,8],[102,9,102,10],[102,11,102,12],[102,13,102,14],[67,4,67,5],[82,4,82,5],[88,4,88,5],[73,6,75,6],[122,3,122,8],[118,9,119,10],[118,2,119,8],[119,11,119,12],[119,13,119,14],[118,11,118,20],[119,15,119,16],[119,17,119,18],[134,3,134,8],[126,3,126,8],[119,19,119,20],[25,2,28,3],[23,7,23,11],[27,5,27,6],[28,5,28,6],[74,15,74,16],[74,17,74,18],[123,3,123,8],[42,2,45,4],[73,2,75,4],[73,7,74,8],[74,9,74,10],[74,11,74,12],[74,13,74,14],[141,3,141,8],[124,3,124,8],[125,3,125,8],[130,3,130,8],[131,3,131,8],[135,3,135,8],[140,3,140,8],[136,3,136,8],[138,3,138,8],[139,3,139,8],[127,3,127,8],[128,3,128,8],[137,3,137,8],[129,3,129,8],[132,3,132,8],[133,3,133,8],[10,2,12,3],[10,4,12,4],[53,15,53,16],[53,17,53,18],[13,2,16,3],[23,2,24,3],[23,4,24,4],[23,5,24,6],[25,5,25,6],[26,5,26,6],[52,2,54,4],[52,7,53,8],[53,9,53,10],[53,11,53,12],[53,13,53,14],[52,6,54,6]]}
[]
[null,null,null,null,"CENSO EDUCATIVO 2024"]
[null,null,null,null,"MATRÍCULA, DOCENTES Y MATERIALES EDUCATIVOS"]
[]
[]
[]
[null,null,"200. MATRÍCULA Y SECCIONES\nDocumento fuente : Nómina de matrícula"]
[]
[null,null,201,"MATRÍCULA TOTAL POR GRADO DE ESTUDIO, SEGÚN TURNO DE ENSEÑANZA"]
[]
[null,null,"VARIABLE",null,"TURNO","TOTAL",null,"GRADO DE ESTUDIO"]
[null,null,null,null,null,null,null,"1º",null,"2º",null,"3º",null,"4º",null,"5º"]
[null,null,null,null,null,"H","M","H","M","H","M","H","M","H","M","H","M"]
["00",null,"MATRÍCULA",null,"TOTAL",{"$f":"SUM(F15:F17)","v":0},{"$f":"SUM(G15:G17)","v":0},{"$f":"SUM(H15:H17)","v":0},{"$f":"SUM(I15:I17)","v":0},{"$f":"SUM(J15:J17)","v":0},0,0,0,0,0,0,0]
["01",null,null,null,"Mañana",{"$f":"H15+J15+L15+N15+P15","v":0},{"$f":"I15+K15+M15+O15+Q15","v":0}]
["02",null,null,null,"Tarde",{"$f":"H16+J16+L16+N16+P16","v":0},{"$f":"I16+K16+M16+O16+Q16","v":0}]
["03",null,null,null,"Discontinuo",0,0]
[null,null,"Nota.-","Incluya a los alumnos con algún tipo de necesidad educativa especial (NEE)."]
[null,null,null,"Incluya a todos los estudiantes matriculados en este Servicio/nivel educatrivo, así la prestación del servicio sea presencial, semipresencial o virtual"]
[]
[]
[null,null,202,"SECCIONES POR GRADO DE ESTUDIO,  SEGÚN TURNO DE ENSEÑANZA"]
[]
[null,null,"VARIABLE",null,"TURNO","TOTAL",null,"GRADO DE ESTUDIO"]
[null,null,null,null,null,null,null,"1º","2º","3º","4º","5º"]
["00",null,"SECCIONES",null,"TOTAL",{"$f":"+H26+I26+J26+K26+L26","v":0},null,{"$f":"SUM(H27:H29)","v":0},{"$f":"SUM(I27:I29)","v":0},{"$f":"SUM(J27:J29)","v":0},{"$f":"SUM(K27:K29)","v":0},0]
["01",null,null,null,"Mañana ",{"$f":"+H27+I27+J27+K27+L27","v":0}]
["02",null,null,null,"Tarde",{"$f":"+H28+I28+J28+K28+L28","v":0}]
["03",null,null,null,"Discontinuo",{"$f":"+H29+I29+J29+K29+L29","v":0}]
[null,null,"Nota :","/1 Si la I.E. tiene turno hasta las 12:30 pm o un poco más de pasada esta hora, registre la matrícula y las secciones en el turno “MAÑANA”."]
[null,null,null,"/2 Si la I.E. sólo tiene turno que inicia labores pasado el mediodía (12:00 pm) registre la matrícula y las secciones en el turno “TARDE”."]
[null,null,null,"/3 Si la I.E. tiene estudiantes que asisten en la mañana, hacen una pausa retornando a sus domicilios, y luego vuelven a la I.E. por la tarde,"]
[null,null,null,"     registre la matrícula y las secciones en el turno “DISCONTINUO”."]
[]
[null,null,203,"EN EL MARCO DEL REGLAMENTO DE LA LEY N° 29600, LEY QUE FOMENTA LA REINSERCIÓN ESCOLAR POR EMBARAZO, ¿DURANTE EL AÑO 2023\nSE HAN PRESENTADO ESTUDIANTES EN SITUACIÓN DE EMBARAZO, MATERNIDAD Y/O PATERNIDAD EN SU SERVICIO/NIVEL EDUCATIVO?"]
[]
[]
[null,null,null,null,null,"Sí",null,null,null,"No",null,null,null,"Pase a la tabla 204"]
[]
[null,null,null,null,null,null,"Especificar la cantidad de estudiantes"]
[]
[]
[null,null,"CONDICIÓN DE LOS ESTUDIANTES",null,null,"TOTAL",null,"¿CUÁNTOS HAN CULMINADO EL AÑO ESCOLAR 2023"]
[null,null,null,null,null,null,null,"GRADO DE ESTUDIO"]
[null,null,null,null,null,null,null,"1º",null,"2º",null,"3º",null,"4º",null,"5º"]
[null,null,null,null,null,"H","M","H","M","H","M","H","M","H","M","H","M"]
["00",null,"TOTAL",null,null,{"$f":"SUM(F48:F50)","v":0},{"$f":"SUM(G48:G50)","v":0},{"$f":"SUM(H48:H50)","v":0},{"$f":"SUM(I48:I50)","v":0},{"$f":"SUM(J48:J50)","v":0},0,0,0,0,0,0,0]
["01",null,"En situación de embarazo",null,null,{"$f":"H48+J48+L48+N48+P48","v":0},{"$f":"I48+K48+M48+O48+Q48","v":0}]
["02",null,"Madres / Padres",null,null,{"$f":"H49+J49+L49+N49+P49","v":0},{"$f":"I49+K49+M49+O49+Q49","v":0}]
[]
[null,null,204,"MATRÍCULA POR GRADO DE ESTUDIO Y SEXO, SEGÚN TIPO DE DISCAPACIDAD"]
[]
["SI",null,"TIPO DE DISCAPACIDAD",null,null,null,"Elija una opción","TOTAL",null,"GRADO DE ESTUDIO"]
["NO",null,null,null,null,null,null,null,null,"1º",null,"2º",null,"3º",null,"4º",null,"5º"]
[null,null,null,null,null,{"$f":"COUNTIF(G57:G69,\"SI\")+COUNTIF(G57:G69,\"NO\")","v":0},null,"H","M","H","M","H","M","H","M","H","M","H","M"]
["00",null,"TOTAL",null,null,null,"SN",{"$f":"SUM(H57:H69)","v":0},{"$f":"SUM(I57:I69)","v":0},{"$f":"SUM(J57:J69)","v":0},0,0,0,0,0,0,0,0,0]
["01",null,"Discapacidad Intelectual - Leve",null,null,null,null,{"$f":"J57+L57+N57+P57+R57","v":0},{"$f":"K57+M57+O57+Q57+S57","v":0}]
["02",null,"Discapacidad Intelectual - Moderada",null,null,null,null,0,0]
["03",null,"Discapacidad Auditiva - Hipoacusia",null,null,null,null,{"$f":"J59+L59+N59+P59+R59","v":0},{"$f":"K59+M59+O59+Q59+S59","v":0}]
["04",null,"Discapacidad Auditiva - Sordera",null,null,null,null,0,0]
["05",null,"Discapacidad Visual - Baja Visión",null,null,null,null,0,0]
["06",null,"Discapacidad Visual - Ceguera",null,null,null,null,0,0]
["07",null,"Discapacidad Física o Motora",null,null,null,null,0,0]
["08",null,"TEA - Requiere de apoyo (Nivel 1)",null,null,null,null,0,0]
["09",null,"TEA - Requiere de apoyo notable  (Nivel 2)",null,null,null,null,0,0]
["10",null,"TEA - Requiere de apoyo muy notable  (Nivel 3)",null,null,null,null,{"$f":"J66+L66+N66+P66+R66","v":0},{"$f":"K66+M66+O66+Q66+S66","v":0}]
["11",null,"Sordoceguera",null,null,null,null,0,0]
["12",null,"Otra discapacidad",null,null,null,null,0,0]
["13",null,"Ninguna discapacidad",null,null,null,null,0,0]
[null,null,null,null,null,null,null,{"$f":"SUM(H57:H68)","v":0},{"$f":"SUM(I57:I68)","v":0},{"$f":"SUM(J57:J68)","v":0},0,0,0,0,0,0,0,0,0]
[]
[null,null,205,"MATRÍCULA POR GRADO DE ESTUDIO Y SEXO, SEGÚN OTRAS CONDICIONES DETECTADAS"]
[]
[null,null,"OTRAS CONDICIONES DETECTADAS",null,null,null,"Elija una opción","TOTAL",null,"GRADO DE ESTUDIO"]
[null,null,null,null,null,null,null,null,null,"1º",null,"2º",null,"3º",null,"4º",null,"5º"]
[null,null,null,null,null,{"$f":"COUNTIF(G78:G96,\"SI\")+COUNTIF(G78:G96,\"NO\")","v":0},null,"H","M","H","M","H","M","H","M","H","M","H","M"]
["00",null,"TOTAL",null,null,null,"SN",{"$f":"SUM(H78:H97)","v":0},{"$f":"SUM(I78:I97)","v":0},{"$f":"SUM(J78:J97)","v":0},0,0,0,0,0,0,0,0,0]
["01",null,"Retraso global del desarrollo",null,null,null,null,{"$f":"J78+L78+N78+P78+R78","v":0},{"$f":"K78+M78+O78+Q78+S78","v":0}]
["02",null,"Trastorno por Déficit de Atención - TDAH",null,null,null,null,0,0]
["03",null,"TEA - Dislexia",null,null,null,null,0,0]
["04",null,"TEA - Discalculia",null,null,null,null,0,0]
["05",null,"TEA - Disgrafia",null,null,null,null,0,0]
["06",null,"TEA - Otros",null,null,null,null,0,0]
["07",null,"Esquizofrenia (E)",null,null,null,null,0,0]
["08",null,"Depresión (D)",null,null,null,null,0,0]
["09",null,"Ansiedad (A)",null,null,null,null,0,0]
["10",null,"Trastornos de personalidad",null,null,null,null,0,0]
["11",null,"Otros",null,null,null,null,0,0]
["12",null,"Enfermedades Raras",null,null,null,null,0,0]
["13",null,"Talla Baja",null,null,null,null,0,0]
["14",null,"Menos de 15 días de hospitalización",null,null,null,null,{"$f":"J91+L91+N91+P91+R91","v":0},{"$f":"K91+M91+O91+Q91+S91","v":0}]
["15",null,"De 15 a 30 días de hospitalización",null,null,null,null,0,0]
["16",null,"Más de 30 días de hospitalización",null,null,null,null,0,0]
["17",null,"Talento",null,null,null,null,0,0]
["18",null,"Superdotación",null,null,null,null,0,0]
["19",null,"Otros condiciones relacionadas",null,null,null,null,0,0]
["20",null,"Ninguna otra condición detectada",null,null,null,null,0,0]
[]
[]
[null,null,206,"MATRÍCULA TOTAL POR GRADO DE ESTUDIO Y SEXO, SEGÚN NÚMERO DE HORAS SEMANALES DEDICADAS A EDUCACIÓN PARA EL TRABAJO"]
[]
[null,null,"HORAS DEDICADAS A EDUCACIÓN\nPARA EL TRABAJO",null,null,"TOTAL",null,"GRADO DE ESTUDIO"]
[null,null,null,null,null,null,null,"1º",null,"2º",null,"3º",null,"4º",null,"5º"]
[null,null,null,null,null,"H","M","H","M","H","M","H","M","H","M","H","M"]
["00",null,"TOTAL",null,null,{"$f":"SUM(F106:F109)","v":0},{"$f":"SUM(G106:G109)","v":0},{"$f":"SUM(H106:H109)","v":0},0,0,0,0,0,0,0,0,0]
["01",null,"Dos horas semanales",null,null,{"$f":"H106+J106+L106+N106+P106","v":0},{"$f":"I106+K106+M106+O106+Q106","v":0}]
["02",null,"Tres horas semanales",null,null,0,0]
["03",null,"Cuatro a siete horas semanales",null,null,0,0]
["04",null,"Ocho horas semanales o más",null,null,{"$f":"H109+J109+L109+N109+P109","v":0},{"$f":"I109+K109+M109+O109+Q109","v":0}]
[null,null,"Nota.-","Los totales de esta tabla deben ser iguales o menores a los de la tabla 201."]
[]
[]
[null,null,207,"MATRÍCULA CON OCHO HORAS SEMANALES O MÁS DEDICADAS A EDUCACIÓN PARA EL TRABAJO POR GRADO DE ESTUDIO Y SEXO,  SEGÚN ESPECIALIDADES EN LOS TALLERES DE EDUCACIÓN PARA EL TRABAJO."]
[]
[null,null,"¿REPORTÓ AL MENOS UN ESTUDIANTE CON OCHO HORAS SEMANALES O MÁS DEDICADAS A EDUCACIÓN PARA EL TRABAJO EN LA TABLA 206. ?"]
[]
[{"$f":"IF(SUM(F109:G109)>0,\"X\",\"\")","v":""},null,null,null,null,"Sí",null,null,null,"No",null,null,null,"Pase a la tabla 300"]
[]
[null,null,"ESCRIBA EL CÓDIGO Y DESCRIPCIÓN DE LAS ESPECIALIDADES EN LOS TALLERES DE EDUCACIÓN PARA EL TRABAJO",null,null,null,null,null,null,"TOTAL",null,"GRADO DE ESTUDIO"]
[null,null,null,null,null,null,null,null,null,null,null,"1º",null,"2º",null,"3º",null,"4º",null,"5º"]
[null,null,"Código",{"$f":"IF(F109+G109>0,1,0)","v":0},null,"Descripción",null,null,null,"H","M","H","M","H","M","H","M","H","M","H","M"]
[null,null,"000","TOTAL",null,null,null,null,null,{"$f":"SUM(J123:J142)","v":0},0,0,0,0,0,0,0,0,0,0,0]
[{"$f":"COUNTIF($D$123:$D$142,D123)","v":0},null,{"$f":"LEFT(D123,3)","v":""},null,null,null,null,null,null,{"$f":"L123+N123+P123+R123+T123","v":0},{"$f":"M123+O123+Q123+S123+U123","v":0}]
[{"$f":"COUNTIF($D$123:$D$142,D124)","v":0},null,{"$f":"LEFT(D124,3)","v":""},null,null,null,null,null,null,0,0]
[0,null,{"$f":"LEFT(D125,3)","v":""},null,null,null,null,null,null,0,0]
[0,null,"",null,null,null,null,null,null,0,0]
[0,null,"",null,null,null,null,null,null,0,0]
[0,null,"",null,null,null,null,null,null,0,0]
[0,null,"",null,null,null,null,null,null,0,0]
[0,null,"",null,null,null,null,null,null,0,0]
[0,null,"",null,null,null,null,null,null,0,0]
[0,null,"",null,null,null,null,null,null,0,0]
[0,null,"",null,null,null,null,null,null,0,0]
[0,null,"",null,null,null,null,null,null,0,0]
[0,null,"",null,null,null,null,null,null,0,0]
[0,null,"",null,null,null,null,null,null,0,0]
[0,null,"",null,null,null,null,null,null,0,0]
[0,null,"",null,null,null,null,null,null,0,0]
[0,null,"",null,null,null,null,null,null,0,0]
[0,null,"",null,null,null,null,null,null,0,0]
[0,null,"",null,null,null,null,null,null,{"$f":"L141+N141+P141+R141+T141","v":0},{"$f":"M141+O141+Q141+S141+U141","v":0}]
[0,null,"",null,null,null,null,null,null,{"$f":"L142+N142+P142+R142+T142","v":0},{"$f":"M142+O142+Q142+S142+U142","v":0}]
[null,null,"* Nota :","Los totales de esta tabla deben ser iguales a los subtotales del item \"Ocho horas semanales o más de Educación para el Trabajo\" reportado en la Tabla 206."]

{"sheet":"C300","index":4,"n_rows":520,"n_cols":120,"rows_kept":520,"cut":false,"hidden":false,"merged":[[15,15,15,16],[1,14,1,23],[2,14,2,23],[16,32,18,32],[16,36,18,36],[16,28,18,28],[16,34,18,34],[16,35,18,35],[16,20,18,20],[16,22,18,22],[16,21,17,21],[16,23,18,23],[16,24,18,24],[16,25,18,25],[16,26,18,26],[16,27,18,27],[16,11,18,11],[16,15,16,16],[16,17,18,17],[16,18,18,18],[16,19,18,19],[16,12,18,12],[16,13,18,13],[16,14,18,14],[15,100,15,103],[15,104,15,106],[16,30,18,30],[16,31,18,31],[16,33,18,33],[16,100,16,103],[16,104,16,106],[16,39,18,39],[16,40,17,44],[16,45,17,49],[16,50,17,54],[16,119,18,119],[17,100,18,100],[17,105,17,106],[16,108,17,108],[16,113,17,113],[16,115,18,115],[16,116,17,116],[16,114,17,114],[16,109,18,109],[17,101,18,101],[17,102,18,102],[17,103,18,103],[16,110,18,110],[16,112,17,112],[16,117,17,117],[16,118,18,118],[16,111,17,111],[16,75,17,79],[16,80,17,84],[16,85,17,89],[16,90,17,94],[16,95,17,99],[16,107,17,107],[16,29,18,29],[17,104,18,104],[16,37,18,37],[16,38,18,38],[16,55,17,59],[16,60,17,64],[16,65,17,69],[16,70,17,74]]}
[]
[null,null,null,null,null,null,null,null,null,null,null,null,null,null,"CENSO EDUCATIVO 2024"]
[null,null,null,null,null,null,null,null,null,null,null,null,null,null,"MATRÍCULA, DOCENTES Y MATERIALES EDUCATIVOS"]
[]
["PERSONAL",{"$f":"P10+V10+Y10","v":0}]
[]
["DOCENTES",{"$f":"COUNTIF(R20:R319,\"01: Docente\")","v":0},null,null,null,null,null,null,null,null,null,"300. PERSONAL DOCENTE, AUXILIARES DE EDUCACIÓN Y ADMINISTRATIVOS (Para II.EE. Públicas y Privadas)"]
["AUXILIARES",{"$f":"COUNTIF(R20:R319,\"03: Aux. de Educación\")","v":0},null,null,null,null,null,null,null,null,null,"Anote los totales de personal que labora en su institución educativa."]
["ADMINISTRATIVOS",{"$f":"COUNTIF(R20:R319,\"02: Administrativo\")","v":0}]
["DOCENTE DE AULA",{"$f":"COUNTIF(AK20:AK319,\"05: (111)-Docente por horas\")","v":0},null,null,null,null,null,null,null,null,null,null,null,"Total Docentes : ",null,null,null,"Docentes por horas :",null,null,"Auxiliares de Educación : ",null,null,"Administrativos : "]
["DOCENTES CON SECCIÓN",{"$f":"COUNTIF(AN20:AN319,\"SI\")","v":0}]
[null,{"$f":"B7+B8+B9","v":0},null,null,null,null,null,null,null,null,null,"A continuación, REGISTRE a todo el personal docente, auxiliares de educación y personal administrativo que se encuentre laborando en el servicio/nivel educativo durante el periodo de reporte del censo educativo."]
["DOCENTES DE INGLES",{"$f":"COUNTIF(AY20:BC319,\"X\")","v":0},null,null,null,null,null,null,null,null,null,"(EXCLUYA al personal que se encuentre haciendo uso de licencia y a los que han sido destacados a otra IE/DRE/UGEL)"]
["DOCENTES DE ARTE Y CULTURA",{"$f":"COUNTIF(BD20:BH319,\"X\")","v":0},null,null,null,null,null,null,null,10]
["LENGUA ORIGINARIA",{"$f":"SUM(J20:J319)","v":0},null,null,null,null,null,null,null,null,null,null,null,null,null,null,null,null,null,null,null,null,null,null,"G. Pública",null,null,null,null,null,null,"G. Pública",null,null,"G. Pública",null,null,null,null,null,null,null,null,null,null,null,null,null,null,null,null,null,null,null,null,null,null,null,null,null,null,null,null,null,null,null,null,null,null,null,null,null,null,null,null,null,null,null,null,null,null,null,null,null,null,null,null,null,null,null,null,null,null,null,null,null,null,null,null,"G. Pública",null,null,null,null,null,null,null,null,null,null,null,"G. Pública"]
["GESTIÓN",{"$f":"IF(OR(UPPER('C100'!J29)=\"X\",UPPER('C100'!O29)=\"X\"),1,IF(UPPER('C100'!T29)=\"X\",3,\"\"))","v":""},null,null,null,null,null,null,null,null,null,null,301.10000000000002,301.2,301.3,302,null,303,304,305,306,307,308,309,310,311,312,313,314,315,316,317,318,319,320,321,322,323,324,325,"326. Grados Atendidos por cada área curricular a cargo (Marque con una “X”, según corresponda)",null,null,null,null,null,null,null,null,null,null,null,null,null,null,null,null,null,null,null,null,null,null,null,null,null,null,null,null,null,null,null,null,null,null,null,null,null,null,null,null,null,null,null,null,null,null,null,null,null,null,null,null,null,null,null,null,null,null,null,327,null,null,null,328,null,null,329,330,331,332,333,334,335,336.1,336.2,336.3,337.1,337.2,337.3]
[null,null,null,null,null,null,null,null,null,null,null,"Nº","Apellido Paterno","Apellido Materno","Nombres","Documento de Identidad",null,"Tipo de\nPersonal","Edad","Sexo","Lengua\nmaterna","¿Domina una\nlengua\noriginaria?","Lengua originaria\nque domina","Fuente de\nfinanciamiento","Condición Laboral","Modalidad de Contrato","Máximo nivel\neducativo alcanzado","Especialidad Pedagógica\nque ha estudiado","¿En qué tipo de\ninstitución obtuvo\nsu formación pedagógica?","Segunda especialidad","Estudios de Postgrado\nen Pedagogía","Tiempo de Servicio\n(en años)","Años de Experiencia Laboral","Años de\nexperiencia\nlaboral en\neste servicio/nivel\neducativo","Escala\nMagisterial","Función o cargo","Situación en cargo\ndirectivo","Licencia \no\nDestaque","Jornada Laboral según\nNombramiento\no Contrato","¿Tiene secciones a cargo?","Matemática",null,null,null,null,"Comunicación",null,null,null,null,"Ingles como lengua extranjera",null,null,null,null,"Arte y cultura",null,null,null,null,"Ciencias Sociales",null,null,null,null,"Desarrollo personal, ciudadania y cívica",null,null,null,null,"Educación Física",null,null,null,null,"Ciencia y\nTecnología",null,null,null,null,"Castellano como\nsegunda lengua",null,null,null,null,"Educación para el trabajo",null,null,null,null,"Educación religiosa",null,null,null,null,"Tutoría y Orientación Educativa",null,null,null,null,"Conocimiento de Ingles",null,null,null,"Certificación de Inglés",null,null,"¿El docente enseña inglés?","¿Es docente de educación artística?","Indique cual es su Especialidad artística","Solo si respondió “No” en la pregunta 330. ¿Indique docente de que área es? (Según la pregunta 326)","Desde el año 2023 a la fecha, ¿ha recibido capacitación en la implementación del Currículo Nacional?","¿Cuenta con constancia de participación en el curso virtual autoformativo vinculado al Currículo Nacional de la Educación Básica-Perú Educa?","¿ Atiende a estudiantes con NEE asociadas a discapacidad ?","¿Presenta alguna discapacidad?","Solo si respondió Sí en la pregunta\n336.1 ¿Cúal es el tipo de discapacidad?","¿Ha recibido asistencia y orientación para la atención educativa de estudiantes con discapacidad del equipo SAEV?","¿Recibió asesoría pedagógica en el marco de refuerzo escolar?","Solo si respondió Sí en la pregunta 337.1 ¿cuántas veces desde el inicio del año lectivo, recibió asesoría pedagógica en el marco de refuerzo escolar?","Solo si respondió Sí en la pregunta 337.1 Sobre qué temas ha recibido asistencia técnica"]
[null,null,"Exp1","Exp2","Exp3","Exp4","Exp5","Exp6","Exp7","Exp8",null,null,null,null,null,302.10000000000002,302.2,null,null,null,null,null,null,null,null,null,null,null,null,null,null,null,null,null,null,null,null,null,null,null,null,null,null,null,null,null,null,null,null,null,null,null,null,null,null,null,null,null,null,null,null,null,null,null,null,null,null,null,null,null,null,null,null,null,null,null,null,null,null,null,null,null,null,null,null,null,null,null,null,null,null,null,null,null,null,null,null,null,null,null,"No Sabe","Habla","Lee","Escribe","No Tiene","Si Tiene"]
["302.1 Tipo de documento de Identidad","314. Tipo de inst. donde estudio","Corr","Escala","Gest","Secc","Fun cion","Duplex","Fmt","Leng",null,null,null,null,null,"Tipo","Número",null,null,null,null,"SI / NO",null,null,null,null,null,null,null,null,null,null,null,null,null,null,null,null,null,null,"1º","2º","3º","4º","5º","1º","2º","3º","4º","5º","1º","2º","3º","4º","5º","1º","2º","3º","4º","5º","1º","2º","3º","4º","5º","1º","2º","3º","4º","5º","1º","2º","3º","4º","5º","1º","2º","3º","4º","5º","1º","2º","3º","4º","5º","1º","2º","3º","4º","5º","1º","2º","3º","4º","5º","1º","2º","3º","4º","5º",null,null,null,null,null,"Nacional","Interna cional","SI / NO","SI / NO",null,null,"SI / NO","SI / NO","SI / NO","SI / NO",null,"SI / NO","SI / NO"]
["01: DNI.","01: IESP (Público)",1,{"$f":"IF(AND(LEFT(R20,2)=\"01\",LEFT(Y20,2)=\"01\",LEFT(X20,2)=\"01\",E20=1),1,0)","v":0},{"$f":"$B$16","v":""},{"$f":"COUNTIF(AO20:CV20,\"X\")","v":0},{"$f":"IF(R20<>\"\",VALUE(LEFT(R20,2)),0)","v":0},{"$f":"IF(Q20<>\"\",COUNTIF($Q$20:$Q$319,Q20),0)","v":0},{"$f":"IF(L20<>\"\",1,0)","v":0},{"$f":"IF(AND(R20=\"01: Docente\",V20=\"SI\"),1,0)","v":0},null,{"$f":"IF($C20<=$B$5,C20,\"\")","v":""}]
["02: Carnet Ext.","02: IESP (Privado)",2,0,{"$f":"$B$16","v":""},{"$f":"COUNTIF(AO21:CV21,\"X\")","v":0},{"$f":"IF(R21<>\"\",VALUE(LEFT(R21,2)),0)","v":0},{"$f":"IF(Q21<>\"\",COUNTIF($Q$20:$Q$319,Q21),0)","v":0},0,{"$f":"IF(AND(R21=\"01: Docente\",V21=\"SI\"),1,0)","v":0},null,{"$f":"IF($C21<=$B$5,C21,\"\")","v":""}]
["03: Pasaporte","03: Universidad Privada",3,0,"",0,0,0,0,0,null,""]
[null,"04: Universidad Pública",4,0,"",0,0,0,0,0,null,""]
["303. Tipo de Personal",null,5,0,"",0,0,0,0,0,null,""]
["01: Docente","315. Segunda Especialidad",6,0,"",0,0,0,0,0,null,""]
["02: Administrativo","Utilice las especialidades de la tabla de códigos 313.",7,0,"",0,0,0,0,0,null,""]
["03: Aux. de Educación",null,8,0,"",0,0,0,0,0,null,""]
[null,"316. Estudios de Postgrado en Pedagogía",9,0,"",0,0,0,0,0,null,""]
["305. Sexo","Estudios de Maestría y doctorado",10,0,"",0,0,0,0,0,null,""]
["Hombre","01: Maestria concluida con grado",11,0,"",0,0,0,0,0,null,""]
["Mujer","02: Maestria concluida sin grado",12,0,"",0,0,0,0,0,null,""]
[null,"03: Maestria en proceso",13,0,"",0,0,0,0,0,null,""]
["306. Lengua Materna","04: Doctorado concluido con grado",14,0,"",0,0,0,0,0,null,""]
["0100: Castellano","05: Doctorado concluido sin grado",15,0,"",0,0,0,0,0,null,""]
["0200: Achuar","06: Doctorado en proceso",16,0,"",0,0,0,0,0,null,""]
["0300: Aimara","07: Sin Postgrado",17,0,"",0,0,0,0,0,null,""]
["0400: Amahuaca",null,18,0,"",0,0,0,0,0,null,""]
["0500: Arabela",null,19,0,"",0,0,0,0,0,null,""]
["0600: Asháninka","317. Tiempo de Servicio",20,0,"",0,0,0,0,0,null,""]
["0610: Asheninka","Solo personal Nombrado.",21,0,"",0,0,0,0,0,null,""]
["0700: Awajún","Tiempo contado expresado en años desde su fecha de Nombramiento",22,0,"",0,0,0,0,0,null,""]
["0800: Bora",null,23,0,"",0,0,0,0,0,null,""]
["0900: Kapanawa","318. Años de Experiencia Laboral",24,0,"",0,0,0,0,0,null,""]
["1000: Cashinahua","Registre el total de años que tiene como experiencia",25,0,"",0,0,0,0,0,null,""]
["1100: Kawki","en el Tipo de Personal que se está registrando (Tabla 301.)",26,0,"",0,0,0,0,0,null,""]
["1200: Chamikuro",null,27,0,"",0,0,0,0,0,null,""]
["1300: Ese eja","319. Años de experiencia laboral en este servicio/ nivel educativo",28,0,"",0,0,0,0,0,null,""]
["1400: Harakbut","Anote el N° de años de experiencia prestando servicios",29,0,"",0,0,0,0,0,null,""]
["1500: Iñapari","en este servicio/nivel educativo por el tipo de personal",30,0,"",0,0,0,0,0,null,""]
["1600: Ikuitu","que se está registrando (Tabla 301.)",31,0,"",0,0,0,0,0,null,""]
["1700: Iskonawa",null,32,0,"",0,0,0,0,0,null,""]
["1800: Jaqaru","320. Escala Magisterial",33,0,"",0,0,0,0,0,null,""]
["1900: Kakataibo","Complete los datos de Escala Magisterial, según corresponda",34,0,"",0,0,0,0,0,null,""]
["2000: Kakinte (caquinte)","01: Primera",35,0,"",0,0,0,0,0,null,""]
["2110: Kandozi (Chapra)","02: Segunda",36,0,"",0,0,0,0,0,null,""]
["2120: Kandozi (Kandozi)","03: Tercera",37,0,"",0,0,0,0,0,null,""]
["2200: Kukama-kukamiria","04: Cuarta",38,0,"",0,0,0,0,0,null,""]
["2300: Madija (culina)","05: Quinta",39,0,"",0,0,0,0,0,null,""]
["2400: Maijiki","06: Sexta",40,0,"",0,0,0,0,0,null,""]
["2500: Matsés","07: Séptima",41,0,"",0,0,0,0,0,null,""]
["2600: Matsigenka","08: Octava",42,0,"",0,0,0,0,0,null,""]
["2700: Munichi","09: Sin Escala",43,0,"",0,0,0,0,0,null,""]
["2800: Murui-muinani",null,44,0,"",0,0,0,0,0,null,""]
["2900: Matsigenka-montetokunirira","321. Función o Cargo",45,0,"",0,0,0,0,0,null,""]
["3000: Nomatsigenga","(Desempeñado a la fecha de reporte)",46,0,"",0,0,0,0,0,null,""]
["3100: Ocaina","Docentes",47,0,"",0,0,0,0,0,null,""]
["3200: Omagua","01: (101)-Director General",48,0,"",0,0,0,0,0,null,""]
["3310: Quechua amazónico (Kichwa)","02: (102)-Director",49,0,"",0,0,0,0,0,null,""]
["3321: Quechua central (Ancash)","03: (103)-Sub Director",50,0,"",0,0,0,0,0,null,""]
["3322: Quechua central (Huánuco)","04: (106)-Coordinador, Asesor",51,0,"",0,0,0,0,0,null,""]
["3323: Quechua central (Wanka)","05: (111)-Docente por horas",52,0,"",0,0,0,0,0,null,""]
["3324: Quechua central (Pasco)","06: (117)-Docente de Educación Física",53,0,"",0,0,0,0,0,null,""]
["3331: Quechua norteño (Cajamarca)","07: (118)-Docente de Computación",54,0,"",0,0,0,0,0,null,""]
["3332: Quechua norteño (Inkawasi Kañaris)","08: (119)-Docente de Aula de Innovación Pedagógica",55,0,"",0,0,0,0,0,null,""]
["3341: Quechua sureño (Chanka)","09: (139)-Otro Docente",56,0,"",0,0,0,0,0,null,""]
["3342: Quechua sureño (Collao)","10: (104)-Director Académico",57,0,"",0,0,0,0,0,null,""]
["3400: Resígaro","11: (105)-Director de Bienestar y Desarrollo",58,0,"",0,0,0,0,0,null,""]
["3500: Secoya","12: (107)-Coordinador Psicopedagógico",59,0,"",0,0,0,0,0,null,""]
["3600: Sharanahua","13: (133)-Asistente de Dirección General",60,0,"",0,0,0,0,0,null,""]
["3700: Shawi","14: (134)-Asistente de Dirección Académica",61,0,"",0,0,0,0,0,null,""]
["3800: Shipibo-Konibo","15: (135)-Asistente de Dirección de Bienestar Estudiantil",62,0,"",0,0,0,0,0,null,""]
["3900: Shiwilu","16: (120)-Docente COAR*",63,0,"",0,0,0,0,0,null,""]
["4000: Taushiro","17: (138)-Docente Tutor",64,0,"",0,0,0,0,0,null,""]
["4100: Ticuna","18: (121)-Docente Acompañante Especializado",65,{"$f":"IF(AND(LEFT(R84,2)=\"01\",LEFT(Y84,2)=\"01\",LEFT(X84,2)=\"01\",E84=1),1,0)","v":0},"",0,0,0,{"$f":"IF(L84<>\"\",1,0)","v":0},0,null,""]
["4200: Urarina","19: (122)-Docente Coordinador de Monografía",66,0,{"$f":"$B$16","v":""},{"$f":"COUNTIF(AO85:CV85,\"X\")","v":0},{"$f":"IF(R85<>\"\",VALUE(LEFT(R85,2)),0)","v":0},{"$f":"IF(Q85<>\"\",COUNTIF($Q$20:$Q$319,Q85),0)","v":0},0,{"$f":"IF(AND(R85=\"01: Docente\",V85=\"SI\"),1,0)","v":0},null,{"$f":"IF($C85<=$B$5,C85,\"\")","v":""}]
["4300: Wampis","20: (140)-Docente monitor",67,0,"",0,0,0,0,0,null,""]
["4400: Yagua","Administrativos",68,0,"",0,0,0,0,0,null,""]
["4500: Yaminahua","21: (501)-Psicólogo",69,0,"",0,0,0,0,0,null,""]
["4600: Yanesha","22: (502)-Trabajo Social / Servicio Social",70,0,"",0,0,0,0,0,null,""]
["4700: Yine","23: (503)-Personal de Salud",71,0,"",0,0,0,0,0,null,""]
["4800: Nahua","24: (504)-Administrador / Contador",72,0,"",0,0,0,0,0,null,""]
["5100: Alemán","25: (506)-Auxiliar de Biblioteca",73,0,"",0,0,0,0,0,null,""]
["5200: Inglés","26: (507)-Auxiliar de Laboratorio",74,0,"",0,0,0,0,0,null,""]
["5300: Italiano","27: (508)-Secretaria u Oficinista",75,0,"",0,0,0,0,0,null,""]
["5400: Japonés","28: (511)-Asistente Administrativo",76,0,"",0,0,0,0,0,null,""]
["5500: Portugués","29: (537)-Guía intérprete de sordoceguera",77,0,"",0,0,0,0,0,null,""]
["5600: Ruso","30: (538)-Intérprete de Lengua de Señas Peruana",78,0,"",0,0,0,0,0,null,""]
["5700: Francés","31: (539)-Modelo Lingüistico",79,0,"",0,0,0,0,0,null,""]
["5800: Otra lengua extranjera","32: (512)-Personal de Servicio - Mantenimiento",80,0,"",0,0,0,0,0,null,""]
[null,"33: (513)-Personal de Servicio - Cocina",81,0,"",0,0,0,0,0,null,""]
["308. Lengua Originaria","34: (514)-Personal de Servicio - Limpieza",82,0,"",0,0,0,0,0,null,""]
["De: 0200 a 4800","35: (515)-Personal de Servicio - Portero",83,0,"",0,0,0,0,0,null,""]
[null,"36: (516)-Personal de Servicio - Vigilante",84,0,"",0,0,0,0,0,null,""]
["309. Fuente de Financiamiento","37: (517)-Otro personal de servicio",85,0,"",0,0,0,0,0,null,""]
["01: Sector Educación","38: (524)-Coordinador de bienestar estudiantil",86,0,"",0,0,0,0,0,null,""]
["02: Otro sector público","39: (527)-Responsable de convivencia",87,0,"",0,0,0,0,0,null,""]
["03: Municipalidad","40: (522)-Bibliotecólogo",88,0,"",0,0,0,0,0,null,""]
["04: Gobierno Regional","41: (523)-Técnico en Biblioteca/ Archivista",89,0,"",0,0,0,0,0,null,""]
["05: APAFA","42: (521)-Monitores de salud",90,0,"",0,0,0,0,0,null,""]
["06: Otra fuente Privada","43: (519)-Auxiliar Académico",91,0,"",0,0,0,0,0,null,""]
[null,"44: (520)-Auxiliar de Convivencia",92,0,"",0,0,0,0,0,null,""]
["310. Condición Laboral","45: (528)-Soporte Técnico-Informático",93,0,"",0,0,0,0,0,null,""]
["01: Nombrado","46: (525)-Coordinador administrativo de residencia",94,0,"",0,0,0,0,0,null,""]
["02: Contratado","47: (526)-Coordinador de bienestar y residencia",95,0,"",0,0,0,0,0,null,""]
["03: No aplica","48: (529)-Gestores educativos",96,0,"",0,0,0,0,0,null,""]
[null,"49: (530)-Promotor de bienestar",97,0,"",0,0,0,0,0,null,""]
["311. Modalidad de Contrato","50: (531)-Coordinador de CRFA",98,0,"",0,0,0,0,0,null,""]
["Contrato Público","51: (505)-Otro personal profesional",99,0,"",0,0,0,0,0,null,""]
["01: A plazo fijo D. Leg. 728","52: (518)-Otro personal no profesional",100,0,"",0,0,0,0,0,null,""]
["02: Locación de Serv. / Honorarios",null,101,0,"",0,0,0,0,0,null,""]
["03: CAS - D. Leg. 1057","99: (999)-Auxiliar de Educación",102,0,"",0,0,0,0,0,null,""]
["04: Contrato D. Leg. 276",null,103,0,"",0,0,0,0,0,null,""]
["05: Contrato Ley 30328","322. Situación en el Cargo Directivo",104,0,"",0,0,0,0,0,null,""]
["06: Otra modalidad","01: Titular ratificado eval.2014",105,0,"",0,0,0,0,0,null,""]
["Contrato Privado","02: Titular designado eval. 2015, 2016 y 2018",106,0,"",0,0,0,0,0,null,""]
["07: A plazo indefinido (Permanente)","03: Titular otro",107,0,"",0,0,0,0,0,null,""]
["08: Plazo fijo (Tiempo determinado)","04: Encargado por función, sin doc. formal",108,0,"",0,0,0,0,0,null,""]
["09: A tiempo parcial (por horas)","05: Encargado",109,0,"",0,0,0,0,0,null,""]
["10: Locación de Serv. / Honorarios",null,110,0,"",0,0,0,0,0,null,""]
["11: Otra modalidad","323. Destaque o Licencia",111,0,"",0,0,0,0,0,null,""]
[null,"01: Cubriendo una licencia",112,0,"",0,0,0,0,0,null,""]
["312. Máximo Nivel Educativo Alcanzado","02: De otra I.E./DRE/UGEL",113,0,"",0,0,0,0,0,null,""]
["01: EP.Concluidos con título","03: No Aplica",114,0,"",0,0,0,0,0,null,""]
["02: EP.Concluidos sin título",null,115,0,"",0,0,0,0,0,null,""]
["03: EP.No concluidos",null,116,0,"",0,0,0,0,0,null,""]
["04: NP.Concluidos con título",null,117,0,"",0,0,0,0,0,null,""]
["05: NP.Concluidos sin título","324. Jornada Laboral (Nombramiento / Contrato)",118,0,"",0,0,0,0,0,null,""]
["06: NP.No concluidos","40: 40 horas",119,0,"",0,0,0,0,0,null,""]
["07: Secundaria","30: 30 horas",120,0,"",0,0,0,0,0,null,""]
["08: Primaria","25: 25 horas",121,0,"",0,0,0,0,0,null,""]
[null,"24: 24 horas",122,0,"",0,0,0,0,0,null,""]
["313. Especialidad del Título","23: Menos 24 horas",123,0,"",0,0,0,0,0,null,""]
["01: Educación Inicial",null,124,0,"",0,0,0,0,0,null,""]
["02: Educación Primaria","SI / NO",125,0,"",0,0,0,0,0,null,""]
["03: E.I. Intercultural Bilingüe","SI",126,0,"",0,0,0,0,0,null,""]
["04: E.P. Intercultural Bilingüe","NO",127,0,"",0,0,0,0,0,null,""]
["05: Educación Básica Alternativa",null,128,0,"",0,0,0,0,0,null,""]
["06: Educación Especial","331. Especialidad Artistica",129,{"$f":"IF(AND(LEFT(R148,2)=\"01\",LEFT(Y148,2)=\"01\",LEFT(X148,2)=\"01\",E148=1),1,0)","v":0},"",0,0,0,{"$f":"IF(L148<>\"\",1,0)","v":0},0,null,""]
["07: Educación Física","01: Danza",130,0,{"$f":"$B$16","v":""},{"$f":"COUNTIF(AO149:CV149,\"X\")","v":0},{"$f":"IF(R149<>\"\",VALUE(LEFT(R149,2)),0)","v":0},{"$f":"IF(Q149<>\"\",COUNTIF($Q$20:$Q$319,Q149),0)","v":0},0,{"$f":"IF(AND(R149=\"01: Docente\",V149=\"SI\"),1,0)","v":0},null,{"$f":"IF($C149<=$B$5,C149,\"\")","v":""}]
["08: Educación Artística","02: Música",131,0,"",0,0,0,0,0,null,""]
["09: E.S. Lengua y Literatura","03: Teatro",132,0,"",0,0,0,0,0,null,""]
["10: E.S. Comunicación","04: Artes visuales",133,0,"",0,0,0,0,0,null,""]
["11: E.S. Matemática y Física","05: Otra",134,0,"",0,0,0,0,0,null,""]
["12: E.S. Matemática","336.2 ¿Cuál es el tipo de discapacidad?",135,0,"",0,0,0,0,0,null,""]
["13: E.S. CCSS y Filosofía","01: Auditiva",136,0,"",0,0,0,0,0,null,""]
["14: E.S. Ciencias Sociales","02: Visual",137,0,"",0,0,0,0,0,null,""]
["15: E.S. Ciencias Naturales","03: Física o Motora",138,0,"",0,0,0,0,0,null,""]
["16: E.S. Ciencia Tecnología y Ambiente","04: Otras",139,0,"",0,0,0,0,0,null,""]
["17: E.S. Alimentación y Nutrición",null,140,0,"",0,0,0,0,0,null,""]
["18: E.S. Biología y Química","337.3 Asistencia Técnica",141,0,"",0,0,0,0,0,null,""]
["19: E.S. Historia y Geografía","01: Uso pedagógico de los cuadernos",142,0,"",0,0,0,0,0,null,""]
["20: E.S. CC.HH. Sociales","02: TICs",143,0,"",0,0,0,0,0,null,""]
["21: E.S. Idioma Inglés","03: Inclusión Financiera",144,0,"",0,0,0,0,0,null,""]
["22: Educación Religiosa","04: Prevención de la violencia",145,0,"",0,0,0,0,0,null,""]
["23: E.S. Educación Familiar","05: Otro",146,0,"",0,0,0,0,0,null,""]
["24: E.T. Artes Industriales","06: No recibió asistencia técnica",147,0,"",0,0,0,0,0,null,""]
["25: E.T. Artesanía",null,148,0,"",0,0,0,0,0,null,""]
["26: E.T. Agropecuaria","339.3 ¿Cuál fue el tipo de estudios en EIB?",149,0,"",0,0,0,0,0,null,""]
["27: E.T. Construcción en madera","01: Doctorado",150,0,"",0,0,0,0,0,null,""]
["28: E.T. Computación e Informática","02: Maestría",151,0,"",0,0,0,0,0,null,""]
["29: E.T. Carpintería/Ebanistería","03: Segunda especialidad",152,0,"",0,0,0,0,0,null,""]
["30: E.T. Electricidad","04: Especialización",153,0,"",0,0,0,0,0,null,""]
["31: E.T. Electrónica","05: Actualización",154,0,"",0,0,0,0,0,null,""]
["32: E.T. Ebanistería","06: Otro",155,0,"",0,0,0,0,0,null,""]
["33: E.T. Industria del Vestido",null,156,0,"",0,0,0,0,0,null,""]
["34: E.T. Industria del Vestido Alimentación y Alta Costura","Parroquiales",157,0,"",0,0,0,0,0,null,""]
["35: E.T. en Industria del Vestido y Alta Costura","05: APAFA",158,0,"",0,0,0,0,0,null,""]
["36: E.T.Técnica Esp. Ind. del Vestido Ind.Alimentaria y Artes","06: Otra fuente Privada",159,0,"",0,0,0,0,0,null,""]
["37: E.T. Industria Alimentaria","01: Sector Educación",160,0,"",0,0,0,0,0,null,""]
["38: E.T. Mecánica Automotriz",null,161,0,"",0,0,0,0,0,null,""]
["39: E.T. Mecánica de Producción",null,162,0,"",0,0,0,0,0,null,""]
["40: E.T. Mecánica de Producción y Soldadura",null,163,0,"",0,0,0,0,0,null,""]
["41: E.T. Textilería",null,164,0,"",0,0,0,0,0,null,""]
["42: Otra pedagógica",null,165,0,"",0,0,0,0,0,null,""]
[null,null,166,0,"",0,0,0,0,0,null,""]
[null,null,167,0,"",0,0,0,0,0,null,""]
["Area curriculares",null,168,0,"",0,0,0,0,0,null,""]
["01: Matemática",null,169,0,"",0,0,0,0,0,null,""]
["02: Comunicación",null,170,0,"",0,0,0,0,0,null,""]
["03: Ingles",null,171,0,"",0,0,0,0,0,null,""]
["04: Ciencias Sociales",null,172,0,"",0,0,0,0,0,null,""]
["05: Desarrollo personal ciudadania …",null,173,0,"",0,0,0,0,0,null,""]
["06: Educación Física",null,174,0,"",0,0,0,0,0,null,""]
["07: Ciencia y Tecnología",null,175,0,"",0,0,0,0,0,null,""]
["08: Castellano como segunda lengua",null,176,0,"",0,0,0,0,0,null,""]
["09: Educación para el trabajo",null,177,0,"",0,0,0,0,0,null,""]
["10: Educación religiosa",null,178,0,"",0,0,0,0,0,null,""]
["11: Tutoría y Orientación Educativa",null,179,0,"",0,0,0,0,0,null,""]
["12: Arte y cultura",null,180,0,"",0,0,0,0,0,null,""]
[null,null,181,0,"",0,0,0,0,0,null,""]
[null,null,182,0,"",0,0,0,0,0,null,""]
[null,null,183,0,"",0,0,0,0,0,null,""]
[null,null,184,0,"",0,0,0,0,0,null,""]
[null,null,185,0,"",0,0,0,0,0,null,""]
[null,null,186,0,"",0,0,0,0,0,null,""]
[null,null,187,0,"",0,0,0,0,0,null,""]
[null,null,188,0,"",0,0,0,0,0,null,""]
[null,null,189,0,"",0,0,0,0,0,null,""]
[null,null,190,0,"",0,0,0,0,0,null,""]
[null,null,191,0,"",0,0,0,0,0,null,""]
[null,null,192,0,"",0,0,0,0,0,null,""]
[null,null,193,{"$f":"IF(AND(LEFT(R212,2)=\"01\",LEFT(Y212,2)=\"01\",LEFT(X212,2)=\"01\",E212=1),1,0)","v":0},"",0,0,0,{"$f":"IF(L212<>\"\",1,0)","v":0},0,null,""]
[null,null,194,0,{"$f":"$B$16","v":""},{"$f":"COUNTIF(AO213:CV213,\"X\")","v":0},{"$f":"IF(R213<>\"\",VALUE(LEFT(R213,2)),0)","v":0},{"$f":"IF(Q213<>\"\",COUNTIF($Q$20:$Q$319,Q213),0)","v":0},0,{"$f":"IF(AND(R213=\"01: Docente\",V213=\"SI\"),1,0)","v":0},null,{"$f":"IF($C213<=$B$5,C213,\"\")","v":""}]
[null,null,195,0,"",0,0,0,0,0,null,""]
[null,null,196,0,"",0,0,0,0,0,null,""]
[null,null,197,0,"",0,0,0,0,0,null,""]
[null,null,198,0,"",0,0,0,0,0,null,""]
[null,null,199,0,"",0,0,0,0,0,null,""]
[null,null,200,0,"",0,{"$f":"IF(R219<>\"\",VALUE(LEFT(R219,2)),0)","v":0},0,{"$f":"IF(L219<>\"\",1,0)","v":0},0,null,""]
[null,null,201,0,"",0,{"$f":"IF(R220<>\"\",VALUE(LEFT(R220,2)),0)","v":0},0,{"$f":"IF(L220<>\"\",1,0)","v":0},0,null,""]
[null,null,202,0,"",0,0,0,0,0,null,""]
[null,null,203,0,"",0,0,0,0,0,null,""]
[null,null,204,0,"",0,0,0,0,0,null,""]
[null,null,205,0,"",0,0,0,0,0,null,""]
[null,null,206,0,"",0,0,0,0,0,null,""]
[null,null,207,0,"",0,0,0,0,0,null,""]
[null,null,208,0,"",0,0,0,0,0,null,""]
[null,null,209,0,"",0,0,0,0,0,null,""]
[null,null,210,0,"",0,0,0,0,0,null,""]
[null,null,211,0,"",0,0,0,0,0,null,""]
[null,null,212,0,"",0,0,0,0,0,null,""]
[null,null,213,0,"",0,0,0,0,0,null,""]
[null,null,214,0,"",0,0,0,0,0,null,""]
[null,null,215,0,"",0,0,0,0,0,null,""]
[null,null,216,0,"",0,0,0,0,0,null,""]
[null,null,217,0,"",0,0,0,0,0,null,""]
[null,null,218,0,"",0,0,0,0,0,null,""]
[null,null,219,0,"",0,0,0,0,0,null,""]
[null,null,220,0,"",0,0,0,0,0,null,""]
[null,null,221,0,"",0,0,0,0,0,null,""]
[null,null,222,0,"",0,0,0,0,0,null,""]
[null,null,223,0,"",0,0,0,0,0,null,""]
[null,null,224,0,"",0,0,0,0,0,null,""]
[null,null,225,0,"",0,0,0,0,0,null,""]
[null,null,226,0,"",0,0,0,0,0,null,""]
[null,null,227,0,"",0,0,0,0,0,null,""]
[null,null,228,0,"",0,0,0,0,0,null,""]
[null,null,229,0,"",0,0,0,0,0,null,""]
[null,null,230,0,"",0,0,0,0,0,null,""]
[null,null,231,0,"",0,0,0,0,0,null,""]
[null,null,232,0,"",0,0,0,0,0,null,""]
[null,null,233,0,"",0,0,0,0,0,null,""]
[null,null,234,0,"",0,0,0,0,0,null,""]
[null,null,235,0,"",0,0,0,0,0,null,""]
[null,null,236,0,"",0,0,0,0,0,null,""]
[null,null,237,0,"",0,0,0,0,0,null,""]
[null,null,238,0,"",0,0,0,0,0,null,""]
[null,null,239,0,"",0,0,0,0,0,null,""]
[null,null,240,0,"",0,0,0,0,0,null,""]
[null,null,241,0,"",0,0,0,0,0,null,""]
[null,null,242,0,"",0,0,0,0,0,null,""]
[null,null,243,0,"",0,0,0,0,0,null,""]
[null,null,244,0,"",0,0,0,0,0,null,""]
[null,null,245,0,"",0,0,0,0,0,null,""]
[null,null,246,0,"",0,0,0,0,0,null,""]
[null,null,247,0,"",0,0,0,0,0,null,""]
[null,null,248,0,"",0,0,0,0,0,null,""]
[null,null,249,0,"",0,0,0,0,0,null,""]
[null,null,250,0,"",0,0,0,0,0,null,""]
[null,null,251,0,"",0,0,0,0,0,null,""]
[null,null,252,0,"",0,0,0,0,0,null,""]
[null,null,253,0,"",0,0,0,0,0,null,""]
[null,null,254,0,"",0,0,0,0,0,null,""]
[null,null,255,0,"",0,0,0,0,0,null,""]
[null,null,256,0,"",0,0,0,0,0,null,""]
[null,null,257,{"$f":"IF(AND(LEFT(R276,2)=\"01\",LEFT(Y276,2)=\"01\",LEFT(X276,2)=\"01\",E276=1),1,0)","v":0},"",0,0,0,0,0,null,""]
[null,null,258,0,{"$f":"$B$16","v":""},{"$f":"COUNTIF(AO277:CV277,\"X\")","v":0},0,{"$f":"IF(Q277<>\"\",COUNTIF($Q$20:$Q$319,Q277),0)","v":0},0,{"$f":"IF(AND(R277=\"01: Docente\",V277=\"SI\"),1,0)","v":0},null,{"$f":"IF($C277<=$B$5,C277,\"\")","v":""}]
[null,null,259,0,"",0,0,0,0,0,null,""]
[null,null,260,0,"",0,0,0,0,0,null,""]
[null,null,261,0,"",0,0,0,0,0,null,""]
[null,null,262,0,"",0,0,0,0,0,null,""]
[null,null,263,0,"",0,0,0,0,0,null,""]
[null,null,264,0,"",0,0,0,0,0,null,""]
[null,null,265,0,"",0,{"$f":"IF(R284<>\"\",VALUE(LEFT(R284,2)),0)","v":0},0,{"$f":"IF(L284<>\"\",1,0)","v":0},0,null,""]
[null,null,266,0,"",0,0,0,0,0,null,""]
[null,null,267,0,"",0,0,0,0,0,null,""]
[null,null,268,0,"",0,0,0,0,0,null,""]
[null,null,269,0,"",0,0,0,0,0,null,""]
[null,null,270,0,"",0,0,0,0,0,null,""]
[null,null,271,0,"",0,0,0,0,0,null,""]
[null,null,272,0,"",0,0,0,0,0,null,""]
[null,null,273,0,"",0,0,0,0,0,null,""]
[null,null,274,0,"",0,0,0,0,0,null,""]
[null,null,275,0,"",0,0,0,0,0,null,""]
[null,null,276,0,"",0,0,0,0,0,null,""]
[null,null,277,0,"",0,0,0,0,0,null,""]
[null,null,278,0,"",0,0,0,0,0,null,""]
[null,null,279,0,"",0,0,0,0,0,null,""]
[null,null,280,0,"",0,0,0,0,0,null,""]
[null,null,281,0,"",0,0,0,0,0,null,""]
[null,null,282,0,"",0,0,0,0,0,null,""]
[null,null,283,0,"",0,0,0,0,0,null,""]
[null,null,284,0,"",0,0,0,0,0,null,""]
[null,null,285,0,"",0,0,0,0,0,null,""]
[null,null,286,0,"",0,0,0,0,0,null,""]
[null,null,287,0,"",0,0,0,0,0,null,""]
[null,null,288,0,"",0,0,0,0,0,null,""]
[null,null,289,0,"",0,0,0,0,0,null,""]
[null,null,290,0,"",0,0,0,0,0,null,""]
[null,null,291,0,"",0,0,0,0,0,null,""]
[null,null,292,0,"",0,0,0,0,0,null,""]
[null,null,293,0,"",0,0,0,0,0,null,""]
[null,null,294,0,"",0,0,0,0,0,null,""]
[null,null,295,0,"",0,0,0,0,0,null,""]
[null,null,296,0,"",0,0,0,0,0,null,""]
[null,null,297,0,"",0,0,0,0,0,null,""]
[null,null,298,0,"",0,0,0,0,0,null,""]
[null,null,299,0,"",0,0,0,0,0,null,""]
[null,null,300,0,"",0,{"$f":"IF(R319<>\"\",VALUE(LEFT(R319,2)),0)","v":0},0,{"$f":"IF(L319<>\"\",1,0)","v":0},0,null,""]
[]
[null,null,null,null,null,null,null,null,null,null,null,null,"---","---","---","---","---","---","---","---","---","---","---","---","---","---","---","---","---","---","---","---","---","---","---","---","---","---","---","---","---","---","---","---","---","---","---","---","---","---","---","---","---","---","---","---","---","---","---","---","---","---","---","---","---","---","---","---","---","---","---","---","---","---","---","---","---","---","---","---","---","---","---","---","---","---","---","---","---","---","---","---","---","---","---","---","---","---","---","---","---","---","---","---","---","---","---","---","---","---","---","---","---","---","---","---","---","---","---","---"]
[null,null,null,null,null,null,null,null,null,null,null,null,null,null,null,null,null,"","","","",null,"","","",null,"","",null,"",null,null,"",null,null,"","","","","","",null,null,null,null,null,null,null,null,null,null,null,null,null,null,null,null,null,null,null,null,null,null,null,null,null,null,null,null,null,null,null,null,"","","",null,null,null,null,null,null,null,null,null,null,null,null,null,"","","",null,null,"","","",null,null,null,"","","","","",null,null,null,null,null,null,null,null,""]
[null,null,null,null,null,null,null,null,null,null,null,null,null,null,null,null,null,"","","","",null,"","","",null,"","",null,"",null,null,"",null,null,"","","","","","",null,null,null,null,null,null,null,null,null,null,null,null,null,null,null,null,null,null,null,null,null,null,null,null,null,null,null,null,null,null,null,null,"","","",null,null,null,null,null,null,null,null,null,null,null,null,null,"","","",null,null,"","","",null,null,null,"","","","","",null,null,null,null,null,null,null,null,""]
[null,null,null,null,null,null,null,null,null,null,null,null,null,null,null,null,null,"","","","",null,"","","",null,"","",null,"",null,null,"",null,null,"","","","","","",null,null,null,null,null,null,null,null,null,null,null,null,null,null,null,null,null,null,null,null,null,null,null,null,null,null,null,null,null,null,null,null,"","","",null,null,null,null,null,null,null,null,null,null,null,null,null,"","","",null,null,"","","",null,null,null,"","","","","",null,null,null,null,null,null,null,null,""]
[null,null,null,null,null,null,null,null,null,null,null,null,null,null,null,null,null,"","","","",null,"","","",null,"","",null,"",null,null,"",null,null,"","","","","","",null,null,null,null,null,null,null,null,null,null,null,null,null,null,null,null,null,null,null,null,null,null,null,null,null,null,null,null,null,null,null,null,"","","",null,null,null,null,null,null,null,null,null,null,null,null,null,"","","",null,null,"","","",null,null,null,"","","","","",null,null,null,null,null,null,null,null,""]
[null,null,null,null,null,null,null,null,null,null,null,null,null,null,null,null,null,"","","","",null,"","","",null,"","",null,"",null,null,"",null,null,"","","","","","",null,null,null,null,null,null,null,null,null,null,null,null,null,null,null,null,null,null,null,null,null,null,null,null,null,null,null,null,null,null,null,null,"","","",null,null,null,null,null,null,null,null,null,null,null,null,null,"","","",null,null,"","","",null,null,null,"","","","","",null,null,null,null,null,null,null,null,""]
[null,null,null,null,null,null,null,null,null,null,null,null,null,null,null,null,null,"","","","",null,"","","",null,"","",null,"",null,null,"",null,null,"","","","","","",null,null,null,null,null,null,null,null,null,null,null,null,null,null,null,null,null,null,null,null,null,null,null,null,null,null,null,null,null,null,null,null,"","","",null,null,null,null,null,null,null,null,null,null,null,null,null,"","","",null,null,"","","",null,null,null,"","","","","",null,null,null,null,null,null,null,null,""]
[null,null,null,null,null,null,null,null,null,null,null,null,null,null,null,null,null,"","","","",null,"","","",null,"","",null,"",null,null,"",null,null,"","","","","","",null,null,null,null,null,null,null,null,null,null,null,null,null,null,null,null,null,null,null,null,null,null,null,null,null,null,null,null,null,null,null,null,"","","",null,null,null,null,null,null,null,null,null,null,null,null,null,"","","",null,null,"","","",null,null,null,"","","","","",null,null,null,null,null,null,null,null,""]
[null,null,null,null,null,null,null,null,null,null,null,null,null,null,null,null,null,"","","","",null,"","","",null,"","",null,"",null,null,"",null,null,"","","","","","",null,null,null,null,null,null,null,null,null,null,null,null,null,null,null,null,null,null,null,null,null,null,null,null,null,null,null,null,null,null,null,null,"","","",null,null,null,null,null,null,null,null,null,null,null,null,null,"","","",null,null,"","","",null,null,null,"","","","","",null,null,null,null,null,null,null,null,""]
[null,null,null,null,null,null,null,null,null,null,null,null,null,null,null,null,null,"","","","",null,"","","",null,"","",null,"",null,null,"",null,null,"","","","","","",null,null,null,null,null,null,null,null,null,null,null,null,null,null,null,null,null,null,null,null,null,null,null,null,null,null,null,null,null,null,null,null,"","","",null,null,null,null,null,null,null,null,null,null,null,null,null,"","","",null,null,"","","",null,null,null,"","","","","",null,null,null,null,null,null,null,null,""]
[null,null,null,null,null,null,null,null,null,null,null,null,null,null,null,null,null,"","","","",null,"","","",null,"","",null,"",null,null,"",null,null,"","","","","","",null,null,null,null,null,null,null,null,null,null,null,null,null,null,null,null,null,null,null,null,null,null,null,null,null,null,null,null,null,null,null,null,"","","",null,null,null,null,null,null,null,null,null,null,null,null,null,"","","",null,null,"","","",null,null,null,"","","","","",null,null,null,null,null,null,null,null,""]
[null,null,null,null,null,null,null,null,null,null,null,null,null,null,null,null,null,"","","","",null,"","","",null,"","",null,"",null,null,"",null,null,"","","","","","",null,null,null,null,null,null,null,null,null,null,null,null,null,null,null,null,null,null,null,null,null,null,null,null,null,null,null,null,null,null,null,null,"","","",null,null,null,null,null,null,null,null,null,null,null,null,null,"","","",null,null,"","","",null,null,null,"","","","","",null,null,null,null,null,null,null,null,""]
[null,null,null,null,null,null,null,null,null,null,null,null,null,null,null,null,null,"","","","",null,"","","",null,"","",null,"",null,null,"",null,null,"","","","","","",null,null,null,null,null,null,null,null,null,null,null,null,null,null,null,null,null,null,null,null,null,null,null,null,null,null,null,null,null,null,null,null,"","","",null,null,null,null,null,null,null,null,null,null,null,null,null,"","","",null,null,"","","",null,null,null,"","","","","",null,null,null,null,null,null,null,null,""]
[null,null,null,null,null,null,null,null,null,null,null,null,null,null,null,null,null,"","","","",null,"","","",null,"","",null,"",null,null,"",null,null,"","","","","","",null,null,null,null,null,null,null,null,null,null,null,null,null,null,null,null,null,null,null,null,null,null,null,null,null,null,null,null,null,null,null,null,"","","",null,null,null,null,null,null,null,null,null,null,null,null,null,"","","",null,null,"","","",null,null,null,"","","","","",null,null,null,null,null,null,null,null,""]
[null,null,null,null,null,null,null,null,null,null,null,null,null,null,null,null,null,"","","","",null,"","","",null,"","",null,"",null,null,"",null,null,"","","","","","",null,null,null,null,null,null,null,null,null,null,null,null,null,null,null,null,null,null,null,null,null,null,null,null,null,null,null,null,null,null,null,null,"","","",null,null,null,null,null,null,null,null,null,null,null,null,null,"","","",null,null,"","","",null,null,null,"","","","","",null,null,null,null,null,null,null,null,""]
[null,null,null,null,null,null,null,null,null,null,null,null,null,null,null,null,null,"","","","",null,"","","",null,"","",null,"",null,null,"",null,null,"","","","","","",null,null,null,null,null,null,null,null,null,null,null,null,null,null,null,null,null,null,null,null,null,null,null,null,null,null,null,null,null,null,null,null,"","","",null,null,null,null,null,null,null,null,null,null,null,null,null,"","","",null,null,"","","",null,null,null,"","","","","",null,null,null,null,null,null,null,null,""]
[null,null,null,null,null,null,null,null,null,null,null,null,null,null,null,null,null,"","","","",null,"","","",null,"","",null,"",null,null,"",null,null,"","","","","","",null,null,null,null,null,null,null,null,null,null,null,null,null,null,null,null,null,null,null,null,null,null,null,null,null,null,null,null,null,null,null,null,"","","",null,null,null,null,null,null,null,null,null,null,null,null,null,"","","",null,null,"","","",null,null,null,"","","","","",null,null,null,null,null,null,null,null,""]
[null,null,null,null,null,null,null,null,null,null,null,null,null,null,null,null,null,"","","","",null,"","","",null,"","",null,"",null,null,"",null,null,"","","","","","",null,null,null,null,null,null,null,null,null,null,null,null,null,null,null,null,null,null,null,null,null,null,null,null,null,null,null,null,null,null,null,null,"","","",null,null,null,null,null,null,null,null,null,null,null,null,null,"","","",null,null,"","","",null,null,null,"","","","","",null,null,null,null,null,null,null,null,""]
[null,null,null,null,null,null,null,null,null,null,null,null,null,null,null,null,null,"","","","",null,"","","",null,"","",null,"",null,null,"",null,null,"","","","","","",null,null,null,null,null,null,null,null,null,null,null,null,null,null,null,null,null,null,null,null,null,null,null,null,null,null,null,null,null,null,null,null,"","","",null,null,null,null,null,null,null,null,null,null,null,null,null,"","","",null,null,"","","",null,null,null,"","","","","",null,null,null,null,null,null,null,null,""]
[null,null,null,null,null,null,null,null,null,null,null,null,null,null,null,null,null,"","","","",null,"","","",null,"","",null,"",null,null,"",null,null,"","","","","","",null,null,null,null,null,null,null,null,null,null,null,null,null,null,null,null,null,null,null,null,null,null,null,null,null,null,null,null,null,null,null,null,"","","",null,null,null,null,null,null,null,null,null,null,null,null,null,"","","",null,null,"","","",null,null,null,"","","","","",null,null,null,null,null,null,null,null,""]
[null,null,null,null,null,null,null,null,null,null,null,null,null,null,null,null,null,"","","","",null,"","","",null,"","",null,"",null,null,"",null,null,"","","","","","",null,null,null,null,null,null,null,null,null,null,null,null,null,null,null,null,null,null,null,null,null,null,null,null,null,null,null,null,null,null,null,null,"","","",null,null,null,null,null,null,null,null,null,null,null,null,null,"","","",null,null,"","","",null,null,null,"","","","","",null,null,null,null,null,null,null,null,""]
[null,null,null,null,null,null,null,null,null,null,null,null,null,null,null,null,null,"","","","",null,"","","",null,"","",null,"",null,null,"",null,null,"","","","","","",null,null,null,null,null,null,null,null,null,null,null,null,null,null,null,null,null,null,null,null,null,null,null,null,null,null,null,null,null,null,null,null,"","","",null,null,null,null,null,null,null,null,null,null,null,null,null,"","","",null,null,"","","",null,null,null,"","","","","",null,null,null,null,null,null,null,null,""]
[null,null,null,null,null,null,null,null,null,null,null,null,null,null,null,null,null,"","","","",null,"","","",null,"","",null,"",null,null,"",null,null,"","","","","","",null,null,null,null,null,null,null,null,null,null,null,null,null,null,null,null,null,null,null,null,null,null,null,null,null,null,null,null,null,null,null,null,"","","",null,null,null,null,null,null,null,null,null,null,null,null,null,"","","",null,null,"","","",null,null,null,"","","","","",null,null,null,null,null,null,null,null,""]
[null,null,null,null,null,null,null,null,null,null,null,null,null,null,null,null,null,"","","","",null,"","","",null,"","",null,"",null,null,"",null,null,"","","","","","",null,null,null,null,null,null,null,null,null,null,null,null,null,null,null,null,null,null,null,null,null,null,null,null,null,null,null,null,null,null,null,null,"","","",null,null,null,null,null,null,null,null,null,null,null,null,null,"","","",null,null,"","","",null,null,null,"","","","","",null,null,null,null,null,null,null,null,""]
[null,null,null,null,null,null,null,null,null,null,null,null,null,null,null,null,null,"","","","",null,"","","",null,"","",null,"",null,null,"",null,null,"","","","","","",null,null,null,null,null,null,null,null,null,null,null,null,null,null,null,null,null,null,null,null,null,null,null,null,null,null,null,null,null,null,null,null,"","","",null,null,null,null,null,null,null,null,null,null,null,null,null,"","","",null,null,"","","",null,null,null,"","","","","",null,null,null,null,null,null,null,null,""]
[null,null,null,null,null,null,null,null,null,null,null,null,null,null,null,null,null,"","","","",null,"","","",null,"","",null,"",null,null,"",null,null,"","","","","","",null,null,null,null,null,null,null,null,null,null,null,null,null,null,null,null,null,null,null,null,null,null,null,null,null,null,null,null,null,null,null,null,"","","",null,null,null,null,null,null,null,null,null,null,null,null,null,"","","",null,null,"","","",null,null,null,"","","","","",null,null,null,null,null,null,null,null,""]
[null,null,null,null,null,null,null,null,null,null,null,null,null,null,null,null,null,"","","","",null,"","","",null,"","",null,"",null,null,"",null,null,"","","","","","",null,null,null,null,null,null,null,null,null,null,null,null,null,null,null,null,null,null,null,null,null,null,null,null,null,null,null,null,null,null,null,null,"","","",null,null,null,null,null,null,null,null,null,null,null,null,null,"","","",null,null,"","","",null,null,null,"","","","","",null,null,null,null,null,null,null,null,""]
[null,null,null,null,null,null,null,null,null,null,null,null,null,null,null,null,null,"","","","",null,"","","",null,"","",null,"",null,null,"",null,null,"","","","","","",null,null,null,null,null,null,null,null,null,null,null,null,null,null,null,null,null,null,null,null,null,null,null,null,null,null,null,null,null,null,null,null,"","","",null,null,null,null,null,null,null,null,null,null,null,null,null,"","","",null,null,"","","",null,null,null,"","","","","",null,null,null,null,null,null,null,null,""]
[null,null,null,null,null,null,null,null,null,null,null,null,null,null,null,null,null,"","","","",null,"","","",null,"","",null,"",null,null,"",null,null,"","","","","","",null,null,null,null,null,null,null,null,null,null,null,null,null,null,null,null,null,null,null,null,null,null,null,null,null,null,null,null,null,null,null,null,"","","",null,null,null,null,null,null,null,null,null,null,null,null,null,"","","",null,null,"","","",null,null,null,"","","","","",null,null,null,null,null,null,null,null,""]
[null,null,null,null,null,null,null,null,null,null,null,null,null,null,null,null,null,"","","","",null,"","","",null,"","",null,"",null,null,"",null,null,"","","","","","",null,null,null,null,null,null,null,null,null,null,null,null,null,null,null,null,null,null,null,null,null,null,null,null,null,null,null,null,null,null,null,null,"","","",null,null,null,null,null,null,null,null,null,null,null,null,null,"","","",null,null,"","","",null,null,null,"","","","","",null,null,null,null,null,null,null,null,""]
[null,null,null,null,null,null,null,null,null,null,null,null,null,null,null,null,null,"","","","",null,"","","",null,"","",null,"",null,null,"",null,null,"","","","","","",null,null,null,null,null,null,null,null,null,null,null,null,null,null,null,null,null,null,null,null,null,null,null,null,null,null,null,null,null,null,null,null,"","","",null,null,null,null,null,null,null,null,null,null,null,null,null,"","","",null,null,"","","",null,null,null,"","","","","",null,null,null,null,null,null,null,null,""]
[null,null,null,null,null,null,null,null,null,null,null,null,null,null,null,null,null,"","","","",null,"","","",null,"","",null,"",null,null,"",null,null,"","","","","","",null,null,null,null,null,null,null,null,null,null,null,null,null,null,null,null,null,null,null,null,null,null,null,null,null,null,null,null,null,null,null,null,"","","",null,null,null,null,null,null,null,null,null,null,null,null,null,"","","",null,null,"","","",null,null,null,"","","","","",null,null,null,null,null,null,null,null,""]
[null,null,null,null,null,null,null,null,null,null,null,null,null,null,null,null,null,"","","","",null,"","","",null,"","",null,"",null,null,"",null,null,"","","","","","",null,null,null,null,null,null,null,null,null,null,null,null,null,null,null,null,null,null,null,null,null,null,null,null,null,null,null,null,null,null,null,null,"","","",null,null,null,null,null,null,null,null,null,null,null,null,null,"","","",null,null,"","","",null,null,null,"","","","","",null,null,null,null,null,null,null,null,""]
[null,null,null,null,null,null,null,null,null,null,null,null,null,null,null,null,null,"","","","",null,"","","",null,"","",null,"",null,null,"",null,null,"","","","","","",null,null,null,null,null,null,null,null,null,null,null,null,null,null,null,null,null,null,null,null,null,null,null,null,null,null,null,null,null,null,null,null,"","","",null,null,null,null,null,null,null,null,null,null,null,null,null,"","","",null,null,"","","",null,null,null,"","","","","",null,null,null,null,null,null,null,null,""]
[null,null,null,null,null,null,null,null,null,null,null,null,null,null,null,null,null,"","","","",null,"","","",null,"","",null,"",null,null,"",null,null,"","","","","","",null,null,null,null,null,null,null,null,null,null,null,null,null,null,null,null,null,null,null,null,null,null,null,null,null,null,null,null,null,null,null,null,"","","",null,null,null,null,null,null,null,null,null,null,null,null,null,"","","",null,null,"","","",null,null,null,"","","","","",null,null,null,null,null,null,null,null,""]
[null,null,null,null,null,null,null,null,null,null,null,null,null,null,null,null,null,"","","","",null,"","","",null,"","",null,"",null,null,"",null,null,"","","","","","",null,null,null,null,null,null,null,null,null,null,null,null,null,null,null,null,null,null,null,null,null,null,null,null,null,null,null,null,null,null,null,null,"","","",null,null,null,null,null,null,null,null,null,null,null,null,null,"","","",null,null,"","","",null,null,null,"","","","","",null,null,null,null,null,null,null,null,""]
[null,null,null,null,null,null,null,null,null,null,null,null,null,null,null,null,null,"","","","",null,"","","",null,"","",null,"",null,null,"",null,null,"","","","","","",null,null,null,null,null,null,null,null,null,null,null,null,null,null,null,null,null,null,null,null,null,null,null,null,null,null,null,null,null,null,null,null,"","","",null,null,null,null,null,null,null,null,null,null,null,null,null,"","","",null,null,"","","",null,null,null,"","","","","",null,null,null,null,null,null,null,null,""]
[null,null,null,null,null,null,null,null,null,null,null,null,null,null,null,null,null,"","","","",null,"","","",null,"","",null,"",null,null,"",null,null,"","","","","","",null,null,null,null,null,null,null,null,null,null,null,null,null,null,null,null,null,null,null,null,null,null,null,null,null,null,null,null,null,null,null,null,"","","",null,null,null,null,null,null,null,null,null,null,null,null,null,"","","",null,null,"","","",null,null,null,"","","","","",null,null,null,null,null,null,null,null,""]
[null,null,null,null,null,null,null,null,null,null,null,null,null,null,null,null,null,"","","","",null,"","","",null,"","",null,"",null,null,"",null,null,"","","","","","",null,null,null,null,null,null,null,null,null,null,null,null,null,null,null,null,null,null,null,null,null,null,null,null,null,null,null,null,null,null,null,null,"","","",null,null,null,null,null,null,null,null,null,null,null,null,null,"","","",null,null,"","","",null,null,null,"","","","","",null,null,null,null,null,null,null,null,""]
[null,null,null,null,null,null,null,null,null,null,null,null,null,null,null,null,null,"","","","",null,"","","",null,"","",null,"",null,null,"",null,null,"","","","","","",null,null,null,null,null,null,null,null,null,null,null,null,null,null,null,null,null,null,null,null,null,null,null,null,null,null,null,null,null,null,null,null,"","","",null,null,null,null,null,null,null,null,null,null,null,null,null,"","","",null,null,"","","",null,null,null,"","","","","",null,null,null,null,null,null,null,null,""]
[null,null,null,null,null,null,null,null,null,null,null,null,null,null,null,null,null,"","","","",null,"","","",null,"","",null,"",null,null,"",null,null,"","","","","","",null,null,null,null,null,null,null,null,null,null,null,null,null,null,null,null,null,null,null,null,null,null,null,null,null,null,null,null,null,null,null,null,"","","",null,null,null,null,null,null,null,null,null,null,null,null,null,"","","",null,null,"","","",null,null,null,"","","","","",null,null,null,null,null,null,null,null,""]
[null,null,null,null,null,null,null,null,null,null,null,null,null,null,null,null,null,"","","","",null,"","","",null,"","",null,"",null,null,"",null,null,"","","","","","",null,null,null,null,null,null,null,null,null,null,null,null,null,null,null,null,null,null,null,null,null,null,null,null,null,null,null,null,null,null,null,null,"","","",null,null,null,null,null,null,null,null,null,null,null,null,null,"","","",null,null,"","","",null,null,null,"","","","","",null,null,null,null,null,null,null,null,""]
[null,null,null,null,null,null,null,null,null,null,null,null,null,null,null,null,null,"","","","",null,"","","",null,"","",null,"",null,null,"",null,null,"","","","","","",null,null,null,null,null,null,null,null,null,null,null,null,null,null,null,null,null,null,null,null,null,null,null,null,null,null,null,null,null,null,null,null,"","","",null,null,null,null,null,null,null,null,null,null,null,null,null,"","","",null,null,"","","",null,null,null,"","","","","",null,null,null,null,null,null,null,null,""]
[null,null,null,null,null,null,null,null,null,null,null,null,null,null,null,null,null,"","","","",null,"","","",null,"","",null,"",null,null,"",null,null,"","","","","","",null,null,null,null,null,null,null,null,null,null,null,null,null,null,null,null,null,null,null,null,null,null,null,null,null,null,null,null,null,null,null,null,"","","",null,null,null,null,null,null,null,null,null,null,null,null,null,"","","",null,null,"","","",null,null,null,"","","","","",null,null,null,null,null,null,null,null,""]
[null,null,null,null,null,null,null,null,null,null,null,null,null,null,null,null,null,"","","","",null,"","","",null,"","",null,"",null,null,"",null,null,"","","","","","",null,null,null,null,null,null,null,null,null,null,null,null,null,null,null,null,null,null,null,null,null,null,null,null,null,null,null,null,null,null,null,null,"","","",null,null,null,null,null,null,null,null,null,null,null,null,null,"","","",null,null,"","","",null,null,null,"","","","","",null,null,null,null,null,null,null,null,""]
[null,null,null,null,null,null,null,null,null,null,null,null,null,null,null,null,null,"","","","",null,"","","",null,"","",null,"",null,null,"",null,null,"","","","","","",null,null,null,null,null,null,null,null,null,null,null,null,null,null,null,null,null,null,null,null,null,null,null,null,null,null,null,null,null,null,null,null,"","","",null,null,null,null,null,null,null,null,null,null,null,null,null,"","","",null,null,"","","",null,null,null,"","","","","",null,null,null,null,null,null,null,null,""]
[null,null,null,null,null,null,null,null,null,null,null,null,null,null,null,null,null,"","","","",null,"","","",null,"","",null,"",null,null,"",null,null,"","","","","","",null,null,null,null,null,null,null,null,null,null,null,null,null,null,null,null,null,null,null,null,null,null,null,null,null,null,null,null,null,null,null,null,"","","",null,null,null,null,null,null,null,null,null,null,null,null,null,"","","",null,null,"","","",null,null,null,"","","","","",null,null,null,null,null,null,null,null,""]
[null,null,null,null,null,null,null,null,null,null,null,null,null,null,null,null,null,"","","","",null,"","","",null,"","",null,"",null,null,"",null,null,"","","","","","",null,null,null,null,null,null,null,null,null,null,null,null,null,null,null,null,null,null,null,null,null,null,null,null,null,null,null,null,null,null,null,null,"","","",null,null,null,null,null,null,null,null,null,null,null,null,null,"","","",null,null,"","","",null,null,null,"","","","","",null,null,null,null,null,null,null,null,""]
[null,null,null,null,null,null,null,null,null,null,null,null,null,null,null,null,null,"","","","",null,"","","",null,"","",null,"",null,null,"",null,null,"","","","","","",null,null,null,null,null,null,null,null,null,null,null,null,null,null,null,null,null,null,null,null,null,null,null,null,null,null,null,null,null,null,null,null,"","","",null,null,null,null,null,null,null,null,null,null,null,null,null,"","","",null,null,"","","",null,null,null,"","","","","",null,null,null,null,null,null,null,null,""]
[null,null,null,null,null,null,null,null,null,null,null,null,null,null,null,null,null,"","","","",null,"","","",null,"","",null,"",null,null,"",null,null,"","","","","","",null,null,null,null,null,null,null,null,null,null,null,null,null,null,null,null,null,null,null,null,null,null,null,null,null,null,null,null,null,null,null,null,"","","",null,null,null,null,null,null,null,null,null,null,null,null,null,"","","",null,null,"","","",null,null,null,"","","","","",null,null,null,null,null,null,null,null,""]
[null,null,null,null,null,null,null,null,null,null,null,null,null,null,null,null,null,"","","","",null,"","","",null,"","",null,"",null,null,"",null,null,"","","","","","",null,null,null,null,null,null,null,null,null,null,null,null,null,null,null,null,null,null,null,null,null,null,null,null,null,null,null,null,null,null,null,null,"","","",null,null,null,null,null,null,null,null,null,null,null,null,null,"","","",null,null,"","","",null,null,null,"","","","","",null,null,null,null,null,null,null,null,""]
[null,null,null,null,null,null,null,null,null,null,null,null,null,null,null,null,null,"","","","",null,"","","",null,"","",null,"",null,null,"",null,null,"","","","","","",null,null,null,null,null,null,null,null,null,null,null,null,null,null,null,null,null,null,null,null,null,null,null,null,null,null,null,null,null,null,null,null,"","","",null,null,null,null,null,null,null,null,null,null,null,null,null,"","","",null,null,"","","",null,null,null,"","","","","",null,null,null,null,null,null,null,null,""]
[null,null,null,null,null,null,null,null,null,null,null,null,null,null,null,null,null,"","","","",null,"","","",null,"","",null,"",null,null,"",null,null,"","","","","","",null,null,null,null,null,null,null,null,null,null,null,null,null,null,null,null,null,null,null,null,null,null,null,null,null,null,null,null,null,null,null,null,"","","",null,null,null,null,null,null,null,null,null,null,null,null,null,"","","",null,null,"","","",null,null,null,"","","","","",null,null,null,null,null,null,null,null,""]
[null,null,null,null,null,null,null,null,null,null,null,null,null,null,null,null,null,"","","","",null,"","","",null,"","",null,"",null,null,"",null,null,"","","","","","",null,null,null,null,null,null,null,null,null,null,null,null,null,null,null,null,null,null,null,null,null,null,null,null,null,null,null,null,null,null,null,null,"","","",null,null,null,null,null,null,null,null,null,null,null,null,null,"","","",null,null,"","","",null,null,null,"","","","","",null,null,null,null,null,null,null,null,""]
[null,null,null,null,null,null,null,null,null,null,null,null,null,null,null,null,null,"","","","",null,"","","",null,"","",null,"",null,null,"",null,null,"","","","","","",null,null,null,null,null,null,null,null,null,null,null,null,null,null,null,null,null,null,null,null,null,null,null,null,null,null,null,null,null,null,null,null,"","","",null,null,null,null,null,null,null,null,null,null,null,null,null,"","","",null,null,"","","",null,null,null,"","","","","",null,null,null,null,null,null,null,null,""]
[null,null,null,null,null,null,null,null,null,null,null,null,null,null,null,null,null,"","","","",null,"","","",null,"","",null,"",null,null,"",null,null,"","","","","","",null,null,null,null,null,null,null,null,null,null,null,null,null,null,null,null,null,null,null,null,null,null,null,null,null,null,null,null,null,null,null,null,"","","",null,null,null,null,null,null,null,null,null,null,null,null,null,"","","",null,null,"","","",null,null,null,"","","","","",null,null,null,null,null,null,null,null,""]
[null,null,null,null,null,null,null,null,null,null,null,null,null,null,null,null,null,"","","","",null,"","","",null,"","",null,"",null,null,"",null,null,"","","","","","",null,null,null,null,null,null,null,null,null,null,null,null,null,null,null,null,null,null,null,null,null,null,null,null,null,null,null,null,null,null,null,null,"","","",null,null,null,null,null,null,null,null,null,null,null,null,null,"","","",null,null,"","","",null,null,null,"","","","","",null,null,null,null,null,null,null,null,""]
[null,null,null,null,null,null,null,null,null,null,null,null,null,null,null,null,null,"","","","",null,"","","",null,"","",null,"",null,null,"",null,null,"","","","","","",null,null,null,null,null,null,null,null,null,null,null,null,null,null,null,null,null,null,null,null,null,null,null,null,null,null,null,null,null,null,null,null,"","","",null,null,null,null,null,null,null,null,null,null,null,null,null,"","","",null,null,"","","",null,null,null,"","","","","",null,null,null,null,null,null,null,null,""]
[null,null,null,null,null,null,null,null,null,null,null,null,null,null,null,null,null,"","","","",null,"","","",null,"","",null,"",null,null,"",null,null,"","","","","","",null,null,null,null,null,null,null,null,null,null,null,null,null,null,null,null,null,null,null,null,null,null,null,null,null,null,null,null,null,null,null,null,"","","",null,null,null,null,null,null,null,null,null,null,null,null,null,"","","",null,null,"","","",null,null,null,"","","","","",null,null,null,null,null,null,null,null,""]
[null,null,null,null,null,null,null,null,null,null,null,null,null,null,null,null,null,"","","","",null,"","","",null,"","",null,"",null,null,"",null,null,"","","","","","",null,null,null,null,null,null,null,null,null,null,null,null,null,null,null,null,null,null,null,null,null,null,null,null,null,null,null,null,null,null,null,null,"","","",null,null,null,null,null,null,null,null,null,null,null,null,null,"","","",null,null,"","","",null,null,null,"","","","","",null,null,null,null,null,null,null,null,""]
[null,null,null,null,null,null,null,null,null,null,null,null,null,null,null,null,null,"","","","",null,"","","",null,"","",null,"",null,null,"",null,null,"","","","","","",null,null,null,null,null,null,null,null,null,null,null,null,null,null,null,null,null,null,null,null,null,null,null,null,null,null,null,null,null,null,null,null,"","","",null,null,null,null,null,null,null,null,null,null,null,null,null,"","","",null,null,"","","",null,null,null,"","","","","",null,null,null,null,null,null,null,null,""]
[null,null,null,null,null,null,null,null,null,null,null,null,null,null,null,null,null,"","","","",null,"","","",null,"","",null,"",null,null,"",null,null,"","","","","","",null,null,null,null,null,null,null,null,null,null,null,null,null,null,null,null,null,null,null,null,null,null,null,null,null,null,null,null,null,null,null,null,"","","",null,null,null,null,null,null,null,null,null,null,null,null,null,"","","",null,null,"","","",null,null,null,"","","","","",null,null,null,null,null,null,null,null,""]
[null,null,null,null,null,null,null,null,null,null,null,null,null,null,null,null,null,"","","","",null,"","","",null,"","",null,"",null,null,"",null,null,"","","","","","",null,null,null,null,null,null,null,null,null,null,null,null,null,null,null,null,null,null,null,null,null,null,null,null,null,null,null,null,null,null,null,null,"","","",null,null,null,null,null,null,null,null,null,null,null,null,null,"","","",null,null,"","","",null,null,null,"","","","","",null,null,null,null,null,null,null,null,""]
[null,null,null,null,null,null,null,null,null,null,null,null,null,null,null,null,null,"","","","",null,"","","",null,"","",null,"",null,null,"",null,null,"","","","","","",null,null,null,null,null,null,null,null,null,null,null,null,null,null,null,null,null,null,null,null,null,null,null,null,null,null,null,null,null,null,null,null,"","","",null,null,null,null,null,null,null,null,null,null,null,null,null,"","","",null,null,"","","",null,null,null,"","","","","",null,null,null,null,null,null,null,null,""]
[null,null,null,null,null,null,null,null,null,null,null,null,null,null,null,null,null,"","","","",null,"","","",null,"","",null,"",null,null,"",null,null,"","","","","","",null,null,null,null,null,null,null,null,null,null,null,null,null,null,null,null,null,null,null,null,null,null,null,null,null,null,null,null,null,null,null,null,"","","",null,null,null,null,null,null,null,null,null,null,null,null,null,"","","",null,null,"","","",null,null,null,"","","","","",null,null,null,null,null,null,null,null,""]
[null,null,null,null,null,null,null,null,null,null,null,null,null,null,null,null,null,"","","","",null,"","","",null,"","",null,"",null,null,"",null,null,"","","","","","",null,null,null,null,null,null,null,null,null,null,null,null,null,null,null,null,null,null,null,null,null,null,null,null,null,null,null,null,null,null,null,null,"","","",null,null,null,null,null,null,null,null,null,null,null,null,null,"","","",null,null,"","","",null,null,null,"","","","","",null,null,null,null,null,null,null,null,""]
[null,null,null,null,null,null,null,null,null,null,null,null,null,null,null,null,null,"","","","",null,"","","",null,"","",null,"",null,null,"",null,null,"","","","","","",null,null,null,null,null,null,null,null,null,null,null,null,null,null,null,null,null,null,null,null,null,null,null,null,null,null,null,null,null,null,null,null,"","","",null,null,null,null,null,null,null,null,null,null,null,null,null,"","","",null,null,"","","",null,null,null,"","","","","",null,null,null,null,null,null,null,null,""]
[null,null,null,null,null,null,null,null,null,null,null,null,null,null,null,null,null,"","","","",null,"","","",null,"","",null,"",null,null,"",null,null,"","","","","","",null,null,null,null,null,null,null,null,null,null,null,null,null,null,null,null,null,null,null,null,null,null,null,null,null,null,null,null,null,null,null,null,"","","",null,null,null,null,null,null,null,null,null,null,null,null,null,"","","",null,null,"","","",null,null,null,"","","","","",null,null,null,null,null,null,null,null,""]
[null,null,null,null,null,null,null,null,null,null,null,null,null,null,null,null,null,"","","","",null,"","","",null,"","",null,"",null,null,"",null,null,"","","","","","",null,null,null,null,null,null,null,null,null,null,null,null,null,null,null,null,null,null,null,null,null,null,null,null,null,null,null,null,null,null,null,null,"","","",null,null,null,null,null,null,null,null,null,null,null,null,null,"","","",null,null,"","","",null,null,null,"","","","","",null,null,null,null,null,null,null,null,""]
[null,null,null,null,null,null,null,null,null,null,null,null,null,null,null,null,null,"","","","",null,"","","",null,"","",null,"",null,null,"",null,null,"","","","","","",null,null,null,null,null,null,null,null,null,null,null,null,null,null,null,null,null,null,null,null,null,null,null,null,null,null,null,null,null,null,null,null,"","","",null,null,null,null,null,null,null,null,null,null,null,null,null,"","","",null,null,"","","",null,null,null,"","","","","",null,null,null,null,null,null,null,null,""]
[null,null,null,null,null,null,null,null,null,null,null,null,null,null,null,null,null,"","","","",null,"","","",null,"","",null,"",null,null,"",null,null,"","","","","","",null,null,null,null,null,null,null,null,null,null,null,null,null,null,null,null,null,null,null,null,null,null,null,null,null,null,null,null,null,null,null,null,"","","",null,null,null,null,null,null,null,null,null,null,null,null,null,"","","",null,null,"","","",null,null,null,"","","","","",null,null,null,null,null,null,null,null,""]
[null,null,null,null,null,null,null,null,null,null,null,null,null,null,null,null,null,"","","","",null,"","","",null,"","",null,"",null,null,"",null,null,"","","","","","",null,null,null,null,null,null,null,null,null,null,null,null,null,null,null,null,null,null,null,null,null,null,null,null,null,null,null,null,null,null,null,null,"","","",null,null,null,null,null,null,null,null,null,null,null,null,null,"","","",null,null,"","","",null,null,null,"","","","","",null,null,null,null,null,null,null,null,""]
[null,null,null,null,null,null,null,null,null,null,null,null,null,null,null,null,null,"","","","",null,"","","",null,"","",null,"",null,null,"",null,null,"","","","","","",null,null,null,null,null,null,null,null,null,null,null,null,null,null,null,null,null,null,null,null,null,null,null,null,null,null,null,null,null,null,null,null,"","","",null,null,null,null,null,null,null,null,null,null,null,null,null,"","","",null,null,"","","",null,null,null,"","","","","",null,null,null,null,null,null,null,null,""]
[null,null,null,null,null,null,null,null,null,null,null,null,null,null,null,null,null,"","","","",null,"","","",null,"","",null,"",null,null,"",null,null,"","","","","","",null,null,null,null,null,null,null,null,null,null,null,null,null,null,null,null,null,null,null,null,null,null,null,null,null,null,null,null,null,null,null,null,"","","",null,null,null,null,null,null,null,null,null,null,null,null,null,"","","",null,null,"","","",null,null,null,"","","","","",null,null,null,null,null,null,null,null,""]
[null,null,null,null,null,null,null,null,null,null,null,null,null,null,null,null,null,"","","","",null,"","","",null,"","",null,"",null,null,"",null,null,"","","","","","",null,null,null,null,null,null,null,null,null,null,null,null,null,null,null,null,null,null,null,null,null,null,null,null,null,null,null,null,null,null,null,null,"","","",null,null,null,null,null,null,null,null,null,null,null,null,null,"","","",null,null,"","","",null,null,null,"","","","","",null,null,null,null,null,null,null,null,""]
[null,null,null,null,null,null,null,null,null,null,null,null,null,null,null,null,null,"","","","",null,"","","",null,"","",null,"",null,null,"",null,null,"","","","","","",null,null,null,null,null,null,null,null,null,null,null,null,null,null,null,null,null,null,null,null,null,null,null,null,null,null,null,null,null,null,null,null,"","","",null,null,null,null,null,null,null,null,null,null,null,null,null,"","","",null,null,"","","",null,null,null,"","","","","",null,null,null,null,null,null,null,null,""]
[null,null,null,null,null,null,null,null,null,null,null,null,null,null,null,null,null,"","","","",null,"","","",null,"","",null,"",null,null,"",null,null,"","","","","","",null,null,null,null,null,null,null,null,null,null,null,null,null,null,null,null,null,null,null,null,null,null,null,null,null,null,null,null,null,null,null,null,"","","",null,null,null,null,null,null,null,null,null,null,null,null,null,"","","",null,null,"","","",null,null,null,"","","","","",null,null,null,null,null,null,null,null,""]
[null,null,null,null,null,null,null,null,null,null,null,null,null,null,null,null,null,"","","","",null,"","","",null,"","",null,"",null,null,"",null,null,"","","","","","",null,null,null,null,null,null,null,null,null,null,null,null,null,null,null,null,null,null,null,null,null,null,null,null,null,null,null,null,null,null,null,null,"","","",null,null,null,null,null,null,null,null,null,null,null,null,null,"","","",null,null,"","","",null,null,null,"","","","","",null,null,null,null,null,null,null,null,""]
[null,null,null,null,null,null,null,null,null,null,null,null,null,null,null,null,null,"","","","",null,"","","",null,"","",null,"",null,null,"",null,null,"","","","","","",null,null,null,null,null,null,null,null,null,null,null,null,null,null,null,null,null,null,null,null,null,null,null,null,null,null,null,null,null,null,null,null,"","","",null,null,null,null,null,null,null,null,null,null,null,null,null,"","","",null,null,"","","",null,null,null,"","","","","",null,null,null,null,null,null,null,null,""]
[null,null,null,null,null,null,null,null,null,null,null,null,null,null,null,null,null,"","","","",null,"","","",null,"","",null,"",null,null,"",null,null,"","","","","","",null,null,null,null,null,null,null,null,null,null,null,null,null,null,null,null,null,null,null,null,null,null,null,null,null,null,null,null,null,null,null,null,"","","",null,null,null,null,null,null,null,null,null,null,null,null,null,"","","",null,null,"","","",null,null,null,"","","","","",null,null,null,null,null,null,null,null,""]
[null,null,null,null,null,null,null,null,null,null,null,null,null,null,null,null,null,"","","","",null,"","","",null,"","",null,"",null,null,"",null,null,"","","","","","",null,null,null,null,null,null,null,null,null,null,null,null,null,null,null,null,null,null,null,null,null,null,null,null,null,null,null,null,null,null,null,null,"","","",null,null,null,null,null,null,null,null,null,null,null,null,null,"","","",null,null,"","","",null,null,null,"","","","","",null,null,null,null,null,null,null,null,""]
[null,null,null,null,null,null,null,null,null,null,null,null,null,null,null,null,null,"","","","",null,"","","",null,"","",null,"",null,null,"",null,null,"","","","","","",null,null,null,null,null,null,null,null,null,null,null,null,null,null,null,null,null,null,null,null,null,null,null,null,null,null,null,null,null,null,null,null,"","","",null,null,null,null,null,null,null,null,null,null,null,null,null,"","","",null,null,"","","",null,null,null,"","","","","",null,null,null,null,null,null,null,null,""]
[null,null,null,null,null,null,null,null,null,null,null,null,null,null,null,null,null,"","","","",null,"","","",null,"","",null,"",null,null,"",null,null,"","","","","","",null,null,null,null,null,null,null,null,null,null,null,null,null,null,null,null,null,null,null,null,null,null,null,null,null,null,null,null,null,null,null,null,"","","",null,null,null,null,null,null,null,null,null,null,null,null,null,"","","",null,null,"","","",null,null,null,"","","","","",null,null,null,null,null,null,null,null,""]
[null,null,null,null,null,null,null,null,null,null,null,null,null,null,null,null,null,"","","","",null,"","","",null,"","",null,"",null,null,"",null,null,"","","","","","",null,null,null,null,null,null,null,null,null,null,null,null,null,null,null,null,null,null,null,null,null,null,null,null,null,null,null,null,null,null,null,null,"","","",null,null,null,null,null,null,null,null,null,null,null,null,null,"","","",null,null,"","","",null,null,null,"","","","","",null,null,null,null,null,null,null,null,""]
[null,null,null,null,null,null,null,null,null,null,null,null,null,null,null,null,null,"","","","",null,"","","",null,"","",null,"",null,null,"",null,null,"","","","","","",null,null,null,null,null,null,null,null,null,null,null,null,null,null,null,null,null,null,null,null,null,null,null,null,null,null,null,null,null,null,null,null,"","","",null,null,null,null,null,null,null,null,null,null,null,null,null,"","","",null,null,"","","",null,null,null,"","","","","",null,null,null,null,null,null,null,null,""]
[null,null,null,null,null,null,null,null,null,null,null,null,null,null,null,null,null,"","","","",null,"","","",null,"","",null,"",null,null,"",null,null,"","","","","","",null,null,null,null,null,null,null,null,null,null,null,null,null,null,null,null,null,null,null,null,null,null,null,null,null,null,null,null,null,null,null,null,"","","",null,null,null,null,null,null,null,null,null,null,null,null,null,"","","",null,null,"","","",null,null,null,"","","","","",null,null,null,null,null,null,null,null,""]
[null,null,null,null,null,null,null,null,null,null,null,null,null,null,null,null,null,"","","","",null,"","","",null,"","",null,"",null,null,"",null,null,"","","","","","",null,null,null,null,null,null,null,null,null,null,null,null,null,null,null,null,null,null,null,null,null,null,null,null,null,null,null,null,null,null,null,null,"","","",null,null,null,null,null,null,null,null,null,null,null,null,null,"","","",null,null,"","","",null,null,null,"","","","","",null,null,null,null,null,null,null,null,""]
[null,null,null,null,null,null,null,null,null,null,null,null,null,null,null,null,null,"","","","",null,"","","",null,"","",null,"",null,null,"",null,null,"","","","","","",null,null,null,null,null,null,null,null,null,null,null,null,null,null,null,null,null,null,null,null,null,null,null,null,null,null,null,null,null,null,null,null,"","","",null,null,null,null,null,null,null,null,null,null,null,null,null,"","","",null,null,"","","",null,null,null,"","","","","",null,null,null,null,null,null,null,null,""]
[null,null,null,null,null,null,null,null,null,null,null,null,null,null,null,null,null,"","","","",null,"","","",null,"","",null,"",null,null,"",null,null,"","","","","","",null,null,null,null,null,null,null,null,null,null,null,null,null,null,null,null,null,null,null,null,null,null,null,null,null,null,null,null,null,null,null,null,"","","",null,null,null,null,null,null,null,null,null,null,null,null,null,"","","",null,null,"","","",null,null,null,"","","","","",null,null,null,null,null,null,null,null,""]
[null,null,null,null,null,null,null,null,null,null,null,null,null,null,null,null,null,"","","","",null,"","","",null,"","",null,"",null,null,"",null,null,"","","","","","",null,null,null,null,null,null,null,null,null,null,null,null,null,null,null,null,null,null,null,null,null,null,null,null,null,null,null,null,null,null,null,null,"","","",null,null,null,null,null,null,null,null,null,null,null,null,null,"","","",null,null,"","","",null,null,null,"","","","","",null,null,null,null,null,null,null,null,""]
[null,null,null,null,null,null,null,null,null,null,null,null,null,null,null,null,null,"","","","",null,"","","",null,"","",null,"",null,null,"",null,null,"","","","","","",null,null,null,null,null,null,null,null,null,null,null,null,null,null,null,null,null,null,null,null,null,null,null,null,null,null,null,null,null,null,null,null,"","","",null,null,null,null,null,null,null,null,null,null,null,null,null,"","","",null,null,"","","",null,null,null,"","","","","",null,null,null,null,null,null,null,null,""]
[null,null,null,null,null,null,null,null,null,null,null,null,null,null,null,null,null,"","","","",null,"","","",null,"","",null,"",null,null,"",null,null,"","","","","","",null,null,null,null,null,null,null,null,null,null,null,null,null,null,null,null,null,null,null,null,null,null,null,null,null,null,null,null,null,null,null,null,"","","",null,null,null,null,null,null,null,null,null,null,null,null,null,"","","",null,null,"","","",null,null,null,"","","","","",null,null,null,null,null,null,null,null,""]
[null,null,null,null,null,null,null,null,null,null,null,null,null,null,null,null,null,"","","","",null,"","","",null,"","",null,"",null,null,"",null,null,"","","","","","",null,null,null,null,null,null,null,null,null,null,null,null,null,null,null,null,null,null,null,null,null,null,null,null,null,null,null,null,null,null,null,null,"","","",null,null,null,null,null,null,null,null,null,null,null,null,null,"","","",null,null,"","","",null,null,null,"","","","","",null,null,null,null,null,null,null,null,""]
[null,null,null,null,null,null,null,null,null,null,null,null,null,null,null,null,null,"","","","",null,"","","",null,"","",null,"",null,null,"",null,null,"","","","","","",null,null,null,null,null,null,null,null,null,null,null,null,null,null,null,null,null,null,null,null,null,null,null,null,null,null,null,null,null,null,null,null,"","","",null,null,null,null,null,null,null,null,null,null,null,null,null,"","","",null,null,"","","",null,null,null,"","","","","",null,null,null,null,null,null,null,null,""]
[null,null,null,null,null,null,null,null,null,null,null,null,null,null,null,null,null,"","","","",null,"","","",null,"","",null,"",null,null,"",null,null,"","","","","","",null,null,null,null,null,null,null,null,null,null,null,null,null,null,null,null,null,null,null,null,null,null,null,null,null,null,null,null,null,null,null,null,"","","",null,null,null,null,null,null,null,null,null,null,null,null,null,"","","",null,null,"","","",null,null,null,"","","","","",null,null,null,null,null,null,null,null,""]
[null,null,null,null,null,null,null,null,null,null,null,null,null,null,null,null,null,"","","","",null,"","","",null,"","",null,"",null,null,"",null,null,"","","","","","",null,null,null,null,null,null,null,null,null,null,null,null,null,null,null,null,null,null,null,null,null,null,null,null,null,null,null,null,null,null,null,null,"","","",null,null,null,null,null,null,null,null,null,null,null,null,null,"","","",null,null,"","","",null,null,null,"","","","","",null,null,null,null,null,null,null,null,""]
[null,null,null,null,null,null,null,null,null,null,null,null,null,null,null,null,null,"","","","",null,"","","",null,"","",null,"",null,null,"",null,null,"","","","","","",null,null,null,null,null,null,null,null,null,null,null,null,null,null,null,null,null,null,null,null,null,null,null,null,null,null,null,null,null,null,null,null,"","","",null,null,null,null,null,null,null,null,null,null,null,null,null,"","","",null,null,"","","",null,null,null,"","","","","",null,null,null,null,null,null,null,null,""]
[null,null,null,null,null,null,null,null,null,null,null,null,null,null,null,null,null,"","","","",null,"","","",null,"","",null,"",null,null,"",null,null,"","","","","","",null,null,null,null,null,null,null,null,null,null,null,null,null,null,null,null,null,null,null,null,null,null,null,null,null,null,null,null,null,null,null,null,"","","",null,null,null,null,null,null,null,null,null,null,null,null,null,"","","",null,null,"","","",null,null,null,"","","","","",null,null,null,null,null,null,null,null,""]
[null,null,null,null,null,null,null,null,null,null,null,null,null,null,null,null,null,"","","","",null,"","","",null,"","",null,"",null,null,"",null,null,"","","","","","",null,null,null,null,null,null,null,null,null,null,null,null,null,null,null,null,null,null,null,null,null,null,null,null,null,null,null,null,null,null,null,null,"","","",null,null,null,null,null,null,null,null,null,null,null,null,null,"","","",null,null,"","","",null,null,null,"","","","","",null,null,null,null,null,null,null,null,""]
[null,null,null,null,null,null,null,null,null,null,null,null,null,null,null,null,null,"","","","",null,"","","",null,"","",null,"",null,null,"",null,null,"","","","","","",null,null,null,null,null,null,null,null,null,null,null,null,null,null,null,null,null,null,null,null,null,null,null,null,null,null,null,null,null,null,null,null,"","","",null,null,null,null,null,null,null,null,null,null,null,null,null,"","","",null,null,"","","",null,null,null,"","","","","",null,null,null,null,null,null,null,null,""]
[null,null,null,null,null,null,null,null,null,null,null,null,null,null,null,null,null,"","","","",null,"","","",null,"","",null,"",null,null,"",null,null,"","","","","","",null,null,null,null,null,null,null,null,null,null,null,null,null,null,null,null,null,null,null,null,null,null,null,null,null,null,null,null,null,null,null,null,"","","",null,null,null,null,null,null,null,null,null,null,null,null,null,"","","",null,null,"","","",null,null,null,"","","","","",null,null,null,null,null,null,null,null,""]
[null,null,null,null,null,null,null,null,null,null,null,null,null,null,null,null,null,"","","","",null,"","","",null,"","",null,"",null,null,"",null,null,"","","","","","",null,null,null,null,null,null,null,null,null,null,null,null,null,null,null,null,null,null,null,null,null,null,null,null,null,null,null,null,null,null,null,null,"","","",null,null,null,null,null,null,null,null,null,null,null,null,null,"","","",null,null,"","","",null,null,null,"","","","","",null,null,null,null,null,null,null,null,""]
[null,null,null,null,null,null,null,null,null,null,null,null,null,null,null,null,null,"","","","",null,"","","",null,"","",null,"",null,null,"",null,null,"","","","","","",null,null,null,null,null,null,null,null,null,null,null,null,null,null,null,null,null,null,null,null,null,null,null,null,null,null,null,null,null,null,null,null,"","","",null,null,null,null,null,null,null,null,null,null,null,null,null,"","","",null,null,"","","",null,null,null,"","","","","",null,null,null,null,null,null,null,null,""]
[null,null,null,null,null,null,null,null,null,null,null,null,null,null,null,null,null,"","","","",null,"","","",null,"","",null,"",null,null,"",null,null,"","","","","","",null,null,null,null,null,null,null,null,null,null,null,null,null,null,null,null,null,null,null,null,null,null,null,null,null,null,null,null,null,null,null,null,"","","",null,null,null,null,null,null,null,null,null,null,null,null,null,"","","",null,null,"","","",null,null,null,"","","","","",null,null,null,null,null,null,null,null,""]
[null,null,null,null,null,null,null,null,null,null,null,null,null,null,null,null,null,"","","","",null,"","","",null,"","",null,"",null,null,"",null,null,"","","","","","",null,null,null,null,null,null,null,null,null,null,null,null,null,null,null,null,null,null,null,null,null,null,null,null,null,null,null,null,null,null,null,null,"","","",null,null,null,null,null,null,null,null,null,null,null,null,null,"","","",null,null,"","","",null,null,null,"","","","","",null,null,null,null,null,null,null,null,""]
[null,null,null,null,null,null,null,null,null,null,null,null,null,null,null,null,null,"","","","",null,"","","",null,"","",null,"",null,null,"",null,null,"","","","","","",null,null,null,null,null,null,null,null,null,null,null,null,null,null,null,null,null,null,null,null,null,null,null,null,null,null,null,null,null,null,null,null,"","","",null,null,null,null,null,null,null,null,null,null,null,null,null,"","","",null,null,"","","",null,null,null,"","","","","",null,null,null,null,null,null,null,null,""]
[null,null,null,null,null,null,null,null,null,null,null,null,null,null,null,null,null,"","","","",null,"","","",null,"","",null,"",null,null,"",null,null,"","","","","","",null,null,null,null,null,null,null,null,null,null,null,null,null,null,null,null,null,null,null,null,null,null,null,null,null,null,null,null,null,null,null,null,"","","",null,null,null,null,null,null,null,null,null,null,null,null,null,"","","",null,null,"","","",null,null,null,"","","","","",null,null,null,null,null,null,null,null,""]
[null,null,null,null,null,null,null,null,null,null,null,null,null,null,null,null,null,"","","","",null,"","","",null,"","",null,"",null,null,"",null,null,"","","","","","",null,null,null,null,null,null,null,null,null,null,null,null,null,null,null,null,null,null,null,null,null,null,null,null,null,null,null,null,null,null,null,null,"","","",null,null,null,null,null,null,null,null,null,null,null,null,null,"","","",null,null,"","","",null,null,null,"","","","","",null,null,null,null,null,null,null,null,""]
[null,null,null,null,null,null,null,null,null,null,null,null,null,null,null,null,null,"","","","",null,"","","",null,"","",null,"",null,null,"",null,null,"","","","","","",null,null,null,null,null,null,null,null,null,null,null,null,null,null,null,null,null,null,null,null,null,null,null,null,null,null,null,null,null,null,null,null,"","","",null,null,null,null,null,null,null,null,null,null,null,null,null,"","","",null,null,"","","",null,null,null,"","","","","",null,null,null,null,null,null,null,null,""]
[null,null,null,null,null,null,null,null,null,null,null,null,null,null,null,null,null,"","","","",null,"","","",null,"","",null,"",null,null,"",null,null,"","","","","","",null,null,null,null,null,null,null,null,null,null,null,null,null,null,null,null,null,null,null,null,null,null,null,null,null,null,null,null,null,null,null,null,"","","",null,null,null,null,null,null,null,null,null,null,null,null,null,"","","",null,null,"","","",null,null,null,"","","","","",null,null,null,null,null,null,null,null,""]
[null,null,null,null,null,null,null,null,null,null,null,null,null,null,null,null,null,"","","","",null,"","","",null,"","",null,"",null,null,"",null,null,"","","","","","",null,null,null,null,null,null,null,null,null,null,null,null,null,null,null,null,null,null,null,null,null,null,null,null,null,null,null,null,null,null,null,null,"","","",null,null,null,null,null,null,null,null,null,null,null,null,null,"","","",null,null,"","","",null,null,null,"","","","","",null,null,null,null,null,null,null,null,""]
[null,null,null,null,null,null,null,null,null,null,null,null,null,null,null,null,null,"","","","",null,"","","",null,"","",null,"",null,null,"",null,null,"","","","","","",null,null,null,null,null,null,null,null,null,null,null,null,null,null,null,null,null,null,null,null,null,null,null,null,null,null,null,null,null,null,null,null,"","","",null,null,null,null,null,null,null,null,null,null,null,null,null,"","","",null,null,"","","",null,null,null,"","","","","",null,null,null,null,null,null,null,null,""]
[null,null,null,null,null,null,null,null,null,null,null,null,null,null,null,null,null,"","","","",null,"","","",null,"","",null,"",null,null,"",null,null,"","","","","","",null,null,null,null,null,null,null,null,null,null,null,null,null,null,null,null,null,null,null,null,null,null,null,null,null,null,null,null,null,null,null,null,"","","",null,null,null,null,null,null,null,null,null,null,null,null,null,"","","",null,null,"","","",null,null,null,"","","","","",null,null,null,null,null,null,null,null,""]
[null,null,null,null,null,null,null,null,null,null,null,null,null,null,null,null,null,"","","","",null,"","","",null,"","",null,"",null,null,"",null,null,"","","","","","",null,null,null,null,null,null,null,null,null,null,null,null,null,null,null,null,null,null,null,null,null,null,null,null,null,null,null,null,null,null,null,null,"","","",null,null,null,null,null,null,null,null,null,null,null,null,null,"","","",null,null,"","","",null,null,null,"","","","","",null,null,null,null,null,null,null,null,""]
[null,null,null,null,null,null,null,null,null,null,null,null,null,null,null,null,null,"","","","",null,"","","",null,"","",null,"",null,null,"",null,null,"","","","","","",null,null,null,null,null,null,null,null,null,null,null,null,null,null,null,null,null,null,null,null,null,null,null,null,null,null,null,null,null,null,null,null,"","","",null,null,null,null,null,null,null,null,null,null,null,null,null,"","","",null,null,"","","",null,null,null,"","","","","",null,null,null,null,null,null,null,null,""]
[null,null,null,null,null,null,null,null,null,null,null,null,null,null,null,null,null,"","","","",null,"","","",null,"","",null,"",null,null,"",null,null,"","","","","","",null,null,null,null,null,null,null,null,null,null,null,null,null,null,null,null,null,null,null,null,null,null,null,null,null,null,null,null,null,null,null,null,"","","",null,null,null,null,null,null,null,null,null,null,null,null,null,"","","",null,null,"","","",null,null,null,"","","","","",null,null,null,null,null,null,null,null,""]
[null,null,null,null,null,null,null,null,null,null,null,null,null,null,null,null,null,"","","","",null,"","","",null,"","",null,"",null,null,"",null,null,"","","","","","",null,null,null,null,null,null,null,null,null,null,null,null,null,null,null,null,null,null,null,null,null,null,null,null,null,null,null,null,null,null,null,null,"","","",null,null,null,null,null,null,null,null,null,null,null,null,null,"","","",null,null,"","","",null,null,null,"","","","","",null,null,null,null,null,null,null,null,""]
[null,null,null,null,null,null,null,null,null,null,null,null,null,null,null,null,null,"","","","",null,"","","",null,"","",null,"",null,null,"",null,null,"","","","","","",null,null,null,null,null,null,null,null,null,null,null,null,null,null,null,null,null,null,null,null,null,null,null,null,null,null,null,null,null,null,null,null,"","","",null,null,null,null,null,null,null,null,null,null,null,null,null,"","","",null,null,"","","",null,null,null,"","","","","",null,null,null,null,null,null,null,null,""]
[null,null,null,null,null,null,null,null,null,null,null,null,null,null,null,null,null,"","","","",null,"","","",null,"","",null,"",null,null,"",null,null,"","","","","","",null,null,null,null,null,null,null,null,null,null,null,null,null,null,null,null,null,null,null,null,null,null,null,null,null,null,null,null,null,null,null,null,"","","",null,null,null,null,null,null,null,null,null,null,null,null,null,"","","",null,null,"","","",null,null,null,"","","","","",null,null,null,null,null,null,null,null,""]
[null,null,null,null,null,null,null,null,null,null,null,null,null,null,null,null,null,"","","","",null,"","","",null,"","",null,"",null,null,"",null,null,"","","","","","",null,null,null,null,null,null,null,null,null,null,null,null,null,null,null,null,null,null,null,null,null,null,null,null,null,null,null,null,null,null,null,null,"","","",null,null,null,null,null,null,null,null,null,null,null,null,null,"","","",null,null,"","","",null,null,null,"","","","","",null,null,null,null,null,null,null,null,""]
[null,null,null,null,null,null,null,null,null,null,null,null,null,null,null,null,null,"","","","",null,"","","",null,"","",null,"",null,null,"",null,null,"","","","","","",null,null,null,null,null,null,null,null,null,null,null,null,null,null,null,null,null,null,null,null,null,null,null,null,null,null,null,null,null,null,null,null,"","","",null,null,null,null,null,null,null,null,null,null,null,null,null,"","","",null,null,"","","",null,null,null,"","","","","",null,null,null,null,null,null,null,null,""]
[null,null,null,null,null,null,null,null,null,null,null,null,null,null,null,null,null,"","","","",null,"","","",null,"","",null,"",null,null,"",null,null,"","","","","","",null,null,null,null,null,null,null,null,null,null,null,null,null,null,null,null,null,null,null,null,null,null,null,null,null,null,null,null,null,null,null,null,"","","",null,null,null,null,null,null,null,null,null,null,null,null,null,"","","",null,null,"","","",null,null,null,"","","","","",null,null,null,null,null,null,null,null,""]
[null,null,null,null,null,null,null,null,null,null,null,null,null,null,null,null,null,"","","","",null,"","","",null,"","",null,"",null,null,"",null,null,"","","","","","",null,null,null,null,null,null,null,null,null,null,null,null,null,null,null,null,null,null,null,null,null,null,null,null,null,null,null,null,null,null,null,null,"","","",null,null,null,null,null,null,null,null,null,null,null,null,null,"","","",null,null,"","","",null,null,null,"","","","","",null,null,null,null,null,null,null,null,""]
[null,null,null,null,null,null,null,null,null,null,null,null,null,null,null,null,null,"","","","",null,"","","",null,"","",null,"",null,null,"",null,null,"","","","","","",null,null,null,null,null,null,null,null,null,null,null,null,null,null,null,null,null,null,null,null,null,null,null,null,null,null,null,null,null,null,null,null,"","","",null,null,null,null,null,null,null,null,null,null,null,null,null,"","","",null,null,"","","",null,null,null,"","","","","",null,null,null,null,null,null,null,null,""]
[null,null,null,null,null,null,null,null,null,null,null,null,null,null,null,null,null,"","","","",null,"","","",null,"","",null,"",null,null,"",null,null,"","","","","","",null,null,null,null,null,null,null,null,null,null,null,null,null,null,null,null,null,null,null,null,null,null,null,null,null,null,null,null,null,null,null,null,"","","",null,null,null,null,null,null,null,null,null,null,null,null,null,"","","",null,null,"","","",null,null,null,"","","","","",null,null,null,null,null,null,null,null,""]
[null,null,null,null,null,null,null,null,null,null,null,null,null,null,null,null,null,"","","","",null,"","","",null,"","",null,"",null,null,"",null,null,"","","","","","",null,null,null,null,null,null,null,null,null,null,null,null,null,null,null,null,null,null,null,null,null,null,null,null,null,null,null,null,null,null,null,null,"","","",null,null,null,null,null,null,null,null,null,null,null,null,null,"","","",null,null,"","","",null,null,null,"","","","","",null,null,null,null,null,null,null,null,""]
[null,null,null,null,null,null,null,null,null,null,null,null,null,null,null,null,null,"","","","",null,"","","",null,"","",null,"",null,null,"",null,null,"","","","","","",null,null,null,null,null,null,null,null,null,null,null,null,null,null,null,null,null,null,null,null,null,null,null,null,null,null,null,null,null,null,null,null,"","","",null,null,null,null,null,null,null,null,null,null,null,null,null,"","","",null,null,"","","",null,null,null,"","","","","",null,null,null,null,null,null,null,null,""]
[null,null,null,null,null,null,null,null,null,null,null,null,null,null,null,null,null,"","","","",null,"","","",null,"","",null,"",null,null,"",null,null,"","","","","","",null,null,null,null,null,null,null,null,null,null,null,null,null,null,null,null,null,null,null,null,null,null,null,null,null,null,null,null,null,null,null,null,"","","",null,null,null,null,null,null,null,null,null,null,null,null,null,"","","",null,null,"","","",null,null,null,"","","","","",null,null,null,null,null,null,null,null,""]
[null,null,null,null,null,null,null,null,null,null,null,null,null,null,null,null,null,"","","","",null,"","","",null,"","",null,"",null,null,"",null,null,"","","","","","",null,null,null,null,null,null,null,null,null,null,null,null,null,null,null,null,null,null,null,null,null,null,null,null,null,null,null,null,null,null,null,null,"","","",null,null,null,null,null,null,null,null,null,null,null,null,null,"","","",null,null,"","","",null,null,null,"","","","","",null,null,null,null,null,null,null,null,""]
[null,null,null,null,null,null,null,null,null,null,null,null,null,null,null,null,null,"","","","",null,"","","",null,"","",null,"",null,null,"",null,null,"","","","","","",null,null,null,null,null,null,null,null,null,null,null,null,null,null,null,null,null,null,null,null,null,null,null,null,null,null,null,null,null,null,null,null,"","","",null,null,null,null,null,null,null,null,null,null,null,null,null,"","","",null,null,"","","",null,null,null,"","","","","",null,null,null,null,null,null,null,null,""]
[null,null,null,null,null,null,null,null,null,null,null,null,null,null,null,null,null,"","","","",null,"","","",null,"","",null,"",null,null,"",null,null,"","","","","","",null,null,null,null,null,null,null,null,null,null,null,null,null,null,null,null,null,null,null,null,null,null,null,null,null,null,null,null,null,null,null,null,"","","",null,null,null,null,null,null,null,null,null,null,null,null,null,"","","",null,null,"","","",null,null,null,"","","","","",null,null,null,null,null,null,null,null,""]
[null,null,null,null,null,null,null,null,null,null,null,null,null,null,null,null,null,"","","","",null,"","","",null,"","",null,"",null,null,"",null,null,"","","","","","",null,null,null,null,null,null,null,null,null,null,null,null,null,null,null,null,null,null,null,null,null,null,null,null,null,null,null,null,null,null,null,null,"","","",null,null,null,null,null,null,null,null,null,null,null,null,null,"","","",null,null,"","","",null,null,null,"","","","","",null,null,null,null,null,null,null,null,""]
[null,null,null,null,null,null,null,null,null,null,null,null,null,null,null,null,null,"","","","",null,"","","",null,"","",null,"",null,null,"",null,null,"","","","","","",null,null,null,null,null,null,null,null,null,null,null,null,null,null,null,null,null,null,null,null,null,null,null,null,null,null,null,null,null,null,null,null,"","","",null,null,null,null,null,null,null,null,null,null,null,null,null,"","","",null,null,"","","",null,null,null,"","","","","",null,null,null,null,null,null,null,null,""]
[null,null,null,null,null,null,null,null,null,null,null,null,null,null,null,null,null,"","","","",null,"","","",null,"","",null,"",null,null,"",null,null,"","","","","","",null,null,null,null,null,null,null,null,null,null,null,null,null,null,null,null,null,null,null,null,null,null,null,null,null,null,null,null,null,null,null,null,"","","",null,null,null,null,null,null,null,null,null,null,null,null,null,"","","",null,null,"","","",null,null,null,"","","","","",null,null,null,null,null,null,null,null,""]
[null,null,null,null,null,null,null,null,null,null,null,null,null,null,null,null,null,"","","","",null,"","","",null,"","",null,"",null,null,"",null,null,"","","","","","",null,null,null,null,null,null,null,null,null,null,null,null,null,null,null,null,null,null,null,null,null,null,null,null,null,null,null,null,null,null,null,null,"","","",null,null,null,null,null,null,null,null,null,null,null,null,null,"","","",null,null,"","","",null,null,null,"","","","","",null,null,null,null,null,null,null,null,""]
[null,null,null,null,null,null,null,null,null,null,null,null,null,null,null,null,null,"","","","",null,"","","",null,"","",null,"",null,null,"",null,null,"","","","","","",null,null,null,null,null,null,null,null,null,null,null,null,null,null,null,null,null,null,null,null,null,null,null,null,null,null,null,null,null,null,null,null,"","","",null,null,null,null,null,null,null,null,null,null,null,null,null,"","","",null,null,"","","",null,null,null,"","","","","",null,null,null,null,null,null,null,null,""]
[null,null,null,null,null,null,null,null,null,null,null,null,null,null,null,null,null,"","","","",null,"","","",null,"","",null,"",null,null,"",null,null,"","","","","","",null,null,null,null,null,null,null,null,null,null,null,null,null,null,null,null,null,null,null,null,null,null,null,null,null,null,null,null,null,null,null,null,"","","",null,null,null,null,null,null,null,null,null,null,null,null,null,"","","",null,null,"","","",null,null,null,"","","","","",null,null,null,null,null,null,null,null,""]
[null,null,null,null,null,null,null,null,null,null,null,null,null,null,null,null,null,"","","","",null,"","","",null,"","",null,"",null,null,"",null,null,"","","","","","",null,null,null,null,null,null,null,null,null,null,null,null,null,null,null,null,null,null,null,null,null,null,null,null,null,null,null,null,null,null,null,null,"","","",null,null,null,null,null,null,null,null,null,null,null,null,null,"","","",null,null,"","","",null,null,null,"","","","","",null,null,null,null,null,null,null,null,""]
[null,null,null,null,null,null,null,null,null,null,null,null,null,null,null,null,null,"","","","",null,"","","",null,"","",null,"",null,null,"",null,null,"","","","","","",null,null,null,null,null,null,null,null,null,null,null,null,null,null,null,null,null,null,null,null,null,null,null,null,null,null,null,null,null,null,null,null,"","","",null,null,null,null,null,null,null,null,null,null,null,null,null,"","","",null,null,"","","",null,null,null,"","","","","",null,null,null,null,null,null,null,null,""]
[null,null,null,null,null,null,null,null,null,null,null,null,null,null,null,null,null,"","","","",null,"","","",null,"","",null,"",null,null,"",null,null,"","","","","","",null,null,null,null,null,null,null,null,null,null,null,null,null,null,null,null,null,null,null,null,null,null,null,null,null,null,null,null,null,null,null,null,"","","",null,null,null,null,null,null,null,null,null,null,null,null,null,"","","",null,null,"","","",null,null,null,"","","","","",null,null,null,null,null,null,null,null,""]
[null,null,null,null,null,null,null,null,null,null,null,null,null,null,null,null,null,"","","","",null,"","","",null,"","",null,"",null,null,"",null,null,"","","","","","",null,null,null,null,null,null,null,null,null,null,null,null,null,null,null,null,null,null,null,null,null,null,null,null,null,null,null,null,null,null,null,null,"","","",null,null,null,null,null,null,null,null,null,null,null,null,null,"","","",null,null,"","","",null,null,null,"","","","","",null,null,null,null,null,null,null,null,""]
[null,null,null,null,null,null,null,null,null,null,null,null,null,null,null,null,null,"","","","",null,"","","",null,"","",null,"",null,null,"",null,null,"","","","","","",null,null,null,null,null,null,null,null,null,null,null,null,null,null,null,null,null,null,null,null,null,null,null,null,null,null,null,null,null,null,null,null,"","","",null,null,null,null,null,null,null,null,null,null,null,null,null,"","","",null,null,"","","",null,null,null,"","","","","",null,null,null,null,null,null,null,null,""]
[null,null,null,null,null,null,null,null,null,null,null,null,null,null,null,null,null,"","","","",null,"","","",null,"","",null,"",null,null,"",null,null,"","","","","","",null,null,null,null,null,null,null,null,null,null,null,null,null,null,null,null,null,null,null,null,null,null,null,null,null,null,null,null,null,null,null,null,"","","",null,null,null,null,null,null,null,null,null,null,null,null,null,"","","",null,null,"","","",null,null,null,"","","","","",null,null,null,null,null,null,null,null,""]
[null,null,null,null,null,null,null,null,null,null,null,null,null,null,null,null,null,"","","","",null,"","","",null,"","",null,"",null,null,"",null,null,"","","","","","",null,null,null,null,null,null,null,null,null,null,null,null,null,null,null,null,null,null,null,null,null,null,null,null,null,null,null,null,null,null,null,null,"","","",null,null,null,null,null,null,null,null,null,null,null,null,null,"","","",null,null,"","","",null,null,null,"","","","","",null,null,null,null,null,null,null,null,""]
[null,null,null,null,null,null,null,null,null,null,null,null,null,null,null,null,null,"","","","",null,"","","",null,"","",null,"",null,null,"",null,null,"","","","","","",null,null,null,null,null,null,null,null,null,null,null,null,null,null,null,null,null,null,null,null,null,null,null,null,null,null,null,null,null,null,null,null,"","","",null,null,null,null,null,null,null,null,null,null,null,null,null,"","","",null,null,"","","",null,null,null,"","","","","",null,null,null,null,null,null,null,null,""]
[null,null,null,null,null,null,null,null,null,null,null,null,null,null,null,null,null,"","","","",null,"","","",null,"","",null,"",null,null,"",null,null,"","","","","","",null,null,null,null,null,null,null,null,null,null,null,null,null,null,null,null,null,null,null,null,null,null,null,null,null,null,null,null,null,null,null,null,"","","",null,null,null,null,null,null,null,null,null,null,null,null,null,"","","",null,null,"","","",null,null,null,"","","","","",null,null,null,null,null,null,null,null,""]
[null,null,null,null,null,null,null,null,null,null,null,null,null,null,null,null,null,"","","","",null,"","","",null,"","",null,"",null,null,"",null,null,"","","","","","",null,null,null,null,null,null,null,null,null,null,null,null,null,null,null,null,null,null,null,null,null,null,null,null,null,null,null,null,null,null,null,null,"","","",null,null,null,null,null,null,null,null,null,null,null,null,null,"","","",null,null,"","","",null,null,null,"","","","","",null,null,null,null,null,null,null,null,""]
[null,null,null,null,null,null,null,null,null,null,null,null,null,null,null,null,null,"","","","",null,"","","",null,"","",null,"",null,null,"",null,null,"","","","","","",null,null,null,null,null,null,null,null,null,null,null,null,null,null,null,null,null,null,null,null,null,null,null,null,null,null,null,null,null,null,null,null,"","","",null,null,null,null,null,null,null,null,null,null,null,null,null,"","","",null,null,"","","",null,null,null,"","","","","",null,null,null,null,null,null,null,null,""]
[null,null,null,null,null,null,null,null,null,null,null,null,null,null,null,null,null,"","","","",null,"","","",null,"","",null,"",null,null,"",null,null,"","","","","","",null,null,null,null,null,null,null,null,null,null,null,null,null,null,null,null,null,null,null,null,null,null,null,null,null,null,null,null,null,null,null,null,"","","",null,null,null,null,null,null,null,null,null,null,null,null,null,"","","",null,null,"","","",null,null,null,"","","","","",null,null,null,null,null,null,null,null,""]
[null,null,null,null,null,null,null,null,null,null,null,null,null,null,null,null,null,"","","","",null,"","","",null,"","",null,"",null,null,"",null,null,"","","","","","",null,null,null,null,null,null,null,null,null,null,null,null,null,null,null,null,null,null,null,null,null,null,null,null,null,null,null,null,null,null,null,null,"","","",null,null,null,null,null,null,null,null,null,null,null,null,null,"","","",null,null,"","","",null,null,null,"","","","","",null,null,null,null,null,null,null,null,""]
[null,null,null,null,null,null,null,null,null,null,null,null,null,null,null,null,null,"","","","",null,"","","",null,"","",null,"",null,null,"",null,null,"","","","","","",null,null,null,null,null,null,null,null,null,null,null,null,null,null,null,null,null,null,null,null,null,null,null,null,null,null,null,null,null,null,null,null,"","","",null,null,null,null,null,null,null,null,null,null,null,null,null,"","","",null,null,"","","",null,null,null,"","","","","",null,null,null,null,null,null,null,null,""]
[null,null,null,null,null,null,null,null,null,null,null,null,null,null,null,null,null,"","","","",null,"","","",null,"","",null,"",null,null,"",null,null,"","","","","","",null,null,null,null,null,null,null,null,null,null,null,null,null,null,null,null,null,null,null,null,null,null,null,null,null,null,null,null,null,null,null,null,"","","",null,null,null,null,null,null,null,null,null,null,null,null,null,"","","",null,null,"","","",null,null,null,"","","","","",null,null,null,null,null,null,null,null,""]
[null,null,null,null,null,null,null,null,null,null,null,null,null,null,null,null,null,"","","","",null,"","","",null,"","",null,"",null,null,"",null,null,"","","","","","",null,null,null,null,null,null,null,null,null,null,null,null,null,null,null,null,null,null,null,null,null,null,null,null,null,null,null,null,null,null,null,null,"","","",null,null,null,null,null,null,null,null,null,null,null,null,null,"","","",null,null,"","","",null,null,null,"","","","","",null,null,null,null,null,null,null,null,""]
[null,null,null,null,null,null,null,null,null,null,null,null,null,null,null,null,null,"","","","",null,"","","",null,"","",null,"",null,null,"",null,null,"","","","","","",null,null,null,null,null,null,null,null,null,null,null,null,null,null,null,null,null,null,null,null,null,null,null,null,null,null,null,null,null,null,null,null,"","","",null,null,null,null,null,null,null,null,null,null,null,null,null,"","","",null,null,"","","",null,null,null,"","","","","",null,null,null,null,null,null,null,null,""]
[null,null,null,null,null,null,null,null,null,null,null,null,null,null,null,null,null,"","","","",null,"","","",null,"","",null,"",null,null,"",null,null,"","","","","","",null,null,null,null,null,null,null,null,null,null,null,null,null,null,null,null,null,null,null,null,null,null,null,null,null,null,null,null,null,null,null,null,"","","",null,null,null,null,null,null,null,null,null,null,null,null,null,"","","",null,null,"","","",null,null,null,"","","","","",null,null,null,null,null,null,null,null,""]
[null,null,null,null,null,null,null,null,null,null,null,null,null,null,null,null,null,"","","","",null,"","","",null,"","",null,"",null,null,"",null,null,"","","","","","",null,null,null,null,null,null,null,null,null,null,null,null,null,null,null,null,null,null,null,null,null,null,null,null,null,null,null,null,null,null,null,null,"","","",null,null,null,null,null,null,null,null,null,null,null,null,null,"","","",null,null,"","","",null,null,null,"","","","","",null,null,null,null,null,null,null,null,""]
[null,null,null,null,null,null,null,null,null,null,null,null,null,null,null,null,null,"","","","",null,"","","",null,"","",null,"",null,null,"",null,null,"","","","","","",null,null,null,null,null,null,null,null,null,null,null,null,null,null,null,null,null,null,null,null,null,null,null,null,null,null,null,null,null,null,null,null,"","","",null,null,null,null,null,null,null,null,null,null,null,null,null,"","","",null,null,"","","",null,null,null,"","","","","",null,null,null,null,null,null,null,null,""]
[null,null,null,null,null,null,null,null,null,null,null,null,null,null,null,null,null,"","","","",null,"","","",null,"","",null,"",null,null,"",null,null,"","","","","","",null,null,null,null,null,null,null,null,null,null,null,null,null,null,null,null,null,null,null,null,null,null,null,null,null,null,null,null,null,null,null,null,"","","",null,null,null,null,null,null,null,null,null,null,null,null,null,"","","",null,null,"","","",null,null,null,"","","","","",null,null,null,null,null,null,null,null,""]
[null,null,null,null,null,null,null,null,null,null,null,null,null,null,null,null,null,"","","","",null,"","","",null,"","",null,"",null,null,"",null,null,"","","","","","",null,null,null,null,null,null,null,null,null,null,null,null,null,null,null,null,null,null,null,null,null,null,null,null,null,null,null,null,null,null,null,null,"","","",null,null,null,null,null,null,null,null,null,null,null,null,null,"","","",null,null,"","","",null,null,null,"","","","","",null,null,null,null,null,null,null,null,""]
[null,null,null,null,null,null,null,null,null,null,null,null,null,null,null,null,null,"","","","",null,"","","",null,"","",null,"",null,null,"",null,null,"","","","","","",null,null,null,null,null,null,null,null,null,null,null,null,null,null,null,null,null,null,null,null,null,null,null,null,null,null,null,null,null,null,null,null,"","","",null,null,null,null,null,null,null,null,null,null,null,null,null,"","","",null,null,"","","",null,null,null,"","","","","",null,null,null,null,null,null,null,null,""]
[null,null,null,null,null,null,null,null,null,null,null,null,null,null,null,null,null,"","","","",null,"","","",null,"","",null,"",null,null,"",null,null,"","","","","","",null,null,null,null,null,null,null,null,null,null,null,null,null,null,null,null,null,null,null,null,null,null,null,null,null,null,null,null,null,null,null,null,"","","",null,null,null,null,null,null,null,null,null,null,null,null,null,"","","",null,null,"","","",null,null,null,"","","","","",null,null,null,null,null,null,null,null,""]
[null,null,null,null,null,null,null,null,null,null,null,null,null,null,null,null,null,"","","","",null,"","","",null,"","",null,"",null,null,"",null,null,"","","","","","",null,null,null,null,null,null,null,null,null,null,null,null,null,null,null,null,null,null,null,null,null,null,null,null,null,null,null,null,null,null,null,null,"","","",null,null,null,null,null,null,null,null,null,null,null,null,null,"","","",null,null,"","","",null,null,null,"","","","","",null,null,null,null,null,null,null,null,""]
[null,null,null,null,null,null,null,null,null,null,null,null,null,null,null,null,null,"","","","",null,"","","",null,"","",null,"",null,null,"",null,null,"","","","","","",null,null,null,null,null,null,null,null,null,null,null,null,null,null,null,null,null,null,null,null,null,null,null,null,null,null,null,null,null,null,null,null,"","","",null,null,null,null,null,null,null,null,null,null,null,null,null,"","","",null,null,"","","",null,null,null,"","","","","",null,null,null,null,null,null,null,null,""]
[null,null,null,null,null,null,null,null,null,null,null,null,null,null,null,null,null,"","","","",null,"","","",null,"","",null,"",null,null,"",null,null,"","","","","","",null,null,null,null,null,null,null,null,null,null,null,null,null,null,null,null,null,null,null,null,null,null,null,null,null,null,null,null,null,null,null,null,"","","",null,null,null,null,null,null,null,null,null,null,null,null,null,"","","",null,null,"","","",null,null,null,"","","","","",null,null,null,null,null,null,null,null,""]
[null,null,null,null,null,null,null,null,null,null,null,null,null,null,null,null,null,"","","","",null,"","","",null,"","",null,"",null,null,"",null,null,"","","","","","",null,null,null,null,null,null,null,null,null,null,null,null,null,null,null,null,null,null,null,null,null,null,null,null,null,null,null,null,null,null,null,null,"","","",null,null,null,null,null,null,null,null,null,null,null,null,null,"","","",null,null,"","","",null,null,null,"","","","","",null,null,null,null,null,null,null,null,""]
[null,null,null,null,null,null,null,null,null,null,null,null,null,null,null,null,null,"","","","",null,"","","",null,"","",null,"",null,null,"",null,null,"","","","","","",null,null,null,null,null,null,null,null,null,null,null,null,null,null,null,null,null,null,null,null,null,null,null,null,null,null,null,null,null,null,null,null,"","","",null,null,null,null,null,null,null,null,null,null,null,null,null,"","","",null,null,"","","",null,null,null,"","","","","",null,null,null,null,null,null,null,null,""]
[null,null,null,null,null,null,null,null,null,null,null,null,null,null,null,null,null,"","","","",null,"","","",null,"","",null,"",null,null,"",null,null,"","","","","","",null,null,null,null,null,null,null,null,null,null,null,null,null,null,null,null,null,null,null,null,null,null,null,null,null,null,null,null,null,null,null,null,"","","",null,null,null,null,null,null,null,null,null,null,null,null,null,"","","",null,null,"","","",null,null,null,"","","","","",null,null,null,null,null,null,null,null,""]
[null,null,null,null,null,null,null,null,null,null,null,null,null,null,null,null,null,"","","","",null,"","","",null,"","",null,"",null,null,"",null,null,"","","","","","",null,null,null,null,null,null,null,null,null,null,null,null,null,null,null,null,null,null,null,null,null,null,null,null,null,null,null,null,null,null,null,null,"","","",null,null,null,null,null,null,null,null,null,null,null,null,null,"","","",null,null,"","","",null,null,null,"","","","","",null,null,null,null,null,null,null,null,""]
[null,null,null,null,null,null,null,null,null,null,null,null,null,null,null,null,null,"","","","",null,"","","",null,"","",null,"",null,null,"",null,null,"","","","","","",null,null,null,null,null,null,null,null,null,null,null,null,null,null,null,null,null,null,null,null,null,null,null,null,null,null,null,null,null,null,null,null,"","","",null,null,null,null,null,null,null,null,null,null,null,null,null,"","","",null,null,"","","",null,null,null,"","","","","",null,null,null,null,null,null,null,null,""]
[null,null,null,null,null,null,null,null,null,null,null,null,null,null,null,null,null,"","","","",null,"","","",null,"","",null,"",null,null,"",null,null,"","","","","","",null,null,null,null,null,null,null,null,null,null,null,null,null,null,null,null,null,null,null,null,null,null,null,null,null,null,null,null,null,null,null,null,"","","",null,null,null,null,null,null,null,null,null,null,null,null,null,"","","",null,null,"","","",null,null,null,"","","","","",null,null,null,null,null,null,null,null,""]
[null,null,null,null,null,null,null,null,null,null,null,null,null,null,null,null,null,"","","","",null,"","","",null,"","",null,"",null,null,"",null,null,"","","","","","",null,null,null,null,null,null,null,null,null,null,null,null,null,null,null,null,null,null,null,null,null,null,null,null,null,null,null,null,null,null,null,null,"","","",null,null,null,null,null,null,null,null,null,null,null,null,null,"","","",null,null,"","","",null,null,null,"","","","","",null,null,null,null,null,null,null,null,""]
[null,null,null,null,null,null,null,null,null,null,null,null,null,null,null,null,null,"","","","",null,"","","",null,"","",null,"",null,null,"",null,null,"","","","","","",null,null,null,null,null,null,null,null,null,null,null,null,null,null,null,null,null,null,null,null,null,null,null,null,null,null,null,null,null,null,null,null,"","","",null,null,null,null,null,null,null,null,null,null,null,null,null,"","","",null,null,"","","",null,null,null,"","","","","",null,null,null,null,null,null,null,null,""]
[null,null,null,null,null,null,null,null,null,null,null,null,null,null,null,null,null,"","","","",null,"","","",null,"","",null,"",null,null,"",null,null,"","","","","","",null,null,null,null,null,null,null,null,null,null,null,null,null,null,null,null,null,null,null,null,null,null,null,null,null,null,null,null,null,null,null,null,"","","",null,null,null,null,null,null,null,null,null,null,null,null,null,"","","",null,null,"","","",null,null,null,"","","","","",null,null,null,null,null,null,null,null,""]
[null,null,null,null,null,null,null,null,null,null,null,null,null,null,null,null,null,"","","","",null,"","","",null,"","",null,"",null,null,"",null,null,"","","","","","",null,null,null,null,null,null,null,null,null,null,null,null,null,null,null,null,null,null,null,null,null,null,null,null,null,null,null,null,null,null,null,null,"","","",null,null,null,null,null,null,null,null,null,null,null,null,null,"","","",null,null,"","","",null,null,null,"","","","","",null,null,null,null,null,null,null,null,""]
[null,null,null,null,null,null,null,null,null,null,null,null,null,null,null,null,null,"","","","",null,"","","",null,"","",null,"",null,null,"",null,null,"","","","","","",null,null,null,null,null,null,null,null,null,null,null,null,null,null,null,null,null,null,null,null,null,null,null,null,null,null,null,null,null,null,null,null,"","","",null,null,null,null,null,null,null,null,null,null,null,null,null,"","","",null,null,"","","",null,null,null,"","","","","",null,null,null,null,null,null,null,null,""]
[null,null,null,null,null,null,null,null,null,null,null,null,null,null,null,null,null,"","","","",null,"","","",null,"","",null,"",null,null,"",null,null,"","","","","","",null,null,null,null,null,null,null,null,null,null,null,null,null,null,null,null,null,null,null,null,null,null,null,null,null,null,null,null,null,null,null,null,"","","",null,null,null,null,null,null,null,null,null,null,null,null,null,"","","",null,null,"","","",null,null,null,"","","","","",null,null,null,null,null,null,null,null,""]
[null,null,null,null,null,null,null,null,null,null,null,null,null,null,null,null,null,"","","","",null,"","","",null,"","",null,"",null,null,"",null,null,"","","","","","",null,null,null,null,null,null,null,null,null,null,null,null,null,null,null,null,null,null,null,null,null,null,null,null,null,null,null,null,null,null,null,null,"","","",null,null,null,null,null,null,null,null,null,null,null,null,null,"","","",null,null,"","","",null,null,null,"","","","","",null,null,null,null,null,null,null,null,""]
[null,null,null,null,null,null,null,null,null,null,null,null,null,null,null,null,null,"","","","",null,"","","",null,"","",null,"",null,null,"",null,null,"","","","","","",null,null,null,null,null,null,null,null,null,null,null,null,null,null,null,null,null,null,null,null,null,null,null,null,null,null,null,null,null,null,null,null,"","","",null,null,null,null,null,null,null,null,null,null,null,null,null,"","","",null,null,"","","",null,null,null,"","","","","",null,null,null,null,null,null,null,null,""]
[null,null,null,null,null,null,null,null,null,null,null,null,null,null,null,null,null,"","","","",null,"","","",null,"","",null,"",null,null,"",null,null,"","","","","","",null,null,null,null,null,null,null,null,null,null,null,null,null,null,null,null,null,null,null,null,null,null,null,null,null,null,null,null,null,null,null,null,"","","",null,null,null,null,null,null,null,null,null,null,null,null,null,"","","",null,null,"","","",null,null,null,"","","","","",null,null,null,null,null,null,null,null,""]
[null,null,null,null,null,null,null,null,null,null,null,null,null,null,null,null,null,"","","","",null,"","","",null,"","",null,"",null,null,"",null,null,"","","","","","",null,null,null,null,null,null,null,null,null,null,null,null,null,null,null,null,null,null,null,null,null,null,null,null,null,null,null,null,null,null,null,null,"","","",null,null,null,null,null,null,null,null,null,null,null,null,null,"","","",null,null,"","","",null,null,null,"","","","","",null,null,null,null,null,null,null,null,""]
[null,null,null,null,null,null,null,null,null,null,null,null,null,null,null,null,null,"","","","",null,"","","",null,"","",null,"",null,null,"",null,null,"","","","","","",null,null,null,null,null,null,null,null,null,null,null,null,null,null,null,null,null,null,null,null,null,null,null,null,null,null,null,null,null,null,null,null,"","","",null,null,null,null,null,null,null,null,null,null,null,null,null,"","","",null,null,"","","",null,null,null,"","","","","",null,null,null,null,null,null,null,null,""]
[null,null,null,null,null,null,null,null,null,null,null,null,null,null,null,null,null,"","","","",null,"","","",null,"","",null,"",null,null,"",null,null,"","","","","","",null,null,null,null,null,null,null,null,null,null,null,null,null,null,null,null,null,null,null,null,null,null,null,null,null,null,null,null,null,null,null,null,"","","",null,null,null,null,null,null,null,null,null,null,null,null,null,"","","",null,null,"","","",null,null,null,"","","","","",null,null,null,null,null,null,null,null,""]
[null,null,null,null,null,null,null,null,null,null,null,null,null,null,null,null,null,"","","","",null,"","","",null,"","",null,"",null,null,"",null,null,"","","","","","",null,null,null,null,null,null,null,null,null,null,null,null,null,null,null,null,null,null,null,null,null,null,null,null,null,null,null,null,null,null,null,null,"","","",null,null,null,null,null,null,null,null,null,null,null,null,null,"","","",null,null,"","","",null,null,null,"","","","","",null,null,null,null,null,null,null,null,""]
[null,null,null,null,null,null,null,null,null,null,null,null,null,null,null,null,null,"","","","",null,"","","",null,"","",null,"",null,null,"",null,null,"","","","","","",null,null,null,null,null,null,null,null,null,null,null,null,null,null,null,null,null,null,null,null,null,null,null,null,null,null,null,null,null,null,null,null,"","","",null,null,null,null,null,null,null,null,null,null,null,null,null,"","","",null,null,"","","",null,null,null,"","","","","",null,null,null,null,null,null,null,null,""]
[null,null,null,null,null,null,null,null,null,null,null,null,null,null,null,null,null,"","","","",null,"","","",null,"","",null,"",null,null,"",null,null,"","","","","","",null,null,null,null,null,null,null,null,null,null,null,null,null,null,null,null,null,null,null,null,null,null,null,null,null,null,null,null,null,null,null,null,"","","",null,null,null,null,null,null,null,null,null,null,null,null,null,"","","",null,null,"","","",null,null,null,"","","","","",null,null,null,null,null,null,null,null,""]
[null,null,null,null,null,null,null,null,null,null,null,null,null,null,null,null,null,"","","","",null,"","","",null,"","",null,"",null,null,"",null,null,"","","","","","",null,null,null,null,null,null,null,null,null,null,null,null,null,null,null,null,null,null,null,null,null,null,null,null,null,null,null,null,null,null,null,null,"","","",null,null,null,null,null,null,null,null,null,null,null,null,null,"","","",null,null,"","","",null,null,null,"","","","","",null,null,null,null,null,null,null,null,""]
[null,null,null,null,null,null,null,null,null,null,null,null,null,null,null,null,null,"","","","",null,"","","",null,"","",null,"",null,null,"",null,null,"","","","","","",null,null,null,null,null,null,null,null,null,null,null,null,null,null,null,null,null,null,null,null,null,null,null,null,null,null,null,null,null,null,null,null,"","","",null,null,null,null,null,null,null,null,null,null,null,null,null,"","","",null,null,"","","",null,null,null,"","","","","",null,null,null,null,null,null,null,null,""]
[null,null,null,null,null,null,null,null,null,null,null,null,null,null,null,null,null,"","","","",null,"","","",null,"","",null,"",null,null,"",null,null,"","","","","","",null,null,null,null,null,null,null,null,null,null,null,null,null,null,null,null,null,null,null,null,null,null,null,null,null,null,null,null,null,null,null,null,"","","",null,null,null,null,null,null,null,null,null,null,null,null,null,"","","",null,null,"","","",null,null,null,"","","","","",null,null,null,null,null,null,null,null,""]
[null,null,null,null,null,null,null,null,null,null,null,null,null,null,null,null,null,"","","","",null,"","","",null,"","",null,"",null,null,"",null,null,"","","","","","",null,null,null,null,null,null,null,null,null,null,null,null,null,null,null,null,null,null,null,null,null,null,null,null,null,null,null,null,null,null,null,null,"","","",null,null,null,null,null,null,null,null,null,null,null,null,null,"","","",null,null,"","","",null,null,null,"","","","","",null,null,null,null,null,null,null,null,""]
[null,null,null,null,null,null,null,null,null,null,null,null,null,null,null,null,null,"","","","",null,"","","",null,"","",null,"",null,null,"",null,null,"","","","","","",null,null,null,null,null,null,null,null,null,null,null,null,null,null,null,null,null,null,null,null,null,null,null,null,null,null,null,null,null,null,null,null,"","","",null,null,null,null,null,null,null,null,null,null,null,null,null,"","","",null,null,"","","",null,null,null,"","","","","",null,null,null,null,null,null,null,null,""]
[null,null,null,null,null,null,null,null,null,null,null,null,null,null,null,null,null,"","","","",null,"","","",null,"","",null,"",null,null,"",null,null,"","","","","","",null,null,null,null,null,null,null,null,null,null,null,null,null,null,null,null,null,null,null,null,null,null,null,null,null,null,null,null,null,null,null,null,"","","",null,null,null,null,null,null,null,null,null,null,null,null,null,"","","",null,null,"","","",null,null,null,"","","","","",null,null,null,null,null,null,null,null,""]
[null,null,null,null,null,null,null,null,null,null,null,null,null,null,null,null,null,"","","","",null,"","","",null,"","",null,"",null,null,"",null,null,"","","","","","",null,null,null,null,null,null,null,null,null,null,null,null,null,null,null,null,null,null,null,null,null,null,null,null,null,null,null,null,null,null,null,null,"","","",null,null,null,null,null,null,null,null,null,null,null,null,null,"","","",null,null,"","","",null,null,null,"","","","","",null,null,null,null,null,null,null,null,""]
[null,null,null,null,null,null,null,null,null,null,null,null,null,null,null,null,null,"","","","",null,"","","",null,"","",null,"",null,null,"",null,null,"","","","","","",null,null,null,null,null,null,null,null,null,null,null,null,null,null,null,null,null,null,null,null,null,null,null,null,null,null,null,null,null,null,null,null,"","","",null,null,null,null,null,null,null,null,null,null,null,null,null,"","","",null,null,"","","",null,null,null,"","","","","",null,null,null,null,null,null,null,null,""]
[null,null,null,null,null,null,null,null,null,null,null,null,null,null,null,null,null,"","","","",null,"","","",null,"","",null,"",null,null,"",null,null,"","","","","","",null,null,null,null,null,null,null,null,null,null,null,null,null,null,null,null,null,null,null,null,null,null,null,null,null,null,null,null,null,null,null,null,"","","",null,null,null,null,null,null,null,null,null,null,null,null,null,"","","",null,null,"","","",null,null,null,"","","","","",null,null,null,null,null,null,null,null,""]
[null,null,null,null,null,null,null,null,null,null,null,null,null,null,null,null,null,"","","","",null,"","","",null,"","",null,"",null,null,"",null,null,"","","","","","",null,null,null,null,null,null,null,null,null,null,null,null,null,null,null,null,null,null,null,null,null,null,null,null,null,null,null,null,null,null,null,null,"","","",null,null,null,null,null,null,null,null,null,null,null,null,null,"","","",null,null,"","","",null,null,null,"","","","","",null,null,null,null,null,null,null,null,""]
[null,null,null,null,null,null,null,null,null,null,null,null,null,null,null,null,null,"","","","",null,"","","",null,"","",null,"",null,null,"",null,null,"","","","","","",null,null,null,null,null,null,null,null,null,null,null,null,null,null,null,null,null,null,null,null,null,null,null,null,null,null,null,null,null,null,null,null,"","","",null,null,null,null,null,null,null,null,null,null,null,null,null,"","","",null,null,"","","",null,null,null,"","","","","",null,null,null,null,null,null,null,null,""]
[null,null,null,null,null,null,null,null,null,null,null,null,null,null,null,null,null,"","","","",null,"","","",null,"","",null,"",null,null,"",null,null,"","","","","","",null,null,null,null,null,null,null,null,null,null,null,null,null,null,null,null,null,null,null,null,null,null,null,null,null,null,null,null,null,null,null,null,"","","",null,null,null,null,null,null,null,null,null,null,null,null,null,"","","",null,null,"","","",null,null,null,"","","","","",null,null,null,null,null,null,null,null,""]
[null,null,null,null,null,null,null,null,null,null,null,null,null,null,null,null,null,"","","","",null,"","","",null,"","",null,"",null,null,"",null,null,"","","","","","",null,null,null,null,null,null,null,null,null,null,null,null,null,null,null,null,null,null,null,null,null,null,null,null,null,null,null,null,null,null,null,null,"","","",null,null,null,null,null,null,null,null,null,null,null,null,null,"","","",null,null,"","","",null,null,null,"","","","","",null,null,null,null,null,null,null,null,""]
[null,null,null,null,null,null,null,null,null,null,null,null,null,null,null,null,null,"","","","",null,"","","",null,"","",null,"",null,null,"",null,null,"","","","","","",null,null,null,null,null,null,null,null,null,null,null,null,null,null,null,null,null,null,null,null,null,null,null,null,null,null,null,null,null,null,null,null,"","","",null,null,null,null,null,null,null,null,null,null,null,null,null,"","","",null,null,"","","",null,null,null,"","","","","",null,null,null,null,null,null,null,null,""]
[null,null,null,null,null,null,null,null,null,null,null,null,null,null,null,null,null,"","","","",null,"","","",null,"","",null,"",null,null,"",null,null,"","","","","","",null,null,null,null,null,null,null,null,null,null,null,null,null,null,null,null,null,null,null,null,null,null,null,null,null,null,null,null,null,null,null,null,"","","",null,null,null,null,null,null,null,null,null,null,null,null,null,"","","",null,null,"","","",null,null,null,"","","","","",null,null,null,null,null,null,null,null,""]

{"sheet":"C338","index":5,"n_rows":121,"n_cols":23,"rows_kept":121,"cut":false,"hidden":false,"merged":[[17,6,18,6],[17,8,18,8],[17,9,17,11],[1,8,1,16],[2,8,2,16],[17,12,18,12],[17,13,18,13],[17,7,18,7],[16,9,16,11]]}
[]
[null,null,null,null,null,null,null,null,"CENSO EDUCATIVO 2024"]
[null,null,null,null,null,null,null,null,"MATRÍCULA, DOCENTES Y MATERIALES EDUCATIVOS"]
[]
[]
[]
[null,null,null,null,null,"DOCENTES QUE DOMINAN LENGUA ORIGINARIA  (Solo para II.EE. Públicas)"]
[]
[null,null,null,null,null,"338. DOCENTES QUE DOMINAN LENGUA ORIGINARIA - Sólo para SS.EE. Públicos"]
["GESTIÓN",null,null,null,null,"338. SEGÚN LO ANOTADO EN LA PREGUNTA 307 ¿CUENTA CON DOCENTE(s) QUE DOMINE(N) UNA LENGUA ORIGINARIA?"]
[{"$f":"IF(OR(UPPER('C100'!J29)=\"X\",UPPER('C100'!O29)=\"X\"),\"X\",IF(UPPER('C100'!T29)=\"X\",\"\",\"\"))","v":""}]
[{"$f":"IF(OR(UPPER('C100'!J29)=\"X\",UPPER('C100'!O29)=\"X\"),1,IF(UPPER('C100'!T29)=\"X\",3,\"\"))","v":""},null,null,null,null,null,"","  Sí","¿Cuántos?",null,null,null,null,"Para revisar los docentes que dominan una lengua originaria"]
[]
[null,null,null,null,null,null,"","  No",null,"Pase a la sección 339.",null,null,null,"hacer click en el botón [Verificar]"]
[]
[]
[null,null,null,null,null,null,null,null,null,"340.1",null,null,"340.2","340.3","340.4","340.5","340.6","340.7"]
["340.3 ¿Cuál fue el tipo de estudios en EIB?",null,null,null,null,null,"Nº","Nº de fila registrado en la Sección 300, pregunta 307","Documento de Identidad","Conocimiento de lengua originaria",null,null,"¿Cuenta con estudios en Educación Intercultural Bilingüe?","Solo si respondió SÍ en la pregunta 340.2. ¿Cuál fue el tipo de estudios en EIB?","¿Ha recibido capacita- ción en EIB?","¿El docente enseña en lengua originaria?","¿El material recibido coincide con la lengua que enseña?","¿En la actualidad el Docente se encuentra en el Registro de Docentes Bilingües?"]
[null,"Corr","Gest","Fmt",null,null,null,null,null,"Habla","Lee","Escribe",null,null," SI - NO"," SI - NO"," SI - NO","SI - NO"]
["01: Doctorado",1,{"$f":"$A$12","v":""},{"$f":"IF(G20<>\"\",1,0)","v":0},null,null,{"$f":"IF(AND($B20<=$L$12,$C20=1),$B20,\"\")","v":""},null,"","","","","","","","","","","",""]
["02: Maestría",{"$f":"B20+1","v":2},{"$f":"$A$12","v":""},0,null,null,{"$f":"IF(AND($B21<=$L$12,$C21=1),$B21,\"\")","v":""},null,"","","","","","","","","","","",""]
["03: Segunda especialidad",{"$f":"B21+1","v":3},"",0,null,null,{"$f":"IF(AND($B22<=$L$12,$C22=1),$B22,\"\")","v":""},null,"","","","","","","","","","","",""]
["04: Especialización",4,"",0,null,null,"",null,"","","","","","","","","","","",""]
["05: Actualización",5,"",0,null,null,"",null,"","","","","","","","","","","",""]
["06: Otro",6,"",0,null,null,"",null,"","","","","","","","","","","","","","",""]
[null,7,"",0,null,null,"",null,"","","","","","","","","","","","","","",""]
[null,8,"",0,null,null,"",null,"","","","","","","","","","","","","","",""]
["SI",9,"",0,null,null,"",null,"","","","","","","","","","","","","","",""]
["NO",10,"",0,null,null,"",null,"","","","","","","","","","","","","","",""]
[null,11,"",0,null,null,"",null,"","","","","","","","","","","","","","",""]
[null,12,"",0,null,null,"",null,"","","","","","","","","","","","","","",""]
[null,13,"",0,null,null,"",null,"","","","","","","","","","","","","","",""]
[null,14,"",0,null,null,"",null,"","","","","","","","","","","","","","",""]
[null,15,"",0,null,null,"",null,"","","","","","","","","","","","","","",""]
[null,16,"",0,null,null,"",null,"","","","","","","","","","","","","","",""]
[null,17,"",0,null,null,"",null,"","","","","","","","","","","","","","",""]
[null,18,"",0,null,null,"",null,"","","","","","","","","","","","","","",""]
[null,19,"",0,null,null,"",null,"","","","","","","","","","","","","","",""]
[null,20,"",0,null,null,"",null,"","","","","","","","","","","","","","",""]
[null,21,"",0,null,null,"",null,"","","","","","","","","","","","","","",""]
[null,22,"",0,null,null,"",null,"","","","","","","","","","","","","","",""]
[null,23,"",0,null,null,"",null,"","","","","","","","","","","","","","",""]
[null,24,"",0,null,null,"",null,"","","","","","","","","","","","","","",""]
[null,25,"",0,null,null,"",null,"","","","","","","","","","","","","","",""]
[null,26,"",0,null,null,"",null,"","","","","","","","","","","","","","",""]
[null,27,"",0,null,null,"",null,"","","","","","","","","","","","","","",""]
[null,28,"",0,null,null,"",null,"","","","","","","","","","","","","","",""]
[null,29,"",0,null,null,"",null,"","","","","","","","","","","","","","",""]
[null,30,"",0,null,null,"",null,"","","","","","","","","","","","","","",""]
[null,31,"",0,null,null,"",null,"","","","","","","","","","","","","","",""]
[null,32,"",0,null,null,"",null,"","","","","","","","","","","","","","",""]
[null,33,"",{"$f":"IF(G52<>\"\",1,0)","v":0},null,null,"",null,"","","","","","","","","","","","","","",""]
[null,34,"",0,null,null,"",null,"","","","","","","","","","","","","","",""]
[null,35,"",0,null,null,"",null,"","","","","","","","","","","","","","",""]
[null,36,"",0,null,null,"",null,"","","","","","","","","","","","","","",""]
[null,37,"",0,null,null,"",null,"","","","","","","","","","","","","","",""]
[null,38,"",0,null,null,"",null,"","","","","","","","","","","","","","",""]
[null,39,"",0,null,null,"",null,"","","","","","","","","","","","","","",""]
[null,40,"",0,null,null,"",null,"","","","","","","","","","","","","","",""]
[null,41,"",0,null,null,"",null,"","","","","","","","","","","","","","",""]
[null,42,"",0,null,null,"",null,"","","","","","","","","","","","","","",""]
[null,43,"",0,null,null,"",null,"","","","","","","","","","","","","","",""]
[null,44,"",0,null,null,"",null,"","","","","","","","","","","","","","",""]
[null,45,"",0,null,null,"",null,"","","","","","","","","","","","","","",""]
[null,46,"",0,null,null,"",null,"","","","","","","","","","","","","","",""]
[null,47,"",0,null,null,"",null,"","","","","","","","","","","","","","",""]
[null,48,"",0,null,null,"",null,"","","","","","","","","","","","","","",""]
[null,49,"",0,null,null,"",null,"","","","","","","","","","","","","","",""]
[null,50,"",0,null,null,"",null,"","","","","","","","","","","","","","",""]
[null,51,"",0,null,null,"",null,"","","","","","","","","","","","","","",""]
[null,52,"",0,null,null,"",null,"","","","","","","","","","","","","","",""]
[null,53,"",0,null,null,"",null,"","","","","","","","","","","","","","",""]
[null,54,"",0,null,null,"",null,"","","","","","","","","","","","","","",""]
[null,55,"",0,null,null,"",null,"","","","","","","","","","","","","","",""]
[null,56,"",0,null,null,"",null,"","","","","","","","","","","","","","",""]
[null,57,"",0,null,null,"",null,"","","","","","","","","","","","","","",""]
[null,58,"",0,null,null,"",null,"","","","","","","","","","","","","","",""]
[null,59,"",0,null,null,"",null,"","","","","","","","","","","","","","",""]
[null,60,"",0,null,null,"",null,"","","","","","","","","","","","","","",""]
[null,61,"",0,null,null,"",null,"","","","","","","","","","","","","","",""]
[null,62,"",0,null,null,"",null,"","","","","","","","","","","","","","",""]
[null,63,"",0,null,null,"",null,"","","","","","","","","","","","","","",""]
[null,64,"",0,null,null,"",null,"","","","","","","","","","","","","","",""]
[null,65,"",{"$f":"IF(G84<>\"\",1,0)","v":0},null,null,"",null,"","","","","","","","","","","","","","",""]
[null,66,{"$f":"$A$12","v":""},0,null,null,"",null,"","","","","","","","","","","","","","",""]
[null,{"$f":"B85+1","v":67},"",0,null,null,{"$f":"IF(AND($B86<=$L$12,$C86=1),$B86,\"\")","v":""},null,"","","","","","","","","","","","","","",""]
[null,68,"",0,null,null,"",null,"","","","","","","","","","","","","","",""]
[null,69,"",0,null,null,"",null,"","","","","","","","","","","","","","",""]
[null,70,"",0,null,null,"",null,"","","","","","","","","","","","","","",""]
[null,71,"",0,null,null,"",null,"","","","","","","","","","","","","","",""]
[null,72,"",0,null,null,"",null,"","","","","","","","","","","","","","",""]
[null,73,"",0,null,null,"",null,"","","","","","","","","","","","","","",""]
[null,74,"",0,null,null,"",null,"","","","","","","","","","","","","","",""]
[null,75,"",0,null,null,"",null,"","","","","","","","","","","","","","",""]
[null,76,"",0,null,null,"",null,"","","","","","","","","","","","","","",""]
[null,77,"",0,null,null,"",null,"","","","","","","","","","","","","","",""]
[null,78,"",0,null,null,"",null,"","","","","","","","","","","","","","",""]
[null,79,"",0,null,null,"",null,"","","","","","","","","","","","","","",""]
[null,80,"",0,null,null,"",null,"","","","","","","","","","","","","","",""]
[null,81,"",0,null,null,"",null,"","","","","","","","","","","","","","",""]
[null,82,"",0,null,null,"",null,"","","","","","","","","","","","","","",""]
[null,83,"",0,null,null,"",null,"","","","","","","","","","","","","","",""]
[null,84,"",0,null,null,"",null,"","","","","","","","","","","","","","",""]
[null,85,"",0,null,null,"",null,"","","","","","","","","","","","","","",""]
[null,86,"",0,null,null,"",null,"","","","","","","","","",""]
[null,87,"",0,null,null,"",null,"","","","","","","","","",""]
[null,88,"",0,null,null,"",null,"","","","","","","","","",""]
[null,89,"",0,null,null,"",null,"","","","","","","","","",""]
[null,90,"",0,null,null,"",null,"","","","","","","","","",""]
[null,91,"",0,null,null,"",null,"","","","","","","","","",""]
[null,92,"",0,null,null,"",null,"","","","","","","","","",""]
[null,93,"",0,null,null,"",null,"","","","","","","","","",""]
[null,94,"",0,null,null,"",null,"","","","","","","","","",""]
[null,95,"",0,null,null,"",null,"","","","","","","","","",""]
[null,96,"",0,null,null,"",null,"","","","","","","","","",""]
[null,97,"",0,null,null,"",null,"","","","","","","","","",""]
[null,98,"",0,null,null,"",null,"","","","","","","","","",""]
[null,99,"",0,null,null,"",null,"","","","","","","","","",""]
[null,100,"",0,null,null,"",null,"","","","","","","","","","","","","","",""]
[]
[null,null,null,null,null,null,"-----"]

{"sheet":"C400","index":6,"n_rows":111,"n_cols":30,"rows_kept":111,"cut":false,"hidden":false,"merged":[[59,8,62,8],[60,9,63,9],[62,16,62,17],[64,16,64,17],[65,16,65,17],[71,16,71,17],[66,16,66,17],[67,16,67,17],[68,16,68,17],[69,16,69,17],[70,16,70,17],[26,14,26,15],[27,14,27,15],[41,11,41,15],[59,10,63,10],[59,14,63,14],[59,13,63,13],[59,15,63,15],[59,11,63,11],[59,12,63,12],[28,14,28,15],[21,14,21,15],[22,14,22,15],[23,14,23,15],[24,14,24,15],[25,14,25,15],[102,3,103,4],[104,3,109,4],[1,4,1,14],[2,4,2,14],[74,2,74,17],[100,3,101,4],[98,11,99,11],[98,12,98,16],[98,17,99,17],[17,14,17,15],[16,14,16,15],[16,11,17,11],[18,14,18,15],[19,14,19,15],[29,14,29,15],[20,14,20,15],[98,18,98,22],[98,23,99,23],[98,24,98,28],[96,23,97,28],[96,3,99,4],[96,8,98,8],[96,9,98,9],[96,11,97,16],[96,17,97,22],[96,10,98,10],[96,5,98,7]]}
[]
[null,null,null,null,"CENSO EDUCATIVO 2024"]
[null,null,null,null,"MATRÍCULA, DOCENTES Y MATERIALES EDUCATIVOS"]
[]
[]
[]
[null,null,"339. EN ESTE SERVICIO/NIVEL EDUCATIVO, ¿SE DESARROLLAN LAS COMPETENCIAS DE ARTE Y CULTURA?"]
[]
[null,null,null,"Sí  ",null,null,"¿Cuántos docentes están asignados",null,null,null,"¿El desarrollo de las competencias en",null,null,null,null,"Sí  "]
[null,null,null,null,null,null,"al dictado de la asignatura?",null,null,null,"Arte y Cultura se realizan dentro del"]
[null,null,null,"No  ",null,null,null,null,null,null,"horario regular?",null,null,null,null,"No  "]
[]
[]
[null,null,"340. ÁREA DE INGLÉS"]
[null,null,"340.1 ¿CUÁNTOS DOCENTES ESTÁN A CARGO DEL ÁREA DE INGLÉS",null,null,null,null,null,null,"341. CANTIDAD DE HORAS QUE DEDICA A LAS SIGUIENTES ÁREAS SEMANALMENTE"]
[]
[null,null,null,null,null,"Especialidad",null,"Otra",null,null,null,"Área",null,null,"Cantidad"]
[null,null,null,"TOTAL",null,"de Inglés",null,"Especialidad",null,null,null,null,null,null,"de horas"]
[null,null,null,{"$f":"F19+H19","v":0},null,null,null,null,null,null,"Desarrollo Personal, Ciudadanía y Cívica"]
[null,null,null,null,null,null,null,null,null,null,"Ciencias Sociales"]
[null,null,"340.2 ¿RECIBE ATENCIÓN PEDAGÓGICA O SOPORTE TÉCNICO PARA EL ÁREA DE",null,null,null,null,null,null,null,"Educación para el Trabajo"]
[null,null,null,"INGLÉS POR PARTE DE LA UGEL?",null,null,null,null,null,null,"Educación Física"]
[null,null,null,null,null,null,null,null,null,null,"Comunicación"]
[null,null,null,"Sí  ",null,"No  ",null,null,null,null,"Arte y Cultura"]
[null,null,null,null,null,null,null,null,null,null,"Castellano como Segunda Lengua"]
[null,null,"340.3 ¿CUENTA  CON CUADERNOS DE TRABAJO DE INGLÉS, NUNCA USADOS PARA ESTUDIANTES?",null,null,null,null,null,null,null,"Inglés como Lengua Extranjera"]
[null,null,null,null,null,null,null,null,null,null,"Matemática"]
[null,null,null,null,null,null,null,null,null,null,"Ciencia y Tecnología"]
[null,null,null,"Sí  ",null,"No  ",null,null,null,null,"Educación religiosa"]
[null,null,null,null,null,null,null,null,null,null,"Tutoría y Orientación Educativa"]
[null,null,null,null,null,"¿Cuántos?",null,null,null,null,null,null,null,null,null,{"$f":"SUM(O19:P30)","v":0}]
[]
[null,null,"342. ÁREA DE PSICOLOGÍA"]
[null,null,"342.1 DURANTE EL PRESENTE AÑO, ¿SE CUENTA CON ALGÚN PROFESIONAL DE PSICOLOGÍA",null,null,null,null,null,null,"342.2. ¿A TRAVÉS DE QUÉ MECANISMO SE INCORPORÓ AL PROFESIONAL DE PSICOLOGÍA?"]
[null,null,null,"INCORPORADO AL SERVICIO/NIVEL EDUCATIVO O PROGRAMA EDUCATIVO?",null,null,null,null,null,null,"Marque con una “X”, una opcion"]
[]
[null,null,null,null,null,null,null,null,null,"Contratación a través de UGEL (alguna intervención o estrategia)"]
[null,null,null,"Sí  ",null,null,null,null,null,"Contratación a través de UGEL (identificación de necesidad)"]
[null,null,null,null,null,null,null,null,null,"Prácticas profesionales"]
[null,null,null,null,null,null,null,null,null,"Servicio Rural y Urbano Marginal de Salud (Serums)"]
[null,null,null,"No  ",null,null,"Pase a la pregunta 343",null,null,"Pasantias"]
[null,null,null,null,null,null,null,null,null,"Otro"]
[]
[null,null,"343. JEFE O RESPONSABLE DE TALLER EN EL ÁREA DE EDUCACIÓN PARA EL TRABAJO. - Sólo para SS.EE. Públicos"]
[null,null,"343. ¿CUENTA CON JEFE(S) O RESPONSABLE(S) DE TALLER EN EL ÁREA DE EDUCACIÓN PARA EL TRABAJO?"]
[]
[null,null,null,"Sí  ",null,null,null,null,null,"Nro","DNI"]
[null,null,null,null,null,null,null,null,null,1,null,{"$f":"IF(K48<>\"\",1,0)","v":0}]
[null,null,null,null,null,"¿Cuántos?",null,null,null,2,null,{"$f":"IF(K49<>\"\",1,0)","v":0}]
[null,null,null,null,null,null,null,null,null,3,null,0]
[null,null,null,"No  ",null,null,null,null,null,4,null,0]
[null,null,null,null,null,null,null,null,null,5,null,0]
[null,null,null,null,null,null,null,null,null,6,null,0]
[null,null,null,null,null,null,null,null,null,7,null,0]
[null,null,null,null,null,null,null,null,null,8,null,0]
[]
[null,null,"344. DURANTE EL AÑO 2023 ESTE SERVICIO/NIVEL EDUCATIVO, ¿TUVÓ ALGUNA PLAZA DE PERSONAL ADMINISTRATIVO QUE NO HA LOGRADO CUBRIR?"]
[]
[null,null,null,null,null,null,null,null,"(1)","(2)","(3)  ¿Porqué no ha logrado cubrir la plaza?"]
[null,null,null,null,null,null,null,null,"¿Tuvo plaza de personal adminis- trativo vacante?","¿Cuántos recibió?","La Institución Educativa no requiere al personal asignado","No se presentaron postulantes","Postulantes no cuentan con la experiencia requerida","UGEL no brinda mayor información","Requiero otro tipo de personal","Otro"]
[null,null,null,null,null,"CARGO",null,null,null,"Solo si respondio “SI” en el numeral (1)"]
[]
[null,null,null,null,null,null,null,null,null,null,null,null,null,null,null,null,"Especificar"]
[null,null,null,null,null,null,null,{"$f":"COUNTIF(I65:I72,\"SI\")+COUNTIF(I65:I72,\"NO\")","v":5},"SI - NO"]
[null,null,"01","a. Coordinador Administrativo",null,null,null,null,"SI",3,"","","","","","",""]
[null,null,"02","b. Secretaria(o)",null,null,null,null,"SI",3,"","","","","","",""]
[null,null,"03","c. Oficinista",null,null,null,null,"NO",null,"X","X","X","X","X","X"]
[null,null,"04","d. Trabajador de servicio - funciones de guardianía y/o vigilancia",null,null,null,null,"NO",null,"X","X","X","X",null,"X"]
[null,null,"05","e. Trabajador de servicio - funciones de limpieza y mantenimiento",null,null,null,null,"SI",3,"","","","","","",""]
[null,null,"06","f. Auxiliar de Biblioteca"]
[null,null,"07","g. Auxiliar de Laboratorio"]
[null,null,"08","h. Otro"]
[]
[]
["",null,"400. MATERIALES EDUCATIVOS (SOLO GESTIÓN PÚBLICA)"]
[""]
["GESTIÓN",null,"401. ¿DURANTE LOS ÚLTIMOS MESES DEL AÑO 2023 O INICIOS DEL AÑO 2024,  EL SERVICIO",null,null,null,null,null,null,"403. ¿LA BIBLIOTECA DE ESTE SERVICIO/NIVEL EDUCATIVO CUENTA CON LIBROS DE\nDIVERSAS"]
[{"$f":"IF(OR(UPPER('C100'!J29)=\"X\",UPPER('C100'!O29)=\"X\"),\"X\",IF(UPPER('C100'!T29)=\"X\",\"\",\"\"))","v":""},null,null,"EDUCATIVO RECIBIÓ LA DOTACIÓN DE MATERIALES EDUCATIVOS 2023, PROVISTOS POR EL",null,null,null,null,null,"TEMÁTICAS RELACIONADAS AL ÁREA DE DESARROLLO PERSONAL, CIUDADANÍA Y CÍVICA?"]
[null,null,null,"MINISTERIO DE EDUCACIÓN PARA SU USO EN EL PRESENTE AÑO ESCOLAR?"]
[null,null,null,null,null,null,null,null,null,null,null," Sí  "]
[null,null,null," Sí  ",null,"No    ",null,"Pase a la SECCIÓN 500."]
[null,null,null,null,null,null,null,null,null,null,null," No  ",null,null,"Pase a la pregunta 405."]
[]
[null,null,"402. ¿RECIBIÓ CUADERNOS DE TRABAJO EN LENGUA ORIGINARIA?",null,null,null,null,null,null,"404. CONSIDERA QUE LA CANTIDAD DE LIBROS DEL ÁREA DE DESARROLLO PERSONAL,"]
[null,null,null,null,null,null,null,null,null,"CIUDADANÍA Y CÍVICA DE LA BIBLIOTECA SON:"]
[null,null,null," Sí  ",null," No    ",null,null,null,null,"Marque con una \"X\", una opción"]
[]
[null,null,null,null,null,null,null,null,null,null,"Muchos"]
[null,null,null,"¿CORRESPONDEN A LA LENGUA DE LOS ESTUDIANTES DE",null,null,null,null,null,null,"Suficientes"]
[null,null,null,"ESTE SERVICIO/NIVEL EDUCATIVO?",null,null,null,null,null,null,"Medianamente suficientes"]
[null,null,null,null,null,null,null,null,null,null,"Pocos"]
[null,null,null," Sí  ",null," No    ",null,null,null,null,"Muy pocos (o nada)"]
[]
[1]
[null,null,"405. DETALLE DE CUADERNOS DE TRABAJO Y FICHAS CORRESPONDIENTES A LA DOTACIÓN 2024 POR GRADO"]
[]
[null,null,null,"BENEFICIARIO",null,"MATERIAL EDUCATIVO",null,null,"¿Recibió los materiales?","Primera Fecha de Recepción","Última Fecha de Recepción","CANTIDAD DE MATERIAL RECIBIDO",null,null,null,null,null,"CANTIDAD DE MATERIAL SOBRANTE",null,null,null,null,null,"CANTIDAD DE MATERIAL FALTANTE"]
[]
[null,null,null,null,null,null,null,null,null,null,null,"TOTAL RECIBIDO","GRADO DE ESTUDIO",null,null,null,null,"TOTAL SOBRANTE","GRADO DE ESTUDIO",null,null,null,null,"TOTAL FALTANTE","GRADO DE ESTUDIO"]
[null,null,null,null,null,null,null,{"$f":"COUNTIF(H90:H99,\"NO\")","v":0}," SI - NO","Día / Mes / Año","Día / Mes / Año",null,"1º","2º","3º","4º","5º",null,"1º","2º","3º","4º","5º",null,"1º","2º","3º","4º","5º"]
["01",null,{"$f":"COUNTIF(I101:I110,\"NO\")","v":0},"ESTUDIANTES",null,"Fichas de aprendizaje de Comunicación",null,null,null,null,null,{"$f":"SUM(M101:Q101)","v":0},null,null,null,null,null,{"$f":"SUM(S101:W101)","v":0},null,null,null,null,null,{"$f":"SUM(Y101:AC101)","v":0},null,null,null,null,null,"01"]
["02",null,null,null,null,"Fichas de aprendizaje de Matemática",null,null,null,null,null,{"$f":"SUM(M102:Q102)","v":0},null,null,null,null,null,{"$f":"SUM(S102:W102)","v":0},null,null,null,null,null,{"$f":"SUM(Y102:AC102)","v":0},null,null,null,null,null,"02"]
["03",null,null,"ESTUDIANTES EIB",null,"Textos de Comunicación en lengua originaria",null,null,null,null,null,0,null,null,null,null,null,0,null,null,null,null,null,0,null,null,null,null,null,"03"]
["04",null,null,null,null,"Material impreso de biblioteca de aula en lenguas originarias",null,null,null,null,null,0,null,null,null,null,null,0,null,null,null,null,null,0,null,null,null,null,null,"04"]
["05",null,null,"ESTUDIANTE DE SECUNDARIA EN ÁMBITO RURAL (MSE)",null,"Cuaderno de trabajo un tiempo para mi tutoría",null,null,null,null,null,0,null,null,null,null,null,0,null,null,null,null,null,0,null,null,null,null,null,"05"]
["06",null,null,null,null,"Fichas de autoaprendizaje a distancia ciencia y tecnología",null,null,null,null,null,0,null,null,null,null,null,0,null,null,null,null,null,0,null,null,null,null,null,"06"]
["07",null,null,null,null,"Fichas de autoaprendizaje a distancia ciencias sociales",null,null,null,null,null,0,null,null,null,null,null,0,null,null,null,null,null,0,null,null,null,null,null,"07"]
["08",null,null,null,null,"Fichas de autoaprendizaje a distancia comunicación",null,null,null,null,null,0,null,null,null,null,null,0,null,null,null,null,null,0,null,null,null,null,null,"08"]
["09",null,null,null,null,"Fichas de autoaprendizaje a distancia matemática",null,null,null,null,null,0,null,null,null,null,null,0,null,null,null,null,null,0,null,null,null,null,null,"09"]
["10",null,null,null,null,"Cuaderno de relación para secundaria en alternancia",null,null,null,null,null,0,null,null,null,null,null,0,null,null,null,null,null,0,null,null,null,null,null,"10"]
[null,null,null,null,null,null,null,null,{"$f":"COUNTIF(I101:I110,\"SI\")+COUNTIF(I101:I110,\"NO\")","v":0},null,null,{"$f":"SUM(L101:L110)","v":0},null,null,null,null,null,{"$f":"SUM(R101:R110)","v":0},null,null,null,null,null,{"$f":"SUM(X101:X110)","v":0}]

{"sheet":"C500","index":7,"n_rows":125,"n_cols":21,"rows_kept":125,"cut":false,"hidden":false,"merged":[[64,9,64,10],[66,9,66,10],[91,5,91,10],[89,17,89,18],[88,17,88,18],[88,19,88,21],[89,19,89,21],[32,11,32,13],[32,14,32,15],[32,16,32,18],[33,11,33,13],[33,14,33,15],[33,16,33,18],[83,18,83,21],[31,11,31,13],[31,14,31,15],[31,16,31,18],[34,11,34,13],[34,14,34,15],[29,11,29,13],[29,14,29,15],[29,16,29,18],[30,11,30,13],[30,14,30,15],[30,16,30,18],[23,11,23,13],[23,14,23,15],[23,16,23,18],[25,16,25,18],[26,11,26,13],[26,14,26,15],[26,16,26,18],[62,9,62,10],[24,11,24,13],[24,14,24,15],[24,16,24,18],[25,11,25,13],[25,14,25,15],[34,16,34,18],[28,11,28,13],[28,14,28,15],[28,16,28,18],[27,11,27,13],[27,14,27,15],[27,16,27,18],[53,7,53,10],[45,16,45,21],[55,16,55,21],[124,16,124,21],[113,6,113,10],[107,16,107,20],[9,4,11,9],[9,11,11,13],[12,16,12,18],[13,16,13,18],[13,14,13,15],[12,14,12,15],[12,11,12,13],[13,11,13,13],[14,11,14,13],[9,14,11,15],[9,16,11,18],[14,16,14,18],[15,16,15,18],[14,14,14,15],[15,11,15,13],[19,11,19,13],[20,11,20,13],[18,14,18,15],[17,14,17,15],[16,14,16,15],[18,11,18,13],[16,11,16,13],[17,11,17,13],[21,11,21,13],[22,14,22,15],[21,16,21,18],[15,14,15,15],[16,16,16,18],[17,16,17,18],[19,14,19,15],[20,14,20,15],[19,16,19,18],[20,16,20,18],[18,16,18,18],[21,14,21,15],[22,16,22,18],[22,11,22,13]]}
[null,null,null,null,null,"CENSO EDUCATIVO 2024"]
["Si",null,null,null,null,"MATRÍCULA, DOCENTES Y MATERIALES EDUCATIVOS"]
["No"]
[]
[]
[null,"500. OTROS RECURSOS DISPONIBLES PARA LA ENSEÑANZA (Para II.EE. Públicas y Privadas)"]
[]
[null,null,"501. EQUIPOS Y SERVICIOS QUE DISPONE EL SERVICIO/NIVEL EDUCATIVO"]
[]
[null,null,null,null,"EQUIPOS Y SERVICIOS",null,null,null,null,null,null,"¿Cuántos tiene?",null,null,"¿Cuántos estan operativos?",null,"¿Son utilizados para la enseñanza en interacción con los estudiantes?\nSí - No"]
[null,null,null,null,null,null,null,null,null,null," SI - NO"]
[null,null,null,null,null,null,null,null,null,null,{"$f":"COUNTIF(K13:K35,\"SI\")+COUNTIF(K13:K35,\"NO\")","v":0}]
[null,null,null,null,"01","Televisor(es)",null,null,null,null,null,null,null,null,null,null,null,null,null,null,"SI"]
[null,null,null,null,"02","Computadoras (PC de escritorio)",null,null,null,null,null,null,null,null,null,null,null,null,null,null,"NO"]
[null,null,null,null,"03","Laptop convencionales"]
[null,null,null,null,"04","Laptop XO"]
[null,null,null,null,"05","Servidores (exclusivo del nivel)"]
[null,null,null,null,"06","Tablets"]
[null,null,null,null,"07","Proyector"]
[null,null,null,null,"08","Radiograbadora"]
[null,null,null,null,"09","Reproductor de DVD o Blue Ray"]
[null,null,null,null,"10","Impresoras"]
[null,null,null,null,"11","Pizarras digitales"]
[null,null,null,null,"12","Modem"]
[null,null,null,null,"13","Servicio de Internet"]
[null,null,null,null,"14","Balanza de peso corporal"]
[null,null,null,null,"15","Balanza"]
[null,null,null,null,"16","Centrífuga"]
[null,null,null,null,"17","Esterilizador"]
[null,null,null,null,"18","Mechero bunsen"]
[null,null,null,null,"19","Destiladora de agua"]
[null,null,null,null,"20","Equipo para baño maría"]
[null,null,null,null,"21","Microscopios binoculares"]
[null,null,null,null,"22","Microscopio digital"]
[null,null,null,null,"23","Maquetas de circuitos eléctricos"]
[]
[]
[]
[null,null,"502. ¿LOS ESTUDIANTES HACEN USO DE LAS TABLETAS?",null,null,null,null,null,null,null,null,null,null,"503. SUS ESTUDIANTES, ¿QUÉ ACCIONES REALIZAN CON AYUDA"]
[null,null,null,null,null,null,null,null,null,null,null,null,null,null,"DE LAS TABLETAS?"]
[null,null,null,null," Sí  ",null,null,null,null,null,null,null,null,null,"Marque con una “X”, una o más opciones"]
[]
[null,null,null,null,"No  ",null,null,null,"Pase a la pregunta 505",null,null,null,null,null,null,"Buscar información"]
[null,null,null,null,null,null,null,null,null,null,null,null,null,null,null,"Elaborar sus productos"]
[null,null,null,null,null,null,null,null,null,null,null,null,null,null,null,"Organizar sus actividades"]
[null,null,null,null,null,null,null,null,null,null,null,null,null,null,null,"Otros",""]
[]
[null,null,null,null,"¿Por qué no hacen uso de las tabletas?",null,null,null,null,null,null,null,null,"504. ¿QUÉ APLICACIONES O UTILITARIOS DE LAS TABLETAS SON LOS MÁS"]
[null,null,null,null,"Marque con una “X”, una o más opciones",null,null,null,null,null,null,null,null,null,"INTEGRADOS/USADOS POR LOS DOCENTES EN EL PROCESO DE"]
[null,null,null,null,null,null,null,null,null,null,null,null,null,null,"ENSEÑANZA Y APRENDIZAJE?"]
[null,null,null,null,null,null,"Por miedo/temor a dañarlas",null,null,null,null,null,null,null,"Marque con una “X”, una o más opciones"]
[null,null,null,null,null,null,"Porque no saben cómo usarla"]
[null,null,null,null,null,null,"Porque no funcionan",null,null,null,null,null,null,null,null,"Aplicaciones para crear objetos virtuales"]
[null,null,null,null,null,null,"Otros","",null,null,null,null,null,null,null,"Aplicaciones que brindan información"]
[null,null,null,null,null,null,null,null,null,null,null,null,null,null,null,"Utilitarios, como lector y editor PDF, AnyDesk, etc."]
[null,null,null,null,null,null,null,null,null,null,null,null,null,null,null,"Otros",""]
[]
[]
[null,null,"505. INICIATIVA RUTA SOLIDARIA: Solo Gestión Pública",null,null,null,null,null,null,null,null,{"$f":"IF(OR(UPPER('C100'!J29)=\"X\",UPPER('C100'!O29)=\"X\"),\"X\",IF(UPPER('C100'!T29)=\"X\",\"\",\"\"))","v":""}]
[null,null,"505.1. ESTE SERVICIO/NIVEL EDUCATIVO, ¿TIENE BICICLETAS DE",null,null,null,null,null,null,null,null,null,null,"505.4. ESTE SERVICIO/NIVEL EDUCATIVO, ¿HA RECIBIDO PRESUPUESTO DE"]
[null,null,null,"RUTAS SOLIDARIAS?",null,null,null,null,null,null,null,null,null,null,"PRONIED PARA EL MANTENIMIENTO DE BICICLETAS PARA EL"]
[null,null,null,null,null,null,null,null,null,null,null,null,null,null,"PRESENTE AÑO 2024?"]
[null,null,null,null,null,null,"En el período 2024"]
[null,null," Sí  ",null,"Cantidad",null,null,null,null,null,null,null,null,null,null," Sí  "]
[null,null,null,null,null,null,"Anteriores al 2024",null,null,null,null,null,null,{"$f":"CONCATENATE(D64,F75)","v":""}]
[null,null,null,null,null,null,null,null,null,null,null,null,null,null,null,"No  ",null,null,"Pase a la pregunta 505.6"]
[null,null,null,null,"¿Cuántas se han asignado a los estudiantes?"]
[null,null,null,null,null,null,null,null,null,null,null,null,null,"505.5. ¿SE LOGRARON REALIZAR LAS ACCIONES DE MANTENIMIENTO DE LAS"]
[null,null,"No  ",null,null,null,"Pase a la Sección 600",null,null,null,null,null,null,null,"BICICLETAS CON LOS RECURSOS ASIGNADOS POR PRONIED?"]
[]
[null,null,null,null,null,null,null,null,null,null,null,null,null," Sí  ",null,"No  ",null,null,null,{"$f":"CONCATENATE(D64,Q64)","v":""}]
[null,null,"505.2. ¿CÓMO SE HA DISTRIBUIDO LA CANTIDAD DE BICICLETAS A LOS"]
[null,null,null,"ESTUDIANTES, EN ESTE PERÍODO?"]
[]
[null,null,null,null,"Parcial",null,null,null,null,null,null,null,null,null,null,"¿Por qué no se logró realizar el mantenimiento?"]
[null,null,null,null,null,null,null,null,null,null,null,null,null,null,null,"Marque con una “X” hasta 3 opciones"]
[null,null,null,null,"Total"]
[null,null,null,null,null,{"$f":"CONCATENATE(F77,F79)","v":""},null,"Pase a la pregunta 505.4",null,null,null,null,null,null,null,{"$f":"COUNTIF(Q78:Q83,\"X\")","v":0},null,"No se tienen mecánicos cerca de la zona"]
[null,null,null,null,"Ninguna",null,null,null,null,null,null,null,null,null,null,null,null,"El servicio de reparación es muy costoso"]
[null,null,null,null,null,null,null,null,null,null,null,null,null,null,null,null,null,"No se encuentran repuestos en la zona"]
[null,null,null,null,null,null,null,null,null,null,null,null,null,null,null,null,null,"Los repuestos son muy costosos"]
[null,null,"505.3. SI LA CANTIDAD DE BICICLETAS RECEPCIONADAS HASTA LA FECHA ES",null,null,null,null,null,null,null,null,null,null,null,null,null,null,"El equipamiento de seguridad es muy costoso"]
[null,null,null,"MAYOR QUE EL NÚMERO DE ESTUDIANTES, ¿PORQUÉ MOTIVO(S) NO SE",null,null,null,null,null,null,null,null,null,null,null,null,null,"Todas están en estado de chatarra"]
[null,null,null,"HA ASIGNADO LA TOTALIDAD DE LAS BICICLETAS A LOS ESTUDIANTES?",null,null,null,null,null,null,null,null,null,null,null,null,null,"Otro",""]
[null,null,null,"Marque con una “X”, una o más opciones"]
[null,null,null,null,null,null,null,null,null,null,null,null,null,"505.6. ESTE SERVICIO/NIVEL EDUCATIVO, ¿HA RECIBIDO DOTACIÓN ADICIONAL"]
[null,null,null,null,"Las bicicletas se encuentran en mal estado.",null,null,null,null,null,null,null,null,null,"DE BICICLETAS DE LA INTERVENCIÓN RUTAS SOLIDARIAS?"]
[null,null,null,null,"Los caminos no permiten el uso de las bicicletas."]
[null,null,null,null,"Cuando se termine las lluvias se asignarán las bicicletas",null,null,null,null,null,null,null,null," Sí  ",null,null,null,"TOTAL",null,"Última fecha"]
[null,null,null,null,"Los padres no quieren asumir las responsabilidades de pérdidas"]
[null,null,null,null,"No hay suficientes estudiantes que vivan lejos."]
[null,null,null,null,"Otro","",null,null,null,null,null,null,null,"No  "]
[]
[]
[]
[null,"600. EDUCACIÓN FÍSICA Y DEPORTE - Para II.EE. Públicas y Privadas"]
[]
[null,"A. SITUACIÓN DEL DEPORTE ESCOLAR"]
[null,null,"601. DURANTE EL AÑO 2023, EN ESTE NIVEL/SERVICIO EDUCATIVO, ¿SE",null,null,null,null,null,null,null,null,null,"603. EN EL PRESENTE AÑO, ¿ESTE NIVEL/SERVICIO EDUCATIVO TIENE"]
[null,null,null,"FOMENTÓ LA REALIZACIÓN DE ACTIVIDADES FÍSICAS O DEPORTE, CON LA",null,null,null,null,null,null,null,null,null,"PLANIFICADO LA EJECUCIÓN DE TALLERES COMPLEMENTARIOS?"]
[null,null,null,"FINALIDAD DE PRIORIZAR EL CUIDADO DEL ESTUDIANTE Y SU BIENESTAR"]
[null,null,null,"INTEGRAL?",null,null,null,null,null,null,null,null,null," Sí  ",null,null,null,null,"No  "]
[]
[]
[null,null," Sí  ",null,"No  ",null,null,null,null,null,null,null,null,null,null,"Expresarte"]
[null,null,null,null,null,null,null,null,null,null,null,null,null,null,null,"Orquestando"]
[null,null,null,null,null,null,null,null,null,null,null,null,null,null,null,"Talleres deportivos recreativos"]
[null,null,null,null,null,null,null,null,null,null,null,null,null,null,null,"Otro"]
[null,null,null,"Marque con una “X”, una o más opciones"]
[null,null,null,null,"Actividades de movimiento",null,null,null,null,null,null,null,"604. ESTE SERVICIO/NIVEL EDUCATIVO, ¿HA INCORPORADO EN SU PLAN ANUAL"]
[null,null,null,null,"Actividades de deporte",null,null,null,null,null,null,null,null,"DE TRABAJO ACTIVIDADES PARA LA PROMOCIÓN DE VIDA ACTIVA,"]
[null,null,null,null,"Actividades artístico culturales",null,null,null,null,null,null,null,null,"CREATIVA Y SALUDABLE?"]
[null,null,null,null,"Actividades complementarias de encuentro con la comunidad"]
[null,null,null,null,"Otras Actividades",null,null,null,null,null,null,null,null," Sí  ",null,"No    ",null,null,"Pase a la Sección 700"]
[]
[null,null,null,null,null,null,null,null,null,null,null,null,"605. DURANTE EL PRESENTE AÑO, ESTE SERVICIO/NIVEL EDUCATIVO,"]
[null,null,"602. ESTE SERVICIO/NIVEL EDUCATIVO, ¿CUENTA CON LA ASIGNATURA DE",null,null,null,null,null,null,null,null,null,null,"¿DESARROLLÓ LAS SIGUIENTES ACTIVIDADES DE PROMOCIÓN DE VIDA"]
[null,null,null,"\nEDUCACIÓN FÍSICA?",null,null,null,null,null,null,null,null,null,"ACTIVA, CREATIVA Y SALUDABLE?"]
[null,null,null,null,null,null,null,null,null,null,null,null,null,"Marque con una “X”, una o más opciones"]
[null,null,null,null,null,"  ¿Cuántas horas a la semana se dictan? :"]
[null,null," Sí  ",null,null,null,null,null,null,null,null,null,null,null,"10 min de actividad física diaria"]
[null,null,null,null,null,"  ¿Cuántos docentes están asignados :",null,null,null,null,null,null,null,null,"Pausa activa"]
[null,null,null,null,null,null,null,null,null,null,null,null,null,null,"Juego aprendo y me siento saludable"]
[null,null,null,null,null,null,null,null,null,null,null,null,null,null,"Actividad familiar (carrera familiar, maratón, caminata, pasacalle, etc.)"]
[null,null,"No  ",null,null,null,null,null,null,null,null,null,null,null,"Otro"]

{"sheet":"C700","index":8,"n_rows":213,"n_cols":28,"rows_kept":213,"cut":false,"hidden":false,"merged":[[154,8,154,11],[30,4,31,5],[32,4,38,5],[39,4,40,5],[23,4,26,5],[112,11,113,13],[112,5,113,9],[166,21,166,25],[175,21,175,25],[209,22,209,24],[65,7,65,10],[20,4,21,5],[19,14,22,14],[19,13,22,13],[19,12,22,12],[141,25,142,25],[141,24,142,24],[139,24,140,25],[53,21,53,25],[71,21,71,24],[139,18,141,21],[126,7,126,10],[27,4,29,5],[1,7,1,25],[2,7,2,25],[127,21,127,25],[139,23,141,23],[139,26,140,27],[141,26,142,26],[141,27,142,27],[112,14,113,15],[142,7,142,10],[204,8,204,11],[191,25,191,26],[192,25,192,26],[193,25,193,26],[194,25,194,26],[195,25,195,26],[191,20,192,21],[202,20,203,24]]}
[]
[null,null,null,null,null,null,null,"CENSO EDUCATIVO 2024"]
[null,"Si",null,null,null,null,null,"MATRÍCULA, DOCENTES Y MATERIALES EDUCATIVOS"]
[null,"No"]
[]
[]
[null,null,"700. FORTALECIMIENTO DE LA GESTIÓN"]
[]
[null,null,null,"701. ESTE NIVEL/SERVICIO EDUCATIVO ¿COORDINA ALGUNA ACCIÓN CON EL GOBIERNO LOCAL",null,null,null,null,null,null,null,null,null,null,null,null,null,null,"704. DURANTE EL AÑO 2023 Y HASTA LA FECHA DE APLICACIÓN DEL CENSO EDUCATIVO 2024, ¿HA REALIZADO"]
[null,null,null,null,"(DISTRITAL O PROVINCIAL)  PARA MEJORAR LA PRESTACIÓN DEL SERVICIO EDUCATIVO?",null,null,null,null,null,null,null,null,null,null,null,null,null,null,"ACCIONES EN FAVOR DEL BIENESTAR SOCIOEMOCIONAL DE LOS ESTUDIANTES Y/O DE LOS DOCENTES Y/O FAMILIAS?"]
[]
[null,null,null,null,null,null,null,null,null,null,null,null,null,null,null,null,null,null,"Sí    ",null,"No    "]
[null,null,"1: Siempre",null,"Sí",null,null,null,"No",null,null,"Pase a la pregunta 703."]
[null,null,"2: A Veces",null,null,null,null,null,null,null,null,null,null,null,null,null,null,null,null,"¿Qué acciones realizo?"]
[null,null,"3: Nunca",null,null,null,null,null,null,null,null,null,null,null,null,null,null,null,null,"Marque con una “X”, una o más opciones"]
[null,null,null,"702. FRECUENCIA DE LA ACCION QUE AYUDA EL GOBIERNO LOCAL PARA MEJORAR",null,null,null,null,null,null,null,null,null,null,null,null,null,null,null,null,"Elaborar un diagnóstico del estado del bienestar socioemocional de estudiantes"]
[null,null,null,null,"LA PRESTACIÓN DEL SERVICIO",null,null,null,null,null,null,null,null,null,null,null,null,null,null,null,"Elaborar un diagnóstico del estado del bienestar socioemocional de docentes"]
[null,null,null,null,"Solo si marco “SI” en la pregunta 701 detallar la acción",null,null,null,null,null,null,null,null,null,null,null,null,null,null,null,"Ejecutar acciones en la IIEE para trabajar específicamente gestión de emociones"]
[null,null,null,null,null,null,null,null,null,null,null,null,null,null,null,null,null,null,null,null,"Generar espacios de diálogo en la comunidad educativa con docentes y/o familias."]
[null,null,null,{"$f":"SUM(D24:D41)","v":0},null,null,null,null,null,null,null,null,"Distrital","Provincial","Empresa privada u ONG",null,null,null,null,null,"Promover espacios específicamente para abordar gestión de emociones con familias"]
[null,null,null,null,"COMPO- NENTE",null,null,null,null,null,null,null,null,null,null,null,null,null,null,null,"Ejecutar acciones en el marco de la Tutoría y Orientación Educativa (TOE)"]
[null,null,null,null,null,null,null,null,"ACCIÓN",null,null,null,null,null,null,"FRECUENCIA"]
[null,null,null,null,null,null,null,null,null,null,null,null,null,null,null,null,null,null,"705. SEÑOR(A) DIRECTOR(A), DESDE QUE EMPEZASTE TU CARRERA COMO DOCENTE, ¿CUÁNTOS AÑOS DE"]
["01",null,null,{"$f":"IF(P24<>\"\",1,0)","v":0},"Infraes- tructura",null,"Proyecto de inversión pública para el mejoramiento o ampliación …",null,null,null,null,null,null,null,null,null,null,null,null,"EXPERIENCIA TIENES COMO?",null,null,"Marque con una “X”, una opcion"]
["02",null,null,0,null,null,"Apoyo y asistencia técnica para el uso de recursos de mantenimiento"]
["03",null,null,0,null,null,"Gestiones para el acceso a servicios básicos de IIEE ",null,null,null,null,null,null,null,null,null,null,null,null,null,"Directivo encargado, registre cantidad de años:"]
["04",null,null,0,null,null,"Adquisición de mobiliario y equipamiento para la IIEE",null,null,null,null,null,null,null,null,null,null,null,null,null,"Directivo designado, registre cantidad de años :"]
["05",null,null,0,"Aprendi-\nzajes",null,"Proyecto de inversión pública para la mejora de los aprendizajes"]
["06",null,null,0,null,null,"Actividades que ayuden a implementar el refuerzo escolar",null,null,null,null,null,null,null,null,null,null,null,"706. DESDE EL AÑO 2019 A LA FECHA DE APLICACIÓN DEL CENSO EDUCATIVO 2024, ¿CONOCE LAS NORMAS QUE"]
["07",null,null,0,null,null,"Apoyo con material educativo",null,null,null,null,null,null,null,null,null,null,null,null,"REGULAN SUS FUNCIONES COMO DIRECTOR?"]
["08",null,null,0,"Docentes",null,"Contratación de docentes"]
["09",null,null,0,null,null,"Talleres o cursos de capacitación",null,null,null,null,null,null,null,null,null,null,null,"Sí    ",null,"No    "]
["10",null,null,0,"Gestión",null,"Articulación local con actores públicos y privados a nivel local"]
["11",null,null,0,null,null,"Atención de casos en DEMUNA",null,null,null,null,null,null,null,null,null,null,null,"707. SEÑOR(A) DIRECTOR(A), DURANTE EL AÑO 2023 Y A LA FECHA DE APLICACIÓN DEL CENSO EDUCATIVO 2024,"]
["12",null,null,0,null,null,"Articulación con UGEL y DRE de su ámbito",null,null,null,null,null,null,null,null,null,null,null,null,"¿HA PARTICIPADO DE ALGUNA ACCIÓN FORMATIVA?"]
["13",null,null,0,null,null,"Gestiones para la instalación de servicios básicos de conectividad"]
["14",null,null,0,null,null,"Apoyo con alimentación para estudiantes",null,null,null,null,null,null,null,null,null,null,null,"Sí    ",null,"No    ",null,null,null,"Pase a la pregunta 709"]
["15",null,null,0,null,null,"Vivienda y alimentación para docentes (zonas rurales, fronteras, etc)"]
["16",null,null,0,null,null,"Apoyo con movilidad local para estudiantes y docentes",null,null,null,null,null,null,null,null,null,null,null,null,"Marque con una “X”, una o más opciones"]
["17",null,null,0,"Recupe-\nración",null,"Promoción de acciones comunitarias para identificación de …",null,null,null,null,null,null,null,null,null,null,null,null,null,"Cursos en didáctica o pedagogía"]
["18",null,null,0,null,null,"Impulso del registro nominal de estudiantes en Alerta Escuela por …",null,null,null,null,null,null,null,null,null,null,null,null,null,"Congresos o seminarios vinculados a su cargo y funciones"]
[null,null,null,null,null,null,null,null,null,null,null,null,null,{"$f":"COUNTIF(M24:P41,\"X\")","v":0},null,{"$f":"COUNTIF(P24:P41,\"3: Nunca\")","v":0}]
[null,null,null,null,null,null,null,null,null,null,null,null,null,null,null,null,null,null,"708. ¿QUÉ HABILIDADES REQUIERE FORTALECER DE SU FORMACIÓN EN LIDERAZGO PEDAGÓGICO PARA MEJORAR LA"]
[null,null,null,"703. ¿CUÁLES SON LOS PRINCIPALES TEMAS QUE REQUIERE COMO CAPACITACIÓN PARA MEJORAR SU DESEMPEÑO",null,null,null,null,null,null,null,null,null,null,null,null,null,null,null,"GESTIÓN ESCOLAR EN SU SERVICIO/NIVEL EDUCATIVO?"]
[null,null,null,null,"COMO DIRECTOR(A)?",null,null,null,null,null,null,null,null,null,null,null,null,null,null,"Marque con una “X”, hasta 3 opciones"]
[null,null,null,null,"Marque con una “X”, una o más opciones",null,null,null,null,null,null,null,null,null,null,null,null,null,null,null,"1) En organización e interpretación de la planificación en la IIEE:"]
[null,null,null,null,null,null,null,null,null,null,null,null,null,null,null,null,null,null,null,null,"2) Para resolución de problemas en la IIEE:"]
[null,null,null,null,null,"Desarrollo de las competencias de las áreas curriculares",null,null,null,null,null,null,null,null,null,null,null,null,null,null,"3) Para apoyar a los docentes:"]
[null,null,null,null,null,"Planificación y evaluación",null,null,null,null,null,null,null,null,null,null,null,null,null,null,"4) Para el fortalecimiento docente:"]
[null,null,null,null,null,"Manejo de herramientas TIC y ofimáticas",null,null,null,null,null,null,null,null,null,null,null,null,null,null,"5) Para establecer el orden:",null,null,null,null,null," "]
[null,null,null,null,null,"Soporte emocional",null,null,null,null,null,null,null,null,null,null,null,null,null,null,"6) Para influenciar:"]
[null,null,null,null,null,"Participación de padres y madres de familias",null,null,null,null,null,null,null,null,null,null,null,null,null,null,"7) Para prevenir el conflicto:"]
[null,null,null,null,null,"Relacionamiento institucional y gestión de alianzas",null,null,null,null,null,null,null,null,null,null,null,null,null,null,"8) Para monitorear la contribución de la IE con la política educativa:"]
[null,null,null,null,null,"Acompañamiento pedagógico",null,null,null,null,null,null,null,null,null,null,null,null,null,null,"9) Otros"]
[]
[]
[null,null,null,"709. ¿QUÉ INFORMACIÓN LE GUSTARÍA ENCONTRAR EN EL PORTAL WEB PARA DIRECTIVO DE IIEE DEL MINEDU",null,null,null,null,null,null,null,null,null,null,null,null,null,null,"714. ¿ACTUALMENTE CUENTA CON ALGUNA ESTRATEGIA O ACCIONES EN EL QUE PUEDA DIALOGAR CON DIRECTORES"]
[null,null,null,null,"(https://directivos.minedu.gob.pe/)?",null,null,null,null,null,null,null,null,null,null,null,null,null,null,"DE OTRAS IIEE PARA COMPARTIR EXPERIENCIAS Y DESARROLLAR ESTRATEGIAS PARA RESOLVER PROBLEMAS"]
[null,null,null,null,"Marque con una “X”, una opción",null,null,null,null,null,null,null,null,null,null,null,null,null,null,"DE LA GESTIÓN DE SU SERVICIO/NIVEL EDUCATIVO?"]
[]
[null,null,null,null,null,"Lecturas, infografías y materiales diversos sobre las funciones como directivo",null,null,null,null,null,null,null,null,null,null,null,null,"Sí    ",null,"No    "]
[null,null,null,null,null,"Videos tutoriales sobre las labores como directivos"]
[null,null,null,null,null,"Material diverso sobre habilidades blandas necesarias para el cargo"]
[null,null,null,null,null,"Buenas prácticas para la gestión directiva",null,null,null,null,null,null,null,null,null,null,null,null,null,"¿Dónde lo desarrolla?"]
[null,null,null,null,null,"Información sobre las normativas sobre la gestión escolar",null,null,null,null,null,null,null,null,null,null,null,null,null,"Marque con una “X”, una opción"]
[null,null,null,null,null,"Otros",null,null,null,null,null,null,null,null,null,null,null,null,null,null,"La misma IIEE"]
[null,null,null,null,null,null,null,null,null,null,null,null,null,null,null,null,null,null,null,null,"Otra IIEE"]
[null,null,null,null,null,null,null,null,null,null,null,null,null,null,null,null,null,null,null,null,"IIEE de red educativa"]
[null,null,null,"710. ¿CON QUÉ FRECUENCIA VISITA EL PORTAL WEB PARA DIRECTIVO DE IIEE DEL MINEDU ",null,null,null,null,null,null,null,null,null,null,null,null,null,null,null,null,"UGEL"]
[null,null,null,null,"(https://directivos.minedu.gob.pe/)?",null,null,null,null,null,null,null,null,null,null,null,null,null,null,null,"DRE/GRE"]
[null,null,null,null,"Marque con una “X”, una opción",null,null,null,null,null,null,null,null,null,null,null,null,null,null,null,"Espacios virtuales (webinar, talleres, etc)"]
[null,null,null,null,null,null,null,null,null,null,null,null,null,null,null,null,null,null,null,null,"Otro"]
[null,null,null,null,null,"Frecuentemente"]
[null,null,null,null,null,"Poca frecuencia",null,null,null,null,null,null,null,null,null,null,null,null,"715. ¿QUÉ TAN INTERESADO SE ENCONTRARÍA DE PARTICIPAR EN ESPACIOS EN LOS QUE SE REALICE TRABAJO"]
[null,null,null,null,null,"Casi nunca",null,null,null,null,null,null,null,null,null,null,null,null,null,"COLABORATIVO CON DIRECTORES DE OTROS SERVICIOS/NIVELES EDUCATIVOS PARA DIALOGAR SOBRE LOS"]
[null,null,null,null,null,"No visito el portal web",null,null,null,null,"Pase a la pregunta 713",null,null,null,null,null,null,null,null,"PROBLEMAS DE LA GESTIÓN ESCOLAR?",null,null,null,"Marque con una “X”, una opción"]
[]
[null,null,null,null,null,null,null,null,null,null,null,null,null,null,null,null,null,null,null,null,"Interesado",null,"Poco interesado",null,null,"Nada interesado"]
[null,null,null,"711. ¿CONSIDERAS QUE LA INFORMACIÓN QUE ENCUENTRAS EN EL PORTAL WEB DE DIRECTIVOS ES ÚTIL?"]
[null,null,null,null,"Marque con una “X”, una opción",null,null,null,null,null,null,null,null,null,null,null,null,null,"716. ¿EN CUÁLES DE LAS SIGUIENTES ALTERNATIVAS DE CAPACITACIÓN LE GUSTARÍA PARTICIPAR PARA EL"]
[null,null,null,null,null,null,null,null,null,null,null,null,null,null,null,null,null,null,null,"PRESENTE AÑO 2024?",null,"Marque con una “X”, hasta cuatro opciones"]
[null,null,null,null,null,"Muy útil"]
[null,null,null,null,null,"Útil",null,null,null,null,null,null,null,null,null,null,null,null,null,null,"Habilidades blandas para el liderazgo"]
[null,null,null,null,null,"Poco útil",null,null,null,null,null,null,null,null,null,null,null,null,null,null,"Confianza colectiva para el bienestar escolar"]
[null,null,null,null,null,"Nada útil",null,null,null,null,null,null,null,null,null,null,null,null,null,null,"Gestión administrativa"]
[null,null,null,null,null,null,null,null,null,null,null,null,null,null,null,null,null,null,null,null,"Liderazgo situacional"]
[null,null,null,null,null,null,null,null,null,null,null,null,null,null,null,null,null,null,null,null,"Expresión creativa para el liderazgo directivo"]
[null,null,null,"712. ¿QUÉ CONTENIDOS NORMATIVOS ESPERARÍA ENCONTRAR EN EL PORTAL WEB PARA DIRECTIVO DE IIEE DEL MINEDU?",null,null,null,null,null,null,null,null,null,null,null,null,null,null,null,null,"Prevención de la discriminación xenofóbica"]
[null,null,null,null,"Marque con una “X”, hasta dos opciones)",null,null,null,null,null,null,null,null,null,null,null,null,null,null,null,"Fortalecimiento a la prác􀆟ca pedagógica docente"]
[]
[null,null,null,{"$f":"COUNTIF(E91:E94,\"X\")","v":0},null,"Sobre sus funciones",null,null,null,null,null,null,null,null,null,null,null,null,"717. SEÑOR(A) DIRECTOR(A), SELECCIONE UNA O HASTA TRES ACCIONES QUE USTED HA IMPLEMENTADO EN SU"]
[null,null,null,null,null,"Sobre los documentos de gestión de debe elaborar",null,null,null,null,null,null,null,null,null,null,null,null,null,"SERVICIO/NIVEL EDUCATIVO DURANTE EL AÑO 2023."]
[null,null,null,null,null,"Sobre su rol de líder pedagógico",null,null,null,null,null,null,null,null,null,null,null,null,null,"Marque con una “X”, hasta 3 opciones"]
[null,null,null,null,null,"Sobre las faltas en las podría incurrir de incumplir sus funciones",null,null,null,null,null,null,null,null,null,null,null,null,null,null,"Conducir la planificación institucional (a partir del conocimiento de los procesos pedagógicos)"]
[null,null,null,null,null,null,null,null,null,null,null,null,null,null,null,null,null,null,null,null,"Promover y sostener la participación democrática de los diversos actores  de la institución educativa"]
[null,null,null,null,null,null,null,null,null,null,null,null,null,null,null,null,null,null,null,null,"Favorecer las condiciones operativas que aseguren aprendizajes de calidad en todas y todos los estudiantes"]
[null,null,null,"713. COMO DIRECTOR/A DE ESTE SERVICIO/NIVEL EDUCATIVO, ¿CUÁNTO TIEMPO DE SU DÍA TOMA REALIZAR",null,null,null,null,null,null,null,null,null,null,null,null,null,null,null,null,"Liderar procesos de evaluación de la gestión de la institución educativa y de rendición de cuentas"]
[null,null,null,null,"ACTIVIDADES ADMINISTRATIVAS? (CONSIDERE HORAS CRONOLÓGICAS)",null,null,null,null,null,null,null,null,null,null,null,null,null,null,null,"Promover y liderar una comunidad de aprendizaje con las y los docentes  de su institución educativa"]
[null,null,null,null,"Marque con una “X”, una opción",null,null,null,null,null,null,null,null,null,null,null,null,null,null,null,"Gestiona la calidad de los procesos pedagógicos al interior de su IE.  a través del acompañamiento sistemático"]
[]
[null,null,null,null,null,"Menos de una hora",null,null,null,null,null,null,null,null,null,null,null,null,"718. PARA SU LABOR COMO DIRECTOR(A)/DOCENTE, ¿CONOCE Y USA LOS RECURSOS A PARTIR DE LOS RESULTADOS"]
[null,null,null,null,null,"Entre 1 y 3 horas",null,null,null,null,null,null,null,null,null,null,null,null,null,"DE LAS ÚLTIMAS EVALUACIONES DE LOGROS DE APRENDIZAJE A ESTUDIANTES, COMO LA EVALUACIÓN MUESTRAL"]
[null,null,null,null,null,"Entre 4 y 6 horas",null,null,null,null,null,null,null,null,null,null,null,null,null,"(EM) 2022 O LA EVALUACIÓN NACIONAL DE LOGROS DE APRENDIZAJE (ENLA) 2023?"]
[null,null,null,null,null,"Más de 6 horas",null,null,null,null,null,null,null,null,null,null,null,null,null,"Marque con una “X”, una opción"]
[null,null,null,null,null,null,null,null,null,null,null,null,null,null,null,null,null,null,null,null,"No los conozco.",null,null,"Pase a la pregunta 720"]
[null,null,null,null,null,null,null,null,null,null,null,null,null,null,null,null,null,null,{"$f":"CONCATENATE(T106,T107)","v":""},null,"Sí los conozco, pero no los uso."]
[null,null,null,null,null,null,null,null,null,null,null,null,null,null,null,null,null,null,null,null,"Sí los conozco y los uso."]
[]
[]
[null,null,null,"719. ¿A TRAVÉS DE QUÉ CANALES RECIBIÓ INFORMACIÓN DE LA EVALUACIÓN MUESTRAL 2022 Y DE LAS",null,null,null,null,null,null,null,null,null,null,null,null,null,null,"722. SEÑOR(A) DIRECTOR(A), ¿CUÁL CONSIDERA USTED COMO PRINCIPAL TEMA QUE REQUIERE COMO CAPACITACIÓN"]
[null,null,null,null,"EVALUACIONES DE LOGROS DE APRENDIZAJE?",null,null,null,null,null,null,null,null,null,null,null,null,null,null,"EL PERSONAL AUXILIAR DE EDUCACIÓN, PARA MEJORAR SU DESEMPEÑO?"]
[null,null,null,null,null,null,null,null,null,null,null,null,"Marcar con “X”",null,null,null,null,null,null,"Marque con una “X”, una opción"]
[null,null,null,null,null,"Canales de comunicación",null,null,null,null,null,"Evaluación muestral 2022",null,null,"Evaluaciones de logros de aprendiz"]
[null,null,null,{"$f":"COUNTIF(L115:L127,\"X\") + COUNTIF(P115:P127,\"X\")","v":0},null,null,null,null,null,null,null,null,null,null,null,null,null,null,null,null,"Habilidades blandas (intelig. emocional, comunic. asertiva, manejo de conflictos, etc)"]
[null,null,null,null,"01","Redes sociales (Facebook, Youtube, Twitter, Instagram, etc.)",null,null,null,null,null,null,null,{"$f":"CONCATENATE(L115,P115)","v":""},null,null,null,null,null,null,"Habilidades duras (TICs, primeros aux., uso y peligros de internet, etc.)"]
[null,null,null,null,"02","Correo electrónico",null,null,null,null,null,null,null,{"$f":"CONCATENATE(L116,P116)","v":""},null,null,null,null,null,null,"Relación con los estudiantes (el juego, soporte socioem., prevención de la violencia escolar (bullying)"]
[null,null,null,null,"03","Mensajes de texto",null,null,null,null,null,null,null,{"$f":"CONCATENATE(L117,P117)","v":""},null,null,null,null,null,null,"No cuento con personal auxiliar de educación"]
[null,null,null,null,"04","Mensajes por WhatsApp",null,null,null,null,null,null,null,""]
[null,null,null,null,"05","Eventos (conferencias, webinars, charlas, etc)",null,null,null,null,null,null,null,""]
[null,null,null,null,"06","Espacios formativos (talleres, capacitaciones, etc.)",null,null,null,null,null,null,null,"",null,null,null,null,"723. SEÑOR(A) DIRECTOR(A), DURANTE EL AÑO 2023, ¿EL PERSONAL AUXILIAR DE EDUCACIÓN DESEMPEÑÓ O"]
[null,null,null,null,"07","Envío de dispositivos de almacenamiento portátil con recursos",null,null,null,null,null,null,null,"",null,null,null,null,null,"DESEMPEÑA OTRAS LABORES ADICIONALES A SU ROL COMO AUXILIAR DE EDUCACIÓN?"]
[null,null,null,null,"08","Envío de enlaces de almacenamiento en la nube con recursos",null,null,null,null,null,null,null,"",null,null,null,null,null,"Marque con una “X”, una o más opciones"]
[null,null,null,null,"09","Página web de la UMC",null,null,null,null,null,null,null,""]
[null,null,null,null,"10","Programas de radios comunitarias",null,null,null,null,null,null,null,"",null,null,null,null,null,null,"No realizó/realiza otras labores adicionales en la IE"]
[null,null,null,null,"11","Portales web de las DRE/GRE y UGEL",null,null,null,null,null,null,null,"",null,null,null,null,null,null,"Trabaja como docente"]
[null,null,null,null,"12","Medios de comunicación (como radio, televisión o diarios)",null,null,null,null,null,null,null,"",null,null,null,null,null,null,"Trabaja como personal administrativo en la IE"]
[null,null,null,null,"13","Otros",null,null,null,null,null,null,null,"",null,null,null,null,null,null,"Trabaja en otra IE"]
[null,null,null,null,null,null,null,null,null,null,null,{"$f":"COUNTIF(L115:L127,\"X\")","v":0},null,null,null,{"$f":"COUNTIF(P115:P127,\"X\")","v":0},null,null,null,null,"Otro"]
[null,null,null,"720. ¿QUÉ TIPO DE RECURSOS SON LOS QUE MÁS REVISA Y USA PARA IMPLEMENTAR MEJORAS EN SU LABOR COMO",null,null,null,null,null,null,null,null,null,null,null,null,null,null,null,null,"No cuento con personal auxiliar de educación"]
[null,null,null,null,"DIRECTOR(A)/DOCENTE?"]
[null,null,null,null,"Marque con una “X”, como máximo hasta tres opciones"]
[null,null,null,null,null,null,null,null,null,null,null,null,null,null,null,null,null,null,"724. SEÑOR(A) DIRECTOR(A), ESTE SERVICIO/NIVEL EDUCATIVO, ¿CUENTA CON PERSONAL ADMINISTRATIVO?"]
[null,null,null,null,null,"Reportes de investigación (por ejemplo, libros o articulos cientificos)"]
[null,null,null,null,null,"Videos informativos (recursos audiovisuales que presentan datos y muestra un hecho de interés)",null,null,null,null,null,null,null,null,null,null,null,null,"Sí    ",null,"No    ",null,null,null,"Pase a la pregunta 730"]
[null,null,null,null,null,"Videos pedagógicos (recursos audiovisuales que proporcionan análisis"]
[null,null,null,null,null,"Informes pedagógicos (recursos escritos con análisis y sugerencias pedagógicos)",null,null,null,null,null,null,null,null,null,null,null,null,"725. SOBRE EL PERSONAL ADMINISTRATIVO QUE LABORA EN ESTE SERVICIO/NIVEL EDUCATIVO,"]
[null,null,null,null,null,"Infografías",null,null,null,null,null,null,null,null,null,null,null,null,null,"COMPLETA PARA CADA CARGO/PUESTO LOS SIGUIENTES DATOS."]
[null,null,null,null,null,"Brochures o folletos",null,null,null,null,null,null,null,null,null,null,null,null,null,"Seleccione “Sí” o “No” para cada pregunta y consigna las cantidades donde corresponda"]
[null,null,null,null,null,"Conferencias o charlas (presentaciones de especialistas grabadas o por transmisión en vivo)"]
[null,null,null,null,null,"Talleres o capacitaciones virtuales",null,null,null,null,null,null,null,null,null,null,null,null,"Puestos Administrativos",null,null,null,null,"¿Cuenta con este tipo de personal?","¿Ha sido capacitado\ndurante el 2023?",null,"La cantidad de personal que tiene ¿es suﬁciente?"]
[null,null,null,null,null,"Audios, podcast o entrevistas"]
[null,null,null,null,null,"Publicaciones de redes sociales",null,null,null,null,null,null,null,null,null,null,null,null,null,null,null,null,null,null,"Si  / No","¿Cuántas veces?","Si  / No","¿Qué cantidad seria suficiente?"]
[null,null,null,null,null,"Otro",null,null,null,null,null,null,null,null,null,null,null,null,null,null,null,null,{"$f":"COUNTIF(X144:X150,\"NO\")","v":0},"Si  / No"]
[null,null,null,null,null,null,null,null,null,null,null,null,null,null,null,null,null,"01","a. Coordinador / Administrativo"]
[null,null,null,"721. SEÑOR(A) DIRECTOR(A), DURANTE EL AÑO 2023 Y HASTA LA FECHA DE APLICACIÓN DEL CENSO EDUCATIVO 2024,",null,null,null,null,null,null,null,null,null,null,null,null,null,"02","b. Secretaria(o)"]
[null,null,null,null,"¿A TRAVÉS DE QUÉ MEDIO RECIBIÓ LA CAPACITACIÓN EL PERSONAL AUXILIAR DE EDUCACIÓN?",null,null,null,null,null,null,null,null,null,null,null,null,"03","c. Oficinista"]
[null,null,null,null,"Marque con una “X”, una o más opciones",null,null,null,null,null,null,null,null,null,null,null,null,"04","d. Trabajador de servicio - guardianía y/o vigilancia"]
[null,null,null,null,null,null,null,null,null,null,null,null,null,null,null,null,null,"05","e. Trabajador de servicio - limpieza y mantenimiento"]
[null,null,null,null,null,"Perueduca, cursos específicos para auxiliares",null,null,null,null,null,null,null,null,null,null,null,"06","f. Auxiliar de biblioteca"]
[null,null,null,null,null,"Perueduca, cursos para la comunidad educativa",null,null,null,null,null,null,null,null,null,null,null,"07","g. Auxiliar de laboratorio"]
[null,null,null,null,null,"Mi Institución Educativa",null,null,null,null,null,null,null,null,null,null,null,null,null,null,null,null,null,{"$f":"COUNTIF(X144:X150,\"SI\") + COUNTIF(X144:X150,\"NO\")","v":0}]
[null,null,null,null,null,"Mi UGEL"]
[null,null,null,null,null,"MINEDU"]
[null,null,null,null,null,"DRE"]
[null,null,null,null,null,"Otras instituciones"]
[null,null,null,null,null,"No cuento con personal auxiliar de educación"]
[null,null,null,null,null,"El personal auxiliar de educación no recibió capacitación"]
[]
[]
[null,null,null,"726. ¿CUÁL DE LAS SIGUIENTES COMPETENCIAS CONSIDERA USTED COMO LA MÁS RELEVANTE EN EL",null,null,null,null,null,null,null,null,null,null,null,null,null,null,"731. ¿A TRAVÉS DE QUÉ INSTRUMENTOS DE GESTIÓN SE HA INCORPORADO?"]
[null,null,null,null,"EQUIPO DE PERSONAL ADMINISTRATIVO DE ESTE SERVICIO /NIVEL EDUCATIVO",null,null,null,null,null,null,null,null,null,null,null,null,null,null,"Marque con una “X”, una opción"]
[null,null,null,null,"Marque con una “X”, una opción"]
[null,null,null,null,null,null,null,null,null,null,null,null,null,null,null,null,null,null,null,null,"Proyecto Educativo Institucional (PEI)"]
[null,null,null,null,null,"Trabajo en equipo",null,null,null,null,null,null,null,null,null,null,null,null,null,null,"Plan Anual de Trabajo (PAT)"]
[null,null,null,null,null,"Atención a usuarios",null,null,null,null,null,null,null,null,null,null,null,null,null,null,"Proyecto Curricular de la IE (PCI)"]
[null,null,null,null,null,"Comunicación asertiva",null,null,null,null,null,null,null,null,null,null,null,null,null,null,"Reglamento Interno (RI)"]
[null,null,null,null,null,"Orientación a resultados",null,null,null,null,null,null,null,null,null,null,null,null,null,null,"Otros"]
[null,null,null,null,null,"Orden y planificación estratégica"]
[null,null,null,null,null,"Orientación al servicio"]
[null,null,null,null,null,"Proactividad",null,null,null,null,null,null,null,null,null,null,null,null,"732. ¿QUÉ CONSIDERA QUE REFORZARÍA LA EJECUCIÓN DE SU PROCESO DE RACIONALIZACIÓN?"]
[null,null,null,null,null,null,null,null,null,null,null,null,null,null,null,null,null,null,null,"Marque con una “X”, una opción"]
[null,null,null,"727. ¿CUÁLES SON LAS DOS PRINCIPALES TEMÁTICAS QUE CONSIDERA USTED QUE EL PERSONAL"]
[null,null,null,null,"ADMINISTRATIVO DE ESTE SERVICIO/NIVEL EDUCATIVO PODRÍA SER CAPACITADO?",null,null,null,null,null,null,null,null,null,null,null,null,null,null,null,"Asistencias Técnicas macroregionales"]
[null,null,null,null,"Marque con una “X”, solamente dos opciones",null,null,null,null,null,null,null,null,null,null,null,null,null,null,null,"Materiales Orientativos"]
[null,null,null,null,null,null,null,null,null,null,null,null,null,null,null,null,null,null,null,null,"Lineamientos complementarias"]
[null,null,null,null,null,"Seguridad de control de accesos y de control interno de la IIEE.",null,null,null,null,null,null,null,null,null,null,null,null,null,null,"Otros"]
[null,null,null,null,null,"Gestión de limpieza y/o mantenimiento de la IIEE (materiales, ambientes y equipos) del personal administrativo"]
[null,null,null,null,null,"Manejo de habilidades interpersonales (atención de usuarios)."]
[null,null,null,null,null,"Técnicas de archivo y despacho de documentos.",null,null,null,null,null,null,null,null,null,null,null,null,"733. ¿CONOCE LOS PERFILES DE CARGOS DE DIRECTOR(A) Y SUBDIRECTOR(A) DE IIEE PUBLICADOS"]
[null,null,null,null,null,"Manejo de los sistemas informáticos del Minedu.",null,null,null,null,null,null,null,null,null,null,null,null,null,"EN EL AÑO 2021 EN EL CLASIFICADOR DE CARGOS (RVM N° 2 23-2021-MINEDU)?"]
[null,null,null,null,null,"Administración y control de recursos propios (financieros)."]
[null,null,null,null,null,"Manejo de herramientas TIC y ofimática.",null,null,null,null,null,null,null,null,null,null,null,null,"Sí    ",null,"No    "]
[null,null,null,null,null,"La gestión de riesgo de desastres priorizando la prevención y reducción, así como la preparación y respuesta."]
[null,null,null,null,null,null,null,null,null,null,null,null,null,null,null,null,null,null,null,null,null,"¿Considera que los perfiles de cargo de director y subdirector de IE brindan"]
[null,null,null,"728. CON RESPECTO A LAS LABORES DEL PERSONAL ADMINISTRATIVO DURANTE EL AÑO 2023,",null,null,null,null,null,null,null,null,null,null,null,null,null,null,null,null,null,"claridad para el desarrollo de las funciones del equipo directivo?"]
[null,null,null,null,"¿EN QUÉ ÁMBITO(S) IDENTIFICÓ MAYOR CARGA DE ACTIVIDADES OPERATIVAS ADMINISTRATIVAS?"]
[null,null,null,null,"Marque con una “X”, hasta dos opciones",null,null,null,null,null,null,null,null,null,null,null,null,null,null,null,"Sí    ",null,"No    "]
[]
[null,null,null,null,null,"Gestión de recursos financieros, bienes, servicios e infraestructura"]
[null,null,null,null,null,"Gestión de información de la IIEE (registro en sistemas administrativos y trámite documentario)",null,null,null,null,null,null,null,null,null,null,null,null,"734. ¿QUÉ COMITÉS DE GESTIÓN ESCOLAR HA IMPLEMENTADO EN ESTE SERVICIO/NIVEL EDUCATIVO?"]
[null,null,null,null,null,"Gestión y seguimiento del uso de los recursos educativos."]
[null,null,null,null,null,"Limpieza y mantenimiento",null,null,null,null,null,null,null,null,null,null,null,null,null,null,"Comités",null,null,null,null,"Fecha de resolución"]
[null,null,null,null,null,"La gestión de riesgo de desastres priorizando la prevención y reducción, así como la preparación y respuesta.",null,null,null,null,null,null,null,null,null,null,null,null,null,null,null,null,null,"SI - NO","N° de RD","DD/MM/AAAA"]
[null,null,null,null,null,"Vigilancia y guardianía",null,null,null,null,null,null,null,null,null,null,null,null,"01","Comité de Condiciones Operativas"]
[null,null,null,null,null,null,null,null,null,null,null,null,null,null,null,null,null,null,"02","Comité de Gestión del Bienestar"]
[null,null,null,"729. DURANTE EL AÑO 2023, ¿A TRAVÉS DE QUÉ MEDIO RECIBIÓ CAPACITACIONES EL PERSONAL",null,null,null,null,null,null,null,null,null,null,null,null,null,null,"03","Comité de Gestión Pedagógica"]
[null,null,null,null,"ADMINISTRATIVO DE ESTE SERVICIO/NIVEL EDUCATIVO?",null,null,null,null,null,null,null,null,null,null,null,null,null,null,null,null,null,null,{"$f":"COUNTIF(X194:X196,\"SI\") + COUNTIF(X194:X196,\"NO\")","v":0}]
[null,null,null,null,"Marque con una “X”, una o más opciones"]
[null,null,null,null,null,null,null,null,null,null,null,null,null,null,null,null,null,null,"735. ¿CUÁLES SON LOS INSTRUMENTOS DE GESTIÓN ESCOLAR QUE SE HAN IMPLEMENTADO EN ESTE"]
[null,null,null,null,null,"Perueduca, cursos para la comunidad educativa",null,null,null,null,null,null,null,null,null,null,null,null,null,"SERVICIO/NIVEL EDUCATIVO?"]
[null,null,null,null,null,"Mi Institución Educativa"]
[null,null,null,null,null,"Mi UGEL"]
[null,null,null,null,null,"MINEDU",null,null,null,null,null,null,null,null,null,null,null,null,null,null,"Documentos de Gestión",null,null,null,null,"Marcar"]
[null,null,null,null,null,"DRE",null,null,null,null,null,null,null,null,null,null,null,null,null,null,null,null,null,null,null,"SI - NO"]
[null,null,null,null,null,"Otras instituciones",null,null,null,null,null,null,null,null,null,null,null,null,null,null,"Proyecto Educativo Institucional (PEI)"]
[null,null,null,null,null,"No cuento con personal administrativo",null,null,null,null,null,null,null,null,null,null,null,null,null,null,"Proyecto Currícular Institucional (PCI)"]
[null,null,null,null,null,"El personal administrativo no recibió capacitación",null,null,null,null,null,null,null,null,null,null,null,null,null,null,"Reglamento Interno (RI)"]
[null,null,null,null,null,null,null,null,null,null,null,null,null,null,null,null,null,null,null,null,"Plan Anual de Trabajo (PAT)"]
[null,null,null,"730. ¿SE HA INCORPORADO ALGÚN OBJETIVO O ACCIÓN REFERIDA A LA PREVENCIÓN, PROMOCIÓN Y ATENCIÓN DE LA",null,null,null,null,null,null,null,null,null,null,null,null,null,null,null,null,"Documento de Gestión (DG)"]
[null,null,null,null,"SALUD (FÍSICA, MENTAL O EMOCIONAL) O ALGUNA OTRA SIMILAR DIRIGIDA A PERSONAL DOCENTE, DIRECTIVO,",null,null,null,null,null,null,null,null,null,null,null,null,null,null,null,"Otros"]
[null,null,null,null,"JERÁRQUICO O ADMINISTRATIVO EN LOS INSTRUMENTOS DE GESTIÓN DEL SERVICIO/NIVEL EDUCATIVO?"]
[]
[null,null,null,null,"Sí",null,null,null,"No",null,null,"Pase a la pregunta 732."]

{"sheet":"C800","index":9,"n_rows":174,"n_cols":23,"rows_kept":174,"cut":false,"hidden":false,"merged":[[38,3,39,6],[13,15,14,18],[22,5,22,7],[41,18,41,19],[39,18,39,19],[41,14,41,15],[41,11,41,13],[38,11,40,13],[38,14,40,15],[39,16,39,17],[41,16,41,17],[42,11,42,13],[43,11,43,13],[6,1,6,22],[46,4,46,6],[41,8,41,9],[42,8,42,9],[43,8,43,9],[46,8,46,9],[38,20,40,20],[38,21,40,21],[15,9,17,9],[15,10,17,10],[15,4,16,7],[39,8,39,9],[37,7,38,7],[44,18,44,19],[43,18,43,19],[44,8,44,9],[45,8,45,9],[57,16,57,19],[46,18,46,19],[45,14,45,15],[44,16,44,17],[45,16,45,17],[45,18,45,19],[42,16,42,17],[42,14,42,15],[43,14,43,15],[43,16,43,17],[106,8,106,10],[44,11,44,13],[45,11,45,13],[46,16,46,17],[46,11,46,13],[46,14,46,15],[44,14,44,15],[78,8,78,10],[76,14,81,21],[64,3,64,8],[68,4,68,8],[42,18,42,19],[119,6,119,9],[95,13,99,15],[103,14,103,16],[84,8,84,9],[84,6,84,7],[95,8,95,10],[95,20,95,22],[96,16,98,16],[96,18,99,18],[96,19,98,19],[96,20,98,20],[96,21,99,21],[96,22,98,22],[96,17,98,17],[95,17,95,19],[82,6,82,7],[82,8,82,9],[83,6,83,7],[83,8,83,9],[80,6,80,7]]}
[]
[null,null,null,null,null,"CENSO EDUCATIVO 2024"]
["Si",null,null,null,null,"MATRÍCULA, DOCENTES Y MATERIALES EDUCATIVOS"]
["No"]
[]
[]
[null,"800. GESTIÓN DEL RIESGO DE DESASTRES"]
[]
[null,null,"801. EN EL PRESENTE AÑO, ESTE SERVICIO/NIVEL EDUCATIVO, ¿HA INCORPORADO LA DEFENSA",null,null,null,null,null,null,null,null,null,null,"802. SOBRE LA DEFENSA NACIONAL Y LA GESTIÓN DEL RIESGO DE DESASTRES EN ESTE"]
[null,null,null,"NACIONAL Y GESTIÓN DEL RIESGO DE DESASTRES EN SUS INSTRUMENTOS DE GESTIÓN VIGENTES?",null,null,null,null,null,null,null,null,null,null,"SERVICIO/NIVEL EDUCATIVO, ATIENDA LAS SIGUIENTES PREGUNTAS:"]
[]
[null,null,null,"Sí  ",null,null,null,"No  ",null,null,null,null,null,null,"Seleccione “Si” o “No” según corresponda en atención a cada pregunta."]
[]
[null,null,null,null,null,null,null,null,null,null,null,null,null,null,null,"Documentos de Gestión",null,null,null,null,null,"Respuesta"]
[null,null,null,"Precise los documentos de gestión"]
[null,null,null,null,"Documentos de Gestión",null,null,null,null,"Gestión de Riesgo de Desastres","Seguridad y Defensa Nacional",null,null,null,null,null,null,null,null,null,null,"SI - NO"]
[null,null,null,null,null,null,null,null,null,null,null,null,null,null,"¿La IE cuenta con un croquis con rutas de evacuación?"]
[null,null,{"$f":"COUNTIF(J19:J23,\"X\") + COUNTIF(K19:K23,\"X\")","v":0},null,null,null,null,null,null,null,null,null,null,null,"¿La IE cuenta con planos de señalización con rutas de evacuación?"]
[null,null,"01","Proyecto Educativo Institucional (PEI)",null,null,null,null,{"$f":"COUNTIF(J19:K19,\"X\")","v":0}]
[null,null,"02","Plan Anual de Trabajo (PAT)",null,null,null,null,{"$f":"COUNTIF(J20:K20,\"X\")","v":0}]
[null,null,"03","Proyecto Currícular Institucional (PCI)",null,null,null,null,{"$f":"COUNTIF(J21:K21,\"X\")","v":0}]
[null,null,"04","Reglamento Interno (RI)",null,null,null,null,{"$f":"COUNTIF(J22:K22,\"X\")","v":0}]
[null,null,"05","Otros",{"$f":"CONCATENATE(J23,K23)","v":""},null,null,null,{"$f":"COUNTIF(J23:K23,\"X\")","v":0}]
[null,null,null,null,null,null,null,null,null,{"$f":"COUNTIF(J11:J23,\"X\")","v":0},{"$f":"COUNTIF(K11:K23,\"X\")","v":0}]
[null,null,"803. EN EL PRESENTE AÑO, LOS MIEMBROS DE ESTE SERVICIO/NIVEL EDUCATIVO, ¿HAN SIDO CAPACITADOS Y CERTIFICADOS EN MATERIA DE GESTIÓN INTEGRAL \nDEL RIESGO DE DESASTRES?"]
[]
[null,null,null,"Sí  ","X",null,null,"No  ",""]
[]
[]
[null,null,null,null,null,"Alguna de ellos fue desarrollada por:"]
[]
[null,null,null,null,null,null,null,"SI - NO"]
[null,null,null,null,null,"DRE/GRE"]
[null,null,null,null,null,"UGEL"]
[]
[null,null,null,"Complete la tabla"]
[]
[null,null,null,null,null,null,null,"¿Se realizó?","Cantidad de personas capacitadas",null,null,null,null,null,null,null,"Cantidad de personas certificadas"]
[null,null,null,"Tipo de Capacitación",null,null,null,null,null,null,null,"Adminis-  trativos",null,null,"Integrantes\nque pertenecen a la brigada de EA y GRD",null,null,null,null,null,"Adminis-  trativos","Integrantes brigada EA y GRD"]
[null,null,null,null,null,null,null,null,"Directores",null,"Docentes",null,null,null,null,null,"Directores",null,"Docentes"]
[null,null,null,null,null,null,null,"SI - NO"]
[null,null,"01","Curso",null,null,null,null,null,null,null,null,null,null,null,null,null,null,null,null,null,null,{"$f":"SUM(I42:V42)","v":0}]
[null,null,"02","Taller de capacitación",null,null,null,null,null,null,null,null,null,null,null,null,null,null,null,null,null,null,{"$f":"SUM(I43:V43)","v":0}]
[null,null,"03","Reuniones de trabajo institucionales",null,null,null,null,null,null,null,null,null,null,null,null,null,null,null,null,null,null,0]
[null,null,"04","Foro",null,null,null,null,null,null,null,null,null,null,null,null,null,null,null,null,null,null,0]
[null,null,"05","Webinar",null,null,null,null,null,null,null,null,null,null,null,null,null,null,null,null,null,null,0]
[null,null,"06","Otros",null,null,null,null,null,null,null,null,null,null,null,null,null,null,null,null,null,null,0]
[null,null,null,null,null,null,null,{"$f":"COUNTIF(H42:H47,\"SI\") + COUNTIF(H42:H47,\"NO\")","v":0}]
[]
[null,null,"804. EN EL AÑO 2023, ANTE LA DETECCIÓN DEL PELIGRO INMINENTE, EMERGENCIA O DESASTRE,",null,null,null,null,null,null,null,null,null,null,"805. EN EL PRESENTE AÑO, ESTE SERVICIO/NIVEL EDUCATIVO, ¿HA PARTICIPADO EN CAMPAÑAS"]
[null,null,null,"¿ESTE SERVICIO/NIVEL EDUCATIVO REPORTA AL ESPACIO DE MONITOREO Y SEGUIMIENTO",null,null,null,null,null,null,null,null,null,null,"COMUNICACIONALES DE GESTIÓN DE RIESGO DE DESASTRES?"]
[null,null,null,"SECTORIAL (EMSS) DE LA UGEL?"]
[null,null,null,null,null,null,null,null,null,null,null,null,null,null,"Sí  ",null,null,null,"No  "]
[null,null,null,"Sí  ",null,null,"¿Ha sido capacitado sobre el proceso a seguir para reportar?"]
[]
[null,null,null,null,null,null,null,"Sí  ",null,null,null,null,null,null,null,null,"Indique, ¿En qué acciones participó o recibió?"]
[]
[null,null,null,null,null,null,null,"No  ",null,null,null,null,null,null,null,null,"ITEMS",null,null,null,"Marcar con X"]
[null,null,null,null,null,null,null,null,null,null,null,null,null,null,null,null,"Pasacalle"]
[null,null,null,null,null,null,null,"No Sabe  ",null,null,null,null,null,null,null,null,"Feria"]
[null,null,null,"No  ",null,null,null,null,null,null,null,null,null,null,null,null,"Activaciones motivadoras"]
[null,null,null,null,null,null,null,null,null,null,null,null,null,null,null,null,"Conferencias"]
[null,null,null,null,null,null,null,null,null,null,null,null,null,null,null,null,"Recepción de afiches"]
[null,null,null,"¿Por qué?",null,null,"Marque con una “X”, una opción",null,null,null,null,null,null,null,null,null,"Recepción murales de GRD"]
[null,null,null,"ITEMS",null,null,null,null,null,"Marcar con X",null,null,null,null,null,null,"Post en redes sociales"]
[null,null,null,"No se tuvo emergencia en territorio",null,null,null,null,null,null,null,null,null,null,null,null,"Post radiales"]
[null,null,null,"No se cuenta con los instrumentos y/o herramientas"]
[null,null,null,"No se conoce el procedimiento"]
[null,null,null,"Otro"]
[]
[]
[null,null,"806. EL SERVICIO/NIVEL EDUCATIVO, ¿CUENTA CON LA BRIGADA DE EDUCACIÓN AMBIENTAL Y",null,null,null,null,null,null,null,null,null,null,"809. ¿QUÉ SUGERENCIA PLANTEARÍA PARA FAVORECER LA CONFORMACIÓN O FUNCIONAMIENTO"]
[null,null,null,"GESTIÓN DE RIESGO DE DESASTRES?",null,null,null,null,null,null,null,null,null,null,"DE LAS BAPES?"]
[]
[null,null,null,"Sí",null,null,null,"No  ",null,null,null,null,null,null,"longitud máxima 200 caracteres",null,null,null,null,null,null,{"$f":"LEN(TRIM(O77))","v":0}]
[]
[]
[null,null,null,null,"Documento",null,null,"Resolución"]
[null,null,null,null,null,null,null,"Otro"]
[]
[null,null,null,null,"Número"]
[]
[null,null,null,null,null,null,"Desde:",null,"Hasta:"]
[null,null,null,null,"Vigencia",null,"DD/MM/AAAA",null,"DD/MM/AAAA",null,null,null,null,"810. ESTE SERVICIO/NIVEL EDUCATIVO, ¿CUENTA CON ALGUNA EXPERIENCIA EXITOSA O"]
[null,null,null,null,null,null,null,null,null,null,null,null,null,null,"BUENA PRÁCTICA DOCENTE Y/O GESTIÓN ESCOLAR ENMARCADAS EN ALGUNA DE LAS"]
[null,null,null,null,null,null,null,null,null,null,null,null,null,null,"LÍNEAS ESTRATÉGICAS?"]
[null,null,"807. EN EL PRESENTE AÑO, ¿CONFORMÓ SU BRIGADA DE AUTOPROTECCIÓN ESCOLAR (BAPES)?"]
[null,null,null,null,null,null,null,null,null,null,null,null,null,null,"Sí  ",null,null,null,"No  ",""]
[null,null,null,"Sí  ","X"]
[null,null,null,null,null,null,"¿Quiénes lo conforman?"]
[null,null,null,null,null,null,"Marque con una “X”, una opción"]
[null,null,null,null,null,null,null,"Representantes de la APAFA",null,null,null,null,null,null,"Complete la tabla"]
[null,null,null,null,null,null,null,"Representantes de padres de familia"]
[null,null,null,null,null,null,null,"Otros actores de la comunidad educativa",null,null,null,null,null,"Seleccione “Sí” o “No” para cada línea estratégica e ingrese los años según corresponda"]
[null,null,null,null,null,null,null,"Representación de la Comisaria de la jurisdicción"]
[null,null,null,null,null,null,null,"Otros","",null,null,null,null,"Línea estratégica",null,null,null,"Experiencia exitosa",null,null,"Buena práctica docente y/o Gestión escolar"]
[null,null,null,null,null,null,null,null,null,null,null,null,null,null,null,null,null,"¿Cuenta con experiencia exitosa?","Año de la experiencia exitosa","Se socializó con otras entidades","¿Cuenta con buena práctica docente y Gestión escolar?","Año de la buena práctica docente y/o Gestión escolar","Se socializó con otras entidades"]
[null,null,null,"No  ",null,null,null,"Pase a la pregunta 810"]
[]
[null,null,null,null,null,null,"¿Por qué no conformó su BAPES?",null,null,null,null,null,null,null,null,null,null,"SI / NO",null,"SI / NO","SI / NO",null,"SI / NO"]
[null,null,null,null,null,null,"Marque con una “X”, una o más opciones",null,null,null,null,null,"01","Seguridad y Defensa Nacional"]
[null,null,null,null,null,null,null,"La IIEE no cuenta con APAFA",null,null,null,null,"02","Gestión del Riesgo de Desastre"]
[null,null,null,null,null,null,null,"No hay participación de los padres",null,null,null,null,"03","Adaptación al cambio climático"]
[null,null,null,null,null,null,null,"No lo considera necesario",null,null,null,null,"04","Otro"]
[null,null,null,null,null,null,null,"No identifican riesgos alrededor de la IIEE",null,null,null,null,null,null,null,null,null,{"$f":"COUNTIF(R101:R104,\"SI\")+COUNTIF(R101:R104,\"NO\")","v":0},null,null,{"$f":"COUNTIF(U101:U104,\"SI\")+COUNTIF(U101:U104,\"NO\")","v":0},"",""]
[null,null,null,null,null,null,null,"No tieene información de cómo conformarlo"]
[null,null,null,null,null,null,null,"Otros","",null,null,null,null,"811. ESTE SERVICIO/NIVEL EDUCATIVO, ¿PARTICIPÓ EN LOS SIMULACROS CONVOCADOS POR"]
[null,null,null,null,null,null,null,null,null,null,null,null,null,null,"MINEDU Y/O INDECI?"]
[null,null,"808. LA BRIGADA DE AUTOPROTECCIÓN ESCOLAR (BAPES), ¿CUENTA CON LA ASISTENCIA DE LA"]
[null,null,null,"OFICINA DE PARTICIPACIÓN CIUDADANA (OPC) DE LA COMISARÍA DE SU JURISDICCIÓN?",null,null,null,null,null,null,null,null,null,null,"Sí  ",null,null,null,"No  "]
[]
[null,null,null,"Sí",null,null,null,"No  ",""]
[null,null,null,null,null,null,null,null,null,null,null,null,null,null,null,null,"Complete la tabla"]
[]
[null,null,null,null,"¿Qué actividades desarrolló o tiene planificadas desarrollar?",null,null,null,null,null,null,null,null,null,null,null,null,"ITEMS",null,null,"Marcar con X"]
[null,null,null,null,"Marque con una “X”, una opción",null,null,null,null,null,null,null,null,null,null,null,"Primer Simulacro"]
[null,null,null,null,"","Taller con los integrantes de las BAPES",null,null,null,null,null,null,null,null,null,null,"Segundo Simulacro"]
[null,null,null,null,"","Actividades de sensibilización dirigidos a la comunidad educativa.",null,null,null,null,null,null,null,null,null,null,"Tercer Simulacro"]
[null,null,null,null,"","Formulación de protocolos para la actuación ante riesgos identificados."]
[null,null,null,null,null,"Otras",""]
[]
[]
[]
[]
[]
[]
[]
[]
[]
[]
[]
[]
[]
["DIRECTOR(A)"]
["SUB DIRECTOR(A)"]
["DOCENTE"]
["COORDINADOR(A)"]
["ASESOR"]
["ADMINISTRATIVO"]
["ASISTENTE"]
["AUXILIAR"]
["SECRETARIA(O)"]
["ESTADÍSTICO"]
["ESPECIALISTA"]
["BIBLIOTECARIO"]
["CARE"]
["COMANDANTE PNP"]
["CONTADOR"]
["DAIP"]
["DIGITADOR(A)"]
["GERENTE"]
["JEFE ACADÉMICO"]
["JEFE ADMINISTRATIVO"]
["JEFE DE AREA"]
["JEFE DE LABORATORIO"]
["JEFE DE PERSONAL"]
["JEFE DE SEDE"]
["JEFE UNIDAD"]
["OFICINISTA"]
["OPERADOR DE SISTEMAS"]
["PERSONAL DE SERVICIO"]
["PROGRAMADOR"]
["PROMOTOR(A)"]
["PSICOLOGO"]
["REGISTRADOR(A)"]
["REPRESENTANTE LEGAL"]
["SOPORTE TECNOLOGICO"]
["TÉCNICO ADMINISTRATIVO"]
["TESORERO(A)"]
["TRABAJADOR SOCIAL"]
["TUTOR"]
["OTROS"]
["DOCENTE COORDINADOR(A)"]
["PEC"]

{"sheet":"C900","index":10,"n_rows":294,"n_cols":21,"rows_kept":294,"cut":false,"hidden":false,"merged":[[100,17,100,19],[101,17,101,19],[100,11,100,16],[101,11,101,16],[100,3,100,6],[101,3,101,6],[100,7,100,10],[101,7,101,10],[99,17,99,19],[6,1,6,21],[15,12,16,12],[15,13,16,15],[39,18,39,20],[76,17,76,19],[99,11,99,16],[99,3,99,6],[99,7,99,10],[19,6,19,8],[88,15,88,19],[98,17,98,19],[89,15,89,19],[92,15,92,19],[90,15,90,19],[91,15,91,19],[69,4,69,8],[70,4,70,8],[71,4,71,8],[72,4,72,8],[73,4,73,8]]}
[]
[null,null,null,null,null,"CENSO EDUCATIVO 2024"]
["Si",null,null,null,null,"MATRÍCULA, DOCENTES Y MATERIALES EDUCATIVOS"]
["No"]
[]
[]
[null,"900. ORIENTACIÓN VOCACIONAL Y CIENCIA TECNOLÓGICA"]
[]
[null,null,"901. ¿IMPLEMENTA ESTRATEGIAS DE ORIENTACIÓN VOCACIONAL ENTRE SUS ESTUDIANTES?",null,null,null,null,null,null,null,null,null,"906. DURANTE EL AÑO ACADÉMICO 2023, ¿LOS ESTUDIANTES RECIBIERON ALGUNAS DE LAS"]
[null,null,null,null,null,null,null,null,null,null,null,null,null,"CHARLAS U ORIENTACIONES ORGANIZADAS POR SU SERVICIO/NIVEL EDUCATIVO, YA SEA"]
[null,null,null,"Sí  ",null,null,"No  ",null,null,null,null,null,null,"PRESENCIAL O VIRTUAL?"]
[]
[null,null,null,null,null,null,null,null,null,null,null,null,null,"Seleccione Sí o No recibió charlas u orientaciones organizadas por el Servicio/Nivel educativo"]
[null,null,null,"¿Qué estrategias de orientación vocacional implementa entre sus estudiantes?"]
[]
[null,null,null,null,null,"Charlas motivacionales",null,null,null,null,null,null,"Nro.","Charlas / Orientaciones",null,null,"Grado de estudio"]
[null,null,null,null,null,"Asesorías",null,null,null,null,null,{"$f":"SUM(L18:L25)","v":0},null,null,null,null,"1º","2º","3º","4º","5º"]
[null,null,null,null,null,"Entrega de fichas informativas.",null,null,null,null,null,{"$f":"COUNTIF(Q18:U18,\"SI\")+COUNTIF(Q18:U18,\"NO\")","v":0},1,"Aplicación de una prueba de …",null,null,"",null,"","",""]
[null,null,null,null,null,"Promoción de plataforma “Ponte en Carrera”",null,null,null,null,null,0,2,"Charlas vocacionales",null,null,null,null,"","",""]
[null,null,null,null,null,"Otros",null,null,null,null,null,0,3,"Ferias acerca de carreras ofrecidas",null,null,null,null,"","",""]
[null,null,null,null,null,null,null,null,null,null,null,0,4,"Charlas de inducción en el Portal",null,null,null,null,"","",""]
[null,null,"902. ¿TIENE CONOCIMIENTO DE LA PLATAFORMA WEB",null,null,null,null,null,null,null,null,0,5,"Aplicación de simulacros de adm.",null,null,null,null,"","",""]
[null,null,null,"www.ponteencarrera.pe ?",null,null,null,null,null,null,null,0,6,"Charlas informativas PRONABEC",null,null,null,null,"","",""]
[null,null,null,null,null,null,null,null,null,null,null,0,7,"Actividades de tutoría grupal e …",null,null,"",null,"","",""]
[null,null,null,"Sí  ",null,null,"No  ",null,null,null,null,0,8,"Ninguna"]
[null,null,null,null,null,null,null,null,null,null,null,null,null,null,null,null,{"$f":"COUNTIF(Q18:Q25,\"SI\")+COUNTIF(Q18:Q25,\"NO\")","v":0},{"$f":"COUNTIF(R18:R25,\"SI\")+COUNTIF(R18:R25,\"NO\")","v":0},{"$f":"COUNTIF(S18:S25,\"SI\")+COUNTIF(S18:S25,\"NO\")","v":0},{"$f":"COUNTIF(T18:T25,\"SI\")+COUNTIF(T18:T25,\"NO\")","v":0},{"$f":"COUNTIF(U18:U25,\"SI\")+COUNTIF(U18:U25,\"NO\")","v":0}]
[]
[null,null,null,"¿Cómo calificaría está herramienta para los fines de",null,null,null,null,null,null,null,null,"907. DURANTE EL AÑO 2023, ¿SE LES OFRECIÓ A LOS ESTUDIANTES ALGÚN PROGRAMA, SESIÓN"]
[null,null,null,"orientar vocacionalmente a sus estudiantes?",null,null,null,null,null,null,null,null,null,"O FERIA DE ORIENTACIÓN VOCACIONAL PARA POSTULAR A ALGUNA CARRERA DE"]
[null,null,null,"Marque con una “X” una sola opción",null,null,null,null,null,null,null,null,null,"ALGUNA UNIVERSIDAD?"]
[null,null,null,null,null,"Excelente"]
[null,null,null,null,null,"Bueno",null,null,null,null,null,null,null,"Sí  ","",null,null,null,"Pase a la pregunta 910"]
[null,null,null,null,null,"Regular"]
[null,null,null,null,null,"Malo"]
[null,null,null,null,null,null,null,null,null,null,null,null,null,null,"¿Recibió la orientación vocacional de parte de?"]
[null,null,"903. ¿HA PARTICIPADO EN LA FERIA ESCOLAR NACIONAL DE CIENCIA Y TECNOLOGÍA",null,null,null,null,null,null,null,null,null,null,null,"Marque con una “X”, una o más opciones"]
[null,null,null,"“EUREKA” O “EUREKA VIRTUAL” EN LOS ÚLTIMOS 3 AÑOS ?"]
[null,null,null,null,null,null,null,null,null,null,null,null,null,null,null,"","Servicio/Nivel educativo"]
[null,null,null,"Sí  ",null,null,"No  ",null,null,null,null,null,null,null,null,"","Las universidades"]
[null,null,null,null,null,null,null,null,null,null,null,null,null,null,null,"","Otras instituciones",null,""]
[]
[null,null,null,"¿Hasta qué etapa de la feria EUREKA lograron clasificar?"]
[null,null,null,null,null,null,null,null,null,null,null,null,"908. SI LA ORIENTACIÓN VOCACIONAL RECIBIDA FUE POR PARTE DEL SERVICIO/NIVEL EDUCATIVO?"]
[null,null,null,null,null,"Primera Etapa (SS.EE.)"]
[null,null,null,null,null,"Segunda etapa (UGEL)",null,null,null,null,null,null,"¿En qué consistió dicha orientación vocacional?"]
[null,null,null,null,null,"Tercera etapa (DRE)",null,null,null,null,null,null,"Marque con una “X”, una o más opciones"]
[null,null,null,null,null,"Cuarta Etapa (Nacional)"]
[null,null,null,null,null,null,null,null,null,null,null,null,"","Se trató aspectos individuales de los alumnos, como la personalidad, los intereses, el nivel intelectual"]
[null,null,"904. ¿CUENTA CON CONVENIOS DE UNIVERSIDADES QUE PERMITA A LOS ESTUDIANTES CON LAS",null,null,null,null,null,null,null,null,null,"","Se informó sobre las alternativas de carreras y universidades que ofrece el Perú"]
[null,null,null,"MEJORES CALIFICACIONES OBTENER SUBVENCIONES EDUCATIVAS (BECAS Y/O CREDITOS)",null,null,null,null,null,null,null,null,"","Se orientó y asistió a los alumnos para que tome la mejor decisión al momento de elegir una carrera."]
[null,null,null,"EN DICHAS CASAS DE ESTUDIO?",null,null,null,null,null,null,null,null,"","Hubo dinámicas o sesiones en las aulas para preparar a los alumnos para las entrevistas con las univ."]
[null,null,null,null,null,null,null,null,null,null,null,null,"","Realizaron simulacros de exámenes de admisión"]
[null,null,null,"Sí  ",null,null,"No  "]
[]
[null,null,null,null,null,"A. ¿Cuántas universidades?"]
[null,null,null,null,null,"B. Número total de vacantes ofrecidas"]
[]
[null,null,"905. DURANTE EL AÑO 2023, ¿SE HA IMPLEMENTADO ACCIONES PARA PROMOVER"]
[null,null,null,"EL PROYECTO DE VIDA Y ORIENTACIÓN VOCACIONAL ENTRE SUS ESTUDIANTES"]
[]
[null,null,null,"Sí  ",null,null,"No  ","","Pase a la pregunta 907"]
[]
[]
[null,null,"909. SI LA ORIENTACIÓN VOCACIONAL RECIBIDA FUE POR PARTE DE LAS UNIVERSIDADES,",null,null,null,null,null,null,null,null,null,"910. DURANTE EL AÑO 2023, ESTE SERVICIO/NIVEL EDUCATIVO, ¿MOSTRÓ ALGUNA"]
[null,null,null,"INDICAR LO SIGUIENTE:",null,null,null,null,null,null,null,null,null,"PLATAFORMA DE INFORMACIÓN VOCACIONAL Y/O LABORAL A LOS ESTUDIANTES,"]
[null,null,null,null,null,null,null,null,null,null,null,null,null,"PARA PROPICIAR UN ACCESO PERTINENTE DE ESTOS A LAS UNIVERSIDADES?"]
[null,null,null,"¿Qué universidades participaron?"]
[null,null,null,"Seleccione una o más universidades según corresponda",null,null,null,null,null,null,null,null,null,"Sí  ",null,null,"No  "]
[null,null,{"$f":"SUM(C70:C74)","v":0}]
[null,null,{"$f":"IF(E70<>\"\",1,0)","v":0},"Universidad 1"]
[null,null,{"$f":"IF(E71<>\"\",1,0)","v":0},"Universidad 2",null,null,null,null,null,null,null,null,null,null,"¿Qué plataforma(s) utilizó?"]
[null,null,{"$f":"IF(E72<>\"\",1,0)","v":0},"Universidad 3",null,null,null,null,null,null,null,null,null,null,"Marque con una “X”, una o más opciones"]
[null,null,{"$f":"IF(E73<>\"\",1,0)","v":0},"Universidad 4"]
[null,null,{"$f":"IF(E74<>\"\",1,0)","v":0},"Universidad 5",null,null,null,null,null,null,null,null,null,null,null,null,"Portal Ponte en Carrera"]
[null,null,null,null,null,null,null,null,null,null,null,null,null,null,null,null,"Portal TUNI"]
[null,null,null,"¿En qué consistió dicha orientación vocacional?",null,null,null,null,null,null,null,null,null,null,null,null,"La página web del colegio"]
[null,null,null,"Marque con una “X”, una o más opciones",null,null,null,null,null,null,null,null,null,null,null,null,"Otros"]
[]
[null,null,null,null,null,"Se explicaron los aspectos misionales, la visión y los objetivos de las univ.",null,null,null,null,null,null,"911. ESTE SERVICIO/NIVEL EDUCATIVO, ¿CUENTA CON CONVENIOS U OTRO MECANISMO"]
[null,null,null,null,null,"Realizaron simulacros de exámenes de admisión para la universidad.",null,null,null,null,null,null,null,"VIGENTES, PARA EL ACCESO DIRECTO O PREFERENCIAL DE SUS ESTUDIANTES"]
[null,null,null,null,null,"Se presentaron las carreras disponibles de las universidades participantes",null,null,null,null,null,null,null,"A UNA UNIVERSIDAD?"]
[null,null,null,null,null,"Se explicó el aspecto económico de las carreras."]
[null,null,null,null,null,"Se explicó sobre las modalidades de admisión.",null,null,null,null,null,null,null,"Sí  ",null,null,"No  "]
[]
[]
[null,null,null,null,null,null,null,null,null,null,null,null,null,null,"¿Qué universidades?"]
[null,null,null,null,null,null,null,null,null,null,null,null,null,null,"Seleccione una o más universidades según corresponda"]
[null,null,null,null,null,null,null,null,null,null,null,null,{"$f":"SUM(M89:M93)","v":0}]
[null,null,null,null,null,null,null,null,null,null,null,null,{"$f":"IF(P89<>\"\",1,0)","v":0},"Universidad 1"]
[null,null,null,null,null,null,null,null,null,null,null,null,{"$f":"IF(P90<>\"\",1,0)","v":0},"Universidad 2"]
[null,null,null,null,null,null,null,null,null,null,null,null,0,"Universidad 3"]
[null,null,null,null,null,null,null,null,null,null,null,null,0,"Universidad 4"]
[null,null,null,null,null,null,null,null,null,null,null,null,0,"Universidad 5"]
[]
[]
[null,"DATOS DEL DIRECTOR/RESPONSABLE DEL LLENADO DE LA CÉDULA"]
[]
[]
[null,null,null,null,"NOMBRES Y APELLIDOS",null,null,"CARGO",null,null,null,"CORREO ELECTRÓNICO",null,null,null,null,null,"TELÉFONO"]
[]
[]
[]
[]
[]
[]
[]
[]
[]
[]
[]
[]
[]
[]
[]
["DIRECTOR(A)"]
["SUB DIRECTOR(A)"]
["DOCENTE"]
["COORDINADOR(A)"]
["ASESOR"]
["ADMINISTRATIVO"]
["ASISTENTE"]
["AUXILIAR"]
["SECRETARIA(O)"]
["ESTADÍSTICO"]
["ESPECIALISTA"]
["BIBLIOTECARIO"]
["CARE"]
["COMANDANTE PNP"]
["CONTADOR"]
["DAIP"]
["DIGITADOR(A)"]
["GERENTE"]
["JEFE ACADÉMICO"]
["JEFE ADMINISTRATIVO"]
["JEFE DE AREA"]
["JEFE DE LABORATORIO"]
["JEFE DE PERSONAL"]
["JEFE DE SEDE"]
["JEFE UNIDAD"]
["OFICINISTA"]
["OPERADOR DE SISTEMAS"]
["PERSONAL DE SERVICIO"]
["PROGRAMADOR"]
["PROMOTOR(A)"]
["PSICOLOGO"]
["REGISTRADOR(A)"]
["REPRESENTANTE LEGAL"]
["SOPORTE TECNOLOGICO"]
["TÉCNICO ADMINISTRATIVO"]
["TESORERO(A)"]
["TRABAJADOR SOCIAL"]
["TUTOR"]
["OTROS"]
["DOCENTE COORDINADOR(A)"]
["PEC"]
[]
[]
[]
[]
[]
[]
[]
[]
[]
[]
[]
[]
[]
[]
[]
[]
[]
[]
[]
[]
[]
[]
[]
[]
[]
[]
[]
[]
[]
[]
[]
[]
[]
[]
[]
[]
[]
[]
[]
[]
[]
[]
[]
[]
["01: UNIVERSIDAD MAYOR DE SAN MARCOS"]
["02: UNIVERSIDAD SAN CRISTÓBAL DE HUAMANGA"]
["03: UNIVERSIDAD SAN ANTONIO ABAD DEL CUSCO"]
["04: UNIVERSIDAD DE TRUJILLO"]
["05: UNIVERSIDAD SAN AGUSTÍN"]
["06: UNIVERSIDAD CIRO ALEGRÍA"]
["07: UNIVERSIDAD DE INGENIERÍA"]
["08: UNIVERSIDAD AGRARIA LA MOLINA"]
["09: UNIVERSIDAD SAN LUIS GONZAGA DE ICA"]
["10: UNIVERSIDAD DEL CENTRO DEL PERÚ"]
["11: UNIVERSIDAD DE LA AMAZONÍA PERUANA"]
["12: UNIVERSIDAD DEL ALTIPLANO"]
["13: UNIVERSIDAD DE PIURA"]
["14: UNIVERSIDAD DE CAJAMARCA"]
["15: UNIVERSIDAD FEDERICO VILLARREAL"]
["16: UNIVERSIDAD AGRARIA DE LA SELVA"]
["17: UNIVERSIDAD HERMILIO VALDIZAN"]
["18: UNIVERSIDAD DE EDUCACIÓN ENRIQUE GUZMÁN Y VALLE"]
["19: UNIVERSIDAD DANIEL ALCIDES CARRIÓN"]
["20: UNIVERSIDAD DEL CALLAO"]
["21: UNIVERSIDAD JOSÉ FAUSTINO SÁNCHEZ CARRIÓN"]
["22: UNIVERSIDAD PEDRO RUÍZ GALLO"]
["23: UNIVERSIDAD JORGE BASADRE GROHMANN"]
["24: UNIVERSIDAD SANTIAGO ANTÚNEZ DE MAYOLO"]
["25: UNIVERSIDAD DE SAN MARTÍN"]
["26: UNIVERSIDAD DE UCAYALI"]
["27: UNIVERSIDAD DE TUMBES"]
["28: UNIVERSIDAD DEL SANTA"]
["29: UNIVERSIDAD DE HUANCAVELICA"]
["30: UNIVERSIDAD AMAZÓNICA DE MADRE DE DIOS"]
["31: UNIVERSIDAD TORIBIO RODRÍGUEZ DE MENDOZA DE AMAZONAS"]
["32: UNIVERSIDAD MICAELA BASTIDAS DE APURIMAC"]
["33: UNIVERSIDAD INTERCULTURAL DE LA AMAZONIA"]
["34: UNIVERSIDAD TECNOLÓGICA DE LIMA SUR"]
["35: UNIVERSIDAD JOSE MARIA ARGUEDAS"]
["36: UNIVERSIDAD DE MOQUEGUA"]
["37: UNIVERSIDAD DE JULIACA"]
["38: UNIVERSIDAD DE JAÉN"]
["39: UNIVERSIDAD DE CAÑETE"]
["40: UNIVERSIDAD AUTÓNOMA DE CHOTA"]
["41: UNIVERSIDAD DE BARRANCA"]
["42: UNIVERSIDAD DE FRONTERA"]
["43: UNIVERSIDAD INTERCULTURAL FABIOLA SALAZAR LEGUÍA DE BAGUA"]
["44: UNIVERSIDAD INTERCULTURAL DE LA SELVA CENTRAL JUAN SANTOS ATAHUALPA"]
["45: UNIVERSIDAD INTERCULTURAL DE QUILLABAMBA"]
["46: UNIVERSIDAD AUTÓNOMA DE ALTO AMAZONAS"]
["47: UNIVERSIDAD AUTÓNOMA ALTOANDINA DE TARMA"]
["48: UNIVERSIDAD AUTÓNOMA DE HUANTA"]
["49: UNIVERSIDAD AUTÓNOMA DE TAYACAJA DANIEL HERNÁNDEZ MORILLO"]
["50: PONTIFICIA UNIVERSIDAD CATÓLICA DEL PERÚ"]
["51: UNIVERSIDAD PERUANA CAYETANO HEREDIA"]
["52: UNIVERSIDAD CATÓLICA DE SANTA MARÍA"]
["53: UNIVERSIDAD DEL PACÍFICO"]
["54: UNIVERSIDAD DE LIMA"]
["55: UNIVERSIDAD DE SAN MARTÍN DE PORRES"]
["56: UNIVERSIDAD FEMENINA DEL SAGRADO CORAZÓN"]
["57: UNIVERSIDAD DE PIURA"]
["58: UNIVERSIDAD RICARDO PALMA"]
["59: UNIVERSIDAD PERUANA LOS ANDES"]
["60: UNIVERSIDAD PERUANA UNIÓN"]
["61: UNIVERSIDAD ANDINA DEL CUSCO"]
["62: UNIVERSIDAD TECNOLOGICA DE LOS ANDES"]
["63: UNIVERSIDAD PRIVADA DE TACNA"]
["64: UNIVERSIDAD PRIVADA ANTENOR ORREGO"]
["65: UNIVERSIDAD DE HUANUCO"]
["66: UNIVERSIDAD MARCELINO CHAMPAGNAT"]
["67: UNIVERSIDAD CÉSAR VALLEJO"]
["68: UNIVERSIDAD PERUANA DE CIENCIAS APLICADAS"]
["69: UNIVERSIDAD PRIVADA DEL NORTE"]
["70: UNIVERSIDAD SAN IGNACIO DE LOYOLA"]
["71: UNIVERSIDAD NORBERT WIENER"]
["72: UNIVERSIDAD CATÓLICA SAN PABLO"]
["73: UNIVERSIDAD PRIVADA SAN JUAN BAUTISTA"]
["74: UNIVERSIDAD TECNOLÓGICA DEL PERÚ"]
["75: UNIVERSIDAD CONTINENTAL"]
["76: UNIVERSIDAD CIENTÍFICA DEL SUR"]
["77: UNIVERSIDAD CATÓLICA SANTO TORIBIO DE MOGROVEJO"]
["78: UNIVERSIDAD CATÓLICA SEDES SAPIENTIAE"]
["79: UNIVERSIDAD SEÑOR DE SIPÁN"]
["80: UNIVERSIDAD CATÓLICA DE TRUJILLO BENEDICTO XVI"]
["81: UNIVERSIDAD ESAN"]
["82: UNIVERSIDAD ANTONIO RUIZ DE MONTOYA"]
["83: UNIVERSIDAD PARA EL DESARROLLO ANDINO"]
["84: UNIVERSIDAD AUTÓNOMA DE ICA"]
["85: UNIVERSIDAD AUTÓNOMA DEL PERU"]
["86: UNIVERSIDAD DE CIENCIAS Y HUMANIDADES"]
["87: UNIVERSIDAD JAIME BAUSATE Y MEZA"]
["88: UNIVERSIDAD LE CORDON BLEU"]
["89: UNIVERSIDAD PRIVADA DE HUANCAYO FRANKLIN ROOSEVELT"]
["90: UNIVERSIDAD DE CIENCIAS Y ARTES DE AMÉRICA LATINA"]
["91: UNIVERSIDAD DE INGENIERÍA Y TECNOLOGÍA"]
["92: UNIVERSIDAD LA SALLE"]
["93: UNIVERSIDAD MARÍA AUXILIADORA"]
["94: UNIVERSIDAD PRIVADA PERUANO ALEMANA"]
["95: FACULTAD DE TEOLOGÍA PONTIFICIA Y CIVIL DE LIMA"]

{"sheet":"Enviar","index":11,"n_rows":9,"n_cols":3,"rows_kept":9,"cut":false,"hidden":false,"merged":[[0,0,0,3],[1,0,1,3]]}
["CENSO EDUCATIVO 2024"]
["MATRÍCULA, DOCENTES Y MATERIALES EDUCATIVOS"]
[]
[]
[null,"Paso 1:","Realice el ENVÍO con su clave EOL."]
[]
[null,"Paso 2:","Una vez realizado el ENVÍO,  Revise su constancia de envio."]
[]
[null,"  ADVERTENCIA","ASEGÚRESE DE REGISTRAR TODA LA INFORMACIÓN DEL NIVEL INFORMANTE"]